Workbook

Sheet P1
G1: 3
A2: CHAMPIONNAT DES CLUBS
A4: POULE 1
A5: EQUIPES | C5: POINTS | D5: Pour | E5: Contre | F5: Diff
A6: AA | B6: 1A | C6: =SUMIF($A$18:$A$69,A6,$E$18:$E$69)+SUMIF($C$18:$C$69,A6,$F$18:$F$69) -> 17 | D6: =SUMIF($A$18:$A$69,$A6,$B$18:$B$69)+SUMIF($C$18:$C$69,$A6,$D$18:$D$69) -> 148 | E6: =SUMIF($C$18:$C$69,$A6,$B$18:$B$69)+SUMIF($A$18:$A$69,$A6,$D$18:$D$69) -> 104 | F6: =D6-E6 -> 44
A7: AB | B7: 1B | C7: =SUMIF($A$18:$A$69,A7,$E$18:$E$69)+SUMIF($C$18:$C$69,A7,$F$18:$F$69) -> 17 | D7: =SUMIF($A$18:$A$69,$A7,$B$18:$B$69)+SUMIF($C$18:$C$69,$A7,$D$18:$D$69) -> 162 | E7: =SUMIF($C$18:$C$69,$A7,$B$18:$B$69)+SUMIF($A$18:$A$69,$A7,$D$18:$D$69) -> 90 | F7: 72
A8: AC | B8: 1C | C8: =SUMIF($A$18:$A$69,A8,$E$18:$E$69)+SUMIF($C$18:$C$69,A8,$F$18:$F$69) -> 15 | D8: 112 | E8: 140 | F8: -28
A9: AD | B9: 1D | C9: 15 | D9: 154 | E9: 98 | F9: 56
A10: AE | B10: 1E | C10: 17 | D10: 140 | E10: 112 | F10: 28
A11: AF | B11: 1F | C11: 11 | D11: 94 | E11: 158 | F11: -64
A12: AG | B12: 1G | C12: 13 | D12: 120 | E12: 132 | F12: =D12-E12 -> -12
A13: AH | B13: 1H | C13: 7 | D13: =SUMIF($A$18:$A$69,$A13,$B$18:$B$69)+SUMIF($C$18:$C$69,$A13,$D$18:$D$69) -> 78 | E13: 174 | F13: =D13-E13 -> -96
A15: 1er MATCH le | B15: à | C15: AA
G16: SI forfait éq recevante
A17: Equipes | B17: score | C17: Equipes | D17: score | E17: Points | F17: Points
A18: AA | B18: 20 | C18: AB | D18: =IF(G18=19,19,IF(ISBLANK(B18),"",IF(B18=19,0,36-B18))) -> 16 | E18: =IF(G18=19,0,IF(ISBLANK(B18),"",IF(B18<18,1,IF(B18=18,2,IF(B18>18,3))))) -> 3 | F18: =IF(G18=19,3,IF(ISBLANK(B18),"",IF(B18=19,0,IF(D18<18,1,IF(D18=18,2,IF(D18>=20,3)))))) -> 1 | L18: =IF(B18>D18,A18&C18,IF(D18>B18,C18&A18,"/")) -> AAAB | N18: =A18&C18 -> AAAB | O18: =E18 -> 3 | P18: =C18&A18 -> ABAA | Q18: =F18 -> 1 | R18: =B18 -> 20 | S18: =D18 -> 16
A19: AC | B19: 30 | C19: AD | D19: =IF(G19=19,19,IF(ISBLANK(B19),"",IF(B19=19,0,36-B19))) -> 6 | E19: =IF(G19=19,0,IF(ISBLANK(B19),"",IF(B19<18,1,IF(B19=18,2,IF(B19>18,3))))) -> 3 | F19: =IF(G19=19,3,IF(ISBLANK(B19),"",IF(B19=19,0,IF(D19<18,1,IF(D19=18,2,IF(D19>=20,3)))))) -> 1 | L19: =IF(B19>D19,A19&C19,IF(D19>B19,C19&A19,"/")) -> ACAD | N19: =A19&C19 -> ACAD | O19: =E19 -> 3 | P19: =C19&A19 -> ADAC | Q19: =F19 -> 1 | R19: =B19 -> 30 | S19: =D19 -> 6
A20: AE | B20: 22 | C20: AF | D20: =IF(G20=19,19,IF(ISBLANK(B20),"",IF(B20=19,0,36-B20))) -> 14 | E20: =IF(G20=19,0,IF(ISBLANK(B20),"",IF(B20<18,1,IF(B20=18,2,IF(B20>18,3))))) -> 3 | F20: =IF(G20=19,3,IF(ISBLANK(B20),"",IF(B20=19,0,IF(D20<18,1,IF(D20=18,2,IF(D20>=20,3)))))) -> 1 | L20: =IF(B20>D20,A20&C20,IF(D20>B20,C20&A20,"/")) -> AEAF | N20: =A20&C20 -> AEAF | O20: =E20 -> 3 | P20: =C20&A20 -> AFAE | Q20: =F20 -> 1 | R20: =B20 -> 22 | S20: =D20 -> 14
A21: AG | B21: 30 | C21: AH | D21: =IF(G21=19,19,IF(ISBLANK(B21),"",IF(B21=19,0,36-B21))) -> 6 | E21: =IF(G21=19,0,IF(ISBLANK(B21),"",IF(B21<18,1,IF(B21=18,2,IF(B21>18,3))))) -> 3 | F21: =IF(G21=19,3,IF(ISBLANK(B21),"",IF(B21=19,0,IF(D21<18,1,IF(D21=18,2,IF(D21>=20,3)))))) -> 1 | L21: =IF(B21>D21,A21&C21,IF(D21>B21,C21&A21,"/")) -> AGAH | N21: =A21&C21 -> AGAH | O21: =E21 -> 3 | P21: =C21&A21 -> AHAG | Q21: =F21 -> 1 | R21: =B21 -> 30 | S21: =D21 -> 6
A23: 2 éme MATCH le | B23: à | C23: AB
G24: SI forfait éq recevante
A25: Equipes | B25: score | C25: Equipes | D25: score | E25: Points | F25: Points
A26: AA | B26: 24 | C26: AC | D26: =IF(G26=19,19,IF(ISBLANK(B26),"",IF(B26=19,0,36-B26))) -> 12 | E26: =IF(G26=19,0,IF(ISBLANK(B26),"",IF(B26<18,1,IF(B26=18,2,IF(B26>18,3))))) -> 3 | F26: =IF(G26=19,3,IF(ISBLANK(B26),"",IF(B26=19,0,IF(D26<18,1,IF(D26=18,2,IF(D26>=20,3)))))) -> 1 | L26: =IF(B26>D26,A26&C26,IF(D26>B26,C26&A26,"/")) -> AAAC | N26: =A26&C26 -> AAAC | O26: =E26 -> 3 | P26: =C26&A26 -> ACAA | Q26: =F26 -> 1 | R26: =B26 -> 24 | S26: =D26 -> 12
A27: AB | B27: 26 | C27: AH | D27: =IF(G27=19,19,IF(ISBLANK(B27),"",IF(B27=19,0,36-B27))) -> 10 | E27: =IF(G27=19,0,IF(ISBLANK(B27),"",IF(B27<18,1,IF(B27=18,2,IF(B27>18,3))))) -> 3 | F27: =IF(G27=19,3,IF(ISBLANK(B27),"",IF(B27=19,0,IF(D27<18,1,IF(D27=18,2,IF(D27>=20,3)))))) -> 1 | L27: =IF(B27>D27,A27&C27,IF(D27>B27,C27&A27,"/")) -> ABAH | N27: =A27&C27 -> ABAH | O27: =E27 -> 3 | P27: =C27&A27 -> AHAB | Q27: =F27 -> 1 | R27: =B27 -> 26 | S27: =D27 -> 10
A28: AD | B28: 28 | C28: AF | D28: =IF(G28=19,19,IF(ISBLANK(B28),"",IF(B28=19,0,36-B28))) -> 8 | E28: =IF(G28=19,0,IF(ISBLANK(B28),"",IF(B28<18,1,IF(B28=18,2,IF(B28>18,3))))) -> 3 | F28: =IF(G28=19,3,IF(ISBLANK(B28),"",IF(B28=19,0,IF(D28<18,1,IF(D28=18,2,IF(D28>=20,3)))))) -> 1 | L28: =IF(B28>D28,A28&C28,IF(D28>B28,C28&A28,"/")) -> ADAF | N28: =A28&C28 -> ADAF | O28: =E28 -> 3 | P28: =C28&A28 -> AFAD | Q28: =F28 -> 1 | R28: =B28 -> 28 | S28: =D28 -> 8
A29: AE | B29: 28 | C29: AG | D29: =IF(G29=19,19,IF(ISBLANK(B29),"",IF(B29=19,0,36-B29))) -> 8 | E29: =IF(G29=19,0,IF(ISBLANK(B29),"",IF(B29<18,1,IF(B29=18,2,IF(B29>18,3))))) -> 3 | F29: =IF(G29=19,3,IF(ISBLANK(B29),"",IF(B29=19,0,IF(D29<18,1,IF(D29=18,2,IF(D29>=20,3)))))) -> 1 | L29: =IF(B29>D29,A29&C29,IF(D29>B29,C29&A29,"/")) -> AEAG | N29: =A29&C29 -> AEAG | O29: =E29 -> 3 | P29: =C29&A29 -> AGAE | Q29: =F29 -> 1 | R29: =B29 -> 28 | S29: =D29 -> 8
A31: 3 éme MATCH le | B31: à | C31: AC
G32: SI forfait éq recevante
A33: Equipes | B33: score | C33: Equipes | D33: score | E33: Points | F33: Points
A34: AA | B34: 20 | C34: AH | D34: =IF(G34=19,19,IF(ISBLANK(B34),"",IF(B34=19,0,36-B34))) -> 16 | E34: =IF(G34=19,0,IF(ISBLANK(B34),"",IF(B34<18,1,IF(B34=18,2,IF(B34>18,3))))) -> 3 | F34: =IF(G34=19,3,IF(ISBLANK(B34),"",IF(B34=19,0,IF(D34<18,1,IF(D34=18,2,IF(D34>=20,3)))))) -> 1 | L34: =IF(B34>D34,A34&C34,IF(D34>B34,C34&A34,"/")) -> AAAH | N34: =A34&C34 -> AAAH | O34: =E34 -> 3 | P34: =C34&A34 -> AHAA | Q34: =F34 -> 1 | R34: =B34 -> 20 | S34: =D34 -> 16
A35: AB | B35: 26 | C35: AE | D35: =IF(G35=19,19,IF(ISBLANK(B35),"",IF(B35=19,0,36-B35))) -> 10 | E35: =IF(G35=19,0,IF(ISBLANK(B35),"",IF(B35<18,1,IF(B35=18,2,IF(B35>18,3))))) -> 3 | F35: =IF(G35=19,3,IF(ISBLANK(B35),"",IF(B35=19,0,IF(D35<18,1,IF(D35=18,2,IF(D35>=20,3)))))) -> 1 | L35: =IF(B35>D35,A35&C35,IF(D35>B35,C35&A35,"/")) -> ABAE | N35: =A35&C35 -> ABAE | O35: =E35 -> 3 | P35: =C35&A35 -> AEAB | Q35: =F35 -> 1 | R35: =B35 -> 26 | S35: =D35 -> 10
A36: AC | B36: 20 | C36: AF | D36: =IF(G36=19,19,IF(ISBLANK(B36),"",IF(B36=19,0,36-B36))) -> 16 | E36: =IF(G36=19,0,IF(ISBLANK(B36),"",IF(B36<18,1,IF(B36=18,2,IF(B36>18,3))))) -> 3 | F36: =IF(G36=19,3,IF(ISBLANK(B36),"",IF(B36=19,0,IF(D36<18,1,IF(D36=18,2,IF(D36>=20,3)))))) -> 1 | L36: =IF(B36>D36,A36&C36,IF(D36>B36,C36&A36,"/")) -> ACAF | N36: =A36&C36 -> ACAF | O36: =E36 -> 3 | P36: =C36&A36 -> AFAC | Q36: =F36 -> 1 | R36: =B36 -> 20 | S36: =D36 -> 16
A37: AD | B37: 30 | C37: AG | D37: =IF(G37=19,19,IF(ISBLANK(B37),"",IF(B37=19,0,36-B37))) -> 6 | E37: =IF(G37=19,0,IF(ISBLANK(B37),"",IF(B37<18,1,IF(B37=18,2,IF(B37>18,3))))) -> 3 | F37: =IF(G37=19,3,IF(ISBLANK(B37),"",IF(B37=19,0,IF(D37<18,1,IF(D37=18,2,IF(D37>=20,3)))))) -> 1 | L37: =IF(B37>D37,A37&C37,IF(D37>B37,C37&A37,"/")) -> ADAG | N37: =A37&C37 -> ADAG | O37: =E37 -> 3 | P37: =C37&A37 -> AGAD | Q37: =F37 -> 1 | R37: =B37 -> 30 | S37: =D37 -> 6
A39: 4 éme MATCH le | B39: à | C39: AD
G40: SI forfait éq recevante
A41: Equipes | B41: score | C41: Equipes | D41: score | E41: Points | F41: Points
A42: AA | B42: 20 | C42: AD | D42: =IF(G42=19,19,IF(ISBLANK(B42),"",IF(B42=19,0,36-B42))) -> 16 | E42: =IF(G42=19,0,IF(ISBLANK(B42),"",IF(B42<18,1,IF(B42=18,2,IF(B42>18,3))))) -> 3 | F42: =IF(G42=19,3,IF(ISBLANK(B42),"",IF(B42=19,0,IF(D42<18,1,IF(D42=18,2,IF(D42>=20,3)))))) -> 1 | L42: =IF(B42>D42,A42&C42,IF(D42>B42,C42&A42,"/")) -> AAAD | N42: =A42&C42 -> AAAD | O42: =E42 -> 3 | P42: =C42&A42 -> ADAA | Q42: =F42 -> 1 | R42: =B42 -> 20 | S42: =D42 -> 16
A43: AF | B43: 24 | C43: AG | D43: =IF(G43=19,19,IF(ISBLANK(B43),"",IF(B43=19,0,36-B43))) -> 12 | E43: =IF(G43=19,0,IF(ISBLANK(B43),"",IF(B43<18,1,IF(B43=18,2,IF(B43>18,3))))) -> 3 | F43: =IF(G43=19,3,IF(ISBLANK(B43),"",IF(B43=19,0,IF(D43<18,1,IF(D43=18,2,IF(D43>=20,3)))))) -> 1 | L43: =IF(B43>D43,A43&C43,IF(D43>B43,C43&A43,"/")) -> AFAG | N43: =A43&C43 -> AFAG | O43: =E43 -> 3 | P43: =C43&A43 -> AGAF | Q43: =F43 -> 1 | R43: =B43 -> 24 | S43: =D43 -> 12
A44: AB | B44: 32 | C44: AC | D44: =IF(G44=19,19,IF(ISBLANK(B44),"",IF(B44=19,0,36-B44))) -> 4 | E44: =IF(G44=19,0,IF(ISBLANK(B44),"",IF(B44<18,1,IF(B44=18,2,IF(B44>18,3))))) -> 3 | F44: =IF(G44=19,3,IF(ISBLANK(B44),"",IF(B44=19,0,IF(D44<18,1,IF(D44=18,2,IF(D44>=20,3)))))) -> 1 | L44: =IF(B44>D44,A44&C44,IF(D44>B44,C44&A44,"/")) -> ABAC | N44: =A44&C44 -> ABAC | O44: =E44 -> 3 | P44: =C44&A44 -> ACAB | Q44: =F44 -> 1 | R44: =B44 -> 32 | S44: =D44 -> 4
A45: AE | B45: 20 | C45: AH | D45: =IF(G45=19,19,IF(ISBLANK(B45),"",IF(B45=19,0,36-B45))) -> 16 | E45: =IF(G45=19,0,IF(ISBLANK(B45),"",IF(B45<18,1,IF(B45=18,2,IF(B45>18,3))))) -> 3 | F45: =IF(G45=19,3,IF(ISBLANK(B45),"",IF(B45=19,0,IF(D45<18,1,IF(D45=18,2,IF(D45>=20,3)))))) -> 1 | L45: =IF(B45>D45,A45&C45,IF(D45>B45,C45&A45,"/")) -> AEAH | N45: =A45&C45 -> AEAH | O45: =E45 -> 3 | P45: =C45&A45 -> AHAE | Q45: =F45 -> 1 | R45: =B45 -> 20 | S45: =D45 -> 16
A47: 5 éme MATCH le | B47: à | C47: AE
G48: SI forfait éq recevante
A49: Equipes | B49: score | C49: Equipes | D49: score | E49: Points | F49: Points
A50: AA | B50: 36 | C50: AF | D50: =IF(G50=19,19,IF(ISBLANK(B50),"",IF(B50=19,0,36-B50))) -> 0 | E50: =IF(G50=19,0,IF(ISBLANK(B50),"",IF(B50<18,1,IF(B50=18,2,IF(B50>18,3))))) -> 3 | F50: =IF(G50=19,3,IF(ISBLANK(B50),"",IF(B50=19,0,IF(D50<18,1,IF(D50=18,2,IF(D50>=20,3)))))) -> 1 | L50: =IF(B50>D50,A50&C50,IF(D50>B50,C50&A50,"/")) -> AAAF | N50: =A50&C50 -> AAAF | O50: =E50 -> 3 | P50: =C50&A50 -> AFAA | Q50: =F50 -> 1 | R50: =B50 -> 36 | S50: =D50 -> 0
A51: AD | B51: 34 | C51: AH | D51: =IF(G51=19,19,IF(ISBLANK(B51),"",IF(B51=19,0,36-B51))) -> 2 | E51: =IF(G51=19,0,IF(ISBLANK(B51),"",IF(B51<18,1,IF(B51=18,2,IF(B51>18,3))))) -> 3 | F51: =IF(G51=19,3,IF(ISBLANK(B51),"",IF(B51=19,0,IF(D51<18,1,IF(D51=18,2,IF(D51>=20,3)))))) -> 1 | L51: =IF(B51>D51,A51&C51,IF(D51>B51,C51&A51,"/")) -> ADAH | N51: =A51&C51 -> ADAH | O51: =E51 -> 3 | P51: =C51&A51 -> AHAD | Q51: =F51 -> 1 | R51: =B51 -> 34 | S51: =D51 -> 2
A52: AB | B52: 24 | C52: AG | D52: =IF(G52=19,19,IF(ISBLANK(B52),"",IF(B52=19,0,36-B52))) -> 12 | E52: =IF(G52=19,0,IF(ISBLANK(B52),"",IF(B52<18,1,IF(B52=18,2,IF(B52>18,3))))) -> 3 | F52: =IF(G52=19,3,IF(ISBLANK(B52),"",IF(B52=19,0,IF(D52<18,1,IF(D52=18,2,IF(D52>=20,3)))))) -> 1 | L52: =IF(B52>D52,A52&C52,IF(D52>B52,C52&A52,"/")) -> ABAG | N52: =A52&C52 -> ABAG | O52: =E52 -> 3 | P52: =C52&A52 -> AGAB | Q52: =F52 -> 1 | R52: =B52 -> 24 | S52: =D52 -> 12
A53: AC | B53: 20 | C53: AE | D53: =IF(G53=19,19,IF(ISBLANK(B53),"",IF(B53=19,0,36-B53))) -> 16 | E53: =IF(G53=19,0,IF(ISBLANK(B53),"",IF(B53<18,1,IF(B53=18,2,IF(B53>18,3))))) -> 3 | F53: =IF(G53=19,3,IF(ISBLANK(B53),"",IF(B53=19,0,IF(D53<18,1,IF(D53=18,2,IF(D53>=20,3)))))) -> 1 | L53: =IF(B53>D53,A53&C53,IF(D53>B53,C53&A53,"/")) -> ACAE | N53: =A53&C53 -> ACAE | O53: =E53 -> 3 | P53: =C53&A53 -> AEAC | Q53: =F53 -> 1 | R53: =B53 -> 20 | S53: =D53 -> 16
A55: 6 éme MATCH le | B55: à | C55: AF
G56: SI forfait éq recevante
A57: Equipes | B57: score | C57: Equipes | D57: score | E57: Points | F57: Points
A58: AB | B58: 12 | C58: AD | D58: =IF(G58=19,19,IF(ISBLANK(B58),"",IF(B58=19,0,36-B58))) -> 24 | E58: =IF(G58=19,0,IF(ISBLANK(B58),"",IF(B58<18,1,IF(B58=18,2,IF(B58>18,3))))) -> 1 | F58: =IF(G58=19,3,IF(ISBLANK(B58),"",IF(B58=19,0,IF(D58<18,1,IF(D58=18,2,IF(D58>=20,3)))))) -> 3 | L58: =IF(B58>D58,A58&C58,IF(D58>B58,C58&A58,"/")) -> ADAB | N58: =A58&C58 -> ABAD | O58: =E58 -> 1 | P58: =C58&A58 -> ADAB | Q58: =F58 -> 3 | R58: =B58 -> 12 | S58: =D58 -> 24
A59: AE | B59: 24 | C59: AA | D59: =IF(G59=19,19,IF(ISBLANK(B59),"",IF(B59=19,0,36-B59))) -> 12 | E59: =IF(G59=19,0,IF(ISBLANK(B59),"",IF(B59<18,1,IF(B59=18,2,IF(B59>18,3))))) -> 3 | F59: =IF(G59=19,3,IF(ISBLANK(B59),"",IF(B59=19,0,IF(D59<18,1,IF(D59=18,2,IF(D59>=20,3)))))) -> 1 | L59: =IF(B59>D59,A59&C59,IF(D59>B59,C59&A59,"/")) -> AEAA | N59: =A59&C59 -> AEAA | O59: =E59 -> 3 | P59: =C59&A59 -> AAAE | Q59: =F59 -> 1 | R59: =B59 -> 24 | S59: =D59 -> 12
A60: AG | B60: 32 | C60: AC | D60: =IF(G60=19,19,IF(ISBLANK(B60),"",IF(B60=19,0,36-B60))) -> 4 | E60: =IF(G60=19,0,IF(ISBLANK(B60),"",IF(B60<18,1,IF(B60=18,2,IF(B60>18,3))))) -> 3 | F60: =IF(G60=19,3,IF(ISBLANK(B60),"",IF(B60=19,0,IF(D60<18,1,IF(D60=18,2,IF(D60>=20,3)))))) -> 1 | L60: =IF(B60>D60,A60&C60,IF(D60>B60,C60&A60,"/")) -> AGAC | N60: =A60&C60 -> AGAC | O60: =E60 -> 3 | P60: =C60&A60 -> ACAG | Q60: =F60 -> 1 | R60: =B60 -> 32 | S60: =D60 -> 4
A61: AF | B61: 22 | C61: AH | D61: =IF(G61=19,19,IF(ISBLANK(B61),"",IF(B61=19,0,36-B61))) -> 14 | E61: =IF(G61=19,0,IF(ISBLANK(B61),"",IF(B61<18,1,IF(B61=18,2,IF(B61>18,3))))) -> 3 | F61: =IF(G61=19,3,IF(ISBLANK(B61),"",IF(B61=19,0,IF(D61<18,1,IF(D61=18,2,IF(D61>=20,3)))))) -> 1 | L61: =IF(B61>D61,A61&C61,IF(D61>B61,C61&A61,"/")) -> AFAH | N61: =A61&C61 -> AFAH | O61: =E61 -> 3 | P61: =C61&A61 -> AHAF | Q61: =F61 -> 1 | R61: =B61 -> 22 | S61: =D61 -> 14
A63: 7 éme MATCH le | B63: à | C63: AG
G64: SI forfait éq recevante
A65: Equipes | B65: score | C65: Equipes | D65: score | E65: Points | F65: Points
A66: AA | B66: 16 | C66: AG | D66: =IF(G66=19,19,IF(ISBLANK(B66),"",IF(B66=19,0,36-B66))) -> 20 | E66: =IF(G66=19,0,IF(ISBLANK(B66),"",IF(B66<18,1,IF(B66=18,2,IF(B66>18,3))))) -> 1 | F66: =IF(G66=19,3,IF(ISBLANK(B66),"",IF(B66=19,0,IF(D66<18,1,IF(D66=18,2,IF(D66>=20,3)))))) -> 3 | L66: =IF(B66>D66,A66&C66,IF(D66>B66,C66&A66,"/")) -> AGAA | N66: =A66&C66 -> AAAG | O66: =E66 -> 1 | P66: =C66&A66 -> AGAA | Q66: =F66 -> 3 | R66: =B66 -> 16 | S66: =D66 -> 20
A67: AB | B67: 26 | C67: AF | D67: =IF(G67=19,19,IF(ISBLANK(B67),"",IF(B67=19,0,36-B67))) -> 10 | E67: =IF(G67=19,0,IF(ISBLANK(B67),"",IF(B67<18,1,IF(B67=18,2,IF(B67>18,3))))) -> 3 | F67: =IF(G67=19,3,IF(ISBLANK(B67),"",IF(B67=19,0,IF(D67<18,1,IF(D67=18,2,IF(D67>=20,3)))))) -> 1 | L67: =IF(B67>D67,A67&C67,IF(D67>B67,C67&A67,"/")) -> ABAF | N67: =A67&C67 -> ABAF | O67: =E67 -> 3 | P67: =C67&A67 -> AFAB | Q67: =F67 -> 1 | R67: =B67 -> 26 | S67: =D67 -> 10
A68: AE | B68: 20 | C68: AD | D68: =IF(G68=19,19,IF(ISBLANK(B68),"",IF(B68=19,0,36-B68))) -> 16 | E68: =IF(G68=19,0,IF(ISBLANK(B68),"",IF(B68<18,1,IF(B68=18,2,IF(B68>18,3))))) -> 3 | F68: =IF(G68=19,3,IF(ISBLANK(B68),"",IF(B68=19,0,IF(D68<18,1,IF(D68=18,2,IF(D68>=20,3)))))) -> 1 | L68: =IF(B68>D68,A68&C68,IF(D68>B68,C68&A68,"/")) -> AEAD | N68: =A68&C68 -> AEAD | O68: =E68 -> 3 | P68: =C68&A68 -> ADAE | Q68: =F68 -> 1 | R68: =B68 -> 20 | S68: =D68 -> 16
A69: AC | B69: 22 | C69: AH | D69: =IF(G69=19,19,IF(ISBLANK(B69),"",IF(B69=19,0,36-B69))) -> 14 | E69: =IF(G69=19,0,IF(ISBLANK(B69),"",IF(B69<18,1,IF(B69=18,2,IF(B69>18,3))))) -> 3 | F69: =IF(G69=19,3,IF(ISBLANK(B69),"",IF(B69=19,0,IF(D69<18,1,IF(D69=18,2,IF(D69>=20,3)))))) -> 1 | L69: =IF(B69>D69,A69&C69,IF(D69>B69,C69&A69,"/")) -> ACAH | N69: =A69&C69 -> ACAH | O69: =E69 -> 3 | P69: =C69&A69 -> AHAC | Q69: =F69 -> 1 | R69: =B69 -> 22 | S69: =D69 -> 14
C70: Si pas d'exaequo | G70: Classt Final | H70: Rencontres entre exaequos
A71: EQUIPES | C71: POINTS | D71: POUR | E71: CONTRE | F71: DIFF | H71: POINTS Exaequos | I71: Exaq | J71: n° | K71: AA | L71: AB | M71: AC | N71: AD | O71: AE | P71: AF | Q71: AG | R71: AH | S71: Pts matchs | W71: 1000000*Pts matchs +1000 (Diff + abs(diff mini) )+Pour | X71: RANG | Y71: DIFF Exaequos | Z71: POUR Exaequos
A72: AB | B72: 1B | C72: 17 | D72: 162 | E72: 90 | F72: 72 | G72: 1 | H72: =IF(S72>0,S72,"") -> 4 | I72: =COUNTIF($C$72:$C$79,C72) -> 3 | J72: =IF(AND(I72>1,COUNTIFS(I$72:I72,I72,C$72:C72,C72)=1),MAX(J$71:J71)+1,"") -> 1 | K72: =IF($A72=K$71,"",IF(INDEX($C$72:$C$79,MATCH(K$71,$A$72:$A$79,0))=$C72,IFERROR(VLOOKUP($A72&K$71,$N$18:$O$69,2,0), VLOOKUP(K$71&$A72,$N$18:$Q$69,4,0)), "")) -> 1 | O72: 3 | S72: =SUM(K72:R72) -> 4 | W72: =IF(I72<3,S72*1000000+(F72+ABS(MIN($F$72:$F$79)))*1000+D72,S72*1000000+U96*1000+Z72) -> 4036042 | X72: =IF(I72>2,RANK(W72,OFFSET(W$71,MATCH(I72,$I$72:$I$79,0),,I72))) -> 1 | Y72: =IF(S96=0,"",S96) -> 12 | Z72: =IF(S80=0,"",S80) -> 42
A73: AE | B73: 1E | C73: 17 | D73: 140 | E73: 112 | F73: 28 | G73: 2 | H73: 4 | I73: 3 | J73: =IF(AND(I73>1,COUNTIFS(I$72:I73,I73,C$72:C73,C73)=1),MAX(J$71:J72)+1,"") ->  | K73: 3 | L73: 1 | S73: =SUM(K73:R73) -> 4 | W73: =IF(I73<3,S73*1000000+(F73+ABS(MIN($F$72:$F$79)))*1000+D73,S73*1000000+U97*1000+Z73) -> 4020034 | X73: =IF(I73>2,RANK(W73,OFFSET(W$71,MATCH(I73,$I$72:$I$79,0),,I73))) -> 2 | Y73: -4 | Z73: 34
A74: AA | B74: 1A | C74: 17 | D74: 148 | E74: 104 | F74: 44 | G74: 3 | H74: 4 | I74: 3 | J74: =IF(AND(I74>1,COUNTIFS(I$72:I74,I74,C$72:C74,C74)=1),MAX(J$71:J73)+1,"") ->  | L74: 3 | O74: 1 | S74: 4 | W74: 4016032 | X74: 3 | Y74: -8 | Z74: 32
A75: AC | B75: 1C | C75: 15 | D75: 112 | E75: 140 | F75: -28 | G75: 4 | H75: 3 | I75: 2 | J75: =IF(AND(I75>1,COUNTIFS(I$72:I75,I75,C$72:C75,C75)=1),MAX(J$71:J74)+1,"") -> 2 | N75: 3 | S75: 3 | W75: 3068112 | X75: FALSE | Y75: 24 | Z75: 30
A76: AD | B76: 1D | C76: 15 | D76: 154 | E76: 98 | F76: 56 | G76: 5 | H76: 1 | I76: 2 | J76: =IF(AND(I76>1,COUNTIFS(I$72:I76,I76,C$72:C76,C76)=1),MAX(J$71:J75)+1,"") ->  | M76: 1 | S76: 1 | W76: 1152154 | X76: FALSE | Y76: -24 | Z76: 6
A77: AG | B77: 1G | C77: 13 | D77: 120 | E77: 132 | F77: -12 | G77: 6 | I77: 1 | J77: =IF(AND(I77>1,COUNTIFS(I$72:I77,I77,C$72:C77,C77)=1),MAX(J$71:J76)+1,"") ->  | S77: 0 | W77: 84120 | X77: FALSE
A78: AF | B78: 1F | C78: 11 | D78: 94 | E78: 158 | F78: -64 | G78: 7 | I78: 1 | J78: =IF(AND(I78>1,COUNTIFS(I$72:I78,I78,C$72:C78,C78)=1),MAX(J$71:J77)+1,"") ->  | S78: 0 | W78: 32094 | X78: FALSE
A79: AH | B79: 1H | C79: 7 | D79: 78 | E79: 174 | F79: -96 | G79: 8 | I79: 1 | J79: =IF(AND(I79>1,COUNTIFS(I$72:I79,I79,C$72:C79,C79)=1),MAX(J$71:J78)+1,"") ->  | S79: 0 | W79: 78 | X79: FALSE
I80: POUR | J80: =A72 -> AB | K80: =IF($A72=K$71,"",IF(INDEX($C$72:$C$79,MATCH(K$71,$A$72:$A$79,0))=$C72,IFERROR(VLOOKUP($A72&K$71,$N$18:$R$69,5,0), VLOOKUP(K$71&$A72,$N$18:$S$69,6,0)), "")) -> 16 | O80: 26 | S80: 42
J81: AE | K81: 24 | L81: 10 | S81: 34
J82: AA | L82: 20 | O82: 12 | S82: 32
J83: AC | N83: 30 | S83: 30
J84: AD | M84: 6 | S84: 6
J85: AG | S85: 0
J86: AF | S86: 0
J87: AH | S87: 0
I88: CONTRE | J88: =J80 -> AB | K88: =INDEX($K$80:$R$87,MATCH(K$71,$J$80:$J$87,0),MATCH($J80,$K$71:$R$71,0)) -> 20 | L88: =INDEX($K$80:$R$87,MATCH(L$71,$J$80:$J$87,0),MATCH($J80,$K$71:$R$71,0)) ->  | O88: 10 | S88: 30
J89: =J81 -> AE | K89: =INDEX($K$80:$R$87,MATCH(K$71,$J$80:$J$87,0),MATCH($J81,$K$71:$R$71,0)) -> 12 | L89: 26 | S89: 38
J90: AA | L90: 16 | O90: 24 | S90: 40
J91: AC | N91: 6 | S91: 6
J92: AD | M92: 30 | S92: 30
J93: AG | S93: 0
J94: AF | S94: 0
J95: AH | S95: 0 | U95: Diff pondérée
I96: DIFF | J96: =J88 -> AB | S96: =S80-S88 -> 12 | U96: =S96+ABS(MIN($S$96:$S$103)) -> 36
J97: =J89 -> AE | S97: =S81-S89 -> -4 | U97: 20
J98: AA | S98: -8 | U98: 16
J99: AC | S99: 24 | U99: 48
J100: AD | S100: -24 | U100: 0
J101: AG | S101: 0 | U101: 24
J102: AF | S102: 0 | U102: =S102+ABS(MIN($S$96:$S$103)) -> 24
J103: AH | S103: 0 | U103: =S103+ABS(MIN($S$96:$S$103)) -> 24

Sheet P2
G1: 3
A2: CHAMPIONNAT DES CLUBS
A4: POULE 1
A5: EQUIPES | C5: POINTS | D5: Pour | E5: Contre | F5: Diff
A6: AA | B6: 1A | C6: =SUMIF($A$18:$A$69,A6,$E$18:$E$69)+SUMIF($C$18:$C$69,A6,$F$18:$F$69) -> 17 | D6: =SUMIF($A$18:$A$69,$A6,$B$18:$B$69)+SUMIF($C$18:$C$69,$A6,$D$18:$D$69) -> 134 | E6: =SUMIF($C$18:$C$69,$A6,$B$18:$B$69)+SUMIF($A$18:$A$69,$A6,$D$18:$D$69) -> 118 | F6: =D6-E6 -> 16
A7: AB | B7: 1B | C7: =SUMIF($A$18:$A$69,A7,$E$18:$E$69)+SUMIF($C$18:$C$69,A7,$F$18:$F$69) -> 12 | D7: =SUMIF($A$18:$A$69,$A7,$B$18:$B$69)+SUMIF($C$18:$C$69,$A7,$D$18:$D$69) -> 102 | E7: =SUMIF($C$18:$C$69,$A7,$B$18:$B$69)+SUMIF($A$18:$A$69,$A7,$D$18:$D$69) -> 150 | F7: -48
A8: AC | B8: 1C | C8: =SUMIF($A$18:$A$69,A8,$E$18:$E$69)+SUMIF($C$18:$C$69,A8,$F$18:$F$69) -> 17 | D8: 152 | E8: 100 | F8: 52
A9: AD | B9: 1D | C9: 10 | D9: 86 | E9: 166 | F9: -80
A10: AE | B10: 1E | C10: 18 | D10: 158 | E10: 94 | F10: 64
A11: AF | B11: 1F | C11: 16 | D11: 144 | E11: 108 | F11: 36
A12: AG | B12: 1G | C12: 12 | D12: 120 | E12: 132 | F12: =D12-E12 -> -12
A13: AH | B13: 1H | C13: 10 | D13: =SUMIF($A$18:$A$69,$A13,$B$18:$B$69)+SUMIF($C$18:$C$69,$A13,$D$18:$D$69) -> 112 | E13: 140 | F13: =D13-E13 -> -28
A15: 1er MATCH le | B15: à | C15: AA
G16: SI forfait éq recevante
A17: Equipes | B17: score | C17: Equipes | D17: score | E17: Points | F17: Points
A18: AA | B18: 16 | C18: AB | D18: =IF(G18=19,19,IF(ISBLANK(B18),"",IF(B18=19,0,36-B18))) -> 20 | E18: =IF(G18=19,0,IF(ISBLANK(B18),"",IF(B18<18,1,IF(B18=18,2,IF(B18>18,3))))) -> 1 | F18: =IF(G18=19,3,IF(ISBLANK(B18),"",IF(B18=19,0,IF(D18<18,1,IF(D18=18,2,IF(D18>=20,3)))))) -> 3 | L18: =IF(B18>D18,A18&C18,IF(D18>B18,C18&A18,"/")) -> ABAA | N18: =A18&C18 -> AAAB | O18: =E18 -> 1 | P18: =C18&A18 -> ABAA | Q18: =F18 -> 3 | R18: =B18 -> 16 | S18: =D18 -> 20
A19: AC | B19: 30 | C19: AD | D19: =IF(G19=19,19,IF(ISBLANK(B19),"",IF(B19=19,0,36-B19))) -> 6 | E19: =IF(G19=19,0,IF(ISBLANK(B19),"",IF(B19<18,1,IF(B19=18,2,IF(B19>18,3))))) -> 3 | F19: =IF(G19=19,3,IF(ISBLANK(B19),"",IF(B19=19,0,IF(D19<18,1,IF(D19=18,2,IF(D19>=20,3)))))) -> 1 | L19: =IF(B19>D19,A19&C19,IF(D19>B19,C19&A19,"/")) -> ACAD | N19: =A19&C19 -> ACAD | O19: =E19 -> 3 | P19: =C19&A19 -> ADAC | Q19: =F19 -> 1 | R19: =B19 -> 30 | S19: =D19 -> 6
A20: AE | B20: 16 | C20: AF | D20: =IF(G20=19,19,IF(ISBLANK(B20),"",IF(B20=19,0,36-B20))) -> 20 | E20: =IF(G20=19,0,IF(ISBLANK(B20),"",IF(B20<18,1,IF(B20=18,2,IF(B20>18,3))))) -> 1 | F20: =IF(G20=19,3,IF(ISBLANK(B20),"",IF(B20=19,0,IF(D20<18,1,IF(D20=18,2,IF(D20>=20,3)))))) -> 3 | L20: =IF(B20>D20,A20&C20,IF(D20>B20,C20&A20,"/")) -> AFAE | N20: =A20&C20 -> AEAF | O20: =E20 -> 1 | P20: =C20&A20 -> AFAE | Q20: =F20 -> 3 | R20: =B20 -> 16 | S20: =D20 -> 20
A21: AG | B21: 18 | C21: AH | D21: =IF(G21=19,19,IF(ISBLANK(B21),"",IF(B21=19,0,36-B21))) -> 18 | E21: =IF(G21=19,0,IF(ISBLANK(B21),"",IF(B21<18,1,IF(B21=18,2,IF(B21>18,3))))) -> 2 | F21: =IF(G21=19,3,IF(ISBLANK(B21),"",IF(B21=19,0,IF(D21<18,1,IF(D21=18,2,IF(D21>=20,3)))))) -> 2 | L21: =IF(B21>D21,A21&C21,IF(D21>B21,C21&A21,"/")) -> / | N21: =A21&C21 -> AGAH | O21: =E21 -> 2 | P21: =C21&A21 -> AHAG | Q21: =F21 -> 2 | R21: =B21 -> 18 | S21: =D21 -> 18
A23: 2 éme MATCH le | B23: à | C23: AB
G24: SI forfait éq recevante
A25: Equipes | B25: score | C25: Equipes | D25: score | E25: Points | F25: Points
A26: AA | B26: 18 | C26: AC | D26: =IF(G26=19,19,IF(ISBLANK(B26),"",IF(B26=19,0,36-B26))) -> 18 | E26: =IF(G26=19,0,IF(ISBLANK(B26),"",IF(B26<18,1,IF(B26=18,2,IF(B26>18,3))))) -> 2 | F26: =IF(G26=19,3,IF(ISBLANK(B26),"",IF(B26=19,0,IF(D26<18,1,IF(D26=18,2,IF(D26>=20,3)))))) -> 2 | L26: =IF(B26>D26,A26&C26,IF(D26>B26,C26&A26,"/")) -> / | N26: =A26&C26 -> AAAC | O26: =E26 -> 2 | P26: =C26&A26 -> ACAA | Q26: =F26 -> 2 | R26: =B26 -> 18 | S26: =D26 -> 18
A27: AB | B27: 18 | C27: AH | D27: =IF(G27=19,19,IF(ISBLANK(B27),"",IF(B27=19,0,36-B27))) -> 18 | E27: =IF(G27=19,0,IF(ISBLANK(B27),"",IF(B27<18,1,IF(B27=18,2,IF(B27>18,3))))) -> 2 | F27: =IF(G27=19,3,IF(ISBLANK(B27),"",IF(B27=19,0,IF(D27<18,1,IF(D27=18,2,IF(D27>=20,3)))))) -> 2 | L27: =IF(B27>D27,A27&C27,IF(D27>B27,C27&A27,"/")) -> / | N27: =A27&C27 -> ABAH | O27: =E27 -> 2 | P27: =C27&A27 -> AHAB | Q27: =F27 -> 2 | R27: =B27 -> 18 | S27: =D27 -> 18
A28: AD | B28: 18 | C28: AF | D28: =IF(G28=19,19,IF(ISBLANK(B28),"",IF(B28=19,0,36-B28))) -> 18 | E28: =IF(G28=19,0,IF(ISBLANK(B28),"",IF(B28<18,1,IF(B28=18,2,IF(B28>18,3))))) -> 2 | F28: =IF(G28=19,3,IF(ISBLANK(B28),"",IF(B28=19,0,IF(D28<18,1,IF(D28=18,2,IF(D28>=20,3)))))) -> 2 | L28: =IF(B28>D28,A28&C28,IF(D28>B28,C28&A28,"/")) -> / | N28: =A28&C28 -> ADAF | O28: =E28 -> 2 | P28: =C28&A28 -> AFAD | Q28: =F28 -> 2 | R28: =B28 -> 18 | S28: =D28 -> 18
A29: AE | B29: 28 | C29: AG | D29: =IF(G29=19,19,IF(ISBLANK(B29),"",IF(B29=19,0,36-B29))) -> 8 | E29: =IF(G29=19,0,IF(ISBLANK(B29),"",IF(B29<18,1,IF(B29=18,2,IF(B29>18,3))))) -> 3 | F29: =IF(G29=19,3,IF(ISBLANK(B29),"",IF(B29=19,0,IF(D29<18,1,IF(D29=18,2,IF(D29>=20,3)))))) -> 1 | L29: =IF(B29>D29,A29&C29,IF(D29>B29,C29&A29,"/")) -> AEAG | N29: =A29&C29 -> AEAG | O29: =E29 -> 3 | P29: =C29&A29 -> AGAE | Q29: =F29 -> 1 | R29: =B29 -> 28 | S29: =D29 -> 8
A31: 3 éme MATCH le | B31: à | C31: AC
G32: SI forfait éq recevante
A33: Equipes | B33: score | C33: Equipes | D33: score | E33: Points | F33: Points
A34: AA | B34: 20 | C34: AH | D34: =IF(G34=19,19,IF(ISBLANK(B34),"",IF(B34=19,0,36-B34))) -> 16 | E34: =IF(G34=19,0,IF(ISBLANK(B34),"",IF(B34<18,1,IF(B34=18,2,IF(B34>18,3))))) -> 3 | F34: =IF(G34=19,3,IF(ISBLANK(B34),"",IF(B34=19,0,IF(D34<18,1,IF(D34=18,2,IF(D34>=20,3)))))) -> 1 | L34: =IF(B34>D34,A34&C34,IF(D34>B34,C34&A34,"/")) -> AAAH | N34: =A34&C34 -> AAAH | O34: =E34 -> 3 | P34: =C34&A34 -> AHAA | Q34: =F34 -> 1 | R34: =B34 -> 20 | S34: =D34 -> 16
A35: AB | B35: 10 | C35: AE | D35: =IF(G35=19,19,IF(ISBLANK(B35),"",IF(B35=19,0,36-B35))) -> 26 | E35: =IF(G35=19,0,IF(ISBLANK(B35),"",IF(B35<18,1,IF(B35=18,2,IF(B35>18,3))))) -> 1 | F35: =IF(G35=19,3,IF(ISBLANK(B35),"",IF(B35=19,0,IF(D35<18,1,IF(D35=18,2,IF(D35>=20,3)))))) -> 3 | L35: =IF(B35>D35,A35&C35,IF(D35>B35,C35&A35,"/")) -> AEAB | N35: =A35&C35 -> ABAE | O35: =E35 -> 1 | P35: =C35&A35 -> AEAB | Q35: =F35 -> 3 | R35: =B35 -> 10 | S35: =D35 -> 26
A36: AC | B36: 20 | C36: AF | D36: =IF(G36=19,19,IF(ISBLANK(B36),"",IF(B36=19,0,36-B36))) -> 16 | E36: =IF(G36=19,0,IF(ISBLANK(B36),"",IF(B36<18,1,IF(B36=18,2,IF(B36>18,3))))) -> 3 | F36: =IF(G36=19,3,IF(ISBLANK(B36),"",IF(B36=19,0,IF(D36<18,1,IF(D36=18,2,IF(D36>=20,3)))))) -> 1 | L36: =IF(B36>D36,A36&C36,IF(D36>B36,C36&A36,"/")) -> ACAF | N36: =A36&C36 -> ACAF | O36: =E36 -> 3 | P36: =C36&A36 -> AFAC | Q36: =F36 -> 1 | R36: =B36 -> 20 | S36: =D36 -> 16
A37: AD | B37: 6 | C37: AG | D37: =IF(G37=19,19,IF(ISBLANK(B37),"",IF(B37=19,0,36-B37))) -> 30 | E37: =IF(G37=19,0,IF(ISBLANK(B37),"",IF(B37<18,1,IF(B37=18,2,IF(B37>18,3))))) -> 1 | F37: =IF(G37=19,3,IF(ISBLANK(B37),"",IF(B37=19,0,IF(D37<18,1,IF(D37=18,2,IF(D37>=20,3)))))) -> 3 | L37: =IF(B37>D37,A37&C37,IF(D37>B37,C37&A37,"/")) -> AGAD | N37: =A37&C37 -> ADAG | O37: =E37 -> 1 | P37: =C37&A37 -> AGAD | Q37: =F37 -> 3 | R37: =B37 -> 6 | S37: =D37 -> 30
A39: 4 éme MATCH le | B39: à | C39: AD
G40: SI forfait éq recevante
A41: Equipes | B41: score | C41: Equipes | D41: score | E41: Points | F41: Points
A42: AA | B42: 20 | C42: AD | D42: =IF(G42=19,19,IF(ISBLANK(B42),"",IF(B42=19,0,36-B42))) -> 16 | E42: =IF(G42=19,0,IF(ISBLANK(B42),"",IF(B42<18,1,IF(B42=18,2,IF(B42>18,3))))) -> 3 | F42: =IF(G42=19,3,IF(ISBLANK(B42),"",IF(B42=19,0,IF(D42<18,1,IF(D42=18,2,IF(D42>=20,3)))))) -> 1 | L42: =IF(B42>D42,A42&C42,IF(D42>B42,C42&A42,"/")) -> AAAD | N42: =A42&C42 -> AAAD | O42: =E42 -> 3 | P42: =C42&A42 -> ADAA | Q42: =F42 -> 1 | R42: =B42 -> 20 | S42: =D42 -> 16
A43: AF | B43: 30 | C43: AG | D43: =IF(G43=19,19,IF(ISBLANK(B43),"",IF(B43=19,0,36-B43))) -> 6 | E43: =IF(G43=19,0,IF(ISBLANK(B43),"",IF(B43<18,1,IF(B43=18,2,IF(B43>18,3))))) -> 3 | F43: =IF(G43=19,3,IF(ISBLANK(B43),"",IF(B43=19,0,IF(D43<18,1,IF(D43=18,2,IF(D43>=20,3)))))) -> 1 | L43: =IF(B43>D43,A43&C43,IF(D43>B43,C43&A43,"/")) -> AFAG | N43: =A43&C43 -> AFAG | O43: =E43 -> 3 | P43: =C43&A43 -> AGAF | Q43: =F43 -> 1 | R43: =B43 -> 30 | S43: =D43 -> 6
A44: AB | B44: 8 | C44: AC | D44: =IF(G44=19,19,IF(ISBLANK(B44),"",IF(B44=19,0,36-B44))) -> 28 | E44: =IF(G44=19,0,IF(ISBLANK(B44),"",IF(B44<18,1,IF(B44=18,2,IF(B44>18,3))))) -> 1 | F44: =IF(G44=19,3,IF(ISBLANK(B44),"",IF(B44=19,0,IF(D44<18,1,IF(D44=18,2,IF(D44>=20,3)))))) -> 3 | L44: =IF(B44>D44,A44&C44,IF(D44>B44,C44&A44,"/")) -> ACAB | N44: =A44&C44 -> ABAC | O44: =E44 -> 1 | P44: =C44&A44 -> ACAB | Q44: =F44 -> 3 | R44: =B44 -> 8 | S44: =D44 -> 28
A45: AE | B45: 20 | C45: AH | D45: =IF(G45=19,19,IF(ISBLANK(B45),"",IF(B45=19,0,36-B45))) -> 16 | E45: =IF(G45=19,0,IF(ISBLANK(B45),"",IF(B45<18,1,IF(B45=18,2,IF(B45>18,3))))) -> 3 | F45: =IF(G45=19,3,IF(ISBLANK(B45),"",IF(B45=19,0,IF(D45<18,1,IF(D45=18,2,IF(D45>=20,3)))))) -> 1 | L45: =IF(B45>D45,A45&C45,IF(D45>B45,C45&A45,"/")) -> AEAH | N45: =A45&C45 -> AEAH | O45: =E45 -> 3 | P45: =C45&A45 -> AHAE | Q45: =F45 -> 1 | R45: =B45 -> 20 | S45: =D45 -> 16
A47: 5 éme MATCH le | B47: à | C47: AE
G48: SI forfait éq recevante
A49: Equipes | B49: score | C49: Equipes | D49: score | E49: Points | F49: Points
A50: AA | B50: 22 | C50: AF | D50: =IF(G50=19,19,IF(ISBLANK(B50),"",IF(B50=19,0,36-B50))) -> 14 | E50: =IF(G50=19,0,IF(ISBLANK(B50),"",IF(B50<18,1,IF(B50=18,2,IF(B50>18,3))))) -> 3 | F50: =IF(G50=19,3,IF(ISBLANK(B50),"",IF(B50=19,0,IF(D50<18,1,IF(D50=18,2,IF(D50>=20,3)))))) -> 1 | L50: =IF(B50>D50,A50&C50,IF(D50>B50,C50&A50,"/")) -> AAAF | N50: =A50&C50 -> AAAF | O50: =E50 -> 3 | P50: =C50&A50 -> AFAA | Q50: =F50 -> 1 | R50: =B50 -> 22 | S50: =D50 -> 14
A51: AD | B51: 24 | C51: AH | D51: =IF(G51=19,19,IF(ISBLANK(B51),"",IF(B51=19,0,36-B51))) -> 12 | E51: =IF(G51=19,0,IF(ISBLANK(B51),"",IF(B51<18,1,IF(B51=18,2,IF(B51>18,3))))) -> 3 | F51: =IF(G51=19,3,IF(ISBLANK(B51),"",IF(B51=19,0,IF(D51<18,1,IF(D51=18,2,IF(D51>=20,3)))))) -> 1 | L51: =IF(B51>D51,A51&C51,IF(D51>B51,C51&A51,"/")) -> ADAH | N51: =A51&C51 -> ADAH | O51: =E51 -> 3 | P51: =C51&A51 -> AHAD | Q51: =F51 -> 1 | R51: =B51 -> 24 | S51: =D51 -> 12
A52: AB | B52: 4 | C52: AG | D52: =IF(G52=19,19,IF(ISBLANK(B52),"",IF(B52=19,0,36-B52))) -> 32 | E52: =IF(G52=19,0,IF(ISBLANK(B52),"",IF(B52<18,1,IF(B52=18,2,IF(B52>18,3))))) -> 1 | F52: =IF(G52=19,3,IF(ISBLANK(B52),"",IF(B52=19,0,IF(D52<18,1,IF(D52=18,2,IF(D52>=20,3)))))) -> 3 | L52: =IF(B52>D52,A52&C52,IF(D52>B52,C52&A52,"/")) -> AGAB | N52: =A52&C52 -> ABAG | O52: =E52 -> 1 | P52: =C52&A52 -> AGAB | Q52: =F52 -> 3 | R52: =B52 -> 4 | S52: =D52 -> 32
A53: AC | B53: 12 | C53: AE | D53: =IF(G53=19,19,IF(ISBLANK(B53),"",IF(B53=19,0,36-B53))) -> 24 | E53: =IF(G53=19,0,IF(ISBLANK(B53),"",IF(B53<18,1,IF(B53=18,2,IF(B53>18,3))))) -> 1 | F53: =IF(G53=19,3,IF(ISBLANK(B53),"",IF(B53=19,0,IF(D53<18,1,IF(D53=18,2,IF(D53>=20,3)))))) -> 3 | L53: =IF(B53>D53,A53&C53,IF(D53>B53,C53&A53,"/")) -> AEAC | N53: =A53&C53 -> ACAE | O53: =E53 -> 1 | P53: =C53&A53 -> AEAC | Q53: =F53 -> 3 | R53: =B53 -> 12 | S53: =D53 -> 24
A55: 6 éme MATCH le | B55: à | C55: AF
G56: SI forfait éq recevante
A57: Equipes | B57: score | C57: Equipes | D57: score | E57: Points | F57: Points
A58: AB | B58: 30 | C58: AD | D58: =IF(G58=19,19,IF(ISBLANK(B58),"",IF(B58=19,0,36-B58))) -> 6 | E58: =IF(G58=19,0,IF(ISBLANK(B58),"",IF(B58<18,1,IF(B58=18,2,IF(B58>18,3))))) -> 3 | F58: =IF(G58=19,3,IF(ISBLANK(B58),"",IF(B58=19,0,IF(D58<18,1,IF(D58=18,2,IF(D58>=20,3)))))) -> 1 | L58: =IF(B58>D58,A58&C58,IF(D58>B58,C58&A58,"/")) -> ABAD | N58: =A58&C58 -> ABAD | O58: =E58 -> 3 | P58: =C58&A58 -> ADAB | Q58: =F58 -> 1 | R58: =B58 -> 30 | S58: =D58 -> 6
A59: AE | B59: 18 | C59: AA | D59: =IF(G59=19,19,IF(ISBLANK(B59),"",IF(B59=19,0,36-B59))) -> 18 | E59: =IF(G59=19,0,IF(ISBLANK(B59),"",IF(B59<18,1,IF(B59=18,2,IF(B59>18,3))))) -> 2 | F59: =IF(G59=19,3,IF(ISBLANK(B59),"",IF(B59=19,0,IF(D59<18,1,IF(D59=18,2,IF(D59>=20,3)))))) -> 2 | L59: =IF(B59>D59,A59&C59,IF(D59>B59,C59&A59,"/")) -> / | N59: =A59&C59 -> AEAA | O59: =E59 -> 2 | P59: =C59&A59 -> AAAE | Q59: =F59 -> 2 | R59: =B59 -> 18 | S59: =D59 -> 18
A60: AG | B60: 10 | C60: AC | D60: =IF(G60=19,19,IF(ISBLANK(B60),"",IF(B60=19,0,36-B60))) -> 26 | E60: =IF(G60=19,0,IF(ISBLANK(B60),"",IF(B60<18,1,IF(B60=18,2,IF(B60>18,3))))) -> 1 | F60: =IF(G60=19,3,IF(ISBLANK(B60),"",IF(B60=19,0,IF(D60<18,1,IF(D60=18,2,IF(D60>=20,3)))))) -> 3 | L60: =IF(B60>D60,A60&C60,IF(D60>B60,C60&A60,"/")) -> ACAG | N60: =A60&C60 -> AGAC | O60: =E60 -> 1 | P60: =C60&A60 -> ACAG | Q60: =F60 -> 3 | R60: =B60 -> 10 | S60: =D60 -> 26
A61: AF | B61: 22 | C61: AH | D61: =IF(G61=19,19,IF(ISBLANK(B61),"",IF(B61=19,0,36-B61))) -> 14 | E61: =IF(G61=19,0,IF(ISBLANK(B61),"",IF(B61<18,1,IF(B61=18,2,IF(B61>18,3))))) -> 3 | F61: =IF(G61=19,3,IF(ISBLANK(B61),"",IF(B61=19,0,IF(D61<18,1,IF(D61=18,2,IF(D61>=20,3)))))) -> 1 | L61: =IF(B61>D61,A61&C61,IF(D61>B61,C61&A61,"/")) -> AFAH | N61: =A61&C61 -> AFAH | O61: =E61 -> 3 | P61: =C61&A61 -> AHAF | Q61: =F61 -> 1 | R61: =B61 -> 22 | S61: =D61 -> 14
A63: 7 éme MATCH le | B63: à | C63: AG
G64: SI forfait éq recevante
A65: Equipes | B65: score | C65: Equipes | D65: score | E65: Points | F65: Points
A66: AA | B66: 20 | C66: AG | D66: =IF(G66=19,19,IF(ISBLANK(B66),"",IF(B66=19,0,36-B66))) -> 16 | E66: =IF(G66=19,0,IF(ISBLANK(B66),"",IF(B66<18,1,IF(B66=18,2,IF(B66>18,3))))) -> 3 | F66: =IF(G66=19,3,IF(ISBLANK(B66),"",IF(B66=19,0,IF(D66<18,1,IF(D66=18,2,IF(D66>=20,3)))))) -> 1 | L66: =IF(B66>D66,A66&C66,IF(D66>B66,C66&A66,"/")) -> AAAG | N66: =A66&C66 -> AAAG | O66: =E66 -> 3 | P66: =C66&A66 -> AGAA | Q66: =F66 -> 1 | R66: =B66 -> 20 | S66: =D66 -> 16
A67: AB | B67: 12 | C67: AF | D67: =IF(G67=19,19,IF(ISBLANK(B67),"",IF(B67=19,0,36-B67))) -> 24 | E67: =IF(G67=19,0,IF(ISBLANK(B67),"",IF(B67<18,1,IF(B67=18,2,IF(B67>18,3))))) -> 1 | F67: =IF(G67=19,3,IF(ISBLANK(B67),"",IF(B67=19,0,IF(D67<18,1,IF(D67=18,2,IF(D67>=20,3)))))) -> 3 | L67: =IF(B67>D67,A67&C67,IF(D67>B67,C67&A67,"/")) -> AFAB | N67: =A67&C67 -> ABAF | O67: =E67 -> 1 | P67: =C67&A67 -> AFAB | Q67: =F67 -> 3 | R67: =B67 -> 12 | S67: =D67 -> 24
A68: AE | B68: 26 | C68: AD | D68: =IF(G68=19,19,IF(ISBLANK(B68),"",IF(B68=19,0,36-B68))) -> 10 | E68: =IF(G68=19,0,IF(ISBLANK(B68),"",IF(B68<18,1,IF(B68=18,2,IF(B68>18,3))))) -> 3 | F68: =IF(G68=19,3,IF(ISBLANK(B68),"",IF(B68=19,0,IF(D68<18,1,IF(D68=18,2,IF(D68>=20,3)))))) -> 1 | L68: =IF(B68>D68,A68&C68,IF(D68>B68,C68&A68,"/")) -> AEAD | N68: =A68&C68 -> AEAD | O68: =E68 -> 3 | P68: =C68&A68 -> ADAE | Q68: =F68 -> 1 | R68: =B68 -> 26 | S68: =D68 -> 10
A69: AC | B69: 18 | C69: AH | D69: =IF(G69=19,19,IF(ISBLANK(B69),"",IF(B69=19,0,36-B69))) -> 18 | E69: =IF(G69=19,0,IF(ISBLANK(B69),"",IF(B69<18,1,IF(B69=18,2,IF(B69>18,3))))) -> 2 | F69: =IF(G69=19,3,IF(ISBLANK(B69),"",IF(B69=19,0,IF(D69<18,1,IF(D69=18,2,IF(D69>=20,3)))))) -> 2 | L69: =IF(B69>D69,A69&C69,IF(D69>B69,C69&A69,"/")) -> / | N69: =A69&C69 -> ACAH | O69: =E69 -> 2 | P69: =C69&A69 -> AHAC | Q69: =F69 -> 2 | R69: =B69 -> 18 | S69: =D69 -> 18
C70: Si pas d'exaequo | G70: Classt Final | H70: Rencontres entre exaequos
A71: EQUIPES | C71: POINTS | D71: POUR | E71: CONTRE | F71: DIFF | H71: POINTS Exaequos | I71: Exaq | J71: n° | K71: AA | L71: AB | M71: AC | N71: AD | O71: AE | P71: AF | Q71: AG | R71: AH | S71: Pts matchs | W71: 1000000*Pts matchs +1000 (Diff + abs(diff mini) )+Pour | X71: RANG | Y71: DIFF Exaequos | Z71: POUR Exaequos
A72: AE | B72: 1E | C72: 18 | D72: 158 | E72: 94 | F72: 64 | G72: 1 | H72: =IF(S72>0,S72,"") ->  | I72: =COUNTIF($C$72:$C$79,C72) -> 1 | J72: =IF(AND(I72>1,COUNTIFS(I$72:I72,I72,C$72:C72,C72)=1),MAX(J$71:J71)+1,"") ->  | K72: =IF($A72=K$71,"",IF(INDEX($C$72:$C$79,MATCH(K$71,$A$72:$A$79,0))=$C72,IFERROR(VLOOKUP($A72&K$71,$N$18:$O$69,2,0), VLOOKUP(K$71&$A72,$N$18:$Q$69,4,0)), "")) ->  | S72: =SUM(K72:R72) -> 0 | W72: =IF(I72<3,S72*1000000+(F72+ABS(MIN($F$72:$F$79)))*1000+D72,S72*1000000+U96*1000+Z72) -> 144158 | X72: =IF(I72>2,RANK(W72,OFFSET(W$71,MATCH(I72,$I$72:$I$79,0),,I72))) -> FALSE | Y72: =IF(S96=0,"",S96) ->  | Z72: =IF(S80=0,"",S80) -> 
A73: AC | B73: 1C | C73: 17 | D73: 152 | E73: 100 | F73: 52 | G73: 2 | H73: 2 | I73: 2 | J73: =IF(AND(I73>1,COUNTIFS(I$72:I73,I73,C$72:C73,C73)=1),MAX(J$71:J72)+1,"") -> 1 | K73: 2 | S73: =SUM(K73:R73) -> 2 | W73: =IF(I73<3,S73*1000000+(F73+ABS(MIN($F$72:$F$79)))*1000+D73,S73*1000000+U97*1000+Z73) -> 2132152 | X73: =IF(I73>2,RANK(W73,OFFSET(W$71,MATCH(I73,$I$72:$I$79,0),,I73))) -> FALSE | Z73: 18
A74: AA | B74: 1A | C74: 17 | D74: 134 | E74: 118 | F74: 16 | G74: 3 | H74: 2 | I74: 2 | J74: =IF(AND(I74>1,COUNTIFS(I$72:I74,I74,C$72:C74,C74)=1),MAX(J$71:J73)+1,"") ->  | M74: 2 | S74: 2 | W74: 2096134 | X74: FALSE | Z74: 18
A75: AF | B75: 1F | C75: 16 | D75: 144 | E75: 108 | F75: 36 | G75: 4 | I75: 1 | J75: =IF(AND(I75>1,COUNTIFS(I$72:I75,I75,C$72:C75,C75)=1),MAX(J$71:J74)+1,"") ->  | S75: 0 | W75: 116144 | X75: FALSE
A76: AG | B76: 1G | C76: 12 | D76: 120 | E76: 132 | F76: -12 | G76: 5 | H76: 3 | I76: 2 | J76: =IF(AND(I76>1,COUNTIFS(I$72:I76,I76,C$72:C76,C76)=1),MAX(J$71:J75)+1,"") -> 2 | L76: 3 | S76: 3 | W76: 3068120 | X76: FALSE | Y76: 28 | Z76: 32
A77: AB | B77: 1B | C77: 12 | D77: 102 | E77: 150 | F77: -48 | G77: 6 | H77: 1 | I77: 2 | J77: =IF(AND(I77>1,COUNTIFS(I$72:I77,I77,C$72:C77,C77)=1),MAX(J$71:J76)+1,"") ->  | Q77: 1 | S77: 1 | W77: 1032102 | X77: FALSE | Y77: -28 | Z77: 4
A78: AD | B78: 1D | C78: 10 | D78: 86 | E78: 166 | F78: -80 | G78: 7 | H78: 3 | I78: 2 | J78: =IF(AND(I78>1,COUNTIFS(I$72:I78,I78,C$72:C78,C78)=1),MAX(J$71:J77)+1,"") -> 3 | R78: 3 | S78: 3 | W78: 3000086 | X78: FALSE | Y78: 12 | Z78: 24
A79: AH | B79: 1H | C79: 10 | D79: 112 | E79: 140 | F79: -28 | G79: 8 | H79: 1 | I79: 2 | J79: =IF(AND(I79>1,COUNTIFS(I$72:I79,I79,C$72:C79,C79)=1),MAX(J$71:J78)+1,"") ->  | N79: 1 | S79: 1 | W79: 1052112 | X79: FALSE | Y79: -12 | Z79: 12
I80: POUR | J80: =A72 -> AE | K80: =IF($A72=K$71,"",IF(INDEX($C$72:$C$79,MATCH(K$71,$A$72:$A$79,0))=$C72,IFERROR(VLOOKUP($A72&K$71,$N$18:$R$69,5,0), VLOOKUP(K$71&$A72,$N$18:$S$69,6,0)), "")) ->  | S80: 0
J81: AC | K81: 18 | S81: 18
J82: AA | M82: 18 | S82: 18
J83: AF | S83: 0
J84: AG | L84: 32 | S84: 32
J85: AB | Q85: 4 | S85: 4
J86: AD | R86: 24 | S86: 24
J87: AH | N87: 12 | S87: 12
I88: CONTRE | J88: =J80 -> AE | K88: =INDEX($K$80:$R$87,MATCH(K$71,$J$80:$J$87,0),MATCH($J80,$K$71:$R$71,0)) ->  | L88: =INDEX($K$80:$R$87,MATCH(L$71,$J$80:$J$87,0),MATCH($J80,$K$71:$R$71,0)) ->  | S88: 0
J89: =J81 -> AC | K89: =INDEX($K$80:$R$87,MATCH(K$71,$J$80:$J$87,0),MATCH($J81,$K$71:$R$71,0)) -> 18 | S89: 18
J90: AA | M90: 18 | S90: 18
J91: AF | S91: 0
J92: AG | L92: 4 | S92: 4
J93: AB | Q93: 32 | S93: 32
J94: AD | R94: 12 | S94: 12
J95: AH | N95: 24 | S95: 24 | U95: Diff pondérée
I96: DIFF | J96: =J88 -> AE | S96: =S80-S88 -> 0 | U96: =S96+ABS(MIN($S$96:$S$103)) -> 28
J97: =J89 -> AC | S97: =S81-S89 -> 0 | U97: 28
J98: AA | S98: 0 | U98: 28
J99: AF | S99: 0 | U99: 28
J100: AG | S100: 28 | U100: 56
J101: AB | S101: -28 | U101: 0
J102: AD | S102: 12 | U102: =S102+ABS(MIN($S$96:$S$103)) -> 40
J103: AH | S103: -12 | U103: =S103+ABS(MIN($S$96:$S$103)) -> 16

Sheet P3
G1: 3
A2: CHAMPIONNAT DES CLUBS
A4: POULE 1
A5: EQUIPES | C5: POINTS | D5: Pour | E5: Contre | F5: Diff
A6: AA | B6: 1A | C6: =SUMIF($A$18:$A$69,A6,$E$18:$E$69)+SUMIF($C$18:$C$69,A6,$F$18:$F$69) -> 14 | D6: =SUMIF($A$18:$A$69,$A6,$B$18:$B$69)+SUMIF($C$18:$C$69,$A6,$D$18:$D$69) -> 112 | E6: =SUMIF($C$18:$C$69,$A6,$B$18:$B$69)+SUMIF($A$18:$A$69,$A6,$D$18:$D$69) -> 140 | F6: =D6-E6 -> -28
A7: AB | B7: 1B | C7: =SUMIF($A$18:$A$69,A7,$E$18:$E$69)+SUMIF($C$18:$C$69,A7,$F$18:$F$69) -> 13 | D7: =SUMIF($A$18:$A$69,$A7,$B$18:$B$69)+SUMIF($C$18:$C$69,$A7,$D$18:$D$69) -> 110 | E7: =SUMIF($C$18:$C$69,$A7,$B$18:$B$69)+SUMIF($A$18:$A$69,$A7,$D$18:$D$69) -> 142 | F7: -32
A8: AC | B8: 1C | C8: =SUMIF($A$18:$A$69,A8,$E$18:$E$69)+SUMIF($C$18:$C$69,A8,$F$18:$F$69) -> 20 | D8: 180 | E8: 72 | F8: 108
A9: AD | B9: 1D | C9: 12 | D9: 120 | E9: 132 | F9: -12
A10: AE | B10: 1E | C10: 16 | D10: 148 | E10: 104 | F10: 44
A11: AF | B11: 1F | C11: 15 | D11: 128 | E11: 124 | F11: 4
A12: AG | B12: 1G | C12: 13 | D12: 116 | E12: 136 | F12: =D12-E12 -> -20
A13: AH | B13: 1H | C13: 9 | D13: =SUMIF($A$18:$A$69,$A13,$B$18:$B$69)+SUMIF($C$18:$C$69,$A13,$D$18:$D$69) -> 94 | E13: 158 | F13: =D13-E13 -> -64
A15: 1er MATCH le | B15: à | C15: AA
G16: SI forfait éq recevante
A17: Equipes | B17: score | C17: Equipes | D17: score | E17: Points | F17: Points
A18: AA | B18: 16 | C18: AB | D18: =IF(G18=19,19,IF(ISBLANK(B18),"",IF(B18=19,0,36-B18))) -> 20 | E18: =IF(G18=19,0,IF(ISBLANK(B18),"",IF(B18<18,1,IF(B18=18,2,IF(B18>18,3))))) -> 1 | F18: =IF(G18=19,3,IF(ISBLANK(B18),"",IF(B18=19,0,IF(D18<18,1,IF(D18=18,2,IF(D18>=20,3)))))) -> 3 | L18: =IF(B18>D18,A18&C18,IF(D18>B18,C18&A18,"/")) -> ABAA | N18: =A18&C18 -> AAAB | O18: =E18 -> 1 | P18: =C18&A18 -> ABAA | Q18: =F18 -> 3 | R18: =B18 -> 16 | S18: =D18 -> 20
A19: AC | B19: 30 | C19: AD | D19: =IF(G19=19,19,IF(ISBLANK(B19),"",IF(B19=19,0,36-B19))) -> 6 | E19: =IF(G19=19,0,IF(ISBLANK(B19),"",IF(B19<18,1,IF(B19=18,2,IF(B19>18,3))))) -> 3 | F19: =IF(G19=19,3,IF(ISBLANK(B19),"",IF(B19=19,0,IF(D19<18,1,IF(D19=18,2,IF(D19>=20,3)))))) -> 1 | L19: =IF(B19>D19,A19&C19,IF(D19>B19,C19&A19,"/")) -> ACAD | N19: =A19&C19 -> ACAD | O19: =E19 -> 3 | P19: =C19&A19 -> ADAC | Q19: =F19 -> 1 | R19: =B19 -> 30 | S19: =D19 -> 6
A20: AE | B20: 16 | C20: AF | D20: =IF(G20=19,19,IF(ISBLANK(B20),"",IF(B20=19,0,36-B20))) -> 20 | E20: =IF(G20=19,0,IF(ISBLANK(B20),"",IF(B20<18,1,IF(B20=18,2,IF(B20>18,3))))) -> 1 | F20: =IF(G20=19,3,IF(ISBLANK(B20),"",IF(B20=19,0,IF(D20<18,1,IF(D20=18,2,IF(D20>=20,3)))))) -> 3 | L20: =IF(B20>D20,A20&C20,IF(D20>B20,C20&A20,"/")) -> AFAE | N20: =A20&C20 -> AEAF | O20: =E20 -> 1 | P20: =C20&A20 -> AFAE | Q20: =F20 -> 3 | R20: =B20 -> 16 | S20: =D20 -> 20
A21: AG | B21: 22 | C21: AH | D21: =IF(G21=19,19,IF(ISBLANK(B21),"",IF(B21=19,0,36-B21))) -> 14 | E21: =IF(G21=19,0,IF(ISBLANK(B21),"",IF(B21<18,1,IF(B21=18,2,IF(B21>18,3))))) -> 3 | F21: =IF(G21=19,3,IF(ISBLANK(B21),"",IF(B21=19,0,IF(D21<18,1,IF(D21=18,2,IF(D21>=20,3)))))) -> 1 | L21: =IF(B21>D21,A21&C21,IF(D21>B21,C21&A21,"/")) -> AGAH | N21: =A21&C21 -> AGAH | O21: =E21 -> 3 | P21: =C21&A21 -> AHAG | Q21: =F21 -> 1 | R21: =B21 -> 22 | S21: =D21 -> 14
A23: 2 éme MATCH le | B23: à | C23: AB
G24: SI forfait éq recevante
A25: Equipes | B25: score | C25: Equipes | D25: score | E25: Points | F25: Points
A26: AA | B26: 6 | C26: AC | D26: =IF(G26=19,19,IF(ISBLANK(B26),"",IF(B26=19,0,36-B26))) -> 30 | E26: =IF(G26=19,0,IF(ISBLANK(B26),"",IF(B26<18,1,IF(B26=18,2,IF(B26>18,3))))) -> 1 | F26: =IF(G26=19,3,IF(ISBLANK(B26),"",IF(B26=19,0,IF(D26<18,1,IF(D26=18,2,IF(D26>=20,3)))))) -> 3 | L26: =IF(B26>D26,A26&C26,IF(D26>B26,C26&A26,"/")) -> ACAA | N26: =A26&C26 -> AAAC | O26: =E26 -> 1 | P26: =C26&A26 -> ACAA | Q26: =F26 -> 3 | R26: =B26 -> 6 | S26: =D26 -> 30
A27: AB | B27: 24 | C27: AH | D27: =IF(G27=19,19,IF(ISBLANK(B27),"",IF(B27=19,0,36-B27))) -> 12 | E27: =IF(G27=19,0,IF(ISBLANK(B27),"",IF(B27<18,1,IF(B27=18,2,IF(B27>18,3))))) -> 3 | F27: =IF(G27=19,3,IF(ISBLANK(B27),"",IF(B27=19,0,IF(D27<18,1,IF(D27=18,2,IF(D27>=20,3)))))) -> 1 | L27: =IF(B27>D27,A27&C27,IF(D27>B27,C27&A27,"/")) -> ABAH | N27: =A27&C27 -> ABAH | O27: =E27 -> 3 | P27: =C27&A27 -> AHAB | Q27: =F27 -> 1 | R27: =B27 -> 24 | S27: =D27 -> 12
A28: AD | B28: 18 | C28: AF | D28: =IF(G28=19,19,IF(ISBLANK(B28),"",IF(B28=19,0,36-B28))) -> 18 | E28: =IF(G28=19,0,IF(ISBLANK(B28),"",IF(B28<18,1,IF(B28=18,2,IF(B28>18,3))))) -> 2 | F28: =IF(G28=19,3,IF(ISBLANK(B28),"",IF(B28=19,0,IF(D28<18,1,IF(D28=18,2,IF(D28>=20,3)))))) -> 2 | L28: =IF(B28>D28,A28&C28,IF(D28>B28,C28&A28,"/")) -> / | N28: =A28&C28 -> ADAF | O28: =E28 -> 2 | P28: =C28&A28 -> AFAD | Q28: =F28 -> 2 | R28: =B28 -> 18 | S28: =D28 -> 18
A29: AE | B29: 28 | C29: AG | D29: =IF(G29=19,19,IF(ISBLANK(B29),"",IF(B29=19,0,36-B29))) -> 8 | E29: =IF(G29=19,0,IF(ISBLANK(B29),"",IF(B29<18,1,IF(B29=18,2,IF(B29>18,3))))) -> 3 | F29: =IF(G29=19,3,IF(ISBLANK(B29),"",IF(B29=19,0,IF(D29<18,1,IF(D29=18,2,IF(D29>=20,3)))))) -> 1 | L29: =IF(B29>D29,A29&C29,IF(D29>B29,C29&A29,"/")) -> AEAG | N29: =A29&C29 -> AEAG | O29: =E29 -> 3 | P29: =C29&A29 -> AGAE | Q29: =F29 -> 1 | R29: =B29 -> 28 | S29: =D29 -> 8
A31: 3 éme MATCH le | B31: à | C31: AC
G32: SI forfait éq recevante
A33: Equipes | B33: score | C33: Equipes | D33: score | E33: Points | F33: Points
A34: AA | B34: 20 | C34: AH | D34: =IF(G34=19,19,IF(ISBLANK(B34),"",IF(B34=19,0,36-B34))) -> 16 | E34: =IF(G34=19,0,IF(ISBLANK(B34),"",IF(B34<18,1,IF(B34=18,2,IF(B34>18,3))))) -> 3 | F34: =IF(G34=19,3,IF(ISBLANK(B34),"",IF(B34=19,0,IF(D34<18,1,IF(D34=18,2,IF(D34>=20,3)))))) -> 1 | L34: =IF(B34>D34,A34&C34,IF(D34>B34,C34&A34,"/")) -> AAAH | N34: =A34&C34 -> AAAH | O34: =E34 -> 3 | P34: =C34&A34 -> AHAA | Q34: =F34 -> 1 | R34: =B34 -> 20 | S34: =D34 -> 16
A35: AB | B35: 18 | C35: AE | D35: =IF(G35=19,19,IF(ISBLANK(B35),"",IF(B35=19,0,36-B35))) -> 18 | E35: =IF(G35=19,0,IF(ISBLANK(B35),"",IF(B35<18,1,IF(B35=18,2,IF(B35>18,3))))) -> 2 | F35: =IF(G35=19,3,IF(ISBLANK(B35),"",IF(B35=19,0,IF(D35<18,1,IF(D35=18,2,IF(D35>=20,3)))))) -> 2 | L35: =IF(B35>D35,A35&C35,IF(D35>B35,C35&A35,"/")) -> / | N35: =A35&C35 -> ABAE | O35: =E35 -> 2 | P35: =C35&A35 -> AEAB | Q35: =F35 -> 2 | R35: =B35 -> 18 | S35: =D35 -> 18
A36: AC | B36: 20 | C36: AF | D36: =IF(G36=19,19,IF(ISBLANK(B36),"",IF(B36=19,0,36-B36))) -> 16 | E36: =IF(G36=19,0,IF(ISBLANK(B36),"",IF(B36<18,1,IF(B36=18,2,IF(B36>18,3))))) -> 3 | F36: =IF(G36=19,3,IF(ISBLANK(B36),"",IF(B36=19,0,IF(D36<18,1,IF(D36=18,2,IF(D36>=20,3)))))) -> 1 | L36: =IF(B36>D36,A36&C36,IF(D36>B36,C36&A36,"/")) -> ACAF | N36: =A36&C36 -> ACAF | O36: =E36 -> 3 | P36: =C36&A36 -> AFAC | Q36: =F36 -> 1 | R36: =B36 -> 20 | S36: =D36 -> 16
A37: AD | B37: 32 | C37: AG | D37: =IF(G37=19,19,IF(ISBLANK(B37),"",IF(B37=19,0,36-B37))) -> 4 | E37: =IF(G37=19,0,IF(ISBLANK(B37),"",IF(B37<18,1,IF(B37=18,2,IF(B37>18,3))))) -> 3 | F37: =IF(G37=19,3,IF(ISBLANK(B37),"",IF(B37=19,0,IF(D37<18,1,IF(D37=18,2,IF(D37>=20,3)))))) -> 1 | L37: =IF(B37>D37,A37&C37,IF(D37>B37,C37&A37,"/")) -> ADAG | N37: =A37&C37 -> ADAG | O37: =E37 -> 3 | P37: =C37&A37 -> AGAD | Q37: =F37 -> 1 | R37: =B37 -> 32 | S37: =D37 -> 4
A39: 4 éme MATCH le | B39: à | C39: AD
G40: SI forfait éq recevante
A41: Equipes | B41: score | C41: Equipes | D41: score | E41: Points | F41: Points
A42: AA | B42: 20 | C42: AD | D42: =IF(G42=19,19,IF(ISBLANK(B42),"",IF(B42=19,0,36-B42))) -> 16 | E42: =IF(G42=19,0,IF(ISBLANK(B42),"",IF(B42<18,1,IF(B42=18,2,IF(B42>18,3))))) -> 3 | F42: =IF(G42=19,3,IF(ISBLANK(B42),"",IF(B42=19,0,IF(D42<18,1,IF(D42=18,2,IF(D42>=20,3)))))) -> 1 | L42: =IF(B42>D42,A42&C42,IF(D42>B42,C42&A42,"/")) -> AAAD | N42: =A42&C42 -> AAAD | O42: =E42 -> 3 | P42: =C42&A42 -> ADAA | Q42: =F42 -> 1 | R42: =B42 -> 20 | S42: =D42 -> 16
A43: AF | B43: 10 | C43: AG | D43: =IF(G43=19,19,IF(ISBLANK(B43),"",IF(B43=19,0,36-B43))) -> 26 | E43: =IF(G43=19,0,IF(ISBLANK(B43),"",IF(B43<18,1,IF(B43=18,2,IF(B43>18,3))))) -> 1 | F43: =IF(G43=19,3,IF(ISBLANK(B43),"",IF(B43=19,0,IF(D43<18,1,IF(D43=18,2,IF(D43>=20,3)))))) -> 3 | L43: =IF(B43>D43,A43&C43,IF(D43>B43,C43&A43,"/")) -> AGAF | N43: =A43&C43 -> AFAG | O43: =E43 -> 1 | P43: =C43&A43 -> AGAF | Q43: =F43 -> 3 | R43: =B43 -> 10 | S43: =D43 -> 26
A44: AB | B44: 18 | C44: AC | D44: =IF(G44=19,19,IF(ISBLANK(B44),"",IF(B44=19,0,36-B44))) -> 18 | E44: =IF(G44=19,0,IF(ISBLANK(B44),"",IF(B44<18,1,IF(B44=18,2,IF(B44>18,3))))) -> 2 | F44: =IF(G44=19,3,IF(ISBLANK(B44),"",IF(B44=19,0,IF(D44<18,1,IF(D44=18,2,IF(D44>=20,3)))))) -> 2 | L44: =IF(B44>D44,A44&C44,IF(D44>B44,C44&A44,"/")) -> / | N44: =A44&C44 -> ABAC | O44: =E44 -> 2 | P44: =C44&A44 -> ACAB | Q44: =F44 -> 2 | R44: =B44 -> 18 | S44: =D44 -> 18
A45: AE | B45: 20 | C45: AH | D45: =IF(G45=19,19,IF(ISBLANK(B45),"",IF(B45=19,0,36-B45))) -> 16 | E45: =IF(G45=19,0,IF(ISBLANK(B45),"",IF(B45<18,1,IF(B45=18,2,IF(B45>18,3))))) -> 3 | F45: =IF(G45=19,3,IF(ISBLANK(B45),"",IF(B45=19,0,IF(D45<18,1,IF(D45=18,2,IF(D45>=20,3)))))) -> 1 | L45: =IF(B45>D45,A45&C45,IF(D45>B45,C45&A45,"/")) -> AEAH | N45: =A45&C45 -> AEAH | O45: =E45 -> 3 | P45: =C45&A45 -> AHAE | Q45: =F45 -> 1 | R45: =B45 -> 20 | S45: =D45 -> 16
A47: 5 éme MATCH le | B47: à | C47: AE
G48: SI forfait éq recevante
A49: Equipes | B49: score | C49: Equipes | D49: score | E49: Points | F49: Points
A50: AA | B50: 18 | C50: AF | D50: =IF(G50=19,19,IF(ISBLANK(B50),"",IF(B50=19,0,36-B50))) -> 18 | E50: =IF(G50=19,0,IF(ISBLANK(B50),"",IF(B50<18,1,IF(B50=18,2,IF(B50>18,3))))) -> 2 | F50: =IF(G50=19,3,IF(ISBLANK(B50),"",IF(B50=19,0,IF(D50<18,1,IF(D50=18,2,IF(D50>=20,3)))))) -> 2 | L50: =IF(B50>D50,A50&C50,IF(D50>B50,C50&A50,"/")) -> / | N50: =A50&C50 -> AAAF | O50: =E50 -> 2 | P50: =C50&A50 -> AFAA | Q50: =F50 -> 2 | R50: =B50 -> 18 | S50: =D50 -> 18
A51: AD | B51: 16 | C51: AH | D51: =IF(G51=19,19,IF(ISBLANK(B51),"",IF(B51=19,0,36-B51))) -> 20 | E51: =IF(G51=19,0,IF(ISBLANK(B51),"",IF(B51<18,1,IF(B51=18,2,IF(B51>18,3))))) -> 1 | F51: =IF(G51=19,3,IF(ISBLANK(B51),"",IF(B51=19,0,IF(D51<18,1,IF(D51=18,2,IF(D51>=20,3)))))) -> 3 | L51: =IF(B51>D51,A51&C51,IF(D51>B51,C51&A51,"/")) -> AHAD | N51: =A51&C51 -> ADAH | O51: =E51 -> 1 | P51: =C51&A51 -> AHAD | Q51: =F51 -> 3 | R51: =B51 -> 16 | S51: =D51 -> 20
A52: AB | B52: 4 | C52: AG | D52: =IF(G52=19,19,IF(ISBLANK(B52),"",IF(B52=19,0,36-B52))) -> 32 | E52: =IF(G52=19,0,IF(ISBLANK(B52),"",IF(B52<18,1,IF(B52=18,2,IF(B52>18,3))))) -> 1 | F52: =IF(G52=19,3,IF(ISBLANK(B52),"",IF(B52=19,0,IF(D52<18,1,IF(D52=18,2,IF(D52>=20,3)))))) -> 3 | L52: =IF(B52>D52,A52&C52,IF(D52>B52,C52&A52,"/")) -> AGAB | N52: =A52&C52 -> ABAG | O52: =E52 -> 1 | P52: =C52&A52 -> AGAB | Q52: =F52 -> 3 | R52: =B52 -> 4 | S52: =D52 -> 32
A53: AC | B53: 20 | C53: AE | D53: =IF(G53=19,19,IF(ISBLANK(B53),"",IF(B53=19,0,36-B53))) -> 16 | E53: =IF(G53=19,0,IF(ISBLANK(B53),"",IF(B53<18,1,IF(B53=18,2,IF(B53>18,3))))) -> 3 | F53: =IF(G53=19,3,IF(ISBLANK(B53),"",IF(B53=19,0,IF(D53<18,1,IF(D53=18,2,IF(D53>=20,3)))))) -> 1 | L53: =IF(B53>D53,A53&C53,IF(D53>B53,C53&A53,"/")) -> ACAE | N53: =A53&C53 -> ACAE | O53: =E53 -> 3 | P53: =C53&A53 -> AEAC | Q53: =F53 -> 1 | R53: =B53 -> 20 | S53: =D53 -> 16
A55: 6 éme MATCH le | B55: à | C55: AF
G56: SI forfait éq recevante
A57: Equipes | B57: score | C57: Equipes | D57: score | E57: Points | F57: Points
A58: AB | B58: 14 | C58: AD | D58: =IF(G58=19,19,IF(ISBLANK(B58),"",IF(B58=19,0,36-B58))) -> 22 | E58: =IF(G58=19,0,IF(ISBLANK(B58),"",IF(B58<18,1,IF(B58=18,2,IF(B58>18,3))))) -> 1 | F58: =IF(G58=19,3,IF(ISBLANK(B58),"",IF(B58=19,0,IF(D58<18,1,IF(D58=18,2,IF(D58>=20,3)))))) -> 3 | L58: =IF(B58>D58,A58&C58,IF(D58>B58,C58&A58,"/")) -> ADAB | N58: =A58&C58 -> ABAD | O58: =E58 -> 1 | P58: =C58&A58 -> ADAB | Q58: =F58 -> 3 | R58: =B58 -> 14 | S58: =D58 -> 22
A59: AE | B59: 24 | C59: AA | D59: =IF(G59=19,19,IF(ISBLANK(B59),"",IF(B59=19,0,36-B59))) -> 12 | E59: =IF(G59=19,0,IF(ISBLANK(B59),"",IF(B59<18,1,IF(B59=18,2,IF(B59>18,3))))) -> 3 | F59: =IF(G59=19,3,IF(ISBLANK(B59),"",IF(B59=19,0,IF(D59<18,1,IF(D59=18,2,IF(D59>=20,3)))))) -> 1 | L59: =IF(B59>D59,A59&C59,IF(D59>B59,C59&A59,"/")) -> AEAA | N59: =A59&C59 -> AEAA | O59: =E59 -> 3 | P59: =C59&A59 -> AAAE | Q59: =F59 -> 1 | R59: =B59 -> 24 | S59: =D59 -> 12
A60: AG | B60: 8 | C60: AC | D60: =IF(G60=19,19,IF(ISBLANK(B60),"",IF(B60=19,0,36-B60))) -> 28 | E60: =IF(G60=19,0,IF(ISBLANK(B60),"",IF(B60<18,1,IF(B60=18,2,IF(B60>18,3))))) -> 1 | F60: =IF(G60=19,3,IF(ISBLANK(B60),"",IF(B60=19,0,IF(D60<18,1,IF(D60=18,2,IF(D60>=20,3)))))) -> 3 | L60: =IF(B60>D60,A60&C60,IF(D60>B60,C60&A60,"/")) -> ACAG | N60: =A60&C60 -> AGAC | O60: =E60 -> 1 | P60: =C60&A60 -> ACAG | Q60: =F60 -> 3 | R60: =B60 -> 8 | S60: =D60 -> 28
A61: AF | B61: 22 | C61: AH | D61: =IF(G61=19,19,IF(ISBLANK(B61),"",IF(B61=19,0,36-B61))) -> 14 | E61: =IF(G61=19,0,IF(ISBLANK(B61),"",IF(B61<18,1,IF(B61=18,2,IF(B61>18,3))))) -> 3 | F61: =IF(G61=19,3,IF(ISBLANK(B61),"",IF(B61=19,0,IF(D61<18,1,IF(D61=18,2,IF(D61>=20,3)))))) -> 1 | L61: =IF(B61>D61,A61&C61,IF(D61>B61,C61&A61,"/")) -> AFAH | N61: =A61&C61 -> AFAH | O61: =E61 -> 3 | P61: =C61&A61 -> AHAF | Q61: =F61 -> 1 | R61: =B61 -> 22 | S61: =D61 -> 14
A63: 7 éme MATCH le | B63: à | C63: AG
G64: SI forfait éq recevante
A65: Equipes | B65: score | C65: Equipes | D65: score | E65: Points | F65: Points
A66: AA | B66: 20 | C66: AG | D66: =IF(G66=19,19,IF(ISBLANK(B66),"",IF(B66=19,0,36-B66))) -> 16 | E66: =IF(G66=19,0,IF(ISBLANK(B66),"",IF(B66<18,1,IF(B66=18,2,IF(B66>18,3))))) -> 3 | F66: =IF(G66=19,3,IF(ISBLANK(B66),"",IF(B66=19,0,IF(D66<18,1,IF(D66=18,2,IF(D66>=20,3)))))) -> 1 | L66: =IF(B66>D66,A66&C66,IF(D66>B66,C66&A66,"/")) -> AAAG | N66: =A66&C66 -> AAAG | O66: =E66 -> 3 | P66: =C66&A66 -> AGAA | Q66: =F66 -> 1 | R66: =B66 -> 20 | S66: =D66 -> 16
A67: AB | B67: 12 | C67: AF | D67: =IF(G67=19,19,IF(ISBLANK(B67),"",IF(B67=19,0,36-B67))) -> 24 | E67: =IF(G67=19,0,IF(ISBLANK(B67),"",IF(B67<18,1,IF(B67=18,2,IF(B67>18,3))))) -> 1 | F67: =IF(G67=19,3,IF(ISBLANK(B67),"",IF(B67=19,0,IF(D67<18,1,IF(D67=18,2,IF(D67>=20,3)))))) -> 3 | L67: =IF(B67>D67,A67&C67,IF(D67>B67,C67&A67,"/")) -> AFAB | N67: =A67&C67 -> ABAF | O67: =E67 -> 1 | P67: =C67&A67 -> AFAB | Q67: =F67 -> 3 | R67: =B67 -> 12 | S67: =D67 -> 24
A68: AE | B68: 26 | C68: AD | D68: =IF(G68=19,19,IF(ISBLANK(B68),"",IF(B68=19,0,36-B68))) -> 10 | E68: =IF(G68=19,0,IF(ISBLANK(B68),"",IF(B68<18,1,IF(B68=18,2,IF(B68>18,3))))) -> 3 | F68: =IF(G68=19,3,IF(ISBLANK(B68),"",IF(B68=19,0,IF(D68<18,1,IF(D68=18,2,IF(D68>=20,3)))))) -> 1 | L68: =IF(B68>D68,A68&C68,IF(D68>B68,C68&A68,"/")) -> AEAD | N68: =A68&C68 -> AEAD | O68: =E68 -> 3 | P68: =C68&A68 -> ADAE | Q68: =F68 -> 1 | R68: =B68 -> 26 | S68: =D68 -> 10
A69: AC | B69: 34 | C69: AH | D69: =IF(G69=19,19,IF(ISBLANK(B69),"",IF(B69=19,0,36-B69))) -> 2 | E69: =IF(G69=19,0,IF(ISBLANK(B69),"",IF(B69<18,1,IF(B69=18,2,IF(B69>18,3))))) -> 3 | F69: =IF(G69=19,3,IF(ISBLANK(B69),"",IF(B69=19,0,IF(D69<18,1,IF(D69=18,2,IF(D69>=20,3)))))) -> 1 | L69: =IF(B69>D69,A69&C69,IF(D69>B69,C69&A69,"/")) -> ACAH | N69: =A69&C69 -> ACAH | O69: =E69 -> 3 | P69: =C69&A69 -> AHAC | Q69: =F69 -> 1 | R69: =B69 -> 34 | S69: =D69 -> 2
C70: Si pas d'exaequo | G70: Classt Final | H70: Rencontres entre exaequos
A71: EQUIPES | C71: POINTS | D71: POUR | E71: CONTRE | F71: DIFF | H71: POINTS Exaequos | I71: Exaq | J71: n° | K71: AA | L71: AB | M71: AC | N71: AD | O71: AE | P71: AF | Q71: AG | R71: AH | S71: Pts matchs | W71: 1000000*Pts matchs +1000 (Diff + abs(diff mini) )+Pour | X71: RANG | Y71: DIFF Exaequos | Z71: POUR Exaequos
A72: AC | B72: 1C | C72: 20 | D72: 180 | E72: 72 | F72: 108 | G72: 1 | H72: =IF(S72>0,S72,"") ->  | I72: =COUNTIF($C$72:$C$79,C72) -> 1 | J72: =IF(AND(I72>1,COUNTIFS(I$72:I72,I72,C$72:C72,C72)=1),MAX(J$71:J71)+1,"") ->  | K72: =IF($A72=K$71,"",IF(INDEX($C$72:$C$79,MATCH(K$71,$A$72:$A$79,0))=$C72,IFERROR(VLOOKUP($A72&K$71,$N$18:$O$69,2,0), VLOOKUP(K$71&$A72,$N$18:$Q$69,4,0)), "")) ->  | S72: =SUM(K72:R72) -> 0 | W72: =IF(I72<3,S72*1000000+(F72+ABS(MIN($F$72:$F$79)))*1000+D72,S72*1000000+U96*1000+Z72) -> 172180 | X72: =IF(I72>2,RANK(W72,OFFSET(W$71,MATCH(I72,$I$72:$I$79,0),,I72))) -> FALSE | Y72: =IF(S96=0,"",S96) ->  | Z72: =IF(S80=0,"",S80) -> 
A73: AE | B73: 1E | C73: 16 | D73: 148 | E73: 104 | F73: 44 | G73: 2 | I73: 1 | J73: =IF(AND(I73>1,COUNTIFS(I$72:I73,I73,C$72:C73,C73)=1),MAX(J$71:J72)+1,"") ->  | S73: =SUM(K73:R73) -> 0 | W73: =IF(I73<3,S73*1000000+(F73+ABS(MIN($F$72:$F$79)))*1000+D73,S73*1000000+U97*1000+Z73) -> 108148 | X73: =IF(I73>2,RANK(W73,OFFSET(W$71,MATCH(I73,$I$72:$I$79,0),,I73))) -> FALSE
A74: AF | B74: 1F | C74: 15 | D74: 128 | E74: 124 | F74: 4 | G74: 3 | I74: 1 | J74: =IF(AND(I74>1,COUNTIFS(I$72:I74,I74,C$72:C74,C74)=1),MAX(J$71:J73)+1,"") ->  | S74: 0 | W74: 68128 | X74: FALSE
A75: AA | B75: 1A | C75: 14 | D75: 112 | E75: 140 | F75: -28 | G75: 4 | I75: 1 | J75: =IF(AND(I75>1,COUNTIFS(I$72:I75,I75,C$72:C75,C75)=1),MAX(J$71:J74)+1,"") ->  | S75: 0 | W75: 36112 | X75: FALSE
A76: AG | B76: 1G | C76: 13 | D76: 116 | E76: 136 | F76: -20 | G76: 5 | H76: 3 | I76: 2 | J76: =IF(AND(I76>1,COUNTIFS(I$72:I76,I76,C$72:C76,C76)=1),MAX(J$71:J75)+1,"") -> 1 | L76: 3 | S76: 3 | W76: 3044116 | X76: FALSE | Y76: 28 | Z76: 32
A77: AB | B77: 1B | C77: 13 | D77: 110 | E77: 142 | F77: -32 | G77: 6 | H77: 1 | I77: 2 | J77: =IF(AND(I77>1,COUNTIFS(I$72:I77,I77,C$72:C77,C77)=1),MAX(J$71:J76)+1,"") ->  | Q77: 1 | S77: 1 | W77: 1032110 | X77: FALSE | Y77: -28 | Z77: 4
A78: AD | B78: 1D | C78: 12 | D78: 120 | E78: 132 | F78: -12 | G78: 7 | I78: 1 | J78: =IF(AND(I78>1,COUNTIFS(I$72:I78,I78,C$72:C78,C78)=1),MAX(J$71:J77)+1,"") ->  | S78: 0 | W78: 52120 | X78: FALSE
A79: AH | B79: 1H | C79: 9 | D79: 94 | E79: 158 | F79: -64 | G79: 8 | I79: 1 | J79: =IF(AND(I79>1,COUNTIFS(I$72:I79,I79,C$72:C79,C79)=1),MAX(J$71:J78)+1,"") ->  | S79: 0 | W79: 94 | X79: FALSE
I80: POUR | J80: =A72 -> AC | K80: =IF($A72=K$71,"",IF(INDEX($C$72:$C$79,MATCH(K$71,$A$72:$A$79,0))=$C72,IFERROR(VLOOKUP($A72&K$71,$N$18:$R$69,5,0), VLOOKUP(K$71&$A72,$N$18:$S$69,6,0)), "")) ->  | S80: 0
J81: AE | S81: 0
J82: AF | S82: 0
J83: AA | S83: 0
J84: AG | L84: 32 | S84: 32
J85: AB | Q85: 4 | S85: 4
J86: AD | S86: 0
J87: AH | S87: 0
I88: CONTRE | J88: =J80 -> AC | K88: =INDEX($K$80:$R$87,MATCH(K$71,$J$80:$J$87,0),MATCH($J80,$K$71:$R$71,0)) ->  | L88: =INDEX($K$80:$R$87,MATCH(L$71,$J$80:$J$87,0),MATCH($J80,$K$71:$R$71,0)) ->  | S88: 0
J89: =J81 -> AE | K89: =INDEX($K$80:$R$87,MATCH(K$71,$J$80:$J$87,0),MATCH($J81,$K$71:$R$71,0)) ->  | S89: 0
J90: AF | S90: 0
J91: AA | S91: 0
J92: AG | L92: 4 | S92: 4
J93: AB | Q93: 32 | S93: 32
J94: AD | S94: 0
J95: AH | S95: 0 | U95: Diff pondérée
I96: DIFF | J96: =J88 -> AC | S96: =S80-S88 -> 0 | U96: =S96+ABS(MIN($S$96:$S$103)) -> 28
J97: =J89 -> AE | S97: =S81-S89 -> 0 | U97: 28
J98: AF | S98: 0 | U98: 28
J99: AA | S99: 0 | U99: 28
J100: AG | S100: 28 | U100: 56
J101: AB | S101: -28 | U101: 0
J102: AD | S102: 0 | U102: =S102+ABS(MIN($S$96:$S$103)) -> 28
J103: AH | S103: 0 | U103: =S103+ABS(MIN($S$96:$S$103)) -> 28

Sheet P4
G1: 3
A2: CHAMPIONNAT DES CLUBS
A4: POULE 1
A5: EQUIPES | C5: POINTS | D5: Pour | E5: Contre | F5: Diff
A6: AA | B6: 1A | C6: =SUMIF($A$18:$A$69,A6,$E$18:$E$69)+SUMIF($C$18:$C$69,A6,$F$18:$F$69) -> 15 | D6: =SUMIF($A$18:$A$69,$A6,$B$18:$B$69)+SUMIF($C$18:$C$69,$A6,$D$18:$D$69) -> 134 | E6: =SUMIF($C$18:$C$69,$A6,$B$18:$B$69)+SUMIF($A$18:$A$69,$A6,$D$18:$D$69) -> 118 | F6: =D6-E6 -> 16
A7: AB | B7: 1B | C7: =SUMIF($A$18:$A$69,A7,$E$18:$E$69)+SUMIF($C$18:$C$69,A7,$F$18:$F$69) -> 16 | D7: =SUMIF($A$18:$A$69,$A7,$B$18:$B$69)+SUMIF($C$18:$C$69,$A7,$D$18:$D$69) -> 136 | E7: =SUMIF($C$18:$C$69,$A7,$B$18:$B$69)+SUMIF($A$18:$A$69,$A7,$D$18:$D$69) -> 116 | F7: 20
A8: AC | B8: 1C | C8: =SUMIF($A$18:$A$69,A8,$E$18:$E$69)+SUMIF($C$18:$C$69,A8,$F$18:$F$69) -> 16 | D8: 132 | E8: 120 | F8: 12
A9: AD | B9: 1D | C9: 11 | D9: 102 | E9: 150 | F9: -48
A10: AE | B10: 1E | C10: 10 | D10: 100 | E10: 152 | F10: -52
A11: AF | B11: 1F | C11: 16 | D11: 136 | E11: 116 | F11: 20
A12: AG | B12: 1G | C12: 16 | D12: 158 | E12: 94 | F12: =D12-E12 -> 64
A13: AH | B13: 1H | C13: 12 | D13: =SUMIF($A$18:$A$69,$A13,$B$18:$B$69)+SUMIF($C$18:$C$69,$A13,$D$18:$D$69) -> 110 | E13: 142 | F13: =D13-E13 -> -32
A15: 1er MATCH le | B15: à | C15: AA
G16: SI forfait éq recevante
A17: Equipes | B17: score | C17: Equipes | D17: score | E17: Points | F17: Points
A18: AA | B18: 16 | C18: AB | D18: =IF(G18=19,19,IF(ISBLANK(B18),"",IF(B18=19,0,36-B18))) -> 20 | E18: =IF(G18=19,0,IF(ISBLANK(B18),"",IF(B18<18,1,IF(B18=18,2,IF(B18>18,3))))) -> 1 | F18: =IF(G18=19,3,IF(ISBLANK(B18),"",IF(B18=19,0,IF(D18<18,1,IF(D18=18,2,IF(D18>=20,3)))))) -> 3 | L18: =IF(B18>D18,A18&C18,IF(D18>B18,C18&A18,"/")) -> ABAA | N18: =A18&C18 -> AAAB | O18: =E18 -> 1 | P18: =C18&A18 -> ABAA | Q18: =F18 -> 3 | R18: =B18 -> 16 | S18: =D18 -> 20
A19: AC | B19: 30 | C19: AD | D19: =IF(G19=19,19,IF(ISBLANK(B19),"",IF(B19=19,0,36-B19))) -> 6 | E19: =IF(G19=19,0,IF(ISBLANK(B19),"",IF(B19<18,1,IF(B19=18,2,IF(B19>18,3))))) -> 3 | F19: =IF(G19=19,3,IF(ISBLANK(B19),"",IF(B19=19,0,IF(D19<18,1,IF(D19=18,2,IF(D19>=20,3)))))) -> 1 | L19: =IF(B19>D19,A19&C19,IF(D19>B19,C19&A19,"/")) -> ACAD | N19: =A19&C19 -> ACAD | O19: =E19 -> 3 | P19: =C19&A19 -> ADAC | Q19: =F19 -> 1 | R19: =B19 -> 30 | S19: =D19 -> 6
A20: AE | B20: 16 | C20: AF | D20: =IF(G20=19,19,IF(ISBLANK(B20),"",IF(B20=19,0,36-B20))) -> 20 | E20: =IF(G20=19,0,IF(ISBLANK(B20),"",IF(B20<18,1,IF(B20=18,2,IF(B20>18,3))))) -> 1 | F20: =IF(G20=19,3,IF(ISBLANK(B20),"",IF(B20=19,0,IF(D20<18,1,IF(D20=18,2,IF(D20>=20,3)))))) -> 3 | L20: =IF(B20>D20,A20&C20,IF(D20>B20,C20&A20,"/")) -> AFAE | N20: =A20&C20 -> AEAF | O20: =E20 -> 1 | P20: =C20&A20 -> AFAE | Q20: =F20 -> 3 | R20: =B20 -> 16 | S20: =D20 -> 20
A21: AG | B21: 18 | C21: AH | D21: =IF(G21=19,19,IF(ISBLANK(B21),"",IF(B21=19,0,36-B21))) -> 18 | E21: =IF(G21=19,0,IF(ISBLANK(B21),"",IF(B21<18,1,IF(B21=18,2,IF(B21>18,3))))) -> 2 | F21: =IF(G21=19,3,IF(ISBLANK(B21),"",IF(B21=19,0,IF(D21<18,1,IF(D21=18,2,IF(D21>=20,3)))))) -> 2 | L21: =IF(B21>D21,A21&C21,IF(D21>B21,C21&A21,"/")) -> / | N21: =A21&C21 -> AGAH | O21: =E21 -> 2 | P21: =C21&A21 -> AHAG | Q21: =F21 -> 2 | R21: =B21 -> 18 | S21: =D21 -> 18
A23: 2 éme MATCH le | B23: à | C23: AB
G24: SI forfait éq recevante
A25: Equipes | B25: score | C25: Equipes | D25: score | E25: Points | F25: Points
A26: AA | B26: 26 | C26: AC | D26: =IF(G26=19,19,IF(ISBLANK(B26),"",IF(B26=19,0,36-B26))) -> 10 | E26: =IF(G26=19,0,IF(ISBLANK(B26),"",IF(B26<18,1,IF(B26=18,2,IF(B26>18,3))))) -> 3 | F26: =IF(G26=19,3,IF(ISBLANK(B26),"",IF(B26=19,0,IF(D26<18,1,IF(D26=18,2,IF(D26>=20,3)))))) -> 1 | L26: =IF(B26>D26,A26&C26,IF(D26>B26,C26&A26,"/")) -> AAAC | N26: =A26&C26 -> AAAC | O26: =E26 -> 3 | P26: =C26&A26 -> ACAA | Q26: =F26 -> 1 | R26: =B26 -> 26 | S26: =D26 -> 10
A27: AB | B27: 28 | C27: AH | D27: =IF(G27=19,19,IF(ISBLANK(B27),"",IF(B27=19,0,36-B27))) -> 8 | E27: =IF(G27=19,0,IF(ISBLANK(B27),"",IF(B27<18,1,IF(B27=18,2,IF(B27>18,3))))) -> 3 | F27: =IF(G27=19,3,IF(ISBLANK(B27),"",IF(B27=19,0,IF(D27<18,1,IF(D27=18,2,IF(D27>=20,3)))))) -> 1 | L27: =IF(B27>D27,A27&C27,IF(D27>B27,C27&A27,"/")) -> ABAH | N27: =A27&C27 -> ABAH | O27: =E27 -> 3 | P27: =C27&A27 -> AHAB | Q27: =F27 -> 1 | R27: =B27 -> 28 | S27: =D27 -> 8
A28: AD | B28: 18 | C28: AF | D28: =IF(G28=19,19,IF(ISBLANK(B28),"",IF(B28=19,0,36-B28))) -> 18 | E28: =IF(G28=19,0,IF(ISBLANK(B28),"",IF(B28<18,1,IF(B28=18,2,IF(B28>18,3))))) -> 2 | F28: =IF(G28=19,3,IF(ISBLANK(B28),"",IF(B28=19,0,IF(D28<18,1,IF(D28=18,2,IF(D28>=20,3)))))) -> 2 | L28: =IF(B28>D28,A28&C28,IF(D28>B28,C28&A28,"/")) -> / | N28: =A28&C28 -> ADAF | O28: =E28 -> 2 | P28: =C28&A28 -> AFAD | Q28: =F28 -> 2 | R28: =B28 -> 18 | S28: =D28 -> 18
A29: AE | B29: 10 | C29: AG | D29: =IF(G29=19,19,IF(ISBLANK(B29),"",IF(B29=19,0,36-B29))) -> 26 | E29: =IF(G29=19,0,IF(ISBLANK(B29),"",IF(B29<18,1,IF(B29=18,2,IF(B29>18,3))))) -> 1 | F29: =IF(G29=19,3,IF(ISBLANK(B29),"",IF(B29=19,0,IF(D29<18,1,IF(D29=18,2,IF(D29>=20,3)))))) -> 3 | L29: =IF(B29>D29,A29&C29,IF(D29>B29,C29&A29,"/")) -> AGAE | N29: =A29&C29 -> AEAG | O29: =E29 -> 1 | P29: =C29&A29 -> AGAE | Q29: =F29 -> 3 | R29: =B29 -> 10 | S29: =D29 -> 26
A31: 3 éme MATCH le | B31: à | C31: AC
G32: SI forfait éq recevante
A33: Equipes | B33: score | C33: Equipes | D33: score | E33: Points | F33: Points
A34: AA | B34: 30 | C34: AH | D34: =IF(G34=19,19,IF(ISBLANK(B34),"",IF(B34=19,0,36-B34))) -> 6 | E34: =IF(G34=19,0,IF(ISBLANK(B34),"",IF(B34<18,1,IF(B34=18,2,IF(B34>18,3))))) -> 3 | F34: =IF(G34=19,3,IF(ISBLANK(B34),"",IF(B34=19,0,IF(D34<18,1,IF(D34=18,2,IF(D34>=20,3)))))) -> 1 | L34: =IF(B34>D34,A34&C34,IF(D34>B34,C34&A34,"/")) -> AAAH | N34: =A34&C34 -> AAAH | O34: =E34 -> 3 | P34: =C34&A34 -> AHAA | Q34: =F34 -> 1 | R34: =B34 -> 30 | S34: =D34 -> 6
A35: AB | B35: 18 | C35: AE | D35: =IF(G35=19,19,IF(ISBLANK(B35),"",IF(B35=19,0,36-B35))) -> 18 | E35: =IF(G35=19,0,IF(ISBLANK(B35),"",IF(B35<18,1,IF(B35=18,2,IF(B35>18,3))))) -> 2 | F35: =IF(G35=19,3,IF(ISBLANK(B35),"",IF(B35=19,0,IF(D35<18,1,IF(D35=18,2,IF(D35>=20,3)))))) -> 2 | L35: =IF(B35>D35,A35&C35,IF(D35>B35,C35&A35,"/")) -> / | N35: =A35&C35 -> ABAE | O35: =E35 -> 2 | P35: =C35&A35 -> AEAB | Q35: =F35 -> 2 | R35: =B35 -> 18 | S35: =D35 -> 18
A36: AC | B36: 20 | C36: AF | D36: =IF(G36=19,19,IF(ISBLANK(B36),"",IF(B36=19,0,36-B36))) -> 16 | E36: =IF(G36=19,0,IF(ISBLANK(B36),"",IF(B36<18,1,IF(B36=18,2,IF(B36>18,3))))) -> 3 | F36: =IF(G36=19,3,IF(ISBLANK(B36),"",IF(B36=19,0,IF(D36<18,1,IF(D36=18,2,IF(D36>=20,3)))))) -> 1 | L36: =IF(B36>D36,A36&C36,IF(D36>B36,C36&A36,"/")) -> ACAF | N36: =A36&C36 -> ACAF | O36: =E36 -> 3 | P36: =C36&A36 -> AFAC | Q36: =F36 -> 1 | R36: =B36 -> 20 | S36: =D36 -> 16
A37: AD | B37: 10 | C37: AG | D37: =IF(G37=19,19,IF(ISBLANK(B37),"",IF(B37=19,0,36-B37))) -> 26 | E37: =IF(G37=19,0,IF(ISBLANK(B37),"",IF(B37<18,1,IF(B37=18,2,IF(B37>18,3))))) -> 1 | F37: =IF(G37=19,3,IF(ISBLANK(B37),"",IF(B37=19,0,IF(D37<18,1,IF(D37=18,2,IF(D37>=20,3)))))) -> 3 | L37: =IF(B37>D37,A37&C37,IF(D37>B37,C37&A37,"/")) -> AGAD | N37: =A37&C37 -> ADAG | O37: =E37 -> 1 | P37: =C37&A37 -> AGAD | Q37: =F37 -> 3 | R37: =B37 -> 10 | S37: =D37 -> 26
A39: 4 éme MATCH le | B39: à | C39: AD
G40: SI forfait éq recevante
A41: Equipes | B41: score | C41: Equipes | D41: score | E41: Points | F41: Points
A42: AA | B42: 6 | C42: AD | D42: =IF(G42=19,19,IF(ISBLANK(B42),"",IF(B42=19,0,36-B42))) -> 30 | E42: =IF(G42=19,0,IF(ISBLANK(B42),"",IF(B42<18,1,IF(B42=18,2,IF(B42>18,3))))) -> 1 | F42: =IF(G42=19,3,IF(ISBLANK(B42),"",IF(B42=19,0,IF(D42<18,1,IF(D42=18,2,IF(D42>=20,3)))))) -> 3 | L42: =IF(B42>D42,A42&C42,IF(D42>B42,C42&A42,"/")) -> ADAA | N42: =A42&C42 -> AAAD | O42: =E42 -> 1 | P42: =C42&A42 -> ADAA | Q42: =F42 -> 3 | R42: =B42 -> 6 | S42: =D42 -> 30
A43: AF | B43: 10 | C43: AG | D43: =IF(G43=19,19,IF(ISBLANK(B43),"",IF(B43=19,0,36-B43))) -> 26 | E43: =IF(G43=19,0,IF(ISBLANK(B43),"",IF(B43<18,1,IF(B43=18,2,IF(B43>18,3))))) -> 1 | F43: =IF(G43=19,3,IF(ISBLANK(B43),"",IF(B43=19,0,IF(D43<18,1,IF(D43=18,2,IF(D43>=20,3)))))) -> 3 | L43: =IF(B43>D43,A43&C43,IF(D43>B43,C43&A43,"/")) -> AGAF | N43: =A43&C43 -> AFAG | O43: =E43 -> 1 | P43: =C43&A43 -> AGAF | Q43: =F43 -> 3 | R43: =B43 -> 10 | S43: =D43 -> 26
A44: AB | B44: 24 | C44: AC | D44: =IF(G44=19,19,IF(ISBLANK(B44),"",IF(B44=19,0,36-B44))) -> 12 | E44: =IF(G44=19,0,IF(ISBLANK(B44),"",IF(B44<18,1,IF(B44=18,2,IF(B44>18,3))))) -> 3 | F44: =IF(G44=19,3,IF(ISBLANK(B44),"",IF(B44=19,0,IF(D44<18,1,IF(D44=18,2,IF(D44>=20,3)))))) -> 1 | L44: =IF(B44>D44,A44&C44,IF(D44>B44,C44&A44,"/")) -> ABAC | N44: =A44&C44 -> ABAC | O44: =E44 -> 3 | P44: =C44&A44 -> ACAB | Q44: =F44 -> 1 | R44: =B44 -> 24 | S44: =D44 -> 12
A45: AE | B45: 8 | C45: AH | D45: =IF(G45=19,19,IF(ISBLANK(B45),"",IF(B45=19,0,36-B45))) -> 28 | E45: =IF(G45=19,0,IF(ISBLANK(B45),"",IF(B45<18,1,IF(B45=18,2,IF(B45>18,3))))) -> 1 | F45: =IF(G45=19,3,IF(ISBLANK(B45),"",IF(B45=19,0,IF(D45<18,1,IF(D45=18,2,IF(D45>=20,3)))))) -> 3 | L45: =IF(B45>D45,A45&C45,IF(D45>B45,C45&A45,"/")) -> AHAE | N45: =A45&C45 -> AEAH | O45: =E45 -> 1 | P45: =C45&A45 -> AHAE | Q45: =F45 -> 3 | R45: =B45 -> 8 | S45: =D45 -> 28
A47: 5 éme MATCH le | B47: à | C47: AE
G48: SI forfait éq recevante
A49: Equipes | B49: score | C49: Equipes | D49: score | E49: Points | F49: Points
A50: AA | B50: 10 | C50: AF | D50: =IF(G50=19,19,IF(ISBLANK(B50),"",IF(B50=19,0,36-B50))) -> 26 | E50: =IF(G50=19,0,IF(ISBLANK(B50),"",IF(B50<18,1,IF(B50=18,2,IF(B50>18,3))))) -> 1 | F50: =IF(G50=19,3,IF(ISBLANK(B50),"",IF(B50=19,0,IF(D50<18,1,IF(D50=18,2,IF(D50>=20,3)))))) -> 3 | L50: =IF(B50>D50,A50&C50,IF(D50>B50,C50&A50,"/")) -> AFAA | N50: =A50&C50 -> AAAF | O50: =E50 -> 1 | P50: =C50&A50 -> AFAA | Q50: =F50 -> 3 | R50: =B50 -> 10 | S50: =D50 -> 26
A51: AD | B51: 18 | C51: AH | D51: =IF(G51=19,19,IF(ISBLANK(B51),"",IF(B51=19,0,36-B51))) -> 18 | E51: =IF(G51=19,0,IF(ISBLANK(B51),"",IF(B51<18,1,IF(B51=18,2,IF(B51>18,3))))) -> 2 | F51: =IF(G51=19,3,IF(ISBLANK(B51),"",IF(B51=19,0,IF(D51<18,1,IF(D51=18,2,IF(D51>=20,3)))))) -> 2 | L51: =IF(B51>D51,A51&C51,IF(D51>B51,C51&A51,"/")) -> / | N51: =A51&C51 -> ADAH | O51: =E51 -> 2 | P51: =C51&A51 -> AHAD | Q51: =F51 -> 2 | R51: =B51 -> 18 | S51: =D51 -> 18
A52: AB | B52: 4 | C52: AG | D52: =IF(G52=19,19,IF(ISBLANK(B52),"",IF(B52=19,0,36-B52))) -> 32 | E52: =IF(G52=19,0,IF(ISBLANK(B52),"",IF(B52<18,1,IF(B52=18,2,IF(B52>18,3))))) -> 1 | F52: =IF(G52=19,3,IF(ISBLANK(B52),"",IF(B52=19,0,IF(D52<18,1,IF(D52=18,2,IF(D52>=20,3)))))) -> 3 | L52: =IF(B52>D52,A52&C52,IF(D52>B52,C52&A52,"/")) -> AGAB | N52: =A52&C52 -> ABAG | O52: =E52 -> 1 | P52: =C52&A52 -> AGAB | Q52: =F52 -> 3 | R52: =B52 -> 4 | S52: =D52 -> 32
A53: AC | B53: 20 | C53: AE | D53: =IF(G53=19,19,IF(ISBLANK(B53),"",IF(B53=19,0,36-B53))) -> 16 | E53: =IF(G53=19,0,IF(ISBLANK(B53),"",IF(B53<18,1,IF(B53=18,2,IF(B53>18,3))))) -> 3 | F53: =IF(G53=19,3,IF(ISBLANK(B53),"",IF(B53=19,0,IF(D53<18,1,IF(D53=18,2,IF(D53>=20,3)))))) -> 1 | L53: =IF(B53>D53,A53&C53,IF(D53>B53,C53&A53,"/")) -> ACAE | N53: =A53&C53 -> ACAE | O53: =E53 -> 3 | P53: =C53&A53 -> AEAC | Q53: =F53 -> 1 | R53: =B53 -> 20 | S53: =D53 -> 16
A55: 6 éme MATCH le | B55: à | C55: AF
G56: SI forfait éq recevante
A57: Equipes | B57: score | C57: Equipes | D57: score | E57: Points | F57: Points
A58: AB | B58: 30 | C58: AD | D58: =IF(G58=19,19,IF(ISBLANK(B58),"",IF(B58=19,0,36-B58))) -> 6 | E58: =IF(G58=19,0,IF(ISBLANK(B58),"",IF(B58<18,1,IF(B58=18,2,IF(B58>18,3))))) -> 3 | F58: =IF(G58=19,3,IF(ISBLANK(B58),"",IF(B58=19,0,IF(D58<18,1,IF(D58=18,2,IF(D58>=20,3)))))) -> 1 | L58: =IF(B58>D58,A58&C58,IF(D58>B58,C58&A58,"/")) -> ABAD | N58: =A58&C58 -> ABAD | O58: =E58 -> 3 | P58: =C58&A58 -> ADAB | Q58: =F58 -> 1 | R58: =B58 -> 30 | S58: =D58 -> 6
A59: AE | B59: 10 | C59: AA | D59: =IF(G59=19,19,IF(ISBLANK(B59),"",IF(B59=19,0,36-B59))) -> 26 | E59: =IF(G59=19,0,IF(ISBLANK(B59),"",IF(B59<18,1,IF(B59=18,2,IF(B59>18,3))))) -> 1 | F59: =IF(G59=19,3,IF(ISBLANK(B59),"",IF(B59=19,0,IF(D59<18,1,IF(D59=18,2,IF(D59>=20,3)))))) -> 3 | L59: =IF(B59>D59,A59&C59,IF(D59>B59,C59&A59,"/")) -> AAAE | N59: =A59&C59 -> AEAA | O59: =E59 -> 1 | P59: =C59&A59 -> AAAE | Q59: =F59 -> 3 | R59: =B59 -> 10 | S59: =D59 -> 26
A60: AG | B60: 14 | C60: AC | D60: =IF(G60=19,19,IF(ISBLANK(B60),"",IF(B60=19,0,36-B60))) -> 22 | E60: =IF(G60=19,0,IF(ISBLANK(B60),"",IF(B60<18,1,IF(B60=18,2,IF(B60>18,3))))) -> 1 | F60: =IF(G60=19,3,IF(ISBLANK(B60),"",IF(B60=19,0,IF(D60<18,1,IF(D60=18,2,IF(D60>=20,3)))))) -> 3 | L60: =IF(B60>D60,A60&C60,IF(D60>B60,C60&A60,"/")) -> ACAG | N60: =A60&C60 -> AGAC | O60: =E60 -> 1 | P60: =C60&A60 -> ACAG | Q60: =F60 -> 3 | R60: =B60 -> 14 | S60: =D60 -> 22
A61: AF | B61: 22 | C61: AH | D61: =IF(G61=19,19,IF(ISBLANK(B61),"",IF(B61=19,0,36-B61))) -> 14 | E61: =IF(G61=19,0,IF(ISBLANK(B61),"",IF(B61<18,1,IF(B61=18,2,IF(B61>18,3))))) -> 3 | F61: =IF(G61=19,3,IF(ISBLANK(B61),"",IF(B61=19,0,IF(D61<18,1,IF(D61=18,2,IF(D61>=20,3)))))) -> 1 | L61: =IF(B61>D61,A61&C61,IF(D61>B61,C61&A61,"/")) -> AFAH | N61: =A61&C61 -> AFAH | O61: =E61 -> 3 | P61: =C61&A61 -> AHAF | Q61: =F61 -> 1 | R61: =B61 -> 22 | S61: =D61 -> 14
A63: 7 éme MATCH le | B63: à | C63: AG
G64: SI forfait éq recevante
A65: Equipes | B65: score | C65: Equipes | D65: score | E65: Points | F65: Points
A66: AA | B66: 20 | C66: AG | D66: =IF(G66=19,19,IF(ISBLANK(B66),"",IF(B66=19,0,36-B66))) -> 16 | E66: =IF(G66=19,0,IF(ISBLANK(B66),"",IF(B66<18,1,IF(B66=18,2,IF(B66>18,3))))) -> 3 | F66: =IF(G66=19,3,IF(ISBLANK(B66),"",IF(B66=19,0,IF(D66<18,1,IF(D66=18,2,IF(D66>=20,3)))))) -> 1 | L66: =IF(B66>D66,A66&C66,IF(D66>B66,C66&A66,"/")) -> AAAG | N66: =A66&C66 -> AAAG | O66: =E66 -> 3 | P66: =C66&A66 -> AGAA | Q66: =F66 -> 1 | R66: =B66 -> 20 | S66: =D66 -> 16
A67: AB | B67: 12 | C67: AF | D67: =IF(G67=19,19,IF(ISBLANK(B67),"",IF(B67=19,0,36-B67))) -> 24 | E67: =IF(G67=19,0,IF(ISBLANK(B67),"",IF(B67<18,1,IF(B67=18,2,IF(B67>18,3))))) -> 1 | F67: =IF(G67=19,3,IF(ISBLANK(B67),"",IF(B67=19,0,IF(D67<18,1,IF(D67=18,2,IF(D67>=20,3)))))) -> 3 | L67: =IF(B67>D67,A67&C67,IF(D67>B67,C67&A67,"/")) -> AFAB | N67: =A67&C67 -> ABAF | O67: =E67 -> 1 | P67: =C67&A67 -> AFAB | Q67: =F67 -> 3 | R67: =B67 -> 12 | S67: =D67 -> 24
A68: AE | B68: 22 | C68: AD | D68: =IF(G68=19,19,IF(ISBLANK(B68),"",IF(B68=19,0,36-B68))) -> 14 | E68: =IF(G68=19,0,IF(ISBLANK(B68),"",IF(B68<18,1,IF(B68=18,2,IF(B68>18,3))))) -> 3 | F68: =IF(G68=19,3,IF(ISBLANK(B68),"",IF(B68=19,0,IF(D68<18,1,IF(D68=18,2,IF(D68>=20,3)))))) -> 1 | L68: =IF(B68>D68,A68&C68,IF(D68>B68,C68&A68,"/")) -> AEAD | N68: =A68&C68 -> AEAD | O68: =E68 -> 3 | P68: =C68&A68 -> ADAE | Q68: =F68 -> 1 | R68: =B68 -> 22 | S68: =D68 -> 14
A69: AC | B69: 18 | C69: AH | D69: =IF(G69=19,19,IF(ISBLANK(B69),"",IF(B69=19,0,36-B69))) -> 18 | E69: =IF(G69=19,0,IF(ISBLANK(B69),"",IF(B69<18,1,IF(B69=18,2,IF(B69>18,3))))) -> 2 | F69: =IF(G69=19,3,IF(ISBLANK(B69),"",IF(B69=19,0,IF(D69<18,1,IF(D69=18,2,IF(D69>=20,3)))))) -> 2 | L69: =IF(B69>D69,A69&C69,IF(D69>B69,C69&A69,"/")) -> / | N69: =A69&C69 -> ACAH | O69: =E69 -> 2 | P69: =C69&A69 -> AHAC | Q69: =F69 -> 2 | R69: =B69 -> 18 | S69: =D69 -> 18
C70: Si pas d'exaequo | G70: Classt Final | H70: Rencontres entre exaequos
A71: EQUIPES | C71: POINTS | D71: POUR | E71: CONTRE | F71: DIFF | H71: POINTS Exaequos | I71: Exaq | J71: n° | K71: AA | L71: AB | M71: AC | N71: AD | O71: AE | P71: AF | Q71: AG | R71: AH | S71: Pts matchs | W71: 1000000*Pts matchs +1000 (Diff + abs(diff mini) )+Pour | X71: RANG | Y71: DIFF Exaequos | Z71: POUR Exaequos
A72: AC | B72: 1C | C72: 16 | D72: 132 | E72: 120 | F72: 12 | G72: 1 | H72: =IF(S72>0,S72,"") -> 7 | I72: =COUNTIF($C$72:$C$79,C72) -> 4 | J72: =IF(AND(I72>1,COUNTIFS(I$72:I72,I72,C$72:C72,C72)=1),MAX(J$71:J71)+1,"") -> 1 | K72: =IF($A72=K$71,"",IF(INDEX($C$72:$C$79,MATCH(K$71,$A$72:$A$79,0))=$C72,IFERROR(VLOOKUP($A72&K$71,$N$18:$O$69,2,0), VLOOKUP(K$71&$A72,$N$18:$Q$69,4,0)), "")) ->  | L72: 1 | P72: 3 | Q72: 3 | S72: =SUM(K72:R72) -> 7 | W72: =IF(I72<3,S72*1000000+(F72+ABS(MIN($F$72:$F$79)))*1000+D72,S72*1000000+U96*1000+Z72) -> 7028054 | X72: =IF(I72>2,RANK(W72,OFFSET(W$71,MATCH(I72,$I$72:$I$79,0),,I72))) -> 2 | Y72: =IF(S96=0,"",S96) ->  | Z72: =IF(S80=0,"",S80) -> 54
A73: AG | B73: 1G | C73: 16 | D73: 158 | E73: 94 | F73: 64 | G73: 2 | H73: 7 | I73: 4 | J73: =IF(AND(I73>1,COUNTIFS(I$72:I73,I73,C$72:C73,C73)=1),MAX(J$71:J72)+1,"") ->  | L73: 3 | M73: 1 | P73: 3 | S73: =SUM(K73:R73) -> 7 | W73: =IF(I73<3,S73*1000000+(F73+ABS(MIN($F$72:$F$79)))*1000+D73,S73*1000000+U97*1000+Z73) -> 7064072 | X73: =IF(I73>2,RANK(W73,OFFSET(W$71,MATCH(I73,$I$72:$I$79,0),,I73))) -> 1 | Y73: 36 | Z73: 72
A74: AF | B74: 1F | C74: 16 | D74: 136 | E74: 116 | F74: 20 | G74: 3 | H74: 5 | I74: 4 | J74: =IF(AND(I74>1,COUNTIFS(I$72:I74,I74,C$72:C74,C74)=1),MAX(J$71:J73)+1,"") ->  | L74: 3 | M74: 1 | Q74: 1 | S74: 5 | W74: 5020050 | X74: 3 | Y74: -8 | Z74: 50
A75: AB | B75: 1B | C75: 16 | D75: 136 | E75: 116 | F75: 20 | G75: 4 | H75: 5 | I75: 4 | J75: =IF(AND(I75>1,COUNTIFS(I$72:I75,I75,C$72:C75,C75)=1),MAX(J$71:J74)+1,"") ->  | M75: 3 | P75: 1 | Q75: 1 | S75: 5 | W75: 5000040 | X75: 4 | Y75: -28 | Z75: 40
A76: AA | B76: 1A | C76: 15 | D76: 134 | E76: 118 | F76: 16 | G76: 5 | I76: 1 | J76: =IF(AND(I76>1,COUNTIFS(I$72:I76,I76,C$72:C76,C76)=1),MAX(J$71:J75)+1,"") ->  | S76: 0 | W76: 68134 | X76: FALSE
A77: AH | B77: 1H | C77: 12 | D77: 110 | E77: 142 | F77: -32 | G77: 6 | I77: 1 | J77: =IF(AND(I77>1,COUNTIFS(I$72:I77,I77,C$72:C77,C77)=1),MAX(J$71:J76)+1,"") ->  | S77: 0 | W77: 20110 | X77: FALSE
A78: AD | B78: 1D | C78: 11 | D78: 102 | E78: 150 | F78: -48 | G78: 7 | I78: 1 | J78: =IF(AND(I78>1,COUNTIFS(I$72:I78,I78,C$72:C78,C78)=1),MAX(J$71:J77)+1,"") ->  | S78: 0 | W78: 4102 | X78: FALSE
A79: AE | B79: 1E | C79: 10 | D79: 100 | E79: 152 | F79: -52 | G79: 8 | I79: 1 | J79: =IF(AND(I79>1,COUNTIFS(I$72:I79,I79,C$72:C79,C79)=1),MAX(J$71:J78)+1,"") ->  | S79: 0 | W79: 100 | X79: FALSE
I80: POUR | J80: =A72 -> AC | K80: =IF($A72=K$71,"",IF(INDEX($C$72:$C$79,MATCH(K$71,$A$72:$A$79,0))=$C72,IFERROR(VLOOKUP($A72&K$71,$N$18:$R$69,5,0), VLOOKUP(K$71&$A72,$N$18:$S$69,6,0)), "")) ->  | L80: 12 | P80: 20 | Q80: 22 | S80: 54
J81: AG | L81: 32 | M81: 14 | P81: 26 | S81: 72
J82: AF | L82: 24 | M82: 16 | Q82: 10 | S82: 50
J83: AB | M83: 24 | P83: 12 | Q83: 4 | S83: 40
J84: AA | S84: 0
J85: AH | S85: 0
J86: AD | S86: 0
J87: AE | S87: 0
I88: CONTRE | J88: =J80 -> AC | K88: =INDEX($K$80:$R$87,MATCH(K$71,$J$80:$J$87,0),MATCH($J80,$K$71:$R$71,0)) ->  | L88: =INDEX($K$80:$R$87,MATCH(L$71,$J$80:$J$87,0),MATCH($J80,$K$71:$R$71,0)) -> 24 | P88: 16 | Q88: 14 | S88: 54
J89: =J81 -> AG | K89: =INDEX($K$80:$R$87,MATCH(K$71,$J$80:$J$87,0),MATCH($J81,$K$71:$R$71,0)) ->  | L89: 4 | M89: 22 | P89: 10 | S89: 36
J90: AF | L90: 12 | M90: 20 | Q90: 26 | S90: 58
J91: AB | M91: 12 | P91: 24 | Q91: 32 | S91: 68
J92: AA | S92: 0
J93: AH | S93: 0
J94: AD | S94: 0
J95: AE | S95: 0 | U95: Diff pondérée
I96: DIFF | J96: =J88 -> AC | S96: =S80-S88 -> 0 | U96: =S96+ABS(MIN($S$96:$S$103)) -> 28
J97: =J89 -> AG | S97: =S81-S89 -> 36 | U97: 64
J98: AF | S98: -8 | U98: 20
J99: AB | S99: -28 | U99: 0
J100: AA | S100: 0 | U100: 28
J101: AH | S101: 0 | U101: 28
J102: AD | S102: 0 | U102: =S102+ABS(MIN($S$96:$S$103)) -> 28
J103: AE | S103: 0 | U103: =S103+ABS(MIN($S$96:$S$103)) -> 28

Sheet P5
G1: 3
A2: CHAMPIONNAT DES CLUBS
A4: POULE 1
A5: EQUIPES | C5: POINTS | D5: Pour | E5: Contre | F5: Diff
A6: AA | B6: 1A | C6: =SUMIF($A$18:$A$69,A6,$E$18:$E$69)+SUMIF($C$18:$C$69,A6,$F$18:$F$69) -> 16 | D6: =SUMIF($A$18:$A$69,$A6,$B$18:$B$69)+SUMIF($C$18:$C$69,$A6,$D$18:$D$69) -> 120 | E6: =SUMIF($C$18:$C$69,$A6,$B$18:$B$69)+SUMIF($A$18:$A$69,$A6,$D$18:$D$69) -> 132 | F6: =D6-E6 -> -12
A7: AB | B7: 1B | C7: =SUMIF($A$18:$A$69,A7,$E$18:$E$69)+SUMIF($C$18:$C$69,A7,$F$18:$F$69) -> 11 | D7: =SUMIF($A$18:$A$69,$A7,$B$18:$B$69)+SUMIF($C$18:$C$69,$A7,$D$18:$D$69) -> 114 | E7: =SUMIF($C$18:$C$69,$A7,$B$18:$B$69)+SUMIF($A$18:$A$69,$A7,$D$18:$D$69) -> 138 | F7: -24
A8: AC | B8: 1C | C8: =SUMIF($A$18:$A$69,A8,$E$18:$E$69)+SUMIF($C$18:$C$69,A8,$F$18:$F$69) -> 16 | D8: 122 | E8: 130 | F8: -8
A9: AD | B9: 1D | C9: 11 | D9: 100 | E9: 152 | F9: -52
A10: AE | B10: 1E | C10: 18 | D10: 158 | E10: 94 | F10: 64
A11: AF | B11: 1F | C11: 13 | D11: 122 | E11: 130 | F11: -8
A12: AG | B12: 1G | C12: 15 | D12: 150 | E12: 102 | F12: =D12-E12 -> 48
A13: AH | B13: 1H | C13: 12 | D13: =SUMIF($A$18:$A$69,$A13,$B$18:$B$69)+SUMIF($C$18:$C$69,$A13,$D$18:$D$69) -> 122 | E13: 130 | F13: =D13-E13 -> -8
A15: 1er MATCH le | B15: à | C15: AA
G16: SI forfait éq recevante
A17: Equipes | B17: score | C17: Equipes | D17: score | E17: Points | F17: Points
A18: AA | B18: 20 | C18: AB | D18: =IF(G18=19,19,IF(ISBLANK(B18),"",IF(B18=19,0,36-B18))) -> 16 | E18: =IF(G18=19,0,IF(ISBLANK(B18),"",IF(B18<18,1,IF(B18=18,2,IF(B18>18,3))))) -> 3 | F18: =IF(G18=19,3,IF(ISBLANK(B18),"",IF(B18=19,0,IF(D18<18,1,IF(D18=18,2,IF(D18>=20,3)))))) -> 1 | L18: =IF(B18>D18,A18&C18,IF(D18>B18,C18&A18,"/")) -> AAAB | N18: =A18&C18 -> AAAB | O18: =E18 -> 3 | P18: =C18&A18 -> ABAA | Q18: =F18 -> 1 | R18: =B18 -> 20 | S18: =D18 -> 16
A19: AC | B19: 30 | C19: AD | D19: =IF(G19=19,19,IF(ISBLANK(B19),"",IF(B19=19,0,36-B19))) -> 6 | E19: =IF(G19=19,0,IF(ISBLANK(B19),"",IF(B19<18,1,IF(B19=18,2,IF(B19>18,3))))) -> 3 | F19: =IF(G19=19,3,IF(ISBLANK(B19),"",IF(B19=19,0,IF(D19<18,1,IF(D19=18,2,IF(D19>=20,3)))))) -> 1 | L19: =IF(B19>D19,A19&C19,IF(D19>B19,C19&A19,"/")) -> ACAD | N19: =A19&C19 -> ACAD | O19: =E19 -> 3 | P19: =C19&A19 -> ADAC | Q19: =F19 -> 1 | R19: =B19 -> 30 | S19: =D19 -> 6
A20: AE | B20: 22 | C20: AF | D20: =IF(G20=19,19,IF(ISBLANK(B20),"",IF(B20=19,0,36-B20))) -> 14 | E20: =IF(G20=19,0,IF(ISBLANK(B20),"",IF(B20<18,1,IF(B20=18,2,IF(B20>18,3))))) -> 3 | F20: =IF(G20=19,3,IF(ISBLANK(B20),"",IF(B20=19,0,IF(D20<18,1,IF(D20=18,2,IF(D20>=20,3)))))) -> 1 | L20: =IF(B20>D20,A20&C20,IF(D20>B20,C20&A20,"/")) -> AEAF | N20: =A20&C20 -> AEAF | O20: =E20 -> 3 | P20: =C20&A20 -> AFAE | Q20: =F20 -> 1 | R20: =B20 -> 22 | S20: =D20 -> 14
A21: AG | B21: 18 | C21: AH | D21: =IF(G21=19,19,IF(ISBLANK(B21),"",IF(B21=19,0,36-B21))) -> 18 | E21: =IF(G21=19,0,IF(ISBLANK(B21),"",IF(B21<18,1,IF(B21=18,2,IF(B21>18,3))))) -> 2 | F21: =IF(G21=19,3,IF(ISBLANK(B21),"",IF(B21=19,0,IF(D21<18,1,IF(D21=18,2,IF(D21>=20,3)))))) -> 2 | L21: =IF(B21>D21,A21&C21,IF(D21>B21,C21&A21,"/")) -> / | N21: =A21&C21 -> AGAH | O21: =E21 -> 2 | P21: =C21&A21 -> AHAG | Q21: =F21 -> 2 | R21: =B21 -> 18 | S21: =D21 -> 18
A23: 2 éme MATCH le | B23: à | C23: AB
G24: SI forfait éq recevante
A25: Equipes | B25: score | C25: Equipes | D25: score | E25: Points | F25: Points
A26: AA | B26: 10 | C26: AC | D26: =IF(G26=19,19,IF(ISBLANK(B26),"",IF(B26=19,0,36-B26))) -> 26 | E26: =IF(G26=19,0,IF(ISBLANK(B26),"",IF(B26<18,1,IF(B26=18,2,IF(B26>18,3))))) -> 1 | F26: =IF(G26=19,3,IF(ISBLANK(B26),"",IF(B26=19,0,IF(D26<18,1,IF(D26=18,2,IF(D26>=20,3)))))) -> 3 | L26: =IF(B26>D26,A26&C26,IF(D26>B26,C26&A26,"/")) -> ACAA | N26: =A26&C26 -> AAAC | O26: =E26 -> 1 | P26: =C26&A26 -> ACAA | Q26: =F26 -> 3 | R26: =B26 -> 10 | S26: =D26 -> 26
A27: AB | B27: 14 | C27: AH | D27: =IF(G27=19,19,IF(ISBLANK(B27),"",IF(B27=19,0,36-B27))) -> 22 | E27: =IF(G27=19,0,IF(ISBLANK(B27),"",IF(B27<18,1,IF(B27=18,2,IF(B27>18,3))))) -> 1 | F27: =IF(G27=19,3,IF(ISBLANK(B27),"",IF(B27=19,0,IF(D27<18,1,IF(D27=18,2,IF(D27>=20,3)))))) -> 3 | L27: =IF(B27>D27,A27&C27,IF(D27>B27,C27&A27,"/")) -> AHAB | N27: =A27&C27 -> ABAH | O27: =E27 -> 1 | P27: =C27&A27 -> AHAB | Q27: =F27 -> 3 | R27: =B27 -> 14 | S27: =D27 -> 22
A28: AD | B28: 18 | C28: AF | D28: =IF(G28=19,19,IF(ISBLANK(B28),"",IF(B28=19,0,36-B28))) -> 18 | E28: =IF(G28=19,0,IF(ISBLANK(B28),"",IF(B28<18,1,IF(B28=18,2,IF(B28>18,3))))) -> 2 | F28: =IF(G28=19,3,IF(ISBLANK(B28),"",IF(B28=19,0,IF(D28<18,1,IF(D28=18,2,IF(D28>=20,3)))))) -> 2 | L28: =IF(B28>D28,A28&C28,IF(D28>B28,C28&A28,"/")) -> / | N28: =A28&C28 -> ADAF | O28: =E28 -> 2 | P28: =C28&A28 -> AFAD | Q28: =F28 -> 2 | R28: =B28 -> 18 | S28: =D28 -> 18
A29: AE | B29: 28 | C29: AG | D29: =IF(G29=19,19,IF(ISBLANK(B29),"",IF(B29=19,0,36-B29))) -> 8 | E29: =IF(G29=19,0,IF(ISBLANK(B29),"",IF(B29<18,1,IF(B29=18,2,IF(B29>18,3))))) -> 3 | F29: =IF(G29=19,3,IF(ISBLANK(B29),"",IF(B29=19,0,IF(D29<18,1,IF(D29=18,2,IF(D29>=20,3)))))) -> 1 | L29: =IF(B29>D29,A29&C29,IF(D29>B29,C29&A29,"/")) -> AEAG | N29: =A29&C29 -> AEAG | O29: =E29 -> 3 | P29: =C29&A29 -> AGAE | Q29: =F29 -> 1 | R29: =B29 -> 28 | S29: =D29 -> 8
A31: 3 éme MATCH le | B31: à | C31: AC
G32: SI forfait éq recevante
A33: Equipes | B33: score | C33: Equipes | D33: score | E33: Points | F33: Points
A34: AA | B34: 20 | C34: AH | D34: =IF(G34=19,19,IF(ISBLANK(B34),"",IF(B34=19,0,36-B34))) -> 16 | E34: =IF(G34=19,0,IF(ISBLANK(B34),"",IF(B34<18,1,IF(B34=18,2,IF(B34>18,3))))) -> 3 | F34: =IF(G34=19,3,IF(ISBLANK(B34),"",IF(B34=19,0,IF(D34<18,1,IF(D34=18,2,IF(D34>=20,3)))))) -> 1 | L34: =IF(B34>D34,A34&C34,IF(D34>B34,C34&A34,"/")) -> AAAH | N34: =A34&C34 -> AAAH | O34: =E34 -> 3 | P34: =C34&A34 -> AHAA | Q34: =F34 -> 1 | R34: =B34 -> 20 | S34: =D34 -> 16
A35: AB | B35: 6 | C35: AE | D35: =IF(G35=19,19,IF(ISBLANK(B35),"",IF(B35=19,0,36-B35))) -> 30 | E35: =IF(G35=19,0,IF(ISBLANK(B35),"",IF(B35<18,1,IF(B35=18,2,IF(B35>18,3))))) -> 1 | F35: =IF(G35=19,3,IF(ISBLANK(B35),"",IF(B35=19,0,IF(D35<18,1,IF(D35=18,2,IF(D35>=20,3)))))) -> 3 | L35: =IF(B35>D35,A35&C35,IF(D35>B35,C35&A35,"/")) -> AEAB | N35: =A35&C35 -> ABAE | O35: =E35 -> 1 | P35: =C35&A35 -> AEAB | Q35: =F35 -> 3 | R35: =B35 -> 6 | S35: =D35 -> 30
A36: AC | B36: 20 | C36: AF | D36: =IF(G36=19,19,IF(ISBLANK(B36),"",IF(B36=19,0,36-B36))) -> 16 | E36: =IF(G36=19,0,IF(ISBLANK(B36),"",IF(B36<18,1,IF(B36=18,2,IF(B36>18,3))))) -> 3 | F36: =IF(G36=19,3,IF(ISBLANK(B36),"",IF(B36=19,0,IF(D36<18,1,IF(D36=18,2,IF(D36>=20,3)))))) -> 1 | L36: =IF(B36>D36,A36&C36,IF(D36>B36,C36&A36,"/")) -> ACAF | N36: =A36&C36 -> ACAF | O36: =E36 -> 3 | P36: =C36&A36 -> AFAC | Q36: =F36 -> 1 | R36: =B36 -> 20 | S36: =D36 -> 16
A37: AD | B37: 18 | C37: AG | D37: =IF(G37=19,19,IF(ISBLANK(B37),"",IF(B37=19,0,36-B37))) -> 18 | E37: =IF(G37=19,0,IF(ISBLANK(B37),"",IF(B37<18,1,IF(B37=18,2,IF(B37>18,3))))) -> 2 | F37: =IF(G37=19,3,IF(ISBLANK(B37),"",IF(B37=19,0,IF(D37<18,1,IF(D37=18,2,IF(D37>=20,3)))))) -> 2 | L37: =IF(B37>D37,A37&C37,IF(D37>B37,C37&A37,"/")) -> / | N37: =A37&C37 -> ADAG | O37: =E37 -> 2 | P37: =C37&A37 -> AGAD | Q37: =F37 -> 2 | R37: =B37 -> 18 | S37: =D37 -> 18
A39: 4 éme MATCH le | B39: à | C39: AD
G40: SI forfait éq recevante
A41: Equipes | B41: score | C41: Equipes | D41: score | E41: Points | F41: Points
A42: AA | B42: 20 | C42: AD | D42: =IF(G42=19,19,IF(ISBLANK(B42),"",IF(B42=19,0,36-B42))) -> 16 | E42: =IF(G42=19,0,IF(ISBLANK(B42),"",IF(B42<18,1,IF(B42=18,2,IF(B42>18,3))))) -> 3 | F42: =IF(G42=19,3,IF(ISBLANK(B42),"",IF(B42=19,0,IF(D42<18,1,IF(D42=18,2,IF(D42>=20,3)))))) -> 1 | L42: =IF(B42>D42,A42&C42,IF(D42>B42,C42&A42,"/")) -> AAAD | N42: =A42&C42 -> AAAD | O42: =E42 -> 3 | P42: =C42&A42 -> ADAA | Q42: =F42 -> 1 | R42: =B42 -> 20 | S42: =D42 -> 16
A43: AF | B43: 10 | C43: AG | D43: =IF(G43=19,19,IF(ISBLANK(B43),"",IF(B43=19,0,36-B43))) -> 26 | E43: =IF(G43=19,0,IF(ISBLANK(B43),"",IF(B43<18,1,IF(B43=18,2,IF(B43>18,3))))) -> 1 | F43: =IF(G43=19,3,IF(ISBLANK(B43),"",IF(B43=19,0,IF(D43<18,1,IF(D43=18,2,IF(D43>=20,3)))))) -> 3 | L43: =IF(B43>D43,A43&C43,IF(D43>B43,C43&A43,"/")) -> AGAF | N43: =A43&C43 -> AFAG | O43: =E43 -> 1 | P43: =C43&A43 -> AGAF | Q43: =F43 -> 3 | R43: =B43 -> 10 | S43: =D43 -> 26
A44: AB | B44: 32 | C44: AC | D44: =IF(G44=19,19,IF(ISBLANK(B44),"",IF(B44=19,0,36-B44))) -> 4 | E44: =IF(G44=19,0,IF(ISBLANK(B44),"",IF(B44<18,1,IF(B44=18,2,IF(B44>18,3))))) -> 3 | F44: =IF(G44=19,3,IF(ISBLANK(B44),"",IF(B44=19,0,IF(D44<18,1,IF(D44=18,2,IF(D44>=20,3)))))) -> 1 | L44: =IF(B44>D44,A44&C44,IF(D44>B44,C44&A44,"/")) -> ABAC | N44: =A44&C44 -> ABAC | O44: =E44 -> 3 | P44: =C44&A44 -> ACAB | Q44: =F44 -> 1 | R44: =B44 -> 32 | S44: =D44 -> 4
A45: AE | B45: 20 | C45: AH | D45: =IF(G45=19,19,IF(ISBLANK(B45),"",IF(B45=19,0,36-B45))) -> 16 | E45: =IF(G45=19,0,IF(ISBLANK(B45),"",IF(B45<18,1,IF(B45=18,2,IF(B45>18,3))))) -> 3 | F45: =IF(G45=19,3,IF(ISBLANK(B45),"",IF(B45=19,0,IF(D45<18,1,IF(D45=18,2,IF(D45>=20,3)))))) -> 1 | L45: =IF(B45>D45,A45&C45,IF(D45>B45,C45&A45,"/")) -> AEAH | N45: =A45&C45 -> AEAH | O45: =E45 -> 3 | P45: =C45&A45 -> AHAE | Q45: =F45 -> 1 | R45: =B45 -> 20 | S45: =D45 -> 16
A47: 5 éme MATCH le | B47: à | C47: AE
G48: SI forfait éq recevante
A49: Equipes | B49: score | C49: Equipes | D49: score | E49: Points | F49: Points
A50: AA | B50: 18 | C50: AF | D50: =IF(G50=19,19,IF(ISBLANK(B50),"",IF(B50=19,0,36-B50))) -> 18 | E50: =IF(G50=19,0,IF(ISBLANK(B50),"",IF(B50<18,1,IF(B50=18,2,IF(B50>18,3))))) -> 2 | F50: =IF(G50=19,3,IF(ISBLANK(B50),"",IF(B50=19,0,IF(D50<18,1,IF(D50=18,2,IF(D50>=20,3)))))) -> 2 | L50: =IF(B50>D50,A50&C50,IF(D50>B50,C50&A50,"/")) -> / | N50: =A50&C50 -> AAAF | O50: =E50 -> 2 | P50: =C50&A50 -> AFAA | Q50: =F50 -> 2 | R50: =B50 -> 18 | S50: =D50 -> 18
A51: AD | B51: 18 | C51: AH | D51: =IF(G51=19,19,IF(ISBLANK(B51),"",IF(B51=19,0,36-B51))) -> 18 | E51: =IF(G51=19,0,IF(ISBLANK(B51),"",IF(B51<18,1,IF(B51=18,2,IF(B51>18,3))))) -> 2 | F51: =IF(G51=19,3,IF(ISBLANK(B51),"",IF(B51=19,0,IF(D51<18,1,IF(D51=18,2,IF(D51>=20,3)))))) -> 2 | L51: =IF(B51>D51,A51&C51,IF(D51>B51,C51&A51,"/")) -> / | N51: =A51&C51 -> ADAH | O51: =E51 -> 2 | P51: =C51&A51 -> AHAD | Q51: =F51 -> 2 | R51: =B51 -> 18 | S51: =D51 -> 18
A52: AB | B52: 4 | C52: AG | D52: =IF(G52=19,19,IF(ISBLANK(B52),"",IF(B52=19,0,36-B52))) -> 32 | E52: =IF(G52=19,0,IF(ISBLANK(B52),"",IF(B52<18,1,IF(B52=18,2,IF(B52>18,3))))) -> 1 | F52: =IF(G52=19,3,IF(ISBLANK(B52),"",IF(B52=19,0,IF(D52<18,1,IF(D52=18,2,IF(D52>=20,3)))))) -> 3 | L52: =IF(B52>D52,A52&C52,IF(D52>B52,C52&A52,"/")) -> AGAB | N52: =A52&C52 -> ABAG | O52: =E52 -> 1 | P52: =C52&A52 -> AGAB | Q52: =F52 -> 3 | R52: =B52 -> 4 | S52: =D52 -> 32
A53: AC | B53: 20 | C53: AE | D53: =IF(G53=19,19,IF(ISBLANK(B53),"",IF(B53=19,0,36-B53))) -> 16 | E53: =IF(G53=19,0,IF(ISBLANK(B53),"",IF(B53<18,1,IF(B53=18,2,IF(B53>18,3))))) -> 3 | F53: =IF(G53=19,3,IF(ISBLANK(B53),"",IF(B53=19,0,IF(D53<18,1,IF(D53=18,2,IF(D53>=20,3)))))) -> 1 | L53: =IF(B53>D53,A53&C53,IF(D53>B53,C53&A53,"/")) -> ACAE | N53: =A53&C53 -> ACAE | O53: =E53 -> 3 | P53: =C53&A53 -> AEAC | Q53: =F53 -> 1 | R53: =B53 -> 20 | S53: =D53 -> 16
A55: 6 éme MATCH le | B55: à | C55: AF
G56: SI forfait éq recevante
A57: Equipes | B57: score | C57: Equipes | D57: score | E57: Points | F57: Points
A58: AB | B58: 30 | C58: AD | D58: =IF(G58=19,19,IF(ISBLANK(B58),"",IF(B58=19,0,36-B58))) -> 6 | E58: =IF(G58=19,0,IF(ISBLANK(B58),"",IF(B58<18,1,IF(B58=18,2,IF(B58>18,3))))) -> 3 | F58: =IF(G58=19,3,IF(ISBLANK(B58),"",IF(B58=19,0,IF(D58<18,1,IF(D58=18,2,IF(D58>=20,3)))))) -> 1 | L58: =IF(B58>D58,A58&C58,IF(D58>B58,C58&A58,"/")) -> ABAD | N58: =A58&C58 -> ABAD | O58: =E58 -> 3 | P58: =C58&A58 -> ADAB | Q58: =F58 -> 1 | R58: =B58 -> 30 | S58: =D58 -> 6
A59: AE | B59: 24 | C59: AA | D59: =IF(G59=19,19,IF(ISBLANK(B59),"",IF(B59=19,0,36-B59))) -> 12 | E59: =IF(G59=19,0,IF(ISBLANK(B59),"",IF(B59<18,1,IF(B59=18,2,IF(B59>18,3))))) -> 3 | F59: =IF(G59=19,3,IF(ISBLANK(B59),"",IF(B59=19,0,IF(D59<18,1,IF(D59=18,2,IF(D59>=20,3)))))) -> 1 | L59: =IF(B59>D59,A59&C59,IF(D59>B59,C59&A59,"/")) -> AEAA | N59: =A59&C59 -> AEAA | O59: =E59 -> 3 | P59: =C59&A59 -> AAAE | Q59: =F59 -> 1 | R59: =B59 -> 24 | S59: =D59 -> 12
A60: AG | B60: 32 | C60: AC | D60: =IF(G60=19,19,IF(ISBLANK(B60),"",IF(B60=19,0,36-B60))) -> 4 | E60: =IF(G60=19,0,IF(ISBLANK(B60),"",IF(B60<18,1,IF(B60=18,2,IF(B60>18,3))))) -> 3 | F60: =IF(G60=19,3,IF(ISBLANK(B60),"",IF(B60=19,0,IF(D60<18,1,IF(D60=18,2,IF(D60>=20,3)))))) -> 1 | L60: =IF(B60>D60,A60&C60,IF(D60>B60,C60&A60,"/")) -> AGAC | N60: =A60&C60 -> AGAC | O60: =E60 -> 3 | P60: =C60&A60 -> ACAG | Q60: =F60 -> 1 | R60: =B60 -> 32 | S60: =D60 -> 4
A61: AF | B61: 22 | C61: AH | D61: =IF(G61=19,19,IF(ISBLANK(B61),"",IF(B61=19,0,36-B61))) -> 14 | E61: =IF(G61=19,0,IF(ISBLANK(B61),"",IF(B61<18,1,IF(B61=18,2,IF(B61>18,3))))) -> 3 | F61: =IF(G61=19,3,IF(ISBLANK(B61),"",IF(B61=19,0,IF(D61<18,1,IF(D61=18,2,IF(D61>=20,3)))))) -> 1 | L61: =IF(B61>D61,A61&C61,IF(D61>B61,C61&A61,"/")) -> AFAH | N61: =A61&C61 -> AFAH | O61: =E61 -> 3 | P61: =C61&A61 -> AHAF | Q61: =F61 -> 1 | R61: =B61 -> 22 | S61: =D61 -> 14
A63: 7 éme MATCH le | B63: à | C63: AG
G64: SI forfait éq recevante
A65: Equipes | B65: score | C65: Equipes | D65: score | E65: Points | F65: Points
A66: AA | B66: 20 | C66: AG | D66: =IF(G66=19,19,IF(ISBLANK(B66),"",IF(B66=19,0,36-B66))) -> 16 | E66: =IF(G66=19,0,IF(ISBLANK(B66),"",IF(B66<18,1,IF(B66=18,2,IF(B66>18,3))))) -> 3 | F66: =IF(G66=19,3,IF(ISBLANK(B66),"",IF(B66=19,0,IF(D66<18,1,IF(D66=18,2,IF(D66>=20,3)))))) -> 1 | L66: =IF(B66>D66,A66&C66,IF(D66>B66,C66&A66,"/")) -> AAAG | N66: =A66&C66 -> AAAG | O66: =E66 -> 3 | P66: =C66&A66 -> AGAA | Q66: =F66 -> 1 | R66: =B66 -> 20 | S66: =D66 -> 16
A67: AB | B67: 12 | C67: AF | D67: =IF(G67=19,19,IF(ISBLANK(B67),"",IF(B67=19,0,36-B67))) -> 24 | E67: =IF(G67=19,0,IF(ISBLANK(B67),"",IF(B67<18,1,IF(B67=18,2,IF(B67>18,3))))) -> 1 | F67: =IF(G67=19,3,IF(ISBLANK(B67),"",IF(B67=19,0,IF(D67<18,1,IF(D67=18,2,IF(D67>=20,3)))))) -> 3 | L67: =IF(B67>D67,A67&C67,IF(D67>B67,C67&A67,"/")) -> AFAB | N67: =A67&C67 -> ABAF | O67: =E67 -> 1 | P67: =C67&A67 -> AFAB | Q67: =F67 -> 3 | R67: =B67 -> 12 | S67: =D67 -> 24
A68: AE | B68: 18 | C68: AD | D68: =IF(G68=19,19,IF(ISBLANK(B68),"",IF(B68=19,0,36-B68))) -> 18 | E68: =IF(G68=19,0,IF(ISBLANK(B68),"",IF(B68<18,1,IF(B68=18,2,IF(B68>18,3))))) -> 2 | F68: =IF(G68=19,3,IF(ISBLANK(B68),"",IF(B68=19,0,IF(D68<18,1,IF(D68=18,2,IF(D68>=20,3)))))) -> 2 | L68: =IF(B68>D68,A68&C68,IF(D68>B68,C68&A68,"/")) -> / | N68: =A68&C68 -> AEAD | O68: =E68 -> 2 | P68: =C68&A68 -> ADAE | Q68: =F68 -> 2 | R68: =B68 -> 18 | S68: =D68 -> 18
A69: AC | B69: 18 | C69: AH | D69: =IF(G69=19,19,IF(ISBLANK(B69),"",IF(B69=19,0,36-B69))) -> 18 | E69: =IF(G69=19,0,IF(ISBLANK(B69),"",IF(B69<18,1,IF(B69=18,2,IF(B69>18,3))))) -> 2 | F69: =IF(G69=19,3,IF(ISBLANK(B69),"",IF(B69=19,0,IF(D69<18,1,IF(D69=18,2,IF(D69>=20,3)))))) -> 2 | L69: =IF(B69>D69,A69&C69,IF(D69>B69,C69&A69,"/")) -> / | N69: =A69&C69 -> ACAH | O69: =E69 -> 2 | P69: =C69&A69 -> AHAC | Q69: =F69 -> 2 | R69: =B69 -> 18 | S69: =D69 -> 18
C70: Si pas d'exaequo | G70: Classt Final | H70: Rencontres entre exaequos
A71: EQUIPES | C71: POINTS | D71: POUR | E71: CONTRE | F71: DIFF | H71: POINTS Exaequos | I71: Exaq | J71: n° | K71: AA | L71: AB | M71: AC | N71: AD | O71: AE | P71: AF | Q71: AG | R71: AH | S71: Pts matchs | W71: 1000000*Pts matchs +1000 (Diff + abs(diff mini) )+Pour | X71: RANG | Y71: DIFF Exaequos | Z71: POUR Exaequos
A72: AE | B72: 1E | C72: 18 | D72: 158 | E72: 94 | F72: 64 | G72: 1 | H72: =IF(S72>0,S72,"") ->  | I72: =COUNTIF($C$72:$C$79,C72) -> 1 | J72: =IF(AND(I72>1,COUNTIFS(I$72:I72,I72,C$72:C72,C72)=1),MAX(J$71:J71)+1,"") ->  | K72: =IF($A72=K$71,"",IF(INDEX($C$72:$C$79,MATCH(K$71,$A$72:$A$79,0))=$C72,IFERROR(VLOOKUP($A72&K$71,$N$18:$O$69,2,0), VLOOKUP(K$71&$A72,$N$18:$Q$69,4,0)), "")) ->  | S72: =SUM(K72:R72) -> 0 | W72: =IF(I72<3,S72*1000000+(F72+ABS(MIN($F$72:$F$79)))*1000+D72,S72*1000000+U96*1000+Z72) -> 116158 | X72: =IF(I72>2,RANK(W72,OFFSET(W$71,MATCH(I72,$I$72:$I$79,0),,I72))) -> FALSE | Y72: =IF(S96=0,"",S96) ->  | Z72: =IF(S80=0,"",S80) -> 
A73: AC | B73: 1C | C73: 16 | D73: 122 | E73: 130 | F73: -8 | G73: 2 | H73: 3 | I73: 2 | J73: =IF(AND(I73>1,COUNTIFS(I$72:I73,I73,C$72:C73,C73)=1),MAX(J$71:J72)+1,"") -> 1 | K73: 3 | S73: =SUM(K73:R73) -> 3 | W73: =IF(I73<3,S73*1000000+(F73+ABS(MIN($F$72:$F$79)))*1000+D73,S73*1000000+U97*1000+Z73) -> 3044122 | X73: =IF(I73>2,RANK(W73,OFFSET(W$71,MATCH(I73,$I$72:$I$79,0),,I73))) -> FALSE | Y73: 16 | Z73: 26
A74: AA | B74: 1A | C74: 16 | D74: 120 | E74: 132 | F74: -12 | G74: 3 | H74: 1 | I74: 2 | J74: =IF(AND(I74>1,COUNTIFS(I$72:I74,I74,C$72:C74,C74)=1),MAX(J$71:J73)+1,"") ->  | M74: 1 | S74: 1 | W74: 1040120 | X74: FALSE | Y74: -16 | Z74: 10
A75: AG | B75: 1G | C75: 15 | D75: 150 | E75: 102 | F75: 48 | G75: 4 | I75: 1 | J75: =IF(AND(I75>1,COUNTIFS(I$72:I75,I75,C$72:C75,C75)=1),MAX(J$71:J74)+1,"") ->  | S75: 0 | W75: 100150 | X75: FALSE
A76: AF | B76: 1F | C76: 13 | D76: 122 | E76: 130 | F76: -8 | G76: 5 | I76: 1 | J76: =IF(AND(I76>1,COUNTIFS(I$72:I76,I76,C$72:C76,C76)=1),MAX(J$71:J75)+1,"") ->  | S76: 0 | W76: 44122 | X76: FALSE
A77: AH | B77: 1H | C77: 12 | D77: 122 | E77: 130 | F77: -8 | G77: 6 | I77: 1 | J77: =IF(AND(I77>1,COUNTIFS(I$72:I77,I77,C$72:C77,C77)=1),MAX(J$71:J76)+1,"") ->  | S77: 0 | W77: 44122 | X77: FALSE
A78: AB | B78: 1B | C78: 11 | D78: 114 | E78: 138 | F78: -24 | G78: 7 | H78: 3 | I78: 2 | J78: =IF(AND(I78>1,COUNTIFS(I$72:I78,I78,C$72:C78,C78)=1),MAX(J$71:J77)+1,"") -> 2 | N78: 3 | S78: 3 | W78: 3028114 | X78: FALSE | Y78: 24 | Z78: 30
A79: AD | B79: 1D | C79: 11 | D79: 100 | E79: 152 | F79: -52 | G79: 8 | H79: 1 | I79: 2 | J79: =IF(AND(I79>1,COUNTIFS(I$72:I79,I79,C$72:C79,C79)=1),MAX(J$71:J78)+1,"") ->  | L79: 1 | S79: 1 | W79: 1000100 | X79: FALSE | Y79: -24 | Z79: 6
I80: POUR | J80: =A72 -> AE | K80: =IF($A72=K$71,"",IF(INDEX($C$72:$C$79,MATCH(K$71,$A$72:$A$79,0))=$C72,IFERROR(VLOOKUP($A72&K$71,$N$18:$R$69,5,0), VLOOKUP(K$71&$A72,$N$18:$S$69,6,0)), "")) ->  | S80: 0
J81: AC | K81: 26 | S81: 26
J82: AA | M82: 10 | S82: 10
J83: AG | S83: 0
J84: AF | S84: 0
J85: AH | S85: 0
J86: AB | N86: 30 | S86: 30
J87: AD | L87: 6 | S87: 6
I88: CONTRE | J88: =J80 -> AE | K88: =INDEX($K$80:$R$87,MATCH(K$71,$J$80:$J$87,0),MATCH($J80,$K$71:$R$71,0)) ->  | L88: =INDEX($K$80:$R$87,MATCH(L$71,$J$80:$J$87,0),MATCH($J80,$K$71:$R$71,0)) ->  | S88: 0
J89: =J81 -> AC | K89: =INDEX($K$80:$R$87,MATCH(K$71,$J$80:$J$87,0),MATCH($J81,$K$71:$R$71,0)) -> 10 | S89: 10
J90: AA | M90: 26 | S90: 26
J91: AG | S91: 0
J92: AF | S92: 0
J93: AH | S93: 0
J94: AB | N94: 6 | S94: 6
J95: AD | L95: 30 | S95: 30 | U95: Diff pondérée
I96: DIFF | J96: =J88 -> AE | S96: =S80-S88 -> 0 | U96: =S96+ABS(MIN($S$96:$S$103)) -> 24
J97: =J89 -> AC | S97: =S81-S89 -> 16 | U97: 40
J98: AA | S98: -16 | U98: 8
J99: AG | S99: 0 | U99: 24
J100: AF | S100: 0 | U100: 24
J101: AH | S101: 0 | U101: 24
J102: AB | S102: 24 | U102: =S102+ABS(MIN($S$96:$S$103)) -> 48
J103: AD | S103: -24 | U103: =S103+ABS(MIN($S$96:$S$103)) -> 0

Sheet P6
G1: 3
A2: CHAMPIONNAT DES CLUBS
A4: POULE 1
A5: EQUIPES | C5: POINTS | D5: Pour | E5: Contre | F5: Diff
A6: AA | B6: 1A | C6: =SUMIF($A$18:$A$69,A6,$E$18:$E$69)+SUMIF($C$18:$C$69,A6,$F$18:$F$69) -> 17 | D6: =SUMIF($A$18:$A$69,$A6,$B$18:$B$69)+SUMIF($C$18:$C$69,$A6,$D$18:$D$69) -> 134 | E6: =SUMIF($C$18:$C$69,$A6,$B$18:$B$69)+SUMIF($A$18:$A$69,$A6,$D$18:$D$69) -> 118 | F6: =D6-E6 -> 16
A7: AB | B7: 1B | C7: =SUMIF($A$18:$A$69,A7,$E$18:$E$69)+SUMIF($C$18:$C$69,A7,$F$18:$F$69) -> 15 | D7: =SUMIF($A$18:$A$69,$A7,$B$18:$B$69)+SUMIF($C$18:$C$69,$A7,$D$18:$D$69) -> 142 | E7: =SUMIF($C$18:$C$69,$A7,$B$18:$B$69)+SUMIF($A$18:$A$69,$A7,$D$18:$D$69) -> 110 | F7: 32
A8: AC | B8: 1C | C8: =SUMIF($A$18:$A$69,A8,$E$18:$E$69)+SUMIF($C$18:$C$69,A8,$F$18:$F$69) -> 15 | D8: 122 | E8: 130 | F8: -8
A9: AD | B9: 1D | C9: 11 | D9: 110 | E9: 142 | F9: -32
A10: AE | B10: 1E | C10: 14 | D10: 128 | E10: 124 | F10: 4
A11: AF | B11: 1F | C11: 17 | D11: 136 | E11: 116 | F11: 20
A12: AG | B12: 1G | C12: 14 | D12: 136 | E12: 116 | F12: =D12-E12 -> 20
A13: AH | B13: 1H | C13: 9 | D13: =SUMIF($A$18:$A$69,$A13,$B$18:$B$69)+SUMIF($C$18:$C$69,$A13,$D$18:$D$69) -> 100 | E13: 152 | F13: =D13-E13 -> -52
A15: 1er MATCH le | B15: à | C15: AA
G16: SI forfait éq recevante
A17: Equipes | B17: score | C17: Equipes | D17: score | E17: Points | F17: Points
A18: AA | B18: 26 | C18: AB | D18: =IF(G18=19,19,IF(ISBLANK(B18),"",IF(B18=19,0,36-B18))) -> 10 | E18: =IF(G18=19,0,IF(ISBLANK(B18),"",IF(B18<18,1,IF(B18=18,2,IF(B18>18,3))))) -> 3 | F18: =IF(G18=19,3,IF(ISBLANK(B18),"",IF(B18=19,0,IF(D18<18,1,IF(D18=18,2,IF(D18>=20,3)))))) -> 1 | L18: =IF(B18>D18,A18&C18,IF(D18>B18,C18&A18,"/")) -> AAAB | N18: =A18&C18 -> AAAB | O18: =E18 -> 3 | P18: =C18&A18 -> ABAA | Q18: =F18 -> 1 | R18: =B18 -> 26 | S18: =D18 -> 10
A19: AC | B19: 30 | C19: AD | D19: =IF(G19=19,19,IF(ISBLANK(B19),"",IF(B19=19,0,36-B19))) -> 6 | E19: =IF(G19=19,0,IF(ISBLANK(B19),"",IF(B19<18,1,IF(B19=18,2,IF(B19>18,3))))) -> 3 | F19: =IF(G19=19,3,IF(ISBLANK(B19),"",IF(B19=19,0,IF(D19<18,1,IF(D19=18,2,IF(D19>=20,3)))))) -> 1 | L19: =IF(B19>D19,A19&C19,IF(D19>B19,C19&A19,"/")) -> ACAD | N19: =A19&C19 -> ACAD | O19: =E19 -> 3 | P19: =C19&A19 -> ADAC | Q19: =F19 -> 1 | R19: =B19 -> 30 | S19: =D19 -> 6
A20: AE | B20: 16 | C20: AF | D20: =IF(G20=19,19,IF(ISBLANK(B20),"",IF(B20=19,0,36-B20))) -> 20 | E20: =IF(G20=19,0,IF(ISBLANK(B20),"",IF(B20<18,1,IF(B20=18,2,IF(B20>18,3))))) -> 1 | F20: =IF(G20=19,3,IF(ISBLANK(B20),"",IF(B20=19,0,IF(D20<18,1,IF(D20=18,2,IF(D20>=20,3)))))) -> 3 | L20: =IF(B20>D20,A20&C20,IF(D20>B20,C20&A20,"/")) -> AFAE | N20: =A20&C20 -> AEAF | O20: =E20 -> 1 | P20: =C20&A20 -> AFAE | Q20: =F20 -> 3 | R20: =B20 -> 16 | S20: =D20 -> 20
A21: AG | B21: 18 | C21: AH | D21: =IF(G21=19,19,IF(ISBLANK(B21),"",IF(B21=19,0,36-B21))) -> 18 | E21: =IF(G21=19,0,IF(ISBLANK(B21),"",IF(B21<18,1,IF(B21=18,2,IF(B21>18,3))))) -> 2 | F21: =IF(G21=19,3,IF(ISBLANK(B21),"",IF(B21=19,0,IF(D21<18,1,IF(D21=18,2,IF(D21>=20,3)))))) -> 2 | L21: =IF(B21>D21,A21&C21,IF(D21>B21,C21&A21,"/")) -> / | N21: =A21&C21 -> AGAH | O21: =E21 -> 2 | P21: =C21&A21 -> AHAG | Q21: =F21 -> 2 | R21: =B21 -> 18 | S21: =D21 -> 18
A23: 2 éme MATCH le | B23: à | C23: AB
G24: SI forfait éq recevante
A25: Equipes | B25: score | C25: Equipes | D25: score | E25: Points | F25: Points
A26: AA | B26: 22 | C26: AC | D26: =IF(G26=19,19,IF(ISBLANK(B26),"",IF(B26=19,0,36-B26))) -> 14 | E26: =IF(G26=19,0,IF(ISBLANK(B26),"",IF(B26<18,1,IF(B26=18,2,IF(B26>18,3))))) -> 3 | F26: =IF(G26=19,3,IF(ISBLANK(B26),"",IF(B26=19,0,IF(D26<18,1,IF(D26=18,2,IF(D26>=20,3)))))) -> 1 | L26: =IF(B26>D26,A26&C26,IF(D26>B26,C26&A26,"/")) -> AAAC | N26: =A26&C26 -> AAAC | O26: =E26 -> 3 | P26: =C26&A26 -> ACAA | Q26: =F26 -> 1 | R26: =B26 -> 22 | S26: =D26 -> 14
A27: AB | B27: 24 | C27: AH | D27: =IF(G27=19,19,IF(ISBLANK(B27),"",IF(B27=19,0,36-B27))) -> 12 | E27: =IF(G27=19,0,IF(ISBLANK(B27),"",IF(B27<18,1,IF(B27=18,2,IF(B27>18,3))))) -> 3 | F27: =IF(G27=19,3,IF(ISBLANK(B27),"",IF(B27=19,0,IF(D27<18,1,IF(D27=18,2,IF(D27>=20,3)))))) -> 1 | L27: =IF(B27>D27,A27&C27,IF(D27>B27,C27&A27,"/")) -> ABAH | N27: =A27&C27 -> ABAH | O27: =E27 -> 3 | P27: =C27&A27 -> AHAB | Q27: =F27 -> 1 | R27: =B27 -> 24 | S27: =D27 -> 12
A28: AD | B28: 14 | C28: AF | D28: =IF(G28=19,19,IF(ISBLANK(B28),"",IF(B28=19,0,36-B28))) -> 22 | E28: =IF(G28=19,0,IF(ISBLANK(B28),"",IF(B28<18,1,IF(B28=18,2,IF(B28>18,3))))) -> 1 | F28: =IF(G28=19,3,IF(ISBLANK(B28),"",IF(B28=19,0,IF(D28<18,1,IF(D28=18,2,IF(D28>=20,3)))))) -> 3 | L28: =IF(B28>D28,A28&C28,IF(D28>B28,C28&A28,"/")) -> AFAD | N28: =A28&C28 -> ADAF | O28: =E28 -> 1 | P28: =C28&A28 -> AFAD | Q28: =F28 -> 3 | R28: =B28 -> 14 | S28: =D28 -> 22
A29: AE | B29: 28 | C29: AG | D29: =IF(G29=19,19,IF(ISBLANK(B29),"",IF(B29=19,0,36-B29))) -> 8 | E29: =IF(G29=19,0,IF(ISBLANK(B29),"",IF(B29<18,1,IF(B29=18,2,IF(B29>18,3))))) -> 3 | F29: =IF(G29=19,3,IF(ISBLANK(B29),"",IF(B29=19,0,IF(D29<18,1,IF(D29=18,2,IF(D29>=20,3)))))) -> 1 | L29: =IF(B29>D29,A29&C29,IF(D29>B29,C29&A29,"/")) -> AEAG | N29: =A29&C29 -> AEAG | O29: =E29 -> 3 | P29: =C29&A29 -> AGAE | Q29: =F29 -> 1 | R29: =B29 -> 28 | S29: =D29 -> 8
A31: 3 éme MATCH le | B31: à | C31: AC
G32: SI forfait éq recevante
A33: Equipes | B33: score | C33: Equipes | D33: score | E33: Points | F33: Points
A34: AA | B34: 20 | C34: AH | D34: =IF(G34=19,19,IF(ISBLANK(B34),"",IF(B34=19,0,36-B34))) -> 16 | E34: =IF(G34=19,0,IF(ISBLANK(B34),"",IF(B34<18,1,IF(B34=18,2,IF(B34>18,3))))) -> 3 | F34: =IF(G34=19,3,IF(ISBLANK(B34),"",IF(B34=19,0,IF(D34<18,1,IF(D34=18,2,IF(D34>=20,3)))))) -> 1 | L34: =IF(B34>D34,A34&C34,IF(D34>B34,C34&A34,"/")) -> AAAH | N34: =A34&C34 -> AAAH | O34: =E34 -> 3 | P34: =C34&A34 -> AHAA | Q34: =F34 -> 1 | R34: =B34 -> 20 | S34: =D34 -> 16
A35: AB | B35: 30 | C35: AE | D35: =IF(G35=19,19,IF(ISBLANK(B35),"",IF(B35=19,0,36-B35))) -> 6 | E35: =IF(G35=19,0,IF(ISBLANK(B35),"",IF(B35<18,1,IF(B35=18,2,IF(B35>18,3))))) -> 3 | F35: =IF(G35=19,3,IF(ISBLANK(B35),"",IF(B35=19,0,IF(D35<18,1,IF(D35=18,2,IF(D35>=20,3)))))) -> 1 | L35: =IF(B35>D35,A35&C35,IF(D35>B35,C35&A35,"/")) -> ABAE | N35: =A35&C35 -> ABAE | O35: =E35 -> 3 | P35: =C35&A35 -> AEAB | Q35: =F35 -> 1 | R35: =B35 -> 30 | S35: =D35 -> 6
A36: AC | B36: 20 | C36: AF | D36: =IF(G36=19,19,IF(ISBLANK(B36),"",IF(B36=19,0,36-B36))) -> 16 | E36: =IF(G36=19,0,IF(ISBLANK(B36),"",IF(B36<18,1,IF(B36=18,2,IF(B36>18,3))))) -> 3 | F36: =IF(G36=19,3,IF(ISBLANK(B36),"",IF(B36=19,0,IF(D36<18,1,IF(D36=18,2,IF(D36>=20,3)))))) -> 1 | L36: =IF(B36>D36,A36&C36,IF(D36>B36,C36&A36,"/")) -> ACAF | N36: =A36&C36 -> ACAF | O36: =E36 -> 3 | P36: =C36&A36 -> AFAC | Q36: =F36 -> 1 | R36: =B36 -> 20 | S36: =D36 -> 16
A37: AD | B37: 32 | C37: AG | D37: =IF(G37=19,19,IF(ISBLANK(B37),"",IF(B37=19,0,36-B37))) -> 4 | E37: =IF(G37=19,0,IF(ISBLANK(B37),"",IF(B37<18,1,IF(B37=18,2,IF(B37>18,3))))) -> 3 | F37: =IF(G37=19,3,IF(ISBLANK(B37),"",IF(B37=19,0,IF(D37<18,1,IF(D37=18,2,IF(D37>=20,3)))))) -> 1 | L37: =IF(B37>D37,A37&C37,IF(D37>B37,C37&A37,"/")) -> ADAG | N37: =A37&C37 -> ADAG | O37: =E37 -> 3 | P37: =C37&A37 -> AGAD | Q37: =F37 -> 1 | R37: =B37 -> 32 | S37: =D37 -> 4
A39: 4 éme MATCH le | B39: à | C39: AD
G40: SI forfait éq recevante
A41: Equipes | B41: score | C41: Equipes | D41: score | E41: Points | F41: Points
A42: AA | B42: 20 | C42: AD | D42: =IF(G42=19,19,IF(ISBLANK(B42),"",IF(B42=19,0,36-B42))) -> 16 | E42: =IF(G42=19,0,IF(ISBLANK(B42),"",IF(B42<18,1,IF(B42=18,2,IF(B42>18,3))))) -> 3 | F42: =IF(G42=19,3,IF(ISBLANK(B42),"",IF(B42=19,0,IF(D42<18,1,IF(D42=18,2,IF(D42>=20,3)))))) -> 1 | L42: =IF(B42>D42,A42&C42,IF(D42>B42,C42&A42,"/")) -> AAAD | N42: =A42&C42 -> AAAD | O42: =E42 -> 3 | P42: =C42&A42 -> ADAA | Q42: =F42 -> 1 | R42: =B42 -> 20 | S42: =D42 -> 16
A43: AF | B43: 10 | C43: AG | D43: =IF(G43=19,19,IF(ISBLANK(B43),"",IF(B43=19,0,36-B43))) -> 26 | E43: =IF(G43=19,0,IF(ISBLANK(B43),"",IF(B43<18,1,IF(B43=18,2,IF(B43>18,3))))) -> 1 | F43: =IF(G43=19,3,IF(ISBLANK(B43),"",IF(B43=19,0,IF(D43<18,1,IF(D43=18,2,IF(D43>=20,3)))))) -> 3 | L43: =IF(B43>D43,A43&C43,IF(D43>B43,C43&A43,"/")) -> AGAF | N43: =A43&C43 -> AFAG | O43: =E43 -> 1 | P43: =C43&A43 -> AGAF | Q43: =F43 -> 3 | R43: =B43 -> 10 | S43: =D43 -> 26
A44: AB | B44: 32 | C44: AC | D44: =IF(G44=19,19,IF(ISBLANK(B44),"",IF(B44=19,0,36-B44))) -> 4 | E44: =IF(G44=19,0,IF(ISBLANK(B44),"",IF(B44<18,1,IF(B44=18,2,IF(B44>18,3))))) -> 3 | F44: =IF(G44=19,3,IF(ISBLANK(B44),"",IF(B44=19,0,IF(D44<18,1,IF(D44=18,2,IF(D44>=20,3)))))) -> 1 | L44: =IF(B44>D44,A44&C44,IF(D44>B44,C44&A44,"/")) -> ABAC | N44: =A44&C44 -> ABAC | O44: =E44 -> 3 | P44: =C44&A44 -> ACAB | Q44: =F44 -> 1 | R44: =B44 -> 32 | S44: =D44 -> 4
A45: AE | B45: 20 | C45: AH | D45: =IF(G45=19,19,IF(ISBLANK(B45),"",IF(B45=19,0,36-B45))) -> 16 | E45: =IF(G45=19,0,IF(ISBLANK(B45),"",IF(B45<18,1,IF(B45=18,2,IF(B45>18,3))))) -> 3 | F45: =IF(G45=19,3,IF(ISBLANK(B45),"",IF(B45=19,0,IF(D45<18,1,IF(D45=18,2,IF(D45>=20,3)))))) -> 1 | L45: =IF(B45>D45,A45&C45,IF(D45>B45,C45&A45,"/")) -> AEAH | N45: =A45&C45 -> AEAH | O45: =E45 -> 3 | P45: =C45&A45 -> AHAE | Q45: =F45 -> 1 | R45: =B45 -> 20 | S45: =D45 -> 16
A47: 5 éme MATCH le | B47: à | C47: AE
G48: SI forfait éq recevante
A49: Equipes | B49: score | C49: Equipes | D49: score | E49: Points | F49: Points
A50: AA | B50: 14 | C50: AF | D50: =IF(G50=19,19,IF(ISBLANK(B50),"",IF(B50=19,0,36-B50))) -> 22 | E50: =IF(G50=19,0,IF(ISBLANK(B50),"",IF(B50<18,1,IF(B50=18,2,IF(B50>18,3))))) -> 1 | F50: =IF(G50=19,3,IF(ISBLANK(B50),"",IF(B50=19,0,IF(D50<18,1,IF(D50=18,2,IF(D50>=20,3)))))) -> 3 | L50: =IF(B50>D50,A50&C50,IF(D50>B50,C50&A50,"/")) -> AFAA | N50: =A50&C50 -> AAAF | O50: =E50 -> 1 | P50: =C50&A50 -> AFAA | Q50: =F50 -> 3 | R50: =B50 -> 14 | S50: =D50 -> 22
A51: AD | B51: 18 | C51: AH | D51: =IF(G51=19,19,IF(ISBLANK(B51),"",IF(B51=19,0,36-B51))) -> 18 | E51: =IF(G51=19,0,IF(ISBLANK(B51),"",IF(B51<18,1,IF(B51=18,2,IF(B51>18,3))))) -> 2 | F51: =IF(G51=19,3,IF(ISBLANK(B51),"",IF(B51=19,0,IF(D51<18,1,IF(D51=18,2,IF(D51>=20,3)))))) -> 2 | L51: =IF(B51>D51,A51&C51,IF(D51>B51,C51&A51,"/")) -> / | N51: =A51&C51 -> ADAH | O51: =E51 -> 2 | P51: =C51&A51 -> AHAD | Q51: =F51 -> 2 | R51: =B51 -> 18 | S51: =D51 -> 18
A52: AB | B52: 4 | C52: AG | D52: =IF(G52=19,19,IF(ISBLANK(B52),"",IF(B52=19,0,36-B52))) -> 32 | E52: =IF(G52=19,0,IF(ISBLANK(B52),"",IF(B52<18,1,IF(B52=18,2,IF(B52>18,3))))) -> 1 | F52: =IF(G52=19,3,IF(ISBLANK(B52),"",IF(B52=19,0,IF(D52<18,1,IF(D52=18,2,IF(D52>=20,3)))))) -> 3 | L52: =IF(B52>D52,A52&C52,IF(D52>B52,C52&A52,"/")) -> AGAB | N52: =A52&C52 -> ABAG | O52: =E52 -> 1 | P52: =C52&A52 -> AGAB | Q52: =F52 -> 3 | R52: =B52 -> 4 | S52: =D52 -> 32
A53: AC | B53: 20 | C53: AE | D53: =IF(G53=19,19,IF(ISBLANK(B53),"",IF(B53=19,0,36-B53))) -> 16 | E53: =IF(G53=19,0,IF(ISBLANK(B53),"",IF(B53<18,1,IF(B53=18,2,IF(B53>18,3))))) -> 3 | F53: =IF(G53=19,3,IF(ISBLANK(B53),"",IF(B53=19,0,IF(D53<18,1,IF(D53=18,2,IF(D53>=20,3)))))) -> 1 | L53: =IF(B53>D53,A53&C53,IF(D53>B53,C53&A53,"/")) -> ACAE | N53: =A53&C53 -> ACAE | O53: =E53 -> 3 | P53: =C53&A53 -> AEAC | Q53: =F53 -> 1 | R53: =B53 -> 20 | S53: =D53 -> 16
A55: 6 éme MATCH le | B55: à | C55: AF
G56: SI forfait éq recevante
A57: Equipes | B57: score | C57: Equipes | D57: score | E57: Points | F57: Points
A58: AB | B58: 30 | C58: AD | D58: =IF(G58=19,19,IF(ISBLANK(B58),"",IF(B58=19,0,36-B58))) -> 6 | E58: =IF(G58=19,0,IF(ISBLANK(B58),"",IF(B58<18,1,IF(B58=18,2,IF(B58>18,3))))) -> 3 | F58: =IF(G58=19,3,IF(ISBLANK(B58),"",IF(B58=19,0,IF(D58<18,1,IF(D58=18,2,IF(D58>=20,3)))))) -> 1 | L58: =IF(B58>D58,A58&C58,IF(D58>B58,C58&A58,"/")) -> ABAD | N58: =A58&C58 -> ABAD | O58: =E58 -> 3 | P58: =C58&A58 -> ADAB | Q58: =F58 -> 1 | R58: =B58 -> 30 | S58: =D58 -> 6
A59: AE | B59: 24 | C59: AA | D59: =IF(G59=19,19,IF(ISBLANK(B59),"",IF(B59=19,0,36-B59))) -> 12 | E59: =IF(G59=19,0,IF(ISBLANK(B59),"",IF(B59<18,1,IF(B59=18,2,IF(B59>18,3))))) -> 3 | F59: =IF(G59=19,3,IF(ISBLANK(B59),"",IF(B59=19,0,IF(D59<18,1,IF(D59=18,2,IF(D59>=20,3)))))) -> 1 | L59: =IF(B59>D59,A59&C59,IF(D59>B59,C59&A59,"/")) -> AEAA | N59: =A59&C59 -> AEAA | O59: =E59 -> 3 | P59: =C59&A59 -> AAAE | Q59: =F59 -> 1 | R59: =B59 -> 24 | S59: =D59 -> 12
A60: AG | B60: 32 | C60: AC | D60: =IF(G60=19,19,IF(ISBLANK(B60),"",IF(B60=19,0,36-B60))) -> 4 | E60: =IF(G60=19,0,IF(ISBLANK(B60),"",IF(B60<18,1,IF(B60=18,2,IF(B60>18,3))))) -> 3 | F60: =IF(G60=19,3,IF(ISBLANK(B60),"",IF(B60=19,0,IF(D60<18,1,IF(D60=18,2,IF(D60>=20,3)))))) -> 1 | L60: =IF(B60>D60,A60&C60,IF(D60>B60,C60&A60,"/")) -> AGAC | N60: =A60&C60 -> AGAC | O60: =E60 -> 3 | P60: =C60&A60 -> ACAG | Q60: =F60 -> 1 | R60: =B60 -> 32 | S60: =D60 -> 4
A61: AF | B61: 22 | C61: AH | D61: =IF(G61=19,19,IF(ISBLANK(B61),"",IF(B61=19,0,36-B61))) -> 14 | E61: =IF(G61=19,0,IF(ISBLANK(B61),"",IF(B61<18,1,IF(B61=18,2,IF(B61>18,3))))) -> 3 | F61: =IF(G61=19,3,IF(ISBLANK(B61),"",IF(B61=19,0,IF(D61<18,1,IF(D61=18,2,IF(D61>=20,3)))))) -> 1 | L61: =IF(B61>D61,A61&C61,IF(D61>B61,C61&A61,"/")) -> AFAH | N61: =A61&C61 -> AFAH | O61: =E61 -> 3 | P61: =C61&A61 -> AHAF | Q61: =F61 -> 1 | R61: =B61 -> 22 | S61: =D61 -> 14
A63: 7 éme MATCH le | B63: à | C63: AG
G64: SI forfait éq recevante
A65: Equipes | B65: score | C65: Equipes | D65: score | E65: Points | F65: Points
A66: AA | B66: 20 | C66: AG | D66: =IF(G66=19,19,IF(ISBLANK(B66),"",IF(B66=19,0,36-B66))) -> 16 | E66: =IF(G66=19,0,IF(ISBLANK(B66),"",IF(B66<18,1,IF(B66=18,2,IF(B66>18,3))))) -> 3 | F66: =IF(G66=19,3,IF(ISBLANK(B66),"",IF(B66=19,0,IF(D66<18,1,IF(D66=18,2,IF(D66>=20,3)))))) -> 1 | L66: =IF(B66>D66,A66&C66,IF(D66>B66,C66&A66,"/")) -> AAAG | N66: =A66&C66 -> AAAG | O66: =E66 -> 3 | P66: =C66&A66 -> AGAA | Q66: =F66 -> 1 | R66: =B66 -> 20 | S66: =D66 -> 16
A67: AB | B67: 12 | C67: AF | D67: =IF(G67=19,19,IF(ISBLANK(B67),"",IF(B67=19,0,36-B67))) -> 24 | E67: =IF(G67=19,0,IF(ISBLANK(B67),"",IF(B67<18,1,IF(B67=18,2,IF(B67>18,3))))) -> 1 | F67: =IF(G67=19,3,IF(ISBLANK(B67),"",IF(B67=19,0,IF(D67<18,1,IF(D67=18,2,IF(D67>=20,3)))))) -> 3 | L67: =IF(B67>D67,A67&C67,IF(D67>B67,C67&A67,"/")) -> AFAB | N67: =A67&C67 -> ABAF | O67: =E67 -> 1 | P67: =C67&A67 -> AFAB | Q67: =F67 -> 3 | R67: =B67 -> 12 | S67: =D67 -> 24
A68: AE | B68: 18 | C68: AD | D68: =IF(G68=19,19,IF(ISBLANK(B68),"",IF(B68=19,0,36-B68))) -> 18 | E68: =IF(G68=19,0,IF(ISBLANK(B68),"",IF(B68<18,1,IF(B68=18,2,IF(B68>18,3))))) -> 2 | F68: =IF(G68=19,3,IF(ISBLANK(B68),"",IF(B68=19,0,IF(D68<18,1,IF(D68=18,2,IF(D68>=20,3)))))) -> 2 | L68: =IF(B68>D68,A68&C68,IF(D68>B68,C68&A68,"/")) -> / | N68: =A68&C68 -> AEAD | O68: =E68 -> 2 | P68: =C68&A68 -> ADAE | Q68: =F68 -> 2 | R68: =B68 -> 18 | S68: =D68 -> 18
A69: AC | B69: 30 | C69: AH | D69: =IF(G69=19,19,IF(ISBLANK(B69),"",IF(B69=19,0,36-B69))) -> 6 | E69: =IF(G69=19,0,IF(ISBLANK(B69),"",IF(B69<18,1,IF(B69=18,2,IF(B69>18,3))))) -> 3 | F69: =IF(G69=19,3,IF(ISBLANK(B69),"",IF(B69=19,0,IF(D69<18,1,IF(D69=18,2,IF(D69>=20,3)))))) -> 1 | L69: =IF(B69>D69,A69&C69,IF(D69>B69,C69&A69,"/")) -> ACAH | N69: =A69&C69 -> ACAH | O69: =E69 -> 3 | P69: =C69&A69 -> AHAC | Q69: =F69 -> 1 | R69: =B69 -> 30 | S69: =D69 -> 6
C70: Si pas d'exaequo | G70: Classt Final | H70: Rencontres entre exaequos
A71: EQUIPES | C71: POINTS | D71: POUR | E71: CONTRE | F71: DIFF | H71: POINTS Exaequos | I71: Exaq | J71: n° | K71: AA | L71: AB | M71: AC | N71: AD | O71: AE | P71: AF | Q71: AG | R71: AH | S71: Pts matchs | W71: 1000000*Pts matchs +1000 (Diff + abs(diff mini) )+Pour | X71: RANG | Y71: DIFF Exaequos | Z71: POUR Exaequos
A72: AF | B72: 1F | C72: 17 | D72: 136 | E72: 116 | F72: 20 | G72: 1 | H72: =IF(S72>0,S72,"") -> 3 | I72: =COUNTIF($C$72:$C$79,C72) -> 2 | J72: =IF(AND(I72>1,COUNTIFS(I$72:I72,I72,C$72:C72,C72)=1),MAX(J$71:J71)+1,"") -> 1 | K72: =IF($A72=K$71,"",IF(INDEX($C$72:$C$79,MATCH(K$71,$A$72:$A$79,0))=$C72,IFERROR(VLOOKUP($A72&K$71,$N$18:$O$69,2,0), VLOOKUP(K$71&$A72,$N$18:$Q$69,4,0)), "")) -> 3 | S72: =SUM(K72:R72) -> 3 | W72: =IF(I72<3,S72*1000000+(F72+ABS(MIN($F$72:$F$79)))*1000+D72,S72*1000000+U96*1000+Z72) -> 3072136 | X72: =IF(I72>2,RANK(W72,OFFSET(W$71,MATCH(I72,$I$72:$I$79,0),,I72))) -> FALSE | Y72: =IF(S96=0,"",S96) -> 8 | Z72: =IF(S80=0,"",S80) -> 22
A73: AA | B73: 1A | C73: 17 | D73: 134 | E73: 118 | F73: 16 | G73: 2 | H73: 1 | I73: 2 | J73: =IF(AND(I73>1,COUNTIFS(I$72:I73,I73,C$72:C73,C73)=1),MAX(J$71:J72)+1,"") ->  | P73: 1 | S73: =SUM(K73:R73) -> 1 | W73: =IF(I73<3,S73*1000000+(F73+ABS(MIN($F$72:$F$79)))*1000+D73,S73*1000000+U97*1000+Z73) -> 1068134 | X73: =IF(I73>2,RANK(W73,OFFSET(W$71,MATCH(I73,$I$72:$I$79,0),,I73))) -> FALSE | Y73: -8 | Z73: 14
A74: AB | B74: 1B | C74: 15 | D74: 142 | E74: 110 | F74: 32 | G74: 3 | H74: 3 | I74: 2 | J74: =IF(AND(I74>1,COUNTIFS(I$72:I74,I74,C$72:C74,C74)=1),MAX(J$71:J73)+1,"") -> 2 | M74: 3 | S74: 3 | W74: 3084142 | X74: FALSE | Y74: 28 | Z74: 32
A75: AC | B75: 1C | C75: 15 | D75: 122 | E75: 130 | F75: -8 | G75: 4 | H75: 1 | I75: 2 | J75: =IF(AND(I75>1,COUNTIFS(I$72:I75,I75,C$72:C75,C75)=1),MAX(J$71:J74)+1,"") ->  | L75: 1 | S75: 1 | W75: 1044122 | X75: FALSE | Y75: -28 | Z75: 4
A76: AE | B76: 1E | C76: 14 | D76: 128 | E76: 124 | F76: 4 | G76: 5 | H76: 3 | I76: 2 | J76: =IF(AND(I76>1,COUNTIFS(I$72:I76,I76,C$72:C76,C76)=1),MAX(J$71:J75)+1,"") -> 3 | Q76: 3 | S76: 3 | W76: 3056128 | X76: FALSE | Y76: 20 | Z76: 28
A77: AG | B77: 1G | C77: 14 | D77: 136 | E77: 116 | F77: 20 | G77: 6 | H77: 1 | I77: 2 | J77: =IF(AND(I77>1,COUNTIFS(I$72:I77,I77,C$72:C77,C77)=1),MAX(J$71:J76)+1,"") ->  | O77: 1 | S77: 1 | W77: 1072136 | X77: FALSE | Y77: -20 | Z77: 8
A78: AD | B78: 1D | C78: 11 | D78: 110 | E78: 142 | F78: -32 | G78: 7 | I78: 1 | J78: =IF(AND(I78>1,COUNTIFS(I$72:I78,I78,C$72:C78,C78)=1),MAX(J$71:J77)+1,"") ->  | S78: 0 | W78: 20110 | X78: FALSE
A79: AH | B79: 1H | C79: 9 | D79: 100 | E79: 152 | F79: -52 | G79: 8 | I79: 1 | J79: =IF(AND(I79>1,COUNTIFS(I$72:I79,I79,C$72:C79,C79)=1),MAX(J$71:J78)+1,"") ->  | S79: 0 | W79: 100 | X79: FALSE
I80: POUR | J80: =A72 -> AF | K80: =IF($A72=K$71,"",IF(INDEX($C$72:$C$79,MATCH(K$71,$A$72:$A$79,0))=$C72,IFERROR(VLOOKUP($A72&K$71,$N$18:$R$69,5,0), VLOOKUP(K$71&$A72,$N$18:$S$69,6,0)), "")) -> 22 | S80: 22
J81: AA | P81: 14 | S81: 14
J82: AB | M82: 32 | S82: 32
J83: AC | L83: 4 | S83: 4
J84: AE | Q84: 28 | S84: 28
J85: AG | O85: 8 | S85: 8
J86: AD | S86: 0
J87: AH | S87: 0
I88: CONTRE | J88: =J80 -> AF | K88: =INDEX($K$80:$R$87,MATCH(K$71,$J$80:$J$87,0),MATCH($J80,$K$71:$R$71,0)) -> 14 | L88: =INDEX($K$80:$R$87,MATCH(L$71,$J$80:$J$87,0),MATCH($J80,$K$71:$R$71,0)) ->  | S88: 14
J89: =J81 -> AA | K89: =INDEX($K$80:$R$87,MATCH(K$71,$J$80:$J$87,0),MATCH($J81,$K$71:$R$71,0)) ->  | P89: 22 | S89: 22
J90: AB | M90: 4 | S90: 4
J91: AC | L91: 32 | S91: 32
J92: AE | Q92: 8 | S92: 8
J93: AG | O93: 28 | S93: 28
J94: AD | S94: 0
J95: AH | S95: 0 | U95: Diff pondérée
I96: DIFF | J96: =J88 -> AF | S96: =S80-S88 -> 8 | U96: =S96+ABS(MIN($S$96:$S$103)) -> 36
J97: =J89 -> AA | S97: =S81-S89 -> -8 | U97: 20
J98: AB | S98: 28 | U98: 56
J99: AC | S99: -28 | U99: 0
J100: AE | S100: 20 | U100: 48
J101: AG | S101: -20 | U101: 8
J102: AD | S102: 0 | U102: =S102+ABS(MIN($S$96:$S$103)) -> 28
J103: AH | S103: 0 | U103: =S103+ABS(MIN($S$96:$S$103)) -> 28

Sheet P7
G1: 3
A2: CHAMPIONNAT DES CLUBS
A4: POULE 1
A5: EQUIPES | C5: POINTS | D5: Pour | E5: Contre | F5: Diff
A6: AA | B6: 1A | C6: =SUMIF($A$18:$A$69,A6,$E$18:$E$69)+SUMIF($C$18:$C$69,A6,$F$18:$F$69) -> 12 | D6: =SUMIF($A$18:$A$69,$A6,$B$18:$B$69)+SUMIF($C$18:$C$69,$A6,$D$18:$D$69) -> 110 | E6: =SUMIF($C$18:$C$69,$A6,$B$18:$B$69)+SUMIF($A$18:$A$69,$A6,$D$18:$D$69) -> 142 | F6: =D6-E6 -> -32
A7: AB | B7: 1B | C7: =SUMIF($A$18:$A$69,A7,$E$18:$E$69)+SUMIF($C$18:$C$69,A7,$F$18:$F$69) -> 13 | D7: =SUMIF($A$18:$A$69,$A7,$B$18:$B$69)+SUMIF($C$18:$C$69,$A7,$D$18:$D$69) -> 100 | E7: =SUMIF($C$18:$C$69,$A7,$B$18:$B$69)+SUMIF($A$18:$A$69,$A7,$D$18:$D$69) -> 152 | F7: -52
A8: AC | B8: 1C | C8: =SUMIF($A$18:$A$69,A8,$E$18:$E$69)+SUMIF($C$18:$C$69,A8,$F$18:$F$69) -> 16 | D8: 144 | E8: 108 | F8: 36
A9: AD | B9: 1D | C9: 15 | D9: 114 | E9: 138 | F9: -24
A10: AE | B10: 1E | C10: 12 | D10: 116 | E10: 136 | F10: -20
A11: AF | B11: 1F | C11: 18 | D11: 158 | E11: 94 | F11: 64
A12: AG | B12: 1G | C12: 12 | D12: 128 | E12: 124 | F12: =D12-E12 -> 4
A13: AH | B13: 1H | C13: 14 | D13: =SUMIF($A$18:$A$69,$A13,$B$18:$B$69)+SUMIF($C$18:$C$69,$A13,$D$18:$D$69) -> 138 | E13: 114 | F13: =D13-E13 -> 24
A15: 1er MATCH le | B15: à | C15: AA
G16: SI forfait éq recevante
A17: Equipes | B17: score | C17: Equipes | D17: score | E17: Points | F17: Points
A18: AA | B18: 12 | C18: AB | D18: =IF(G18=19,19,IF(ISBLANK(B18),"",IF(B18=19,0,36-B18))) -> 24 | E18: =IF(G18=19,0,IF(ISBLANK(B18),"",IF(B18<18,1,IF(B18=18,2,IF(B18>18,3))))) -> 1 | F18: =IF(G18=19,3,IF(ISBLANK(B18),"",IF(B18=19,0,IF(D18<18,1,IF(D18=18,2,IF(D18>=20,3)))))) -> 3 | L18: =IF(B18>D18,A18&C18,IF(D18>B18,C18&A18,"/")) -> ABAA | N18: =A18&C18 -> AAAB | O18: =E18 -> 1 | P18: =C18&A18 -> ABAA | Q18: =F18 -> 3 | R18: =B18 -> 12 | S18: =D18 -> 24
A19: AC | B19: 16 | C19: AD | D19: =IF(G19=19,19,IF(ISBLANK(B19),"",IF(B19=19,0,36-B19))) -> 20 | E19: =IF(G19=19,0,IF(ISBLANK(B19),"",IF(B19<18,1,IF(B19=18,2,IF(B19>18,3))))) -> 1 | F19: =IF(G19=19,3,IF(ISBLANK(B19),"",IF(B19=19,0,IF(D19<18,1,IF(D19=18,2,IF(D19>=20,3)))))) -> 3 | L19: =IF(B19>D19,A19&C19,IF(D19>B19,C19&A19,"/")) -> ADAC | N19: =A19&C19 -> ACAD | O19: =E19 -> 1 | P19: =C19&A19 -> ADAC | Q19: =F19 -> 3 | R19: =B19 -> 16 | S19: =D19 -> 20
A20: AE | B20: 16 | C20: AF | D20: =IF(G20=19,19,IF(ISBLANK(B20),"",IF(B20=19,0,36-B20))) -> 20 | E20: =IF(G20=19,0,IF(ISBLANK(B20),"",IF(B20<18,1,IF(B20=18,2,IF(B20>18,3))))) -> 1 | F20: =IF(G20=19,3,IF(ISBLANK(B20),"",IF(B20=19,0,IF(D20<18,1,IF(D20=18,2,IF(D20>=20,3)))))) -> 3 | L20: =IF(B20>D20,A20&C20,IF(D20>B20,C20&A20,"/")) -> AFAE | N20: =A20&C20 -> AEAF | O20: =E20 -> 1 | P20: =C20&A20 -> AFAE | Q20: =F20 -> 3 | R20: =B20 -> 16 | S20: =D20 -> 20
A21: AG | B21: 18 | C21: AH | D21: =IF(G21=19,19,IF(ISBLANK(B21),"",IF(B21=19,0,36-B21))) -> 18 | E21: =IF(G21=19,0,IF(ISBLANK(B21),"",IF(B21<18,1,IF(B21=18,2,IF(B21>18,3))))) -> 2 | F21: =IF(G21=19,3,IF(ISBLANK(B21),"",IF(B21=19,0,IF(D21<18,1,IF(D21=18,2,IF(D21>=20,3)))))) -> 2 | L21: =IF(B21>D21,A21&C21,IF(D21>B21,C21&A21,"/")) -> / | N21: =A21&C21 -> AGAH | O21: =E21 -> 2 | P21: =C21&A21 -> AHAG | Q21: =F21 -> 2 | R21: =B21 -> 18 | S21: =D21 -> 18
A23: 2 éme MATCH le | B23: à | C23: AB
G24: SI forfait éq recevante
A25: Equipes | B25: score | C25: Equipes | D25: score | E25: Points | F25: Points
A26: AA | B26: 4 | C26: AC | D26: =IF(G26=19,19,IF(ISBLANK(B26),"",IF(B26=19,0,36-B26))) -> 32 | E26: =IF(G26=19,0,IF(ISBLANK(B26),"",IF(B26<18,1,IF(B26=18,2,IF(B26>18,3))))) -> 1 | F26: =IF(G26=19,3,IF(ISBLANK(B26),"",IF(B26=19,0,IF(D26<18,1,IF(D26=18,2,IF(D26>=20,3)))))) -> 3 | L26: =IF(B26>D26,A26&C26,IF(D26>B26,C26&A26,"/")) -> ACAA | N26: =A26&C26 -> AAAC | O26: =E26 -> 1 | P26: =C26&A26 -> ACAA | Q26: =F26 -> 3 | R26: =B26 -> 4 | S26: =D26 -> 32
A27: AB | B27: 2 | C27: AH | D27: =IF(G27=19,19,IF(ISBLANK(B27),"",IF(B27=19,0,36-B27))) -> 34 | E27: =IF(G27=19,0,IF(ISBLANK(B27),"",IF(B27<18,1,IF(B27=18,2,IF(B27>18,3))))) -> 1 | F27: =IF(G27=19,3,IF(ISBLANK(B27),"",IF(B27=19,0,IF(D27<18,1,IF(D27=18,2,IF(D27>=20,3)))))) -> 3 | L27: =IF(B27>D27,A27&C27,IF(D27>B27,C27&A27,"/")) -> AHAB | N27: =A27&C27 -> ABAH | O27: =E27 -> 1 | P27: =C27&A27 -> AHAB | Q27: =F27 -> 3 | R27: =B27 -> 2 | S27: =D27 -> 34
A28: AD | B28: 6 | C28: AF | D28: =IF(G28=19,19,IF(ISBLANK(B28),"",IF(B28=19,0,36-B28))) -> 30 | E28: =IF(G28=19,0,IF(ISBLANK(B28),"",IF(B28<18,1,IF(B28=18,2,IF(B28>18,3))))) -> 1 | F28: =IF(G28=19,3,IF(ISBLANK(B28),"",IF(B28=19,0,IF(D28<18,1,IF(D28=18,2,IF(D28>=20,3)))))) -> 3 | L28: =IF(B28>D28,A28&C28,IF(D28>B28,C28&A28,"/")) -> AFAD | N28: =A28&C28 -> ADAF | O28: =E28 -> 1 | P28: =C28&A28 -> AFAD | Q28: =F28 -> 3 | R28: =B28 -> 6 | S28: =D28 -> 30
A29: AE | B29: 28 | C29: AG | D29: =IF(G29=19,19,IF(ISBLANK(B29),"",IF(B29=19,0,36-B29))) -> 8 | E29: =IF(G29=19,0,IF(ISBLANK(B29),"",IF(B29<18,1,IF(B29=18,2,IF(B29>18,3))))) -> 3 | F29: =IF(G29=19,3,IF(ISBLANK(B29),"",IF(B29=19,0,IF(D29<18,1,IF(D29=18,2,IF(D29>=20,3)))))) -> 1 | L29: =IF(B29>D29,A29&C29,IF(D29>B29,C29&A29,"/")) -> AEAG | N29: =A29&C29 -> AEAG | O29: =E29 -> 3 | P29: =C29&A29 -> AGAE | Q29: =F29 -> 1 | R29: =B29 -> 28 | S29: =D29 -> 8
A31: 3 éme MATCH le | B31: à | C31: AC
G32: SI forfait éq recevante
A33: Equipes | B33: score | C33: Equipes | D33: score | E33: Points | F33: Points
A34: AA | B34: 32 | C34: AH | D34: =IF(G34=19,19,IF(ISBLANK(B34),"",IF(B34=19,0,36-B34))) -> 4 | E34: =IF(G34=19,0,IF(ISBLANK(B34),"",IF(B34<18,1,IF(B34=18,2,IF(B34>18,3))))) -> 3 | F34: =IF(G34=19,3,IF(ISBLANK(B34),"",IF(B34=19,0,IF(D34<18,1,IF(D34=18,2,IF(D34>=20,3)))))) -> 1 | L34: =IF(B34>D34,A34&C34,IF(D34>B34,C34&A34,"/")) -> AAAH | N34: =A34&C34 -> AAAH | O34: =E34 -> 3 | P34: =C34&A34 -> AHAA | Q34: =F34 -> 1 | R34: =B34 -> 32 | S34: =D34 -> 4
A35: AB | B35: 26 | C35: AE | D35: =IF(G35=19,19,IF(ISBLANK(B35),"",IF(B35=19,0,36-B35))) -> 10 | E35: =IF(G35=19,0,IF(ISBLANK(B35),"",IF(B35<18,1,IF(B35=18,2,IF(B35>18,3))))) -> 3 | F35: =IF(G35=19,3,IF(ISBLANK(B35),"",IF(B35=19,0,IF(D35<18,1,IF(D35=18,2,IF(D35>=20,3)))))) -> 1 | L35: =IF(B35>D35,A35&C35,IF(D35>B35,C35&A35,"/")) -> ABAE | N35: =A35&C35 -> ABAE | O35: =E35 -> 3 | P35: =C35&A35 -> AEAB | Q35: =F35 -> 1 | R35: =B35 -> 26 | S35: =D35 -> 10
A36: AC | B36: 20 | C36: AF | D36: =IF(G36=19,19,IF(ISBLANK(B36),"",IF(B36=19,0,36-B36))) -> 16 | E36: =IF(G36=19,0,IF(ISBLANK(B36),"",IF(B36<18,1,IF(B36=18,2,IF(B36>18,3))))) -> 3 | F36: =IF(G36=19,3,IF(ISBLANK(B36),"",IF(B36=19,0,IF(D36<18,1,IF(D36=18,2,IF(D36>=20,3)))))) -> 1 | L36: =IF(B36>D36,A36&C36,IF(D36>B36,C36&A36,"/")) -> ACAF | N36: =A36&C36 -> ACAF | O36: =E36 -> 3 | P36: =C36&A36 -> AFAC | Q36: =F36 -> 1 | R36: =B36 -> 20 | S36: =D36 -> 16
A37: AD | B37: 22 | C37: AG | D37: =IF(G37=19,19,IF(ISBLANK(B37),"",IF(B37=19,0,36-B37))) -> 14 | E37: =IF(G37=19,0,IF(ISBLANK(B37),"",IF(B37<18,1,IF(B37=18,2,IF(B37>18,3))))) -> 3 | F37: =IF(G37=19,3,IF(ISBLANK(B37),"",IF(B37=19,0,IF(D37<18,1,IF(D37=18,2,IF(D37>=20,3)))))) -> 1 | L37: =IF(B37>D37,A37&C37,IF(D37>B37,C37&A37,"/")) -> ADAG | N37: =A37&C37 -> ADAG | O37: =E37 -> 3 | P37: =C37&A37 -> AGAD | Q37: =F37 -> 1 | R37: =B37 -> 22 | S37: =D37 -> 14
A39: 4 éme MATCH le | B39: à | C39: AD
G40: SI forfait éq recevante
A41: Equipes | B41: score | C41: Equipes | D41: score | E41: Points | F41: Points
A42: AA | B42: 12 | C42: AD | D42: =IF(G42=19,19,IF(ISBLANK(B42),"",IF(B42=19,0,36-B42))) -> 24 | E42: =IF(G42=19,0,IF(ISBLANK(B42),"",IF(B42<18,1,IF(B42=18,2,IF(B42>18,3))))) -> 1 | F42: =IF(G42=19,3,IF(ISBLANK(B42),"",IF(B42=19,0,IF(D42<18,1,IF(D42=18,2,IF(D42>=20,3)))))) -> 3 | L42: =IF(B42>D42,A42&C42,IF(D42>B42,C42&A42,"/")) -> ADAA | N42: =A42&C42 -> AAAD | O42: =E42 -> 1 | P42: =C42&A42 -> ADAA | Q42: =F42 -> 3 | R42: =B42 -> 12 | S42: =D42 -> 24
A43: AF | B43: 28 | C43: AG | D43: =IF(G43=19,19,IF(ISBLANK(B43),"",IF(B43=19,0,36-B43))) -> 8 | E43: =IF(G43=19,0,IF(ISBLANK(B43),"",IF(B43<18,1,IF(B43=18,2,IF(B43>18,3))))) -> 3 | F43: =IF(G43=19,3,IF(ISBLANK(B43),"",IF(B43=19,0,IF(D43<18,1,IF(D43=18,2,IF(D43>=20,3)))))) -> 1 | L43: =IF(B43>D43,A43&C43,IF(D43>B43,C43&A43,"/")) -> AFAG | N43: =A43&C43 -> AFAG | O43: =E43 -> 3 | P43: =C43&A43 -> AGAF | Q43: =F43 -> 1 | R43: =B43 -> 28 | S43: =D43 -> 8
A44: AB | B44: 2 | C44: AC | D44: =IF(G44=19,19,IF(ISBLANK(B44),"",IF(B44=19,0,36-B44))) -> 34 | E44: =IF(G44=19,0,IF(ISBLANK(B44),"",IF(B44<18,1,IF(B44=18,2,IF(B44>18,3))))) -> 1 | F44: =IF(G44=19,3,IF(ISBLANK(B44),"",IF(B44=19,0,IF(D44<18,1,IF(D44=18,2,IF(D44>=20,3)))))) -> 3 | L44: =IF(B44>D44,A44&C44,IF(D44>B44,C44&A44,"/")) -> ACAB | N44: =A44&C44 -> ABAC | O44: =E44 -> 1 | P44: =C44&A44 -> ACAB | Q44: =F44 -> 3 | R44: =B44 -> 2 | S44: =D44 -> 34
A45: AE | B45: 4 | C45: AH | D45: =IF(G45=19,19,IF(ISBLANK(B45),"",IF(B45=19,0,36-B45))) -> 32 | E45: =IF(G45=19,0,IF(ISBLANK(B45),"",IF(B45<18,1,IF(B45=18,2,IF(B45>18,3))))) -> 1 | F45: =IF(G45=19,3,IF(ISBLANK(B45),"",IF(B45=19,0,IF(D45<18,1,IF(D45=18,2,IF(D45>=20,3)))))) -> 3 | L45: =IF(B45>D45,A45&C45,IF(D45>B45,C45&A45,"/")) -> AHAE | N45: =A45&C45 -> AEAH | O45: =E45 -> 1 | P45: =C45&A45 -> AHAE | Q45: =F45 -> 3 | R45: =B45 -> 4 | S45: =D45 -> 32
A47: 5 éme MATCH le | B47: à | C47: AE
G48: SI forfait éq recevante
A49: Equipes | B49: score | C49: Equipes | D49: score | E49: Points | F49: Points
A50: AA | B50: 18 | C50: AF | D50: =IF(G50=19,19,IF(ISBLANK(B50),"",IF(B50=19,0,36-B50))) -> 18 | E50: =IF(G50=19,0,IF(ISBLANK(B50),"",IF(B50<18,1,IF(B50=18,2,IF(B50>18,3))))) -> 2 | F50: =IF(G50=19,3,IF(ISBLANK(B50),"",IF(B50=19,0,IF(D50<18,1,IF(D50=18,2,IF(D50>=20,3)))))) -> 2 | L50: =IF(B50>D50,A50&C50,IF(D50>B50,C50&A50,"/")) -> / | N50: =A50&C50 -> AAAF | O50: =E50 -> 2 | P50: =C50&A50 -> AFAA | Q50: =F50 -> 2 | R50: =B50 -> 18 | S50: =D50 -> 18
A51: AD | B51: 18 | C51: AH | D51: =IF(G51=19,19,IF(ISBLANK(B51),"",IF(B51=19,0,36-B51))) -> 18 | E51: =IF(G51=19,0,IF(ISBLANK(B51),"",IF(B51<18,1,IF(B51=18,2,IF(B51>18,3))))) -> 2 | F51: =IF(G51=19,3,IF(ISBLANK(B51),"",IF(B51=19,0,IF(D51<18,1,IF(D51=18,2,IF(D51>=20,3)))))) -> 2 | L51: =IF(B51>D51,A51&C51,IF(D51>B51,C51&A51,"/")) -> / | N51: =A51&C51 -> ADAH | O51: =E51 -> 2 | P51: =C51&A51 -> AHAD | Q51: =F51 -> 2 | R51: =B51 -> 18 | S51: =D51 -> 18
A52: AB | B52: 4 | C52: AG | D52: =IF(G52=19,19,IF(ISBLANK(B52),"",IF(B52=19,0,36-B52))) -> 32 | E52: =IF(G52=19,0,IF(ISBLANK(B52),"",IF(B52<18,1,IF(B52=18,2,IF(B52>18,3))))) -> 1 | F52: =IF(G52=19,3,IF(ISBLANK(B52),"",IF(B52=19,0,IF(D52<18,1,IF(D52=18,2,IF(D52>=20,3)))))) -> 3 | L52: =IF(B52>D52,A52&C52,IF(D52>B52,C52&A52,"/")) -> AGAB | N52: =A52&C52 -> ABAG | O52: =E52 -> 1 | P52: =C52&A52 -> AGAB | Q52: =F52 -> 3 | R52: =B52 -> 4 | S52: =D52 -> 32
A53: AC | B53: 20 | C53: AE | D53: =IF(G53=19,19,IF(ISBLANK(B53),"",IF(B53=19,0,36-B53))) -> 16 | E53: =IF(G53=19,0,IF(ISBLANK(B53),"",IF(B53<18,1,IF(B53=18,2,IF(B53>18,3))))) -> 3 | F53: =IF(G53=19,3,IF(ISBLANK(B53),"",IF(B53=19,0,IF(D53<18,1,IF(D53=18,2,IF(D53>=20,3)))))) -> 1 | L53: =IF(B53>D53,A53&C53,IF(D53>B53,C53&A53,"/")) -> ACAE | N53: =A53&C53 -> ACAE | O53: =E53 -> 3 | P53: =C53&A53 -> AEAC | Q53: =F53 -> 1 | R53: =B53 -> 20 | S53: =D53 -> 16
A55: 6 éme MATCH le | B55: à | C55: AF
G56: SI forfait éq recevante
A57: Equipes | B57: score | C57: Equipes | D57: score | E57: Points | F57: Points
A58: AB | B58: 30 | C58: AD | D58: =IF(G58=19,19,IF(ISBLANK(B58),"",IF(B58=19,0,36-B58))) -> 6 | E58: =IF(G58=19,0,IF(ISBLANK(B58),"",IF(B58<18,1,IF(B58=18,2,IF(B58>18,3))))) -> 3 | F58: =IF(G58=19,3,IF(ISBLANK(B58),"",IF(B58=19,0,IF(D58<18,1,IF(D58=18,2,IF(D58>=20,3)))))) -> 1 | L58: =IF(B58>D58,A58&C58,IF(D58>B58,C58&A58,"/")) -> ABAD | N58: =A58&C58 -> ABAD | O58: =E58 -> 3 | P58: =C58&A58 -> ADAB | Q58: =F58 -> 1 | R58: =B58 -> 30 | S58: =D58 -> 6
A59: AE | B59: 24 | C59: AA | D59: =IF(G59=19,19,IF(ISBLANK(B59),"",IF(B59=19,0,36-B59))) -> 12 | E59: =IF(G59=19,0,IF(ISBLANK(B59),"",IF(B59<18,1,IF(B59=18,2,IF(B59>18,3))))) -> 3 | F59: =IF(G59=19,3,IF(ISBLANK(B59),"",IF(B59=19,0,IF(D59<18,1,IF(D59=18,2,IF(D59>=20,3)))))) -> 1 | L59: =IF(B59>D59,A59&C59,IF(D59>B59,C59&A59,"/")) -> AEAA | N59: =A59&C59 -> AEAA | O59: =E59 -> 3 | P59: =C59&A59 -> AAAE | Q59: =F59 -> 1 | R59: =B59 -> 24 | S59: =D59 -> 12
A60: AG | B60: 32 | C60: AC | D60: =IF(G60=19,19,IF(ISBLANK(B60),"",IF(B60=19,0,36-B60))) -> 4 | E60: =IF(G60=19,0,IF(ISBLANK(B60),"",IF(B60<18,1,IF(B60=18,2,IF(B60>18,3))))) -> 3 | F60: =IF(G60=19,3,IF(ISBLANK(B60),"",IF(B60=19,0,IF(D60<18,1,IF(D60=18,2,IF(D60>=20,3)))))) -> 1 | L60: =IF(B60>D60,A60&C60,IF(D60>B60,C60&A60,"/")) -> AGAC | N60: =A60&C60 -> AGAC | O60: =E60 -> 3 | P60: =C60&A60 -> ACAG | Q60: =F60 -> 1 | R60: =B60 -> 32 | S60: =D60 -> 4
A61: AF | B61: 22 | C61: AH | D61: =IF(G61=19,19,IF(ISBLANK(B61),"",IF(B61=19,0,36-B61))) -> 14 | E61: =IF(G61=19,0,IF(ISBLANK(B61),"",IF(B61<18,1,IF(B61=18,2,IF(B61>18,3))))) -> 3 | F61: =IF(G61=19,3,IF(ISBLANK(B61),"",IF(B61=19,0,IF(D61<18,1,IF(D61=18,2,IF(D61>=20,3)))))) -> 1 | L61: =IF(B61>D61,A61&C61,IF(D61>B61,C61&A61,"/")) -> AFAH | N61: =A61&C61 -> AFAH | O61: =E61 -> 3 | P61: =C61&A61 -> AHAF | Q61: =F61 -> 1 | R61: =B61 -> 22 | S61: =D61 -> 14
A63: 7 éme MATCH le | B63: à | C63: AG
G64: SI forfait éq recevante
A65: Equipes | B65: score | C65: Equipes | D65: score | E65: Points | F65: Points
A66: AA | B66: 20 | C66: AG | D66: =IF(G66=19,19,IF(ISBLANK(B66),"",IF(B66=19,0,36-B66))) -> 16 | E66: =IF(G66=19,0,IF(ISBLANK(B66),"",IF(B66<18,1,IF(B66=18,2,IF(B66>18,3))))) -> 3 | F66: =IF(G66=19,3,IF(ISBLANK(B66),"",IF(B66=19,0,IF(D66<18,1,IF(D66=18,2,IF(D66>=20,3)))))) -> 1 | L66: =IF(B66>D66,A66&C66,IF(D66>B66,C66&A66,"/")) -> AAAG | N66: =A66&C66 -> AAAG | O66: =E66 -> 3 | P66: =C66&A66 -> AGAA | Q66: =F66 -> 1 | R66: =B66 -> 20 | S66: =D66 -> 16
A67: AB | B67: 12 | C67: AF | D67: =IF(G67=19,19,IF(ISBLANK(B67),"",IF(B67=19,0,36-B67))) -> 24 | E67: =IF(G67=19,0,IF(ISBLANK(B67),"",IF(B67<18,1,IF(B67=18,2,IF(B67>18,3))))) -> 1 | F67: =IF(G67=19,3,IF(ISBLANK(B67),"",IF(B67=19,0,IF(D67<18,1,IF(D67=18,2,IF(D67>=20,3)))))) -> 3 | L67: =IF(B67>D67,A67&C67,IF(D67>B67,C67&A67,"/")) -> AFAB | N67: =A67&C67 -> ABAF | O67: =E67 -> 1 | P67: =C67&A67 -> AFAB | Q67: =F67 -> 3 | R67: =B67 -> 12 | S67: =D67 -> 24
A68: AE | B68: 18 | C68: AD | D68: =IF(G68=19,19,IF(ISBLANK(B68),"",IF(B68=19,0,36-B68))) -> 18 | E68: =IF(G68=19,0,IF(ISBLANK(B68),"",IF(B68<18,1,IF(B68=18,2,IF(B68>18,3))))) -> 2 | F68: =IF(G68=19,3,IF(ISBLANK(B68),"",IF(B68=19,0,IF(D68<18,1,IF(D68=18,2,IF(D68>=20,3)))))) -> 2 | L68: =IF(B68>D68,A68&C68,IF(D68>B68,C68&A68,"/")) -> / | N68: =A68&C68 -> AEAD | O68: =E68 -> 2 | P68: =C68&A68 -> ADAE | Q68: =F68 -> 2 | R68: =B68 -> 18 | S68: =D68 -> 18
A69: AC | B69: 18 | C69: AH | D69: =IF(G69=19,19,IF(ISBLANK(B69),"",IF(B69=19,0,36-B69))) -> 18 | E69: =IF(G69=19,0,IF(ISBLANK(B69),"",IF(B69<18,1,IF(B69=18,2,IF(B69>18,3))))) -> 2 | F69: =IF(G69=19,3,IF(ISBLANK(B69),"",IF(B69=19,0,IF(D69<18,1,IF(D69=18,2,IF(D69>=20,3)))))) -> 2 | L69: =IF(B69>D69,A69&C69,IF(D69>B69,C69&A69,"/")) -> / | N69: =A69&C69 -> ACAH | O69: =E69 -> 2 | P69: =C69&A69 -> AHAC | Q69: =F69 -> 2 | R69: =B69 -> 18 | S69: =D69 -> 18
C70: Si pas d'exaequo | G70: Classt Final | H70: Rencontres entre exaequos
A71: EQUIPES | C71: POINTS | D71: POUR | E71: CONTRE | F71: DIFF | H71: POINTS Exaequos | I71: Exaq | J71: n° | K71: AA | L71: AB | M71: AC | N71: AD | O71: AE | P71: AF | Q71: AG | R71: AH | S71: Pts matchs | W71: 1000000*Pts matchs +1000 (Diff + abs(diff mini) )+Pour | X71: RANG | Y71: DIFF Exaequos | Z71: POUR Exaequos
A72: AF | B72: 1F | C72: 18 | D72: 158 | E72: 94 | F72: 64 | G72: 1 | H72: =IF(S72>0,S72,"") ->  | I72: =COUNTIF($C$72:$C$79,C72) -> 1 | J72: =IF(AND(I72>1,COUNTIFS(I$72:I72,I72,C$72:C72,C72)=1),MAX(J$71:J71)+1,"") ->  | K72: =IF($A72=K$71,"",IF(INDEX($C$72:$C$79,MATCH(K$71,$A$72:$A$79,0))=$C72,IFERROR(VLOOKUP($A72&K$71,$N$18:$O$69,2,0), VLOOKUP(K$71&$A72,$N$18:$Q$69,4,0)), "")) ->  | S72: =SUM(K72:R72) -> 0 | W72: =IF(I72<3,S72*1000000+(F72+ABS(MIN($F$72:$F$79)))*1000+D72,S72*1000000+U96*1000+Z72) -> 116158 | X72: =IF(I72>2,RANK(W72,OFFSET(W$71,MATCH(I72,$I$72:$I$79,0),,I72))) -> FALSE | Y72: =IF(S96=0,"",S96) ->  | Z72: =IF(S80=0,"",S80) -> 
A73: AC | B73: 1C | C73: 16 | D73: 144 | E73: 108 | F73: 36 | G73: 2 | I73: 1 | J73: =IF(AND(I73>1,COUNTIFS(I$72:I73,I73,C$72:C73,C73)=1),MAX(J$71:J72)+1,"") ->  | S73: =SUM(K73:R73) -> 0 | W73: =IF(I73<3,S73*1000000+(F73+ABS(MIN($F$72:$F$79)))*1000+D73,S73*1000000+U97*1000+Z73) -> 88144 | X73: =IF(I73>2,RANK(W73,OFFSET(W$71,MATCH(I73,$I$72:$I$79,0),,I73))) -> FALSE
A74: AD | B74: 1D | C74: 15 | D74: 114 | E74: 138 | F74: -24 | G74: 3 | I74: 1 | J74: =IF(AND(I74>1,COUNTIFS(I$72:I74,I74,C$72:C74,C74)=1),MAX(J$71:J73)+1,"") ->  | S74: 0 | W74: 28114 | X74: FALSE
A75: AH | B75: 1H | C75: 14 | D75: 138 | E75: 114 | F75: 24 | G75: 4 | I75: 1 | J75: =IF(AND(I75>1,COUNTIFS(I$72:I75,I75,C$72:C75,C75)=1),MAX(J$71:J74)+1,"") ->  | S75: 0 | W75: 76138 | X75: FALSE
A76: AB | B76: 1B | C76: 13 | D76: 100 | E76: 152 | F76: -52 | G76: 5 | I76: 1 | J76: =IF(AND(I76>1,COUNTIFS(I$72:I76,I76,C$72:C76,C76)=1),MAX(J$71:J75)+1,"") ->  | S76: 0 | W76: 100 | X76: FALSE
A77: AE | B77: 1E | C77: 12 | D77: 116 | E77: 136 | F77: -20 | G77: 6 | H77: 6 | I77: 3 | J77: =IF(AND(I77>1,COUNTIFS(I$72:I77,I77,C$72:C77,C77)=1),MAX(J$71:J76)+1,"") -> 1 | K77: 3 | Q77: 3 | S77: 6 | W77: 6056052 | X77: 1 | Y77: 32 | Z77: 52
A78: AA | B78: 1A | C78: 12 | D78: 110 | E78: 142 | F78: -32 | G78: 7 | H78: 4 | I78: 3 | J78: =IF(AND(I78>1,COUNTIFS(I$72:I78,I78,C$72:C78,C78)=1),MAX(J$71:J77)+1,"") ->  | O78: 1 | Q78: 3 | S78: 4 | W78: 4016032 | X78: 2 | Y78: -8 | Z78: 32
A79: AG | B79: 1G | C79: 12 | D79: 128 | E79: 124 | F79: 4 | G79: 8 | H79: 2 | I79: 3 | J79: =IF(AND(I79>1,COUNTIFS(I$72:I79,I79,C$72:C79,C79)=1),MAX(J$71:J78)+1,"") ->  | K79: 1 | O79: 1 | S79: 2 | W79: 2000024 | X79: 3 | Y79: -24 | Z79: 24
I80: POUR | J80: =A72 -> AF | K80: =IF($A72=K$71,"",IF(INDEX($C$72:$C$79,MATCH(K$71,$A$72:$A$79,0))=$C72,IFERROR(VLOOKUP($A72&K$71,$N$18:$R$69,5,0), VLOOKUP(K$71&$A72,$N$18:$S$69,6,0)), "")) ->  | S80: 0
J81: AC | S81: 0
J82: AD | S82: 0
J83: AH | S83: 0
J84: AB | S84: 0
J85: AE | K85: 24 | Q85: 28 | S85: 52
J86: AA | O86: 12 | Q86: 20 | S86: 32
J87: AG | K87: 16 | O87: 8 | S87: 24
I88: CONTRE | J88: =J80 -> AF | K88: =INDEX($K$80:$R$87,MATCH(K$71,$J$80:$J$87,0),MATCH($J80,$K$71:$R$71,0)) ->  | L88: =INDEX($K$80:$R$87,MATCH(L$71,$J$80:$J$87,0),MATCH($J80,$K$71:$R$71,0)) ->  | S88: 0
J89: =J81 -> AC | K89: =INDEX($K$80:$R$87,MATCH(K$71,$J$80:$J$87,0),MATCH($J81,$K$71:$R$71,0)) ->  | S89: 0
J90: AD | S90: 0
J91: AH | S91: 0
J92: AB | S92: 0
J93: AE | K93: 12 | Q93: 8 | S93: 20
J94: AA | O94: 24 | Q94: 16 | S94: 40
J95: AG | K95: 20 | O95: 28 | S95: 48 | U95: Diff pondérée
I96: DIFF | J96: =J88 -> AF | S96: =S80-S88 -> 0 | U96: =S96+ABS(MIN($S$96:$S$103)) -> 24
J97: =J89 -> AC | S97: =S81-S89 -> 0 | U97: 24
J98: AD | S98: 0 | U98: 24
J99: AH | S99: 0 | U99: 24
J100: AB | S100: 0 | U100: 24
J101: AE | S101: 32 | U101: 56
J102: AA | S102: -8 | U102: =S102+ABS(MIN($S$96:$S$103)) -> 16
J103: AG | S103: -24 | U103: =S103+ABS(MIN($S$96:$S$103)) -> 0

Sheet P8
G1: 3
A2: CHAMPIONNAT DES CLUBS
A4: POULE 1
A5: EQUIPES | C5: POINTS | D5: Pour | E5: Contre | F5: Diff
A6: AA | B6: 1A | C6: =SUMIF($A$18:$A$69,A6,$E$18:$E$69)+SUMIF($C$18:$C$69,A6,$F$18:$F$69) -> 19 | D6: =SUMIF($A$18:$A$69,$A6,$B$18:$B$69)+SUMIF($C$18:$C$69,$A6,$D$18:$D$69) -> 148 | E6: =SUMIF($C$18:$C$69,$A6,$B$18:$B$69)+SUMIF($A$18:$A$69,$A6,$D$18:$D$69) -> 104 | F6: =D6-E6 -> 44
A7: AB | B7: 1B | C7: =SUMIF($A$18:$A$69,A7,$E$18:$E$69)+SUMIF($C$18:$C$69,A7,$F$18:$F$69) -> 19 | D7: =SUMIF($A$18:$A$69,$A7,$B$18:$B$69)+SUMIF($C$18:$C$69,$A7,$D$18:$D$69) -> 194 | E7: =SUMIF($C$18:$C$69,$A7,$B$18:$B$69)+SUMIF($A$18:$A$69,$A7,$D$18:$D$69) -> 58 | F7: 136
A8: AC | B8: 1C | C8: =SUMIF($A$18:$A$69,A8,$E$18:$E$69)+SUMIF($C$18:$C$69,A8,$F$18:$F$69) -> 15 | D8: 92 | E8: 160 | F8: -68
A9: AD | B9: 1D | C9: 13 | D9: 128 | E9: 124 | F9: 4
A10: AE | B10: 1E | C10: 17 | D10: 146 | E10: 106 | F10: 40
A11: AF | B11: 1F | C11: 11 | D11: 102 | E11: 150 | F11: -48
A12: AG | B12: 1G | C12: 11 | D12: 114 | E12: 138 | F12: =D12-E12 -> -24
A13: AH | B13: 1H | C13: 7 | D13: =SUMIF($A$18:$A$69,$A13,$B$18:$B$69)+SUMIF($C$18:$C$69,$A13,$D$18:$D$69) -> 84 | E13: 168 | F13: =D13-E13 -> -84
A15: 1er MATCH le | B15: à | C15: AA
G16: SI forfait éq recevante
A17: Equipes | B17: score | C17: Equipes | D17: score | E17: Points | F17: Points
A18: AA | B18: 20 | C18: AB | D18: =IF(G18=19,19,IF(ISBLANK(B18),"",IF(B18=19,0,36-B18))) -> 16 | E18: =IF(G18=19,0,IF(ISBLANK(B18),"",IF(B18<18,1,IF(B18=18,2,IF(B18>18,3))))) -> 3 | F18: =IF(G18=19,3,IF(ISBLANK(B18),"",IF(B18=19,0,IF(D18<18,1,IF(D18=18,2,IF(D18>=20,3)))))) -> 1 | L18: =IF(B18>D18,A18&C18,IF(D18>B18,C18&A18,"/")) -> AAAB | N18: =A18&C18 -> AAAB | O18: =E18 -> 3 | P18: =C18&A18 -> ABAA | Q18: =F18 -> 1 | R18: =B18 -> 20 | S18: =D18 -> 16
A19: AC | B19: 22 | C19: AD | D19: =IF(G19=19,19,IF(ISBLANK(B19),"",IF(B19=19,0,36-B19))) -> 14 | E19: =IF(G19=19,0,IF(ISBLANK(B19),"",IF(B19<18,1,IF(B19=18,2,IF(B19>18,3))))) -> 3 | F19: =IF(G19=19,3,IF(ISBLANK(B19),"",IF(B19=19,0,IF(D19<18,1,IF(D19=18,2,IF(D19>=20,3)))))) -> 1 | L19: =IF(B19>D19,A19&C19,IF(D19>B19,C19&A19,"/")) -> ACAD | N19: =A19&C19 -> ACAD | O19: =E19 -> 3 | P19: =C19&A19 -> ADAC | Q19: =F19 -> 1 | R19: =B19 -> 22 | S19: =D19 -> 14
A20: AE | B20: 30 | C20: AF | D20: =IF(G20=19,19,IF(ISBLANK(B20),"",IF(B20=19,0,36-B20))) -> 6 | E20: =IF(G20=19,0,IF(ISBLANK(B20),"",IF(B20<18,1,IF(B20=18,2,IF(B20>18,3))))) -> 3 | F20: =IF(G20=19,3,IF(ISBLANK(B20),"",IF(B20=19,0,IF(D20<18,1,IF(D20=18,2,IF(D20>=20,3)))))) -> 1 | L20: =IF(B20>D20,A20&C20,IF(D20>B20,C20&A20,"/")) -> AEAF | N20: =A20&C20 -> AEAF | O20: =E20 -> 3 | P20: =C20&A20 -> AFAE | Q20: =F20 -> 1 | R20: =B20 -> 30 | S20: =D20 -> 6
A21: AG | B21: 24 | C21: AH | D21: =IF(G21=19,19,IF(ISBLANK(B21),"",IF(B21=19,0,36-B21))) -> 12 | E21: =IF(G21=19,0,IF(ISBLANK(B21),"",IF(B21<18,1,IF(B21=18,2,IF(B21>18,3))))) -> 3 | F21: =IF(G21=19,3,IF(ISBLANK(B21),"",IF(B21=19,0,IF(D21<18,1,IF(D21=18,2,IF(D21>=20,3)))))) -> 1 | L21: =IF(B21>D21,A21&C21,IF(D21>B21,C21&A21,"/")) -> AGAH | N21: =A21&C21 -> AGAH | O21: =E21 -> 3 | P21: =C21&A21 -> AHAG | Q21: =F21 -> 1 | R21: =B21 -> 24 | S21: =D21 -> 12
A23: 2 éme MATCH le | B23: à | C23: AB
G24: SI forfait éq recevante
A25: Equipes | B25: score | C25: Equipes | D25: score | E25: Points | F25: Points
A26: AA | B26: 36 | C26: AC | D26: =IF(G26=19,19,IF(ISBLANK(B26),"",IF(B26=19,0,36-B26))) -> 0 | E26: =IF(G26=19,0,IF(ISBLANK(B26),"",IF(B26<18,1,IF(B26=18,2,IF(B26>18,3))))) -> 3 | F26: =IF(G26=19,3,IF(ISBLANK(B26),"",IF(B26=19,0,IF(D26<18,1,IF(D26=18,2,IF(D26>=20,3)))))) -> 1 | L26: =IF(B26>D26,A26&C26,IF(D26>B26,C26&A26,"/")) -> AAAC | N26: =A26&C26 -> AAAC | O26: =E26 -> 3 | P26: =C26&A26 -> ACAA | Q26: =F26 -> 1 | R26: =B26 -> 36 | S26: =D26 -> 0
A27: AB | B27: 32 | C27: AH | D27: =IF(G27=19,19,IF(ISBLANK(B27),"",IF(B27=19,0,36-B27))) -> 4 | E27: =IF(G27=19,0,IF(ISBLANK(B27),"",IF(B27<18,1,IF(B27=18,2,IF(B27>18,3))))) -> 3 | F27: =IF(G27=19,3,IF(ISBLANK(B27),"",IF(B27=19,0,IF(D27<18,1,IF(D27=18,2,IF(D27>=20,3)))))) -> 1 | L27: =IF(B27>D27,A27&C27,IF(D27>B27,C27&A27,"/")) -> ABAH | N27: =A27&C27 -> ABAH | O27: =E27 -> 3 | P27: =C27&A27 -> AHAB | Q27: =F27 -> 1 | R27: =B27 -> 32 | S27: =D27 -> 4
A28: AD | B28: 30 | C28: AF | D28: =IF(G28=19,19,IF(ISBLANK(B28),"",IF(B28=19,0,36-B28))) -> 6 | E28: =IF(G28=19,0,IF(ISBLANK(B28),"",IF(B28<18,1,IF(B28=18,2,IF(B28>18,3))))) -> 3 | F28: =IF(G28=19,3,IF(ISBLANK(B28),"",IF(B28=19,0,IF(D28<18,1,IF(D28=18,2,IF(D28>=20,3)))))) -> 1 | L28: =IF(B28>D28,A28&C28,IF(D28>B28,C28&A28,"/")) -> ADAF | N28: =A28&C28 -> ADAF | O28: =E28 -> 3 | P28: =C28&A28 -> AFAD | Q28: =F28 -> 1 | R28: =B28 -> 30 | S28: =D28 -> 6
A29: AE | B29: 20 | C29: AG | D29: =IF(G29=19,19,IF(ISBLANK(B29),"",IF(B29=19,0,36-B29))) -> 16 | E29: =IF(G29=19,0,IF(ISBLANK(B29),"",IF(B29<18,1,IF(B29=18,2,IF(B29>18,3))))) -> 3 | F29: =IF(G29=19,3,IF(ISBLANK(B29),"",IF(B29=19,0,IF(D29<18,1,IF(D29=18,2,IF(D29>=20,3)))))) -> 1 | L29: =IF(B29>D29,A29&C29,IF(D29>B29,C29&A29,"/")) -> AEAG | N29: =A29&C29 -> AEAG | O29: =E29 -> 3 | P29: =C29&A29 -> AGAE | Q29: =F29 -> 1 | R29: =B29 -> 20 | S29: =D29 -> 16
A31: 3 éme MATCH le | B31: à | C31: AC
G32: SI forfait éq recevante
A33: Equipes | B33: score | C33: Equipes | D33: score | E33: Points | F33: Points
A34: AA | B34: 20 | C34: AH | D34: =IF(G34=19,19,IF(ISBLANK(B34),"",IF(B34=19,0,36-B34))) -> 16 | E34: =IF(G34=19,0,IF(ISBLANK(B34),"",IF(B34<18,1,IF(B34=18,2,IF(B34>18,3))))) -> 3 | F34: =IF(G34=19,3,IF(ISBLANK(B34),"",IF(B34=19,0,IF(D34<18,1,IF(D34=18,2,IF(D34>=20,3)))))) -> 1 | L34: =IF(B34>D34,A34&C34,IF(D34>B34,C34&A34,"/")) -> AAAH | N34: =A34&C34 -> AAAH | O34: =E34 -> 3 | P34: =C34&A34 -> AHAA | Q34: =F34 -> 1 | R34: =B34 -> 20 | S34: =D34 -> 16
A35: AB | B35: 24 | C35: AE | D35: =IF(G35=19,19,IF(ISBLANK(B35),"",IF(B35=19,0,36-B35))) -> 12 | E35: =IF(G35=19,0,IF(ISBLANK(B35),"",IF(B35<18,1,IF(B35=18,2,IF(B35>18,3))))) -> 3 | F35: =IF(G35=19,3,IF(ISBLANK(B35),"",IF(B35=19,0,IF(D35<18,1,IF(D35=18,2,IF(D35>=20,3)))))) -> 1 | L35: =IF(B35>D35,A35&C35,IF(D35>B35,C35&A35,"/")) -> ABAE | N35: =A35&C35 -> ABAE | O35: =E35 -> 3 | P35: =C35&A35 -> AEAB | Q35: =F35 -> 1 | R35: =B35 -> 24 | S35: =D35 -> 12
A36: AC | B36: 20 | C36: AF | D36: =IF(G36=19,19,IF(ISBLANK(B36),"",IF(B36=19,0,36-B36))) -> 16 | E36: =IF(G36=19,0,IF(ISBLANK(B36),"",IF(B36<18,1,IF(B36=18,2,IF(B36>18,3))))) -> 3 | F36: =IF(G36=19,3,IF(ISBLANK(B36),"",IF(B36=19,0,IF(D36<18,1,IF(D36=18,2,IF(D36>=20,3)))))) -> 1 | L36: =IF(B36>D36,A36&C36,IF(D36>B36,C36&A36,"/")) -> ACAF | N36: =A36&C36 -> ACAF | O36: =E36 -> 3 | P36: =C36&A36 -> AFAC | Q36: =F36 -> 1 | R36: =B36 -> 20 | S36: =D36 -> 16
A37: AD | B37: 22 | C37: AG | D37: =IF(G37=19,19,IF(ISBLANK(B37),"",IF(B37=19,0,36-B37))) -> 14 | E37: =IF(G37=19,0,IF(ISBLANK(B37),"",IF(B37<18,1,IF(B37=18,2,IF(B37>18,3))))) -> 3 | F37: =IF(G37=19,3,IF(ISBLANK(B37),"",IF(B37=19,0,IF(D37<18,1,IF(D37=18,2,IF(D37>=20,3)))))) -> 1 | L37: =IF(B37>D37,A37&C37,IF(D37>B37,C37&A37,"/")) -> ADAG | N37: =A37&C37 -> ADAG | O37: =E37 -> 3 | P37: =C37&A37 -> AGAD | Q37: =F37 -> 1 | R37: =B37 -> 22 | S37: =D37 -> 14
A39: 4 éme MATCH le | B39: à | C39: AD
G40: SI forfait éq recevante
A41: Equipes | B41: score | C41: Equipes | D41: score | E41: Points | F41: Points
A42: AA | B42: 20 | C42: AD | D42: =IF(G42=19,19,IF(ISBLANK(B42),"",IF(B42=19,0,36-B42))) -> 16 | E42: =IF(G42=19,0,IF(ISBLANK(B42),"",IF(B42<18,1,IF(B42=18,2,IF(B42>18,3))))) -> 3 | F42: =IF(G42=19,3,IF(ISBLANK(B42),"",IF(B42=19,0,IF(D42<18,1,IF(D42=18,2,IF(D42>=20,3)))))) -> 1 | L42: =IF(B42>D42,A42&C42,IF(D42>B42,C42&A42,"/")) -> AAAD | N42: =A42&C42 -> AAAD | O42: =E42 -> 3 | P42: =C42&A42 -> ADAA | Q42: =F42 -> 1 | R42: =B42 -> 20 | S42: =D42 -> 16
A43: AF | B43: 26 | C43: AG | D43: =IF(G43=19,19,IF(ISBLANK(B43),"",IF(B43=19,0,36-B43))) -> 10 | E43: =IF(G43=19,0,IF(ISBLANK(B43),"",IF(B43<18,1,IF(B43=18,2,IF(B43>18,3))))) -> 3 | F43: =IF(G43=19,3,IF(ISBLANK(B43),"",IF(B43=19,0,IF(D43<18,1,IF(D43=18,2,IF(D43>=20,3)))))) -> 1 | L43: =IF(B43>D43,A43&C43,IF(D43>B43,C43&A43,"/")) -> AFAG | N43: =A43&C43 -> AFAG | O43: =E43 -> 3 | P43: =C43&A43 -> AGAF | Q43: =F43 -> 1 | R43: =B43 -> 26 | S43: =D43 -> 10
A44: AB | B44: 32 | C44: AC | D44: =IF(G44=19,19,IF(ISBLANK(B44),"",IF(B44=19,0,36-B44))) -> 4 | E44: =IF(G44=19,0,IF(ISBLANK(B44),"",IF(B44<18,1,IF(B44=18,2,IF(B44>18,3))))) -> 3 | F44: =IF(G44=19,3,IF(ISBLANK(B44),"",IF(B44=19,0,IF(D44<18,1,IF(D44=18,2,IF(D44>=20,3)))))) -> 1 | L44: =IF(B44>D44,A44&C44,IF(D44>B44,C44&A44,"/")) -> ABAC | N44: =A44&C44 -> ABAC | O44: =E44 -> 3 | P44: =C44&A44 -> ACAB | Q44: =F44 -> 1 | R44: =B44 -> 32 | S44: =D44 -> 4
A45: AE | B45: 20 | C45: AH | D45: =IF(G45=19,19,IF(ISBLANK(B45),"",IF(B45=19,0,36-B45))) -> 16 | E45: =IF(G45=19,0,IF(ISBLANK(B45),"",IF(B45<18,1,IF(B45=18,2,IF(B45>18,3))))) -> 3 | F45: =IF(G45=19,3,IF(ISBLANK(B45),"",IF(B45=19,0,IF(D45<18,1,IF(D45=18,2,IF(D45>=20,3)))))) -> 1 | L45: =IF(B45>D45,A45&C45,IF(D45>B45,C45&A45,"/")) -> AEAH | N45: =A45&C45 -> AEAH | O45: =E45 -> 3 | P45: =C45&A45 -> AHAE | Q45: =F45 -> 1 | R45: =B45 -> 20 | S45: =D45 -> 16
A47: 5 éme MATCH le | B47: à | C47: AE
G48: SI forfait éq recevante
A49: Equipes | B49: score | C49: Equipes | D49: score | E49: Points | F49: Points
A50: AA | B50: 20 | C50: AF | D50: =IF(G50=19,19,IF(ISBLANK(B50),"",IF(B50=19,0,36-B50))) -> 16 | E50: =IF(G50=19,0,IF(ISBLANK(B50),"",IF(B50<18,1,IF(B50=18,2,IF(B50>18,3))))) -> 3 | F50: =IF(G50=19,3,IF(ISBLANK(B50),"",IF(B50=19,0,IF(D50<18,1,IF(D50=18,2,IF(D50>=20,3)))))) -> 1 | L50: =IF(B50>D50,A50&C50,IF(D50>B50,C50&A50,"/")) -> AAAF | N50: =A50&C50 -> AAAF | O50: =E50 -> 3 | P50: =C50&A50 -> AFAA | Q50: =F50 -> 1 | R50: =B50 -> 20 | S50: =D50 -> 16
A51: AD | B51: 28 | C51: AH | D51: =IF(G51=19,19,IF(ISBLANK(B51),"",IF(B51=19,0,36-B51))) -> 8 | E51: =IF(G51=19,0,IF(ISBLANK(B51),"",IF(B51<18,1,IF(B51=18,2,IF(B51>18,3))))) -> 3 | F51: =IF(G51=19,3,IF(ISBLANK(B51),"",IF(B51=19,0,IF(D51<18,1,IF(D51=18,2,IF(D51>=20,3)))))) -> 1 | L51: =IF(B51>D51,A51&C51,IF(D51>B51,C51&A51,"/")) -> ADAH | N51: =A51&C51 -> ADAH | O51: =E51 -> 3 | P51: =C51&A51 -> AHAD | Q51: =F51 -> 1 | R51: =B51 -> 28 | S51: =D51 -> 8
A52: AB | B52: 34 | C52: AG | D52: =IF(G52=19,19,IF(ISBLANK(B52),"",IF(B52=19,0,36-B52))) -> 2 | E52: =IF(G52=19,0,IF(ISBLANK(B52),"",IF(B52<18,1,IF(B52=18,2,IF(B52>18,3))))) -> 3 | F52: =IF(G52=19,3,IF(ISBLANK(B52),"",IF(B52=19,0,IF(D52<18,1,IF(D52=18,2,IF(D52>=20,3)))))) -> 1 | L52: =IF(B52>D52,A52&C52,IF(D52>B52,C52&A52,"/")) -> ABAG | N52: =A52&C52 -> ABAG | O52: =E52 -> 3 | P52: =C52&A52 -> AGAB | Q52: =F52 -> 1 | R52: =B52 -> 34 | S52: =D52 -> 2
A53: AC | B53: 20 | C53: AE | D53: =IF(G53=19,19,IF(ISBLANK(B53),"",IF(B53=19,0,36-B53))) -> 16 | E53: =IF(G53=19,0,IF(ISBLANK(B53),"",IF(B53<18,1,IF(B53=18,2,IF(B53>18,3))))) -> 3 | F53: =IF(G53=19,3,IF(ISBLANK(B53),"",IF(B53=19,0,IF(D53<18,1,IF(D53=18,2,IF(D53>=20,3)))))) -> 1 | L53: =IF(B53>D53,A53&C53,IF(D53>B53,C53&A53,"/")) -> ACAE | N53: =A53&C53 -> ACAE | O53: =E53 -> 3 | P53: =C53&A53 -> AEAC | Q53: =F53 -> 1 | R53: =B53 -> 20 | S53: =D53 -> 16
A55: 6 éme MATCH le | B55: à | C55: AF
G56: SI forfait éq recevante
A57: Equipes | B57: score | C57: Equipes | D57: score | E57: Points | F57: Points
A58: AB | B58: 30 | C58: AD | D58: =IF(G58=19,19,IF(ISBLANK(B58),"",IF(B58=19,0,36-B58))) -> 6 | E58: =IF(G58=19,0,IF(ISBLANK(B58),"",IF(B58<18,1,IF(B58=18,2,IF(B58>18,3))))) -> 3 | F58: =IF(G58=19,3,IF(ISBLANK(B58),"",IF(B58=19,0,IF(D58<18,1,IF(D58=18,2,IF(D58>=20,3)))))) -> 1 | L58: =IF(B58>D58,A58&C58,IF(D58>B58,C58&A58,"/")) -> ABAD | N58: =A58&C58 -> ABAD | O58: =E58 -> 3 | P58: =C58&A58 -> ADAB | Q58: =F58 -> 1 | R58: =B58 -> 30 | S58: =D58 -> 6
A59: AE | B59: 24 | C59: AA | D59: =IF(G59=19,19,IF(ISBLANK(B59),"",IF(B59=19,0,36-B59))) -> 12 | E59: =IF(G59=19,0,IF(ISBLANK(B59),"",IF(B59<18,1,IF(B59=18,2,IF(B59>18,3))))) -> 3 | F59: =IF(G59=19,3,IF(ISBLANK(B59),"",IF(B59=19,0,IF(D59<18,1,IF(D59=18,2,IF(D59>=20,3)))))) -> 1 | L59: =IF(B59>D59,A59&C59,IF(D59>B59,C59&A59,"/")) -> AEAA | N59: =A59&C59 -> AEAA | O59: =E59 -> 3 | P59: =C59&A59 -> AAAE | Q59: =F59 -> 1 | R59: =B59 -> 24 | S59: =D59 -> 12
A60: AG | B60: 32 | C60: AC | D60: =IF(G60=19,19,IF(ISBLANK(B60),"",IF(B60=19,0,36-B60))) -> 4 | E60: =IF(G60=19,0,IF(ISBLANK(B60),"",IF(B60<18,1,IF(B60=18,2,IF(B60>18,3))))) -> 3 | F60: =IF(G60=19,3,IF(ISBLANK(B60),"",IF(B60=19,0,IF(D60<18,1,IF(D60=18,2,IF(D60>=20,3)))))) -> 1 | L60: =IF(B60>D60,A60&C60,IF(D60>B60,C60&A60,"/")) -> AGAC | N60: =A60&C60 -> AGAC | O60: =E60 -> 3 | P60: =C60&A60 -> ACAG | Q60: =F60 -> 1 | R60: =B60 -> 32 | S60: =D60 -> 4
A61: AF | B61: 22 | C61: AH | D61: =IF(G61=19,19,IF(ISBLANK(B61),"",IF(B61=19,0,36-B61))) -> 14 | E61: =IF(G61=19,0,IF(ISBLANK(B61),"",IF(B61<18,1,IF(B61=18,2,IF(B61>18,3))))) -> 3 | F61: =IF(G61=19,3,IF(ISBLANK(B61),"",IF(B61=19,0,IF(D61<18,1,IF(D61=18,2,IF(D61>=20,3)))))) -> 1 | L61: =IF(B61>D61,A61&C61,IF(D61>B61,C61&A61,"/")) -> AFAH | N61: =A61&C61 -> AFAH | O61: =E61 -> 3 | P61: =C61&A61 -> AHAF | Q61: =F61 -> 1 | R61: =B61 -> 22 | S61: =D61 -> 14
A63: 7 éme MATCH le | B63: à | C63: AG
G64: SI forfait éq recevante
A65: Equipes | B65: score | C65: Equipes | D65: score | E65: Points | F65: Points
A66: AA | B66: 20 | C66: AG | D66: =IF(G66=19,19,IF(ISBLANK(B66),"",IF(B66=19,0,36-B66))) -> 16 | E66: =IF(G66=19,0,IF(ISBLANK(B66),"",IF(B66<18,1,IF(B66=18,2,IF(B66>18,3))))) -> 3 | F66: =IF(G66=19,3,IF(ISBLANK(B66),"",IF(B66=19,0,IF(D66<18,1,IF(D66=18,2,IF(D66>=20,3)))))) -> 1 | L66: =IF(B66>D66,A66&C66,IF(D66>B66,C66&A66,"/")) -> AAAG | N66: =A66&C66 -> AAAG | O66: =E66 -> 3 | P66: =C66&A66 -> AGAA | Q66: =F66 -> 1 | R66: =B66 -> 20 | S66: =D66 -> 16
A67: AB | B67: 26 | C67: AF | D67: =IF(G67=19,19,IF(ISBLANK(B67),"",IF(B67=19,0,36-B67))) -> 10 | E67: =IF(G67=19,0,IF(ISBLANK(B67),"",IF(B67<18,1,IF(B67=18,2,IF(B67>18,3))))) -> 3 | F67: =IF(G67=19,3,IF(ISBLANK(B67),"",IF(B67=19,0,IF(D67<18,1,IF(D67=18,2,IF(D67>=20,3)))))) -> 1 | L67: =IF(B67>D67,A67&C67,IF(D67>B67,C67&A67,"/")) -> ABAF | N67: =A67&C67 -> ABAF | O67: =E67 -> 3 | P67: =C67&A67 -> AFAB | Q67: =F67 -> 1 | R67: =B67 -> 26 | S67: =D67 -> 10
A68: AE | B68: 24 | C68: AD | D68: =IF(G68=19,19,IF(ISBLANK(B68),"",IF(B68=19,0,36-B68))) -> 12 | E68: =IF(G68=19,0,IF(ISBLANK(B68),"",IF(B68<18,1,IF(B68=18,2,IF(B68>18,3))))) -> 3 | F68: =IF(G68=19,3,IF(ISBLANK(B68),"",IF(B68=19,0,IF(D68<18,1,IF(D68=18,2,IF(D68>=20,3)))))) -> 1 | L68: =IF(B68>D68,A68&C68,IF(D68>B68,C68&A68,"/")) -> AEAD | N68: =A68&C68 -> AEAD | O68: =E68 -> 3 | P68: =C68&A68 -> ADAE | Q68: =F68 -> 1 | R68: =B68 -> 24 | S68: =D68 -> 12
A69: AC | B69: 22 | C69: AH | D69: =IF(G69=19,19,IF(ISBLANK(B69),"",IF(B69=19,0,36-B69))) -> 14 | E69: =IF(G69=19,0,IF(ISBLANK(B69),"",IF(B69<18,1,IF(B69=18,2,IF(B69>18,3))))) -> 3 | F69: =IF(G69=19,3,IF(ISBLANK(B69),"",IF(B69=19,0,IF(D69<18,1,IF(D69=18,2,IF(D69>=20,3)))))) -> 1 | L69: =IF(B69>D69,A69&C69,IF(D69>B69,C69&A69,"/")) -> ACAH | N69: =A69&C69 -> ACAH | O69: =E69 -> 3 | P69: =C69&A69 -> AHAC | Q69: =F69 -> 1 | R69: =B69 -> 22 | S69: =D69 -> 14
C70: Si pas d'exaequo | G70: Classt Final | H70: Rencontres entre exaequos
A71: EQUIPES | C71: POINTS | D71: POUR | E71: CONTRE | F71: DIFF | H71: POINTS Exaequos | I71: Exaq | J71: n° | K71: AA | L71: AB | M71: AC | N71: AD | O71: AE | P71: AF | Q71: AG | R71: AH | S71: Pts matchs | W71: 1000000*Pts matchs +1000 (Diff + abs(diff mini) )+Pour | X71: RANG | Y71: DIFF Exaequos | Z71: POUR Exaequos
A72: AA | B72: 1A | C72: 19 | D72: 148 | E72: 104 | F72: 44 | G72: 1 | H72: =IF(S72>0,S72,"") -> 3 | I72: =COUNTIF($C$72:$C$79,C72) -> 2 | J72: =IF(AND(I72>1,COUNTIFS(I$72:I72,I72,C$72:C72,C72)=1),MAX(J$71:J71)+1,"") -> 1 | K72: =IF($A72=K$71,"",IF(INDEX($C$72:$C$79,MATCH(K$71,$A$72:$A$79,0))=$C72,IFERROR(VLOOKUP($A72&K$71,$N$18:$O$69,2,0), VLOOKUP(K$71&$A72,$N$18:$Q$69,4,0)), "")) ->  | L72: 3 | S72: =SUM(K72:R72) -> 3 | W72: =IF(I72<3,S72*1000000+(F72+ABS(MIN($F$72:$F$79)))*1000+D72,S72*1000000+U96*1000+Z72) -> 3128148 | X72: =IF(I72>2,RANK(W72,OFFSET(W$71,MATCH(I72,$I$72:$I$79,0),,I72))) -> FALSE | Y72: =IF(S96=0,"",S96) -> 4 | Z72: =IF(S80=0,"",S80) -> 20
A73: AB | B73: 1B | C73: 19 | D73: 194 | E73: 58 | F73: 136 | G73: 2 | H73: 1 | I73: 2 | J73: =IF(AND(I73>1,COUNTIFS(I$72:I73,I73,C$72:C73,C73)=1),MAX(J$71:J72)+1,"") ->  | K73: 1 | S73: =SUM(K73:R73) -> 1 | W73: =IF(I73<3,S73*1000000+(F73+ABS(MIN($F$72:$F$79)))*1000+D73,S73*1000000+U97*1000+Z73) -> 1220194 | X73: =IF(I73>2,RANK(W73,OFFSET(W$71,MATCH(I73,$I$72:$I$79,0),,I73))) -> FALSE | Y73: -4 | Z73: 16
A74: AE | B74: 1E | C74: 17 | D74: 146 | E74: 106 | F74: 40 | G74: 3 | I74: 1 | J74: =IF(AND(I74>1,COUNTIFS(I$72:I74,I74,C$72:C74,C74)=1),MAX(J$71:J73)+1,"") ->  | S74: 0 | W74: 124146 | X74: FALSE
A75: AC | B75: 1C | C75: 15 | D75: 92 | E75: 160 | F75: -68 | G75: 4 | I75: 1 | J75: =IF(AND(I75>1,COUNTIFS(I$72:I75,I75,C$72:C75,C75)=1),MAX(J$71:J74)+1,"") ->  | S75: 0 | W75: 16092 | X75: FALSE
A76: AD | B76: 1D | C76: 13 | D76: 128 | E76: 124 | F76: 4 | G76: 5 | I76: 1 | J76: =IF(AND(I76>1,COUNTIFS(I$72:I76,I76,C$72:C76,C76)=1),MAX(J$71:J75)+1,"") ->  | S76: 0 | W76: 88128 | X76: FALSE
A77: AF | B77: 1F | C77: 11 | D77: 102 | E77: 150 | F77: -48 | G77: 6 | H77: 3 | I77: 2 | J77: =IF(AND(I77>1,COUNTIFS(I$72:I77,I77,C$72:C77,C77)=1),MAX(J$71:J76)+1,"") -> 2 | Q77: 3 | S77: 3 | W77: 3036102 | X77: FALSE | Y77: 16 | Z77: 26
A78: AG | B78: 1G | C78: 11 | D78: 114 | E78: 138 | F78: -24 | G78: 7 | H78: 1 | I78: 2 | J78: =IF(AND(I78>1,COUNTIFS(I$72:I78,I78,C$72:C78,C78)=1),MAX(J$71:J77)+1,"") ->  | P78: 1 | S78: 1 | W78: 1060114 | X78: FALSE | Y78: -16 | Z78: 10
A79: AH | B79: 1H | C79: 7 | D79: 84 | E79: 168 | F79: -84 | G79: 8 | I79: 1 | J79: =IF(AND(I79>1,COUNTIFS(I$72:I79,I79,C$72:C79,C79)=1),MAX(J$71:J78)+1,"") ->  | S79: 0 | W79: 84 | X79: FALSE
I80: POUR | J80: =A72 -> AA | K80: =IF($A72=K$71,"",IF(INDEX($C$72:$C$79,MATCH(K$71,$A$72:$A$79,0))=$C72,IFERROR(VLOOKUP($A72&K$71,$N$18:$R$69,5,0), VLOOKUP(K$71&$A72,$N$18:$S$69,6,0)), "")) ->  | L80: 20 | S80: 20
J81: AB | K81: 16 | S81: 16
J82: AE | S82: 0
J83: AC | S83: 0
J84: AD | S84: 0
J85: AF | Q85: 26 | S85: 26
J86: AG | P86: 10 | S86: 10
J87: AH | S87: 0
I88: CONTRE | J88: =J80 -> AA | K88: =INDEX($K$80:$R$87,MATCH(K$71,$J$80:$J$87,0),MATCH($J80,$K$71:$R$71,0)) ->  | L88: =INDEX($K$80:$R$87,MATCH(L$71,$J$80:$J$87,0),MATCH($J80,$K$71:$R$71,0)) -> 16 | S88: 16
J89: =J81 -> AB | K89: =INDEX($K$80:$R$87,MATCH(K$71,$J$80:$J$87,0),MATCH($J81,$K$71:$R$71,0)) -> 20 | S89: 20
J90: AE | S90: 0
J91: AC | S91: 0
J92: AD | S92: 0
J93: AF | Q93: 10 | S93: 10
J94: AG | P94: 26 | S94: 26
J95: AH | S95: 0 | U95: Diff pondérée
I96: DIFF | J96: =J88 -> AA | S96: =S80-S88 -> 4 | U96: =S96+ABS(MIN($S$96:$S$103)) -> 20
J97: =J89 -> AB | S97: =S81-S89 -> -4 | U97: 12
J98: AE | S98: 0 | U98: 16
J99: AC | S99: 0 | U99: 16
J100: AD | S100: 0 | U100: 16
J101: AF | S101: 16 | U101: 32
J102: AG | S102: -16 | U102: =S102+ABS(MIN($S$96:$S$103)) -> 0
J103: AH | S103: 0 | U103: =S103+ABS(MIN($S$96:$S$103)) -> 16

Sheet P9
G1: 3
A2: CHAMPIONNAT DES CLUBS
A4: POULE 1
A5: EQUIPES | C5: POINTS | D5: Pour | E5: Contre | F5: Diff
A6: AA | B6: 1A | C6: =SUMIF($A$18:$A$69,A6,$E$18:$E$69)+SUMIF($C$18:$C$69,A6,$F$18:$F$69) -> 9 | D6: =SUMIF($A$18:$A$69,$A6,$B$18:$B$69)+SUMIF($C$18:$C$69,$A6,$D$18:$D$69) -> 100 | E6: =SUMIF($C$18:$C$69,$A6,$B$18:$B$69)+SUMIF($A$18:$A$69,$A6,$D$18:$D$69) -> 152 | F6: =D6-E6 -> -52
A7: AB | B7: 1B | C7: =SUMIF($A$18:$A$69,A7,$E$18:$E$69)+SUMIF($C$18:$C$69,A7,$F$18:$F$69) -> 9 | D7: =SUMIF($A$18:$A$69,$A7,$B$18:$B$69)+SUMIF($C$18:$C$69,$A7,$D$18:$D$69) -> 52 | E7: =SUMIF($C$18:$C$69,$A7,$B$18:$B$69)+SUMIF($A$18:$A$69,$A7,$D$18:$D$69) -> 200 | F7: -148
A8: AC | B8: 1C | C8: =SUMIF($A$18:$A$69,A8,$E$18:$E$69)+SUMIF($C$18:$C$69,A8,$F$18:$F$69) -> 13 | D8: 120 | E8: 132 | F8: -12
A9: AD | B9: 1D | C9: 15 | D9: 126 | E9: 126 | F9: 0
A10: AE | B10: 1E | C10: 11 | D10: 112 | E10: 140 | F10: -28
A11: AF | B11: 1F | C11: 17 | D11: 150 | E11: 102 | F11: 48
A12: AG | B12: 1G | C12: 17 | D12: 154 | E12: 98 | F12: =D12-E12 -> 56
A13: AH | B13: 1H | C13: 21 | D13: =SUMIF($A$18:$A$69,$A13,$B$18:$B$69)+SUMIF($C$18:$C$69,$A13,$D$18:$D$69) -> 194 | E13: 58 | F13: =D13-E13 -> 136
A15: 1er MATCH le | B15: à | C15: AA
G16: SI forfait éq recevante
A17: Equipes | B17: score | C17: Equipes | D17: score | E17: Points | F17: Points
A18: AA | B18: 16 | C18: AB | D18: =IF(G18=19,19,IF(ISBLANK(B18),"",IF(B18=19,0,36-B18))) -> 20 | E18: =IF(G18=19,0,IF(ISBLANK(B18),"",IF(B18<18,1,IF(B18=18,2,IF(B18>18,3))))) -> 1 | F18: =IF(G18=19,3,IF(ISBLANK(B18),"",IF(B18=19,0,IF(D18<18,1,IF(D18=18,2,IF(D18>=20,3)))))) -> 3 | L18: =IF(B18>D18,A18&C18,IF(D18>B18,C18&A18,"/")) -> ABAA | N18: =A18&C18 -> AAAB | O18: =E18 -> 1 | P18: =C18&A18 -> ABAA | Q18: =F18 -> 3 | R18: =B18 -> 16 | S18: =D18 -> 20
A19: AC | B19: 14 | C19: AD | D19: =IF(G19=19,19,IF(ISBLANK(B19),"",IF(B19=19,0,36-B19))) -> 22 | E19: =IF(G19=19,0,IF(ISBLANK(B19),"",IF(B19<18,1,IF(B19=18,2,IF(B19>18,3))))) -> 1 | F19: =IF(G19=19,3,IF(ISBLANK(B19),"",IF(B19=19,0,IF(D19<18,1,IF(D19=18,2,IF(D19>=20,3)))))) -> 3 | L19: =IF(B19>D19,A19&C19,IF(D19>B19,C19&A19,"/")) -> ADAC | N19: =A19&C19 -> ACAD | O19: =E19 -> 1 | P19: =C19&A19 -> ADAC | Q19: =F19 -> 3 | R19: =B19 -> 14 | S19: =D19 -> 22
A20: AE | B20: 12 | C20: AF | D20: =IF(G20=19,19,IF(ISBLANK(B20),"",IF(B20=19,0,36-B20))) -> 24 | E20: =IF(G20=19,0,IF(ISBLANK(B20),"",IF(B20<18,1,IF(B20=18,2,IF(B20>18,3))))) -> 1 | F20: =IF(G20=19,3,IF(ISBLANK(B20),"",IF(B20=19,0,IF(D20<18,1,IF(D20=18,2,IF(D20>=20,3)))))) -> 3 | L20: =IF(B20>D20,A20&C20,IF(D20>B20,C20&A20,"/")) -> AFAE | N20: =A20&C20 -> AEAF | O20: =E20 -> 1 | P20: =C20&A20 -> AFAE | Q20: =F20 -> 3 | R20: =B20 -> 12 | S20: =D20 -> 24
A21: AG | B21: 16 | C21: AH | D21: =IF(G21=19,19,IF(ISBLANK(B21),"",IF(B21=19,0,36-B21))) -> 20 | E21: =IF(G21=19,0,IF(ISBLANK(B21),"",IF(B21<18,1,IF(B21=18,2,IF(B21>18,3))))) -> 1 | F21: =IF(G21=19,3,IF(ISBLANK(B21),"",IF(B21=19,0,IF(D21<18,1,IF(D21=18,2,IF(D21>=20,3)))))) -> 3 | L21: =IF(B21>D21,A21&C21,IF(D21>B21,C21&A21,"/")) -> AHAG | N21: =A21&C21 -> AGAH | O21: =E21 -> 1 | P21: =C21&A21 -> AHAG | Q21: =F21 -> 3 | R21: =B21 -> 16 | S21: =D21 -> 20
A23: 2 éme MATCH le | B23: à | C23: AB
G24: SI forfait éq recevante
A25: Equipes | B25: score | C25: Equipes | D25: score | E25: Points | F25: Points
A26: AA | B26: 10 | C26: AC | D26: =IF(G26=19,19,IF(ISBLANK(B26),"",IF(B26=19,0,36-B26))) -> 26 | E26: =IF(G26=19,0,IF(ISBLANK(B26),"",IF(B26<18,1,IF(B26=18,2,IF(B26>18,3))))) -> 1 | F26: =IF(G26=19,3,IF(ISBLANK(B26),"",IF(B26=19,0,IF(D26<18,1,IF(D26=18,2,IF(D26>=20,3)))))) -> 3 | L26: =IF(B26>D26,A26&C26,IF(D26>B26,C26&A26,"/")) -> ACAA | N26: =A26&C26 -> AAAC | O26: =E26 -> 1 | P26: =C26&A26 -> ACAA | Q26: =F26 -> 3 | R26: =B26 -> 10 | S26: =D26 -> 26
A27: AB | B27: 2 | C27: AH | D27: =IF(G27=19,19,IF(ISBLANK(B27),"",IF(B27=19,0,36-B27))) -> 34 | E27: =IF(G27=19,0,IF(ISBLANK(B27),"",IF(B27<18,1,IF(B27=18,2,IF(B27>18,3))))) -> 1 | F27: =IF(G27=19,3,IF(ISBLANK(B27),"",IF(B27=19,0,IF(D27<18,1,IF(D27=18,2,IF(D27>=20,3)))))) -> 3 | L27: =IF(B27>D27,A27&C27,IF(D27>B27,C27&A27,"/")) -> AHAB | N27: =A27&C27 -> ABAH | O27: =E27 -> 1 | P27: =C27&A27 -> AHAB | Q27: =F27 -> 3 | R27: =B27 -> 2 | S27: =D27 -> 34
A28: AD | B28: 6 | C28: AF | D28: =IF(G28=19,19,IF(ISBLANK(B28),"",IF(B28=19,0,36-B28))) -> 30 | E28: =IF(G28=19,0,IF(ISBLANK(B28),"",IF(B28<18,1,IF(B28=18,2,IF(B28>18,3))))) -> 1 | F28: =IF(G28=19,3,IF(ISBLANK(B28),"",IF(B28=19,0,IF(D28<18,1,IF(D28=18,2,IF(D28>=20,3)))))) -> 3 | L28: =IF(B28>D28,A28&C28,IF(D28>B28,C28&A28,"/")) -> AFAD | N28: =A28&C28 -> ADAF | O28: =E28 -> 1 | P28: =C28&A28 -> AFAD | Q28: =F28 -> 3 | R28: =B28 -> 6 | S28: =D28 -> 30
A29: AE | B29: 14 | C29: AG | D29: =IF(G29=19,19,IF(ISBLANK(B29),"",IF(B29=19,0,36-B29))) -> 22 | E29: =IF(G29=19,0,IF(ISBLANK(B29),"",IF(B29<18,1,IF(B29=18,2,IF(B29>18,3))))) -> 1 | F29: =IF(G29=19,3,IF(ISBLANK(B29),"",IF(B29=19,0,IF(D29<18,1,IF(D29=18,2,IF(D29>=20,3)))))) -> 3 | L29: =IF(B29>D29,A29&C29,IF(D29>B29,C29&A29,"/")) -> AGAE | N29: =A29&C29 -> AEAG | O29: =E29 -> 1 | P29: =C29&A29 -> AGAE | Q29: =F29 -> 3 | R29: =B29 -> 14 | S29: =D29 -> 22
A31: 3 éme MATCH le | B31: à | C31: AC
G32: SI forfait éq recevante
A33: Equipes | B33: score | C33: Equipes | D33: score | E33: Points | F33: Points
A34: AA | B34: 8 | C34: AH | D34: =IF(G34=19,19,IF(ISBLANK(B34),"",IF(B34=19,0,36-B34))) -> 28 | E34: =IF(G34=19,0,IF(ISBLANK(B34),"",IF(B34<18,1,IF(B34=18,2,IF(B34>18,3))))) -> 1 | F34: =IF(G34=19,3,IF(ISBLANK(B34),"",IF(B34=19,0,IF(D34<18,1,IF(D34=18,2,IF(D34>=20,3)))))) -> 3 | L34: =IF(B34>D34,A34&C34,IF(D34>B34,C34&A34,"/")) -> AHAA | N34: =A34&C34 -> AAAH | O34: =E34 -> 1 | P34: =C34&A34 -> AHAA | Q34: =F34 -> 3 | R34: =B34 -> 8 | S34: =D34 -> 28
A35: AB | B35: 0 | C35: AE | D35: =IF(G35=19,19,IF(ISBLANK(B35),"",IF(B35=19,0,36-B35))) -> 36 | E35: =IF(G35=19,0,IF(ISBLANK(B35),"",IF(B35<18,1,IF(B35=18,2,IF(B35>18,3))))) -> 1 | F35: =IF(G35=19,3,IF(ISBLANK(B35),"",IF(B35=19,0,IF(D35<18,1,IF(D35=18,2,IF(D35>=20,3)))))) -> 3 | L35: =IF(B35>D35,A35&C35,IF(D35>B35,C35&A35,"/")) -> AEAB | N35: =A35&C35 -> ABAE | O35: =E35 -> 1 | P35: =C35&A35 -> AEAB | Q35: =F35 -> 3 | R35: =B35 -> 0 | S35: =D35 -> 36
A36: AC | B36: 6 | C36: AF | D36: =IF(G36=19,19,IF(ISBLANK(B36),"",IF(B36=19,0,36-B36))) -> 30 | E36: =IF(G36=19,0,IF(ISBLANK(B36),"",IF(B36<18,1,IF(B36=18,2,IF(B36>18,3))))) -> 1 | F36: =IF(G36=19,3,IF(ISBLANK(B36),"",IF(B36=19,0,IF(D36<18,1,IF(D36=18,2,IF(D36>=20,3)))))) -> 3 | L36: =IF(B36>D36,A36&C36,IF(D36>B36,C36&A36,"/")) -> AFAC | N36: =A36&C36 -> ACAF | O36: =E36 -> 1 | P36: =C36&A36 -> AFAC | Q36: =F36 -> 3 | R36: =B36 -> 6 | S36: =D36 -> 30
A37: AD | B37: 4 | C37: AG | D37: =IF(G37=19,19,IF(ISBLANK(B37),"",IF(B37=19,0,36-B37))) -> 32 | E37: =IF(G37=19,0,IF(ISBLANK(B37),"",IF(B37<18,1,IF(B37=18,2,IF(B37>18,3))))) -> 1 | F37: =IF(G37=19,3,IF(ISBLANK(B37),"",IF(B37=19,0,IF(D37<18,1,IF(D37=18,2,IF(D37>=20,3)))))) -> 3 | L37: =IF(B37>D37,A37&C37,IF(D37>B37,C37&A37,"/")) -> AGAD | N37: =A37&C37 -> ADAG | O37: =E37 -> 1 | P37: =C37&A37 -> AGAD | Q37: =F37 -> 3 | R37: =B37 -> 4 | S37: =D37 -> 32
A39: 4 éme MATCH le | B39: à | C39: AD
G40: SI forfait éq recevante
A41: Equipes | B41: score | C41: Equipes | D41: score | E41: Points | F41: Points
A42: AA | B42: 8 | C42: AD | D42: =IF(G42=19,19,IF(ISBLANK(B42),"",IF(B42=19,0,36-B42))) -> 28 | E42: =IF(G42=19,0,IF(ISBLANK(B42),"",IF(B42<18,1,IF(B42=18,2,IF(B42>18,3))))) -> 1 | F42: =IF(G42=19,3,IF(ISBLANK(B42),"",IF(B42=19,0,IF(D42<18,1,IF(D42=18,2,IF(D42>=20,3)))))) -> 3 | L42: =IF(B42>D42,A42&C42,IF(D42>B42,C42&A42,"/")) -> ADAA | N42: =A42&C42 -> AAAD | O42: =E42 -> 1 | P42: =C42&A42 -> ADAA | Q42: =F42 -> 3 | R42: =B42 -> 8 | S42: =D42 -> 28
A43: AF | B43: 10 | C43: AG | D43: =IF(G43=19,19,IF(ISBLANK(B43),"",IF(B43=19,0,36-B43))) -> 26 | E43: =IF(G43=19,0,IF(ISBLANK(B43),"",IF(B43<18,1,IF(B43=18,2,IF(B43>18,3))))) -> 1 | F43: =IF(G43=19,3,IF(ISBLANK(B43),"",IF(B43=19,0,IF(D43<18,1,IF(D43=18,2,IF(D43>=20,3)))))) -> 3 | L43: =IF(B43>D43,A43&C43,IF(D43>B43,C43&A43,"/")) -> AGAF | N43: =A43&C43 -> AFAG | O43: =E43 -> 1 | P43: =C43&A43 -> AGAF | Q43: =F43 -> 3 | R43: =B43 -> 10 | S43: =D43 -> 26
A44: AB | B44: 14 | C44: AC | D44: =IF(G44=19,19,IF(ISBLANK(B44),"",IF(B44=19,0,36-B44))) -> 22 | E44: =IF(G44=19,0,IF(ISBLANK(B44),"",IF(B44<18,1,IF(B44=18,2,IF(B44>18,3))))) -> 1 | F44: =IF(G44=19,3,IF(ISBLANK(B44),"",IF(B44=19,0,IF(D44<18,1,IF(D44=18,2,IF(D44>=20,3)))))) -> 3 | L44: =IF(B44>D44,A44&C44,IF(D44>B44,C44&A44,"/")) -> ACAB | N44: =A44&C44 -> ABAC | O44: =E44 -> 1 | P44: =C44&A44 -> ACAB | Q44: =F44 -> 3 | R44: =B44 -> 14 | S44: =D44 -> 22
A45: AE | B45: 16 | C45: AH | D45: =IF(G45=19,19,IF(ISBLANK(B45),"",IF(B45=19,0,36-B45))) -> 20 | E45: =IF(G45=19,0,IF(ISBLANK(B45),"",IF(B45<18,1,IF(B45=18,2,IF(B45>18,3))))) -> 1 | F45: =IF(G45=19,3,IF(ISBLANK(B45),"",IF(B45=19,0,IF(D45<18,1,IF(D45=18,2,IF(D45>=20,3)))))) -> 3 | L45: =IF(B45>D45,A45&C45,IF(D45>B45,C45&A45,"/")) -> AHAE | N45: =A45&C45 -> AEAH | O45: =E45 -> 1 | P45: =C45&A45 -> AHAE | Q45: =F45 -> 3 | R45: =B45 -> 16 | S45: =D45 -> 20
A47: 5 éme MATCH le | B47: à | C47: AE
G48: SI forfait éq recevante
A49: Equipes | B49: score | C49: Equipes | D49: score | E49: Points | F49: Points
A50: AA | B50: 10 | C50: AF | D50: =IF(G50=19,19,IF(ISBLANK(B50),"",IF(B50=19,0,36-B50))) -> 26 | E50: =IF(G50=19,0,IF(ISBLANK(B50),"",IF(B50<18,1,IF(B50=18,2,IF(B50>18,3))))) -> 1 | F50: =IF(G50=19,3,IF(ISBLANK(B50),"",IF(B50=19,0,IF(D50<18,1,IF(D50=18,2,IF(D50>=20,3)))))) -> 3 | L50: =IF(B50>D50,A50&C50,IF(D50>B50,C50&A50,"/")) -> AFAA | N50: =A50&C50 -> AAAF | O50: =E50 -> 1 | P50: =C50&A50 -> AFAA | Q50: =F50 -> 3 | R50: =B50 -> 10 | S50: =D50 -> 26
A51: AD | B51: 4 | C51: AH | D51: =IF(G51=19,19,IF(ISBLANK(B51),"",IF(B51=19,0,36-B51))) -> 32 | E51: =IF(G51=19,0,IF(ISBLANK(B51),"",IF(B51<18,1,IF(B51=18,2,IF(B51>18,3))))) -> 1 | F51: =IF(G51=19,3,IF(ISBLANK(B51),"",IF(B51=19,0,IF(D51<18,1,IF(D51=18,2,IF(D51>=20,3)))))) -> 3 | L51: =IF(B51>D51,A51&C51,IF(D51>B51,C51&A51,"/")) -> AHAD | N51: =A51&C51 -> ADAH | O51: =E51 -> 1 | P51: =C51&A51 -> AHAD | Q51: =F51 -> 3 | R51: =B51 -> 4 | S51: =D51 -> 32
A52: AB | B52: 4 | C52: AG | D52: =IF(G52=19,19,IF(ISBLANK(B52),"",IF(B52=19,0,36-B52))) -> 32 | E52: =IF(G52=19,0,IF(ISBLANK(B52),"",IF(B52<18,1,IF(B52=18,2,IF(B52>18,3))))) -> 1 | F52: =IF(G52=19,3,IF(ISBLANK(B52),"",IF(B52=19,0,IF(D52<18,1,IF(D52=18,2,IF(D52>=20,3)))))) -> 3 | L52: =IF(B52>D52,A52&C52,IF(D52>B52,C52&A52,"/")) -> AGAB | N52: =A52&C52 -> ABAG | O52: =E52 -> 1 | P52: =C52&A52 -> AGAB | Q52: =F52 -> 3 | R52: =B52 -> 4 | S52: =D52 -> 32
A53: AC | B53: 14 | C53: AE | D53: =IF(G53=19,19,IF(ISBLANK(B53),"",IF(B53=19,0,36-B53))) -> 22 | E53: =IF(G53=19,0,IF(ISBLANK(B53),"",IF(B53<18,1,IF(B53=18,2,IF(B53>18,3))))) -> 1 | F53: =IF(G53=19,3,IF(ISBLANK(B53),"",IF(B53=19,0,IF(D53<18,1,IF(D53=18,2,IF(D53>=20,3)))))) -> 3 | L53: =IF(B53>D53,A53&C53,IF(D53>B53,C53&A53,"/")) -> AEAC | N53: =A53&C53 -> ACAE | O53: =E53 -> 1 | P53: =C53&A53 -> AEAC | Q53: =F53 -> 3 | R53: =B53 -> 14 | S53: =D53 -> 22
A55: 6 éme MATCH le | B55: à | C55: AF
G56: SI forfait éq recevante
A57: Equipes | B57: score | C57: Equipes | D57: score | E57: Points | F57: Points
A58: AB | B58: 0 | C58: AD | D58: =IF(G58=19,19,IF(ISBLANK(B58),"",IF(B58=19,0,36-B58))) -> 36 | E58: =IF(G58=19,0,IF(ISBLANK(B58),"",IF(B58<18,1,IF(B58=18,2,IF(B58>18,3))))) -> 1 | F58: =IF(G58=19,3,IF(ISBLANK(B58),"",IF(B58=19,0,IF(D58<18,1,IF(D58=18,2,IF(D58>=20,3)))))) -> 3 | L58: =IF(B58>D58,A58&C58,IF(D58>B58,C58&A58,"/")) -> ADAB | N58: =A58&C58 -> ABAD | O58: =E58 -> 1 | P58: =C58&A58 -> ADAB | Q58: =F58 -> 3 | R58: =B58 -> 0 | S58: =D58 -> 36
A59: AE | B59: 2 | C59: AA | D59: =IF(G59=19,19,IF(ISBLANK(B59),"",IF(B59=19,0,36-B59))) -> 34 | E59: =IF(G59=19,0,IF(ISBLANK(B59),"",IF(B59<18,1,IF(B59=18,2,IF(B59>18,3))))) -> 1 | F59: =IF(G59=19,3,IF(ISBLANK(B59),"",IF(B59=19,0,IF(D59<18,1,IF(D59=18,2,IF(D59>=20,3)))))) -> 3 | L59: =IF(B59>D59,A59&C59,IF(D59>B59,C59&A59,"/")) -> AAAE | N59: =A59&C59 -> AEAA | O59: =E59 -> 1 | P59: =C59&A59 -> AAAE | Q59: =F59 -> 3 | R59: =B59 -> 2 | S59: =D59 -> 34
A60: AG | B60: 4 | C60: AC | D60: =IF(G60=19,19,IF(ISBLANK(B60),"",IF(B60=19,0,36-B60))) -> 32 | E60: =IF(G60=19,0,IF(ISBLANK(B60),"",IF(B60<18,1,IF(B60=18,2,IF(B60>18,3))))) -> 1 | F60: =IF(G60=19,3,IF(ISBLANK(B60),"",IF(B60=19,0,IF(D60<18,1,IF(D60=18,2,IF(D60>=20,3)))))) -> 3 | L60: =IF(B60>D60,A60&C60,IF(D60>B60,C60&A60,"/")) -> ACAG | N60: =A60&C60 -> AGAC | O60: =E60 -> 1 | P60: =C60&A60 -> ACAG | Q60: =F60 -> 3 | R60: =B60 -> 4 | S60: =D60 -> 32
A61: AF | B61: 6 | C61: AH | D61: =IF(G61=19,19,IF(ISBLANK(B61),"",IF(B61=19,0,36-B61))) -> 30 | E61: =IF(G61=19,0,IF(ISBLANK(B61),"",IF(B61<18,1,IF(B61=18,2,IF(B61>18,3))))) -> 1 | F61: =IF(G61=19,3,IF(ISBLANK(B61),"",IF(B61=19,0,IF(D61<18,1,IF(D61=18,2,IF(D61>=20,3)))))) -> 3 | L61: =IF(B61>D61,A61&C61,IF(D61>B61,C61&A61,"/")) -> AHAF | N61: =A61&C61 -> AFAH | O61: =E61 -> 1 | P61: =C61&A61 -> AHAF | Q61: =F61 -> 3 | R61: =B61 -> 6 | S61: =D61 -> 30
A63: 7 éme MATCH le | B63: à | C63: AG
G64: SI forfait éq recevante
A65: Equipes | B65: score | C65: Equipes | D65: score | E65: Points | F65: Points
A66: AA | B66: 14 | C66: AG | D66: =IF(G66=19,19,IF(ISBLANK(B66),"",IF(B66=19,0,36-B66))) -> 22 | E66: =IF(G66=19,0,IF(ISBLANK(B66),"",IF(B66<18,1,IF(B66=18,2,IF(B66>18,3))))) -> 1 | F66: =IF(G66=19,3,IF(ISBLANK(B66),"",IF(B66=19,0,IF(D66<18,1,IF(D66=18,2,IF(D66>=20,3)))))) -> 3 | L66: =IF(B66>D66,A66&C66,IF(D66>B66,C66&A66,"/")) -> AGAA | N66: =A66&C66 -> AAAG | O66: =E66 -> 1 | P66: =C66&A66 -> AGAA | Q66: =F66 -> 3 | R66: =B66 -> 14 | S66: =D66 -> 22
A67: AB | B67: 12 | C67: AF | D67: =IF(G67=19,19,IF(ISBLANK(B67),"",IF(B67=19,0,36-B67))) -> 24 | E67: =IF(G67=19,0,IF(ISBLANK(B67),"",IF(B67<18,1,IF(B67=18,2,IF(B67>18,3))))) -> 1 | F67: =IF(G67=19,3,IF(ISBLANK(B67),"",IF(B67=19,0,IF(D67<18,1,IF(D67=18,2,IF(D67>=20,3)))))) -> 3 | L67: =IF(B67>D67,A67&C67,IF(D67>B67,C67&A67,"/")) -> AFAB | N67: =A67&C67 -> ABAF | O67: =E67 -> 1 | P67: =C67&A67 -> AFAB | Q67: =F67 -> 3 | R67: =B67 -> 12 | S67: =D67 -> 24
A68: AE | B68: 10 | C68: AD | D68: =IF(G68=19,19,IF(ISBLANK(B68),"",IF(B68=19,0,36-B68))) -> 26 | E68: =IF(G68=19,0,IF(ISBLANK(B68),"",IF(B68<18,1,IF(B68=18,2,IF(B68>18,3))))) -> 1 | F68: =IF(G68=19,3,IF(ISBLANK(B68),"",IF(B68=19,0,IF(D68<18,1,IF(D68=18,2,IF(D68>=20,3)))))) -> 3 | L68: =IF(B68>D68,A68&C68,IF(D68>B68,C68&A68,"/")) -> ADAE | N68: =A68&C68 -> AEAD | O68: =E68 -> 1 | P68: =C68&A68 -> ADAE | Q68: =F68 -> 3 | R68: =B68 -> 10 | S68: =D68 -> 26
A69: AC | B69: 6 | C69: AH | D69: =IF(G69=19,19,IF(ISBLANK(B69),"",IF(B69=19,0,36-B69))) -> 30 | E69: =IF(G69=19,0,IF(ISBLANK(B69),"",IF(B69<18,1,IF(B69=18,2,IF(B69>18,3))))) -> 1 | F69: =IF(G69=19,3,IF(ISBLANK(B69),"",IF(B69=19,0,IF(D69<18,1,IF(D69=18,2,IF(D69>=20,3)))))) -> 3 | L69: =IF(B69>D69,A69&C69,IF(D69>B69,C69&A69,"/")) -> AHAC | N69: =A69&C69 -> ACAH | O69: =E69 -> 1 | P69: =C69&A69 -> AHAC | Q69: =F69 -> 3 | R69: =B69 -> 6 | S69: =D69 -> 30
C70: Si pas d'exaequo | G70: Classt Final | H70: Rencontres entre exaequos
A71: EQUIPES | C71: POINTS | D71: POUR | E71: CONTRE | F71: DIFF | H71: POINTS Exaequos | I71: Exaq | J71: n° | K71: AA | L71: AB | M71: AC | N71: AD | O71: AE | P71: AF | Q71: AG | R71: AH | S71: Pts matchs | W71: 1000000*Pts matchs +1000 (Diff + abs(diff mini) )+Pour | X71: RANG | Y71: DIFF Exaequos | Z71: POUR Exaequos
A72: AH | B72: 1H | C72: 21 | D72: 194 | E72: 58 | F72: 136 | G72: 1 | H72: =IF(S72>0,S72,"") ->  | I72: =COUNTIF($C$72:$C$79,C72) -> 1 | J72: =IF(AND(I72>1,COUNTIFS(I$72:I72,I72,C$72:C72,C72)=1),MAX(J$71:J71)+1,"") ->  | K72: =IF($A72=K$71,"",IF(INDEX($C$72:$C$79,MATCH(K$71,$A$72:$A$79,0))=$C72,IFERROR(VLOOKUP($A72&K$71,$N$18:$O$69,2,0), VLOOKUP(K$71&$A72,$N$18:$Q$69,4,0)), "")) ->  | S72: =SUM(K72:R72) -> 0 | W72: =IF(I72<3,S72*1000000+(F72+ABS(MIN($F$72:$F$79)))*1000+D72,S72*1000000+U96*1000+Z72) -> 284194 | X72: =IF(I72>2,RANK(W72,OFFSET(W$71,MATCH(I72,$I$72:$I$79,0),,I72))) -> FALSE | Y72: =IF(S96=0,"",S96) ->  | Z72: =IF(S80=0,"",S80) -> 
A73: AG | B73: 1G | C73: 17 | D73: 154 | E73: 98 | F73: 56 | G73: 2 | H73: 3 | I73: 2 | J73: =IF(AND(I73>1,COUNTIFS(I$72:I73,I73,C$72:C73,C73)=1),MAX(J$71:J72)+1,"") -> 1 | P73: 3 | S73: =SUM(K73:R73) -> 3 | W73: =IF(I73<3,S73*1000000+(F73+ABS(MIN($F$72:$F$79)))*1000+D73,S73*1000000+U97*1000+Z73) -> 3204154 | X73: =IF(I73>2,RANK(W73,OFFSET(W$71,MATCH(I73,$I$72:$I$79,0),,I73))) -> FALSE | Y73: 16 | Z73: 26
A74: AF | B74: 1F | C74: 17 | D74: 150 | E74: 102 | F74: 48 | G74: 3 | H74: 1 | I74: 2 | J74: =IF(AND(I74>1,COUNTIFS(I$72:I74,I74,C$72:C74,C74)=1),MAX(J$71:J73)+1,"") ->  | Q74: 1 | S74: 1 | W74: 1196150 | X74: FALSE | Y74: -16 | Z74: 10
A75: AD | B75: 1D | C75: 15 | D75: 126 | E75: 126 | F75: 0 | G75: 4 | I75: 1 | J75: =IF(AND(I75>1,COUNTIFS(I$72:I75,I75,C$72:C75,C75)=1),MAX(J$71:J74)+1,"") ->  | S75: 0 | W75: 148126 | X75: FALSE
A76: AC | B76: 1C | C76: 13 | D76: 120 | E76: 132 | F76: -12 | G76: 5 | I76: 1 | J76: =IF(AND(I76>1,COUNTIFS(I$72:I76,I76,C$72:C76,C76)=1),MAX(J$71:J75)+1,"") ->  | S76: 0 | W76: 136120 | X76: FALSE
A77: AE | B77: 1E | C77: 11 | D77: 112 | E77: 140 | F77: -28 | G77: 6 | I77: 1 | J77: =IF(AND(I77>1,COUNTIFS(I$72:I77,I77,C$72:C77,C77)=1),MAX(J$71:J76)+1,"") ->  | S77: 0 | W77: 120112 | X77: FALSE
A78: AB | B78: 1B | C78: 9 | D78: 52 | E78: 200 | F78: -148 | G78: 7 | H78: 3 | I78: 2 | J78: =IF(AND(I78>1,COUNTIFS(I$72:I78,I78,C$72:C78,C78)=1),MAX(J$71:J77)+1,"") -> 2 | K78: 3 | S78: 3 | W78: 3000052 | X78: FALSE | Y78: 4 | Z78: 20
A79: AA | B79: 1A | C79: 9 | D79: 100 | E79: 152 | F79: -52 | G79: 8 | H79: 1 | I79: 2 | J79: =IF(AND(I79>1,COUNTIFS(I$72:I79,I79,C$72:C79,C79)=1),MAX(J$71:J78)+1,"") ->  | L79: 1 | S79: 1 | W79: 1096100 | X79: FALSE | Y79: -4 | Z79: 16
I80: POUR | J80: =A72 -> AH | K80: =IF($A72=K$71,"",IF(INDEX($C$72:$C$79,MATCH(K$71,$A$72:$A$79,0))=$C72,IFERROR(VLOOKUP($A72&K$71,$N$18:$R$69,5,0), VLOOKUP(K$71&$A72,$N$18:$S$69,6,0)), "")) ->  | S80: 0
J81: AG | P81: 26 | S81: 26
J82: AF | Q82: 10 | S82: 10
J83: AD | S83: 0
J84: AC | S84: 0
J85: AE | S85: 0
J86: AB | K86: 20 | S86: 20
J87: AA | L87: 16 | S87: 16
I88: CONTRE | J88: =J80 -> AH | K88: =INDEX($K$80:$R$87,MATCH(K$71,$J$80:$J$87,0),MATCH($J80,$K$71:$R$71,0)) ->  | L88: =INDEX($K$80:$R$87,MATCH(L$71,$J$80:$J$87,0),MATCH($J80,$K$71:$R$71,0)) ->  | S88: 0
J89: =J81 -> AG | K89: =INDEX($K$80:$R$87,MATCH(K$71,$J$80:$J$87,0),MATCH($J81,$K$71:$R$71,0)) ->  | P89: 10 | S89: 10
J90: AF | Q90: 26 | S90: 26
J91: AD | S91: 0
J92: AC | S92: 0
J93: AE | S93: 0
J94: AB | K94: 16 | S94: 16
J95: AA | L95: 20 | S95: 20 | U95: Diff pondérée
I96: DIFF | J96: =J88 -> AH | S96: =S80-S88 -> 0 | U96: =S96+ABS(MIN($S$96:$S$103)) -> 16
J97: =J89 -> AG | S97: =S81-S89 -> 16 | U97: 32
J98: AF | S98: -16 | U98: 0
J99: AD | S99: 0 | U99: 16
J100: AC | S100: 0 | U100: 16
J101: AE | S101: 0 | U101: 16
J102: AB | S102: 4 | U102: =S102+ABS(MIN($S$96:$S$103)) -> 20
J103: AA | S103: -4 | U103: =S103+ABS(MIN($S$96:$S$103)) -> 12

Sheet P10
G1: 3
A2: CHAMPIONNAT DES CLUBS
A4: POULE 1
A5: EQUIPES | C5: POINTS | D5: Pour | E5: Contre | F5: Diff
A6: AA | B6: 1A | C6: =SUMIF($A$18:$A$69,A6,$E$18:$E$69)+SUMIF($C$18:$C$69,A6,$F$18:$F$69) -> 21 | D6: =SUMIF($A$18:$A$69,$A6,$B$18:$B$69)+SUMIF($C$18:$C$69,$A6,$D$18:$D$69) -> 158 | E6: =SUMIF($C$18:$C$69,$A6,$B$18:$B$69)+SUMIF($A$18:$A$69,$A6,$D$18:$D$69) -> 94 | F6: =D6-E6 -> 64
A7: AB | B7: 1B | C7: =SUMIF($A$18:$A$69,A7,$E$18:$E$69)+SUMIF($C$18:$C$69,A7,$F$18:$F$69) -> 11 | D7: =SUMIF($A$18:$A$69,$A7,$B$18:$B$69)+SUMIF($C$18:$C$69,$A7,$D$18:$D$69) -> 96 | E7: =SUMIF($C$18:$C$69,$A7,$B$18:$B$69)+SUMIF($A$18:$A$69,$A7,$D$18:$D$69) -> 156 | F7: -60
A8: AC | B8: 1C | C8: =SUMIF($A$18:$A$69,A8,$E$18:$E$69)+SUMIF($C$18:$C$69,A8,$F$18:$F$69) -> 14 | D8: 98 | E8: 154 | F8: -56
A9: AD | B9: 1D | C9: 13 | D9: 140 | E9: 112 | F9: 28
A10: AE | B10: 1E | C10: 16 | D10: 150 | E10: 102 | F10: 48
A11: AF | B11: 1F | C11: 12 | D11: 108 | E11: 144 | F11: -36
A12: AG | B12: 1G | C12: 13 | D12: 132 | E12: 120 | F12: =D12-E12 -> 12
A13: AH | B13: 1H | C13: 12 | D13: =SUMIF($A$18:$A$69,$A13,$B$18:$B$69)+SUMIF($C$18:$C$69,$A13,$D$18:$D$69) -> 126 | E13: 126 | F13: =D13-E13 -> 0
A15: 1er MATCH le | B15: à | C15: AA
G16: SI forfait éq recevante
A17: Equipes | B17: score | C17: Equipes | D17: score | E17: Points | F17: Points
A18: AA | B18: 24 | C18: AB | D18: =IF(G18=19,19,IF(ISBLANK(B18),"",IF(B18=19,0,36-B18))) -> 12 | E18: =IF(G18=19,0,IF(ISBLANK(B18),"",IF(B18<18,1,IF(B18=18,2,IF(B18>18,3))))) -> 3 | F18: =IF(G18=19,3,IF(ISBLANK(B18),"",IF(B18=19,0,IF(D18<18,1,IF(D18=18,2,IF(D18>=20,3)))))) -> 1 | L18: =IF(B18>D18,A18&C18,IF(D18>B18,C18&A18,"/")) -> AAAB | N18: =A18&C18 -> AAAB | O18: =E18 -> 3 | P18: =C18&A18 -> ABAA | Q18: =F18 -> 1 | R18: =B18 -> 24 | S18: =D18 -> 12
A19: AC | B19: 0 | C19: AD | D19: =IF(G19=19,19,IF(ISBLANK(B19),"",IF(B19=19,0,36-B19))) -> 36 | E19: =IF(G19=19,0,IF(ISBLANK(B19),"",IF(B19<18,1,IF(B19=18,2,IF(B19>18,3))))) -> 1 | F19: =IF(G19=19,3,IF(ISBLANK(B19),"",IF(B19=19,0,IF(D19<18,1,IF(D19=18,2,IF(D19>=20,3)))))) -> 3 | L19: =IF(B19>D19,A19&C19,IF(D19>B19,C19&A19,"/")) -> ADAC | N19: =A19&C19 -> ACAD | O19: =E19 -> 1 | P19: =C19&A19 -> ADAC | Q19: =F19 -> 3 | R19: =B19 -> 0 | S19: =D19 -> 36
A20: AE | B20: 28 | C20: AF | D20: =IF(G20=19,19,IF(ISBLANK(B20),"",IF(B20=19,0,36-B20))) -> 8 | E20: =IF(G20=19,0,IF(ISBLANK(B20),"",IF(B20<18,1,IF(B20=18,2,IF(B20>18,3))))) -> 3 | F20: =IF(G20=19,3,IF(ISBLANK(B20),"",IF(B20=19,0,IF(D20<18,1,IF(D20=18,2,IF(D20>=20,3)))))) -> 1 | L20: =IF(B20>D20,A20&C20,IF(D20>B20,C20&A20,"/")) -> AEAF | N20: =A20&C20 -> AEAF | O20: =E20 -> 3 | P20: =C20&A20 -> AFAE | Q20: =F20 -> 1 | R20: =B20 -> 28 | S20: =D20 -> 8
A21: AG | B21: 18 | C21: AH | D21: =IF(G21=19,19,IF(ISBLANK(B21),"",IF(B21=19,0,36-B21))) -> 18 | E21: =IF(G21=19,0,IF(ISBLANK(B21),"",IF(B21<18,1,IF(B21=18,2,IF(B21>18,3))))) -> 2 | F21: =IF(G21=19,3,IF(ISBLANK(B21),"",IF(B21=19,0,IF(D21<18,1,IF(D21=18,2,IF(D21>=20,3)))))) -> 2 | L21: =IF(B21>D21,A21&C21,IF(D21>B21,C21&A21,"/")) -> / | N21: =A21&C21 -> AGAH | O21: =E21 -> 2 | P21: =C21&A21 -> AHAG | Q21: =F21 -> 2 | R21: =B21 -> 18 | S21: =D21 -> 18
A23: 2 éme MATCH le | B23: à | C23: AB
G24: SI forfait éq recevante
A25: Equipes | B25: score | C25: Equipes | D25: score | E25: Points | F25: Points
A26: AA | B26: 22 | C26: AC | D26: =IF(G26=19,19,IF(ISBLANK(B26),"",IF(B26=19,0,36-B26))) -> 14 | E26: =IF(G26=19,0,IF(ISBLANK(B26),"",IF(B26<18,1,IF(B26=18,2,IF(B26>18,3))))) -> 3 | F26: =IF(G26=19,3,IF(ISBLANK(B26),"",IF(B26=19,0,IF(D26<18,1,IF(D26=18,2,IF(D26>=20,3)))))) -> 1 | L26: =IF(B26>D26,A26&C26,IF(D26>B26,C26&A26,"/")) -> AAAC | N26: =A26&C26 -> AAAC | O26: =E26 -> 3 | P26: =C26&A26 -> ACAA | Q26: =F26 -> 1 | R26: =B26 -> 22 | S26: =D26 -> 14
A27: AB | B27: 10 | C27: AH | D27: =IF(G27=19,19,IF(ISBLANK(B27),"",IF(B27=19,0,36-B27))) -> 26 | E27: =IF(G27=19,0,IF(ISBLANK(B27),"",IF(B27<18,1,IF(B27=18,2,IF(B27>18,3))))) -> 1 | F27: =IF(G27=19,3,IF(ISBLANK(B27),"",IF(B27=19,0,IF(D27<18,1,IF(D27=18,2,IF(D27>=20,3)))))) -> 3 | L27: =IF(B27>D27,A27&C27,IF(D27>B27,C27&A27,"/")) -> AHAB | N27: =A27&C27 -> ABAH | O27: =E27 -> 1 | P27: =C27&A27 -> AHAB | Q27: =F27 -> 3 | R27: =B27 -> 10 | S27: =D27 -> 26
A28: AD | B28: 18 | C28: AF | D28: =IF(G28=19,19,IF(ISBLANK(B28),"",IF(B28=19,0,36-B28))) -> 18 | E28: =IF(G28=19,0,IF(ISBLANK(B28),"",IF(B28<18,1,IF(B28=18,2,IF(B28>18,3))))) -> 2 | F28: =IF(G28=19,3,IF(ISBLANK(B28),"",IF(B28=19,0,IF(D28<18,1,IF(D28=18,2,IF(D28>=20,3)))))) -> 2 | L28: =IF(B28>D28,A28&C28,IF(D28>B28,C28&A28,"/")) -> / | N28: =A28&C28 -> ADAF | O28: =E28 -> 2 | P28: =C28&A28 -> AFAD | Q28: =F28 -> 2 | R28: =B28 -> 18 | S28: =D28 -> 18
A29: AE | B29: 28 | C29: AG | D29: =IF(G29=19,19,IF(ISBLANK(B29),"",IF(B29=19,0,36-B29))) -> 8 | E29: =IF(G29=19,0,IF(ISBLANK(B29),"",IF(B29<18,1,IF(B29=18,2,IF(B29>18,3))))) -> 3 | F29: =IF(G29=19,3,IF(ISBLANK(B29),"",IF(B29=19,0,IF(D29<18,1,IF(D29=18,2,IF(D29>=20,3)))))) -> 1 | L29: =IF(B29>D29,A29&C29,IF(D29>B29,C29&A29,"/")) -> AEAG | N29: =A29&C29 -> AEAG | O29: =E29 -> 3 | P29: =C29&A29 -> AGAE | Q29: =F29 -> 1 | R29: =B29 -> 28 | S29: =D29 -> 8
A31: 3 éme MATCH le | B31: à | C31: AC
G32: SI forfait éq recevante
A33: Equipes | B33: score | C33: Equipes | D33: score | E33: Points | F33: Points
A34: AA | B34: 20 | C34: AH | D34: =IF(G34=19,19,IF(ISBLANK(B34),"",IF(B34=19,0,36-B34))) -> 16 | E34: =IF(G34=19,0,IF(ISBLANK(B34),"",IF(B34<18,1,IF(B34=18,2,IF(B34>18,3))))) -> 3 | F34: =IF(G34=19,3,IF(ISBLANK(B34),"",IF(B34=19,0,IF(D34<18,1,IF(D34=18,2,IF(D34>=20,3)))))) -> 1 | L34: =IF(B34>D34,A34&C34,IF(D34>B34,C34&A34,"/")) -> AAAH | N34: =A34&C34 -> AAAH | O34: =E34 -> 3 | P34: =C34&A34 -> AHAA | Q34: =F34 -> 1 | R34: =B34 -> 20 | S34: =D34 -> 16
A35: AB | B35: 6 | C35: AE | D35: =IF(G35=19,19,IF(ISBLANK(B35),"",IF(B35=19,0,36-B35))) -> 30 | E35: =IF(G35=19,0,IF(ISBLANK(B35),"",IF(B35<18,1,IF(B35=18,2,IF(B35>18,3))))) -> 1 | F35: =IF(G35=19,3,IF(ISBLANK(B35),"",IF(B35=19,0,IF(D35<18,1,IF(D35=18,2,IF(D35>=20,3)))))) -> 3 | L35: =IF(B35>D35,A35&C35,IF(D35>B35,C35&A35,"/")) -> AEAB | N35: =A35&C35 -> ABAE | O35: =E35 -> 1 | P35: =C35&A35 -> AEAB | Q35: =F35 -> 3 | R35: =B35 -> 6 | S35: =D35 -> 30
A36: AC | B36: 20 | C36: AF | D36: =IF(G36=19,19,IF(ISBLANK(B36),"",IF(B36=19,0,36-B36))) -> 16 | E36: =IF(G36=19,0,IF(ISBLANK(B36),"",IF(B36<18,1,IF(B36=18,2,IF(B36>18,3))))) -> 3 | F36: =IF(G36=19,3,IF(ISBLANK(B36),"",IF(B36=19,0,IF(D36<18,1,IF(D36=18,2,IF(D36>=20,3)))))) -> 1 | L36: =IF(B36>D36,A36&C36,IF(D36>B36,C36&A36,"/")) -> ACAF | N36: =A36&C36 -> ACAF | O36: =E36 -> 3 | P36: =C36&A36 -> AFAC | Q36: =F36 -> 1 | R36: =B36 -> 20 | S36: =D36 -> 16
A37: AD | B37: 18 | C37: AG | D37: =IF(G37=19,19,IF(ISBLANK(B37),"",IF(B37=19,0,36-B37))) -> 18 | E37: =IF(G37=19,0,IF(ISBLANK(B37),"",IF(B37<18,1,IF(B37=18,2,IF(B37>18,3))))) -> 2 | F37: =IF(G37=19,3,IF(ISBLANK(B37),"",IF(B37=19,0,IF(D37<18,1,IF(D37=18,2,IF(D37>=20,3)))))) -> 2 | L37: =IF(B37>D37,A37&C37,IF(D37>B37,C37&A37,"/")) -> / | N37: =A37&C37 -> ADAG | O37: =E37 -> 2 | P37: =C37&A37 -> AGAD | Q37: =F37 -> 2 | R37: =B37 -> 18 | S37: =D37 -> 18
A39: 4 éme MATCH le | B39: à | C39: AD
G40: SI forfait éq recevante
A41: Equipes | B41: score | C41: Equipes | D41: score | E41: Points | F41: Points
A42: AA | B42: 20 | C42: AD | D42: =IF(G42=19,19,IF(ISBLANK(B42),"",IF(B42=19,0,36-B42))) -> 16 | E42: =IF(G42=19,0,IF(ISBLANK(B42),"",IF(B42<18,1,IF(B42=18,2,IF(B42>18,3))))) -> 3 | F42: =IF(G42=19,3,IF(ISBLANK(B42),"",IF(B42=19,0,IF(D42<18,1,IF(D42=18,2,IF(D42>=20,3)))))) -> 1 | L42: =IF(B42>D42,A42&C42,IF(D42>B42,C42&A42,"/")) -> AAAD | N42: =A42&C42 -> AAAD | O42: =E42 -> 3 | P42: =C42&A42 -> ADAA | Q42: =F42 -> 1 | R42: =B42 -> 20 | S42: =D42 -> 16
A43: AF | B43: 10 | C43: AG | D43: =IF(G43=19,19,IF(ISBLANK(B43),"",IF(B43=19,0,36-B43))) -> 26 | E43: =IF(G43=19,0,IF(ISBLANK(B43),"",IF(B43<18,1,IF(B43=18,2,IF(B43>18,3))))) -> 1 | F43: =IF(G43=19,3,IF(ISBLANK(B43),"",IF(B43=19,0,IF(D43<18,1,IF(D43=18,2,IF(D43>=20,3)))))) -> 3 | L43: =IF(B43>D43,A43&C43,IF(D43>B43,C43&A43,"/")) -> AGAF | N43: =A43&C43 -> AFAG | O43: =E43 -> 1 | P43: =C43&A43 -> AGAF | Q43: =F43 -> 3 | R43: =B43 -> 10 | S43: =D43 -> 26
A44: AB | B44: 32 | C44: AC | D44: =IF(G44=19,19,IF(ISBLANK(B44),"",IF(B44=19,0,36-B44))) -> 4 | E44: =IF(G44=19,0,IF(ISBLANK(B44),"",IF(B44<18,1,IF(B44=18,2,IF(B44>18,3))))) -> 3 | F44: =IF(G44=19,3,IF(ISBLANK(B44),"",IF(B44=19,0,IF(D44<18,1,IF(D44=18,2,IF(D44>=20,3)))))) -> 1 | L44: =IF(B44>D44,A44&C44,IF(D44>B44,C44&A44,"/")) -> ABAC | N44: =A44&C44 -> ABAC | O44: =E44 -> 3 | P44: =C44&A44 -> ACAB | Q44: =F44 -> 1 | R44: =B44 -> 32 | S44: =D44 -> 4
A45: AE | B45: 20 | C45: AH | D45: =IF(G45=19,19,IF(ISBLANK(B45),"",IF(B45=19,0,36-B45))) -> 16 | E45: =IF(G45=19,0,IF(ISBLANK(B45),"",IF(B45<18,1,IF(B45=18,2,IF(B45>18,3))))) -> 3 | F45: =IF(G45=19,3,IF(ISBLANK(B45),"",IF(B45=19,0,IF(D45<18,1,IF(D45=18,2,IF(D45>=20,3)))))) -> 1 | L45: =IF(B45>D45,A45&C45,IF(D45>B45,C45&A45,"/")) -> AEAH | N45: =A45&C45 -> AEAH | O45: =E45 -> 3 | P45: =C45&A45 -> AHAE | Q45: =F45 -> 1 | R45: =B45 -> 20 | S45: =D45 -> 16
A47: 5 éme MATCH le | B47: à | C47: AE
G48: SI forfait éq recevante
A49: Equipes | B49: score | C49: Equipes | D49: score | E49: Points | F49: Points
A50: AA | B50: 26 | C50: AF | D50: =IF(G50=19,19,IF(ISBLANK(B50),"",IF(B50=19,0,36-B50))) -> 10 | E50: =IF(G50=19,0,IF(ISBLANK(B50),"",IF(B50<18,1,IF(B50=18,2,IF(B50>18,3))))) -> 3 | F50: =IF(G50=19,3,IF(ISBLANK(B50),"",IF(B50=19,0,IF(D50<18,1,IF(D50=18,2,IF(D50>=20,3)))))) -> 1 | L50: =IF(B50>D50,A50&C50,IF(D50>B50,C50&A50,"/")) -> AAAF | N50: =A50&C50 -> AAAF | O50: =E50 -> 3 | P50: =C50&A50 -> AFAA | Q50: =F50 -> 1 | R50: =B50 -> 26 | S50: =D50 -> 10
A51: AD | B51: 18 | C51: AH | D51: =IF(G51=19,19,IF(ISBLANK(B51),"",IF(B51=19,0,36-B51))) -> 18 | E51: =IF(G51=19,0,IF(ISBLANK(B51),"",IF(B51<18,1,IF(B51=18,2,IF(B51>18,3))))) -> 2 | F51: =IF(G51=19,3,IF(ISBLANK(B51),"",IF(B51=19,0,IF(D51<18,1,IF(D51=18,2,IF(D51>=20,3)))))) -> 2 | L51: =IF(B51>D51,A51&C51,IF(D51>B51,C51&A51,"/")) -> / | N51: =A51&C51 -> ADAH | O51: =E51 -> 2 | P51: =C51&A51 -> AHAD | Q51: =F51 -> 2 | R51: =B51 -> 18 | S51: =D51 -> 18
A52: AB | B52: 4 | C52: AG | D52: =IF(G52=19,19,IF(ISBLANK(B52),"",IF(B52=19,0,36-B52))) -> 32 | E52: =IF(G52=19,0,IF(ISBLANK(B52),"",IF(B52<18,1,IF(B52=18,2,IF(B52>18,3))))) -> 1 | F52: =IF(G52=19,3,IF(ISBLANK(B52),"",IF(B52=19,0,IF(D52<18,1,IF(D52=18,2,IF(D52>=20,3)))))) -> 3 | L52: =IF(B52>D52,A52&C52,IF(D52>B52,C52&A52,"/")) -> AGAB | N52: =A52&C52 -> ABAG | O52: =E52 -> 1 | P52: =C52&A52 -> AGAB | Q52: =F52 -> 3 | R52: =B52 -> 4 | S52: =D52 -> 32
A53: AC | B53: 20 | C53: AE | D53: =IF(G53=19,19,IF(ISBLANK(B53),"",IF(B53=19,0,36-B53))) -> 16 | E53: =IF(G53=19,0,IF(ISBLANK(B53),"",IF(B53<18,1,IF(B53=18,2,IF(B53>18,3))))) -> 3 | F53: =IF(G53=19,3,IF(ISBLANK(B53),"",IF(B53=19,0,IF(D53<18,1,IF(D53=18,2,IF(D53>=20,3)))))) -> 1 | L53: =IF(B53>D53,A53&C53,IF(D53>B53,C53&A53,"/")) -> ACAE | N53: =A53&C53 -> ACAE | O53: =E53 -> 3 | P53: =C53&A53 -> AEAC | Q53: =F53 -> 1 | R53: =B53 -> 20 | S53: =D53 -> 16
A55: 6 éme MATCH le | B55: à | C55: AF
G56: SI forfait éq recevante
A57: Equipes | B57: score | C57: Equipes | D57: score | E57: Points | F57: Points
A58: AB | B58: 20 | C58: AD | D58: =IF(G58=19,19,IF(ISBLANK(B58),"",IF(B58=19,0,36-B58))) -> 16 | E58: =IF(G58=19,0,IF(ISBLANK(B58),"",IF(B58<18,1,IF(B58=18,2,IF(B58>18,3))))) -> 3 | F58: =IF(G58=19,3,IF(ISBLANK(B58),"",IF(B58=19,0,IF(D58<18,1,IF(D58=18,2,IF(D58>=20,3)))))) -> 1 | L58: =IF(B58>D58,A58&C58,IF(D58>B58,C58&A58,"/")) -> ABAD | N58: =A58&C58 -> ABAD | O58: =E58 -> 3 | P58: =C58&A58 -> ADAB | Q58: =F58 -> 1 | R58: =B58 -> 20 | S58: =D58 -> 16
A59: AE | B59: 10 | C59: AA | D59: =IF(G59=19,19,IF(ISBLANK(B59),"",IF(B59=19,0,36-B59))) -> 26 | E59: =IF(G59=19,0,IF(ISBLANK(B59),"",IF(B59<18,1,IF(B59=18,2,IF(B59>18,3))))) -> 1 | F59: =IF(G59=19,3,IF(ISBLANK(B59),"",IF(B59=19,0,IF(D59<18,1,IF(D59=18,2,IF(D59>=20,3)))))) -> 3 | L59: =IF(B59>D59,A59&C59,IF(D59>B59,C59&A59,"/")) -> AAAE | N59: =A59&C59 -> AEAA | O59: =E59 -> 1 | P59: =C59&A59 -> AAAE | Q59: =F59 -> 3 | R59: =B59 -> 10 | S59: =D59 -> 26
A60: AG | B60: 14 | C60: AC | D60: =IF(G60=19,19,IF(ISBLANK(B60),"",IF(B60=19,0,36-B60))) -> 22 | E60: =IF(G60=19,0,IF(ISBLANK(B60),"",IF(B60<18,1,IF(B60=18,2,IF(B60>18,3))))) -> 1 | F60: =IF(G60=19,3,IF(ISBLANK(B60),"",IF(B60=19,0,IF(D60<18,1,IF(D60=18,2,IF(D60>=20,3)))))) -> 3 | L60: =IF(B60>D60,A60&C60,IF(D60>B60,C60&A60,"/")) -> ACAG | N60: =A60&C60 -> AGAC | O60: =E60 -> 1 | P60: =C60&A60 -> ACAG | Q60: =F60 -> 3 | R60: =B60 -> 14 | S60: =D60 -> 22
A61: AF | B61: 22 | C61: AH | D61: =IF(G61=19,19,IF(ISBLANK(B61),"",IF(B61=19,0,36-B61))) -> 14 | E61: =IF(G61=19,0,IF(ISBLANK(B61),"",IF(B61<18,1,IF(B61=18,2,IF(B61>18,3))))) -> 3 | F61: =IF(G61=19,3,IF(ISBLANK(B61),"",IF(B61=19,0,IF(D61<18,1,IF(D61=18,2,IF(D61>=20,3)))))) -> 1 | L61: =IF(B61>D61,A61&C61,IF(D61>B61,C61&A61,"/")) -> AFAH | N61: =A61&C61 -> AFAH | O61: =E61 -> 3 | P61: =C61&A61 -> AHAF | Q61: =F61 -> 1 | R61: =B61 -> 22 | S61: =D61 -> 14
A63: 7 éme MATCH le | B63: à | C63: AG
G64: SI forfait éq recevante
A65: Equipes | B65: score | C65: Equipes | D65: score | E65: Points | F65: Points
A66: AA | B66: 20 | C66: AG | D66: =IF(G66=19,19,IF(ISBLANK(B66),"",IF(B66=19,0,36-B66))) -> 16 | E66: =IF(G66=19,0,IF(ISBLANK(B66),"",IF(B66<18,1,IF(B66=18,2,IF(B66>18,3))))) -> 3 | F66: =IF(G66=19,3,IF(ISBLANK(B66),"",IF(B66=19,0,IF(D66<18,1,IF(D66=18,2,IF(D66>=20,3)))))) -> 1 | L66: =IF(B66>D66,A66&C66,IF(D66>B66,C66&A66,"/")) -> AAAG | N66: =A66&C66 -> AAAG | O66: =E66 -> 3 | P66: =C66&A66 -> AGAA | Q66: =F66 -> 1 | R66: =B66 -> 20 | S66: =D66 -> 16
A67: AB | B67: 12 | C67: AF | D67: =IF(G67=19,19,IF(ISBLANK(B67),"",IF(B67=19,0,36-B67))) -> 24 | E67: =IF(G67=19,0,IF(ISBLANK(B67),"",IF(B67<18,1,IF(B67=18,2,IF(B67>18,3))))) -> 1 | F67: =IF(G67=19,3,IF(ISBLANK(B67),"",IF(B67=19,0,IF(D67<18,1,IF(D67=18,2,IF(D67>=20,3)))))) -> 3 | L67: =IF(B67>D67,A67&C67,IF(D67>B67,C67&A67,"/")) -> AFAB | N67: =A67&C67 -> ABAF | O67: =E67 -> 1 | P67: =C67&A67 -> AFAB | Q67: =F67 -> 3 | R67: =B67 -> 12 | S67: =D67 -> 24
A68: AE | B68: 18 | C68: AD | D68: =IF(G68=19,19,IF(ISBLANK(B68),"",IF(B68=19,0,36-B68))) -> 18 | E68: =IF(G68=19,0,IF(ISBLANK(B68),"",IF(B68<18,1,IF(B68=18,2,IF(B68>18,3))))) -> 2 | F68: =IF(G68=19,3,IF(ISBLANK(B68),"",IF(B68=19,0,IF(D68<18,1,IF(D68=18,2,IF(D68>=20,3)))))) -> 2 | L68: =IF(B68>D68,A68&C68,IF(D68>B68,C68&A68,"/")) -> / | N68: =A68&C68 -> AEAD | O68: =E68 -> 2 | P68: =C68&A68 -> ADAE | Q68: =F68 -> 2 | R68: =B68 -> 18 | S68: =D68 -> 18
A69: AC | B69: 18 | C69: AH | D69: =IF(G69=19,19,IF(ISBLANK(B69),"",IF(B69=19,0,36-B69))) -> 18 | E69: =IF(G69=19,0,IF(ISBLANK(B69),"",IF(B69<18,1,IF(B69=18,2,IF(B69>18,3))))) -> 2 | F69: =IF(G69=19,3,IF(ISBLANK(B69),"",IF(B69=19,0,IF(D69<18,1,IF(D69=18,2,IF(D69>=20,3)))))) -> 2 | L69: =IF(B69>D69,A69&C69,IF(D69>B69,C69&A69,"/")) -> / | N69: =A69&C69 -> ACAH | O69: =E69 -> 2 | P69: =C69&A69 -> AHAC | Q69: =F69 -> 2 | R69: =B69 -> 18 | S69: =D69 -> 18
C70: Si pas d'exaequo | G70: Classt Final | H70: Rencontres entre exaequos
A71: EQUIPES | C71: POINTS | D71: POUR | E71: CONTRE | F71: DIFF | H71: POINTS Exaequos | I71: Exaq | J71: n° | K71: AA | L71: AB | M71: AC | N71: AD | O71: AE | P71: AF | Q71: AG | R71: AH | S71: Pts matchs | W71: 1000000*Pts matchs +1000 (Diff + abs(diff mini) )+Pour | X71: RANG | Y71: DIFF Exaequos | Z71: POUR Exaequos
A72: AA | B72: 1A | C72: 21 | D72: 158 | E72: 94 | F72: 64 | G72: 1 | H72: =IF(S72>0,S72,"") ->  | I72: =COUNTIF($C$72:$C$79,C72) -> 1 | J72: =IF(AND(I72>1,COUNTIFS(I$72:I72,I72,C$72:C72,C72)=1),MAX(J$71:J71)+1,"") ->  | K72: =IF($A72=K$71,"",IF(INDEX($C$72:$C$79,MATCH(K$71,$A$72:$A$79,0))=$C72,IFERROR(VLOOKUP($A72&K$71,$N$18:$O$69,2,0), VLOOKUP(K$71&$A72,$N$18:$Q$69,4,0)), "")) ->  | S72: =SUM(K72:R72) -> 0 | W72: =IF(I72<3,S72*1000000+(F72+ABS(MIN($F$72:$F$79)))*1000+D72,S72*1000000+U96*1000+Z72) -> 124158 | X72: =IF(I72>2,RANK(W72,OFFSET(W$71,MATCH(I72,$I$72:$I$79,0),,I72))) -> FALSE | Y72: =IF(S96=0,"",S96) ->  | Z72: =IF(S80=0,"",S80) -> 
A73: AE | B73: 1E | C73: 16 | D73: 150 | E73: 102 | F73: 48 | G73: 2 | I73: 1 | J73: =IF(AND(I73>1,COUNTIFS(I$72:I73,I73,C$72:C73,C73)=1),MAX(J$71:J72)+1,"") ->  | S73: =SUM(K73:R73) -> 0 | W73: =IF(I73<3,S73*1000000+(F73+ABS(MIN($F$72:$F$79)))*1000+D73,S73*1000000+U97*1000+Z73) -> 108150 | X73: =IF(I73>2,RANK(W73,OFFSET(W$71,MATCH(I73,$I$72:$I$79,0),,I73))) -> FALSE
A74: AC | B74: 1C | C74: 14 | D74: 98 | E74: 154 | F74: -56 | G74: 3 | I74: 1 | J74: =IF(AND(I74>1,COUNTIFS(I$72:I74,I74,C$72:C74,C74)=1),MAX(J$71:J73)+1,"") ->  | S74: 0 | W74: 4098 | X74: FALSE
A75: AD | B75: 1D | C75: 13 | D75: 140 | E75: 112 | F75: 28 | G75: 4 | H75: 2 | I75: 2 | J75: =IF(AND(I75>1,COUNTIFS(I$72:I75,I75,C$72:C75,C75)=1),MAX(J$71:J74)+1,"") -> 1 | Q75: 2 | S75: 2 | W75: 2088140 | X75: FALSE | Z75: 18
A76: AG | B76: 1G | C76: 13 | D76: 132 | E76: 120 | F76: 12 | G76: 5 | H76: 2 | I76: 2 | J76: =IF(AND(I76>1,COUNTIFS(I$72:I76,I76,C$72:C76,C76)=1),MAX(J$71:J75)+1,"") ->  | N76: 2 | S76: 2 | W76: 2072132 | X76: FALSE | Z76: 18
A77: AF | B77: 1F | C77: 12 | D77: 108 | E77: 144 | F77: -36 | G77: 6 | H77: 3 | I77: 2 | J77: =IF(AND(I77>1,COUNTIFS(I$72:I77,I77,C$72:C77,C77)=1),MAX(J$71:J76)+1,"") -> 2 | R77: 3 | S77: 3 | W77: 3024108 | X77: FALSE | Y77: 8 | Z77: 22
A78: AH | B78: 1H | C78: 12 | D78: 126 | E78: 126 | F78: 0 | G78: 7 | H78: 1 | I78: 2 | J78: =IF(AND(I78>1,COUNTIFS(I$72:I78,I78,C$72:C78,C78)=1),MAX(J$71:J77)+1,"") ->  | P78: 1 | S78: 1 | W78: 1060126 | X78: FALSE | Y78: -8 | Z78: 14
A79: AB | B79: 1B | C79: 11 | D79: 96 | E79: 156 | F79: -60 | G79: 8 | I79: 1 | J79: =IF(AND(I79>1,COUNTIFS(I$72:I79,I79,C$72:C79,C79)=1),MAX(J$71:J78)+1,"") ->  | S79: 0 | W79: 96 | X79: FALSE
I80: POUR | J80: =A72 -> AA | K80: =IF($A72=K$71,"",IF(INDEX($C$72:$C$79,MATCH(K$71,$A$72:$A$79,0))=$C72,IFERROR(VLOOKUP($A72&K$71,$N$18:$R$69,5,0), VLOOKUP(K$71&$A72,$N$18:$S$69,6,0)), "")) ->  | S80: 0
J81: AE | S81: 0
J82: AC | S82: 0
J83: AD | Q83: 18 | S83: 18
J84: AG | N84: 18 | S84: 18
J85: AF | R85: 22 | S85: 22
J86: AH | P86: 14 | S86: 14
J87: AB | S87: 0
I88: CONTRE | J88: =J80 -> AA | K88: =INDEX($K$80:$R$87,MATCH(K$71,$J$80:$J$87,0),MATCH($J80,$K$71:$R$71,0)) ->  | L88: =INDEX($K$80:$R$87,MATCH(L$71,$J$80:$J$87,0),MATCH($J80,$K$71:$R$71,0)) ->  | S88: 0
J89: =J81 -> AE | K89: =INDEX($K$80:$R$87,MATCH(K$71,$J$80:$J$87,0),MATCH($J81,$K$71:$R$71,0)) ->  | S89: 0
J90: AC | S90: 0
J91: AD | Q91: 18 | S91: 18
J92: AG | N92: 18 | S92: 18
J93: AF | R93: 14 | S93: 14
J94: AH | P94: 22 | S94: 22
J95: AB | S95: 0 | U95: Diff pondérée
I96: DIFF | J96: =J88 -> AA | S96: =S80-S88 -> 0 | U96: =S96+ABS(MIN($S$96:$S$103)) -> 8
J97: =J89 -> AE | S97: =S81-S89 -> 0 | U97: 8
J98: AC | S98: 0 | U98: 8
J99: AD | S99: 0 | U99: 8
J100: AG | S100: 0 | U100: 8
J101: AF | S101: 8 | U101: 16
J102: AH | S102: -8 | U102: =S102+ABS(MIN($S$96:$S$103)) -> 0
J103: AB | S103: 0 | U103: =S103+ABS(MIN($S$96:$S$103)) -> 8

Sheet P11
G1: 3
A2: CHAMPIONNAT DES CLUBS
A4: POULE 1
A5: EQUIPES | C5: POINTS | D5: Pour | E5: Contre | F5: Diff
A6: AA | B6: 1A | C6: =SUMIF($A$18:$A$69,A6,$E$18:$E$69)+SUMIF($C$18:$C$69,A6,$F$18:$F$69) -> 14 | D6: =SUMIF($A$18:$A$69,$A6,$B$18:$B$69)+SUMIF($C$18:$C$69,$A6,$D$18:$D$69) -> 122 | E6: =SUMIF($C$18:$C$69,$A6,$B$18:$B$69)+SUMIF($A$18:$A$69,$A6,$D$18:$D$69) -> 130 | F6: =D6-E6 -> -8
A7: AB | B7: 1B | C7: =SUMIF($A$18:$A$69,A7,$E$18:$E$69)+SUMIF($C$18:$C$69,A7,$F$18:$F$69) -> 15 | D7: =SUMIF($A$18:$A$69,$A7,$B$18:$B$69)+SUMIF($C$18:$C$69,$A7,$D$18:$D$69) -> 134 | E7: =SUMIF($C$18:$C$69,$A7,$B$18:$B$69)+SUMIF($A$18:$A$69,$A7,$D$18:$D$69) -> 118 | F7: 16
A8: AC | B8: 1C | C8: =SUMIF($A$18:$A$69,A8,$E$18:$E$69)+SUMIF($C$18:$C$69,A8,$F$18:$F$69) -> 15 | D8: 114 | E8: 138 | F8: -24
A9: AD | B9: 1D | C9: 12 | D9: 102 | E9: 150 | F9: -48
A10: AE | B10: 1E | C10: 15 | D10: 140 | E10: 112 | F10: 28
A11: AF | B11: 1F | C11: 15 | D11: 128 | E11: 124 | F11: 4
A12: AG | B12: 1G | C12: 15 | D12: 150 | E12: 102 | F12: =D12-E12 -> 48
A13: AH | B13: 1H | C13: 11 | D13: =SUMIF($A$18:$A$69,$A13,$B$18:$B$69)+SUMIF($C$18:$C$69,$A13,$D$18:$D$69) -> 118 | E13: 134 | F13: =D13-E13 -> -16
A15: 1er MATCH le | B15: à | C15: AA
G16: SI forfait éq recevante
A17: Equipes | B17: score | C17: Equipes | D17: score | E17: Points | F17: Points
A18: AA | B18: 16 | C18: AB | D18: =IF(G18=19,19,IF(ISBLANK(B18),"",IF(B18=19,0,36-B18))) -> 20 | E18: =IF(G18=19,0,IF(ISBLANK(B18),"",IF(B18<18,1,IF(B18=18,2,IF(B18>18,3))))) -> 1 | F18: =IF(G18=19,3,IF(ISBLANK(B18),"",IF(B18=19,0,IF(D18<18,1,IF(D18=18,2,IF(D18>=20,3)))))) -> 3 | L18: =IF(B18>D18,A18&C18,IF(D18>B18,C18&A18,"/")) -> ABAA | N18: =A18&C18 -> AAAB | O18: =E18 -> 1 | P18: =C18&A18 -> ABAA | Q18: =F18 -> 3 | R18: =B18 -> 16 | S18: =D18 -> 20
A19: AC | B19: 30 | C19: AD | D19: =IF(G19=19,19,IF(ISBLANK(B19),"",IF(B19=19,0,36-B19))) -> 6 | E19: =IF(G19=19,0,IF(ISBLANK(B19),"",IF(B19<18,1,IF(B19=18,2,IF(B19>18,3))))) -> 3 | F19: =IF(G19=19,3,IF(ISBLANK(B19),"",IF(B19=19,0,IF(D19<18,1,IF(D19=18,2,IF(D19>=20,3)))))) -> 1 | L19: =IF(B19>D19,A19&C19,IF(D19>B19,C19&A19,"/")) -> ACAD | N19: =A19&C19 -> ACAD | O19: =E19 -> 3 | P19: =C19&A19 -> ADAC | Q19: =F19 -> 1 | R19: =B19 -> 30 | S19: =D19 -> 6
A20: AE | B20: 16 | C20: AF | D20: =IF(G20=19,19,IF(ISBLANK(B20),"",IF(B20=19,0,36-B20))) -> 20 | E20: =IF(G20=19,0,IF(ISBLANK(B20),"",IF(B20<18,1,IF(B20=18,2,IF(B20>18,3))))) -> 1 | F20: =IF(G20=19,3,IF(ISBLANK(B20),"",IF(B20=19,0,IF(D20<18,1,IF(D20=18,2,IF(D20>=20,3)))))) -> 3 | L20: =IF(B20>D20,A20&C20,IF(D20>B20,C20&A20,"/")) -> AFAE | N20: =A20&C20 -> AEAF | O20: =E20 -> 1 | P20: =C20&A20 -> AFAE | Q20: =F20 -> 3 | R20: =B20 -> 16 | S20: =D20 -> 20
A21: AG | B21: 18 | C21: AH | D21: =IF(G21=19,19,IF(ISBLANK(B21),"",IF(B21=19,0,36-B21))) -> 18 | E21: =IF(G21=19,0,IF(ISBLANK(B21),"",IF(B21<18,1,IF(B21=18,2,IF(B21>18,3))))) -> 2 | F21: =IF(G21=19,3,IF(ISBLANK(B21),"",IF(B21=19,0,IF(D21<18,1,IF(D21=18,2,IF(D21>=20,3)))))) -> 2 | L21: =IF(B21>D21,A21&C21,IF(D21>B21,C21&A21,"/")) -> / | N21: =A21&C21 -> AGAH | O21: =E21 -> 2 | P21: =C21&A21 -> AHAG | Q21: =F21 -> 2 | R21: =B21 -> 18 | S21: =D21 -> 18
A23: 2 éme MATCH le | B23: à | C23: AB
G24: SI forfait éq recevante
A25: Equipes | B25: score | C25: Equipes | D25: score | E25: Points | F25: Points
A26: AA | B26: 18 | C26: AC | D26: =IF(G26=19,19,IF(ISBLANK(B26),"",IF(B26=19,0,36-B26))) -> 18 | E26: =IF(G26=19,0,IF(ISBLANK(B26),"",IF(B26<18,1,IF(B26=18,2,IF(B26>18,3))))) -> 2 | F26: =IF(G26=19,3,IF(ISBLANK(B26),"",IF(B26=19,0,IF(D26<18,1,IF(D26=18,2,IF(D26>=20,3)))))) -> 2 | L26: =IF(B26>D26,A26&C26,IF(D26>B26,C26&A26,"/")) -> / | N26: =A26&C26 -> AAAC | O26: =E26 -> 2 | P26: =C26&A26 -> ACAA | Q26: =F26 -> 2 | R26: =B26 -> 18 | S26: =D26 -> 18
A27: AB | B27: 18 | C27: AH | D27: =IF(G27=19,19,IF(ISBLANK(B27),"",IF(B27=19,0,36-B27))) -> 18 | E27: =IF(G27=19,0,IF(ISBLANK(B27),"",IF(B27<18,1,IF(B27=18,2,IF(B27>18,3))))) -> 2 | F27: =IF(G27=19,3,IF(ISBLANK(B27),"",IF(B27=19,0,IF(D27<18,1,IF(D27=18,2,IF(D27>=20,3)))))) -> 2 | L27: =IF(B27>D27,A27&C27,IF(D27>B27,C27&A27,"/")) -> / | N27: =A27&C27 -> ABAH | O27: =E27 -> 2 | P27: =C27&A27 -> AHAB | Q27: =F27 -> 2 | R27: =B27 -> 18 | S27: =D27 -> 18
A28: AD | B28: 18 | C28: AF | D28: =IF(G28=19,19,IF(ISBLANK(B28),"",IF(B28=19,0,36-B28))) -> 18 | E28: =IF(G28=19,0,IF(ISBLANK(B28),"",IF(B28<18,1,IF(B28=18,2,IF(B28>18,3))))) -> 2 | F28: =IF(G28=19,3,IF(ISBLANK(B28),"",IF(B28=19,0,IF(D28<18,1,IF(D28=18,2,IF(D28>=20,3)))))) -> 2 | L28: =IF(B28>D28,A28&C28,IF(D28>B28,C28&A28,"/")) -> / | N28: =A28&C28 -> ADAF | O28: =E28 -> 2 | P28: =C28&A28 -> AFAD | Q28: =F28 -> 2 | R28: =B28 -> 18 | S28: =D28 -> 18
A29: AE | B29: 28 | C29: AG | D29: =IF(G29=19,19,IF(ISBLANK(B29),"",IF(B29=19,0,36-B29))) -> 8 | E29: =IF(G29=19,0,IF(ISBLANK(B29),"",IF(B29<18,1,IF(B29=18,2,IF(B29>18,3))))) -> 3 | F29: =IF(G29=19,3,IF(ISBLANK(B29),"",IF(B29=19,0,IF(D29<18,1,IF(D29=18,2,IF(D29>=20,3)))))) -> 1 | L29: =IF(B29>D29,A29&C29,IF(D29>B29,C29&A29,"/")) -> AEAG | N29: =A29&C29 -> AEAG | O29: =E29 -> 3 | P29: =C29&A29 -> AGAE | Q29: =F29 -> 1 | R29: =B29 -> 28 | S29: =D29 -> 8
A31: 3 éme MATCH le | B31: à | C31: AC
G32: SI forfait éq recevante
A33: Equipes | B33: score | C33: Equipes | D33: score | E33: Points | F33: Points
A34: AA | B34: 20 | C34: AH | D34: =IF(G34=19,19,IF(ISBLANK(B34),"",IF(B34=19,0,36-B34))) -> 16 | E34: =IF(G34=19,0,IF(ISBLANK(B34),"",IF(B34<18,1,IF(B34=18,2,IF(B34>18,3))))) -> 3 | F34: =IF(G34=19,3,IF(ISBLANK(B34),"",IF(B34=19,0,IF(D34<18,1,IF(D34=18,2,IF(D34>=20,3)))))) -> 1 | L34: =IF(B34>D34,A34&C34,IF(D34>B34,C34&A34,"/")) -> AAAH | N34: =A34&C34 -> AAAH | O34: =E34 -> 3 | P34: =C34&A34 -> AHAA | Q34: =F34 -> 1 | R34: =B34 -> 20 | S34: =D34 -> 16
A35: AB | B35: 18 | C35: AE | D35: =IF(G35=19,19,IF(ISBLANK(B35),"",IF(B35=19,0,36-B35))) -> 18 | E35: =IF(G35=19,0,IF(ISBLANK(B35),"",IF(B35<18,1,IF(B35=18,2,IF(B35>18,3))))) -> 2 | F35: =IF(G35=19,3,IF(ISBLANK(B35),"",IF(B35=19,0,IF(D35<18,1,IF(D35=18,2,IF(D35>=20,3)))))) -> 2 | L35: =IF(B35>D35,A35&C35,IF(D35>B35,C35&A35,"/")) -> / | N35: =A35&C35 -> ABAE | O35: =E35 -> 2 | P35: =C35&A35 -> AEAB | Q35: =F35 -> 2 | R35: =B35 -> 18 | S35: =D35 -> 18
A36: AC | B36: 20 | C36: AF | D36: =IF(G36=19,19,IF(ISBLANK(B36),"",IF(B36=19,0,36-B36))) -> 16 | E36: =IF(G36=19,0,IF(ISBLANK(B36),"",IF(B36<18,1,IF(B36=18,2,IF(B36>18,3))))) -> 3 | F36: =IF(G36=19,3,IF(ISBLANK(B36),"",IF(B36=19,0,IF(D36<18,1,IF(D36=18,2,IF(D36>=20,3)))))) -> 1 | L36: =IF(B36>D36,A36&C36,IF(D36>B36,C36&A36,"/")) -> ACAF | N36: =A36&C36 -> ACAF | O36: =E36 -> 3 | P36: =C36&A36 -> AFAC | Q36: =F36 -> 1 | R36: =B36 -> 20 | S36: =D36 -> 16
A37: AD | B37: 18 | C37: AG | D37: =IF(G37=19,19,IF(ISBLANK(B37),"",IF(B37=19,0,36-B37))) -> 18 | E37: =IF(G37=19,0,IF(ISBLANK(B37),"",IF(B37<18,1,IF(B37=18,2,IF(B37>18,3))))) -> 2 | F37: =IF(G37=19,3,IF(ISBLANK(B37),"",IF(B37=19,0,IF(D37<18,1,IF(D37=18,2,IF(D37>=20,3)))))) -> 2 | L37: =IF(B37>D37,A37&C37,IF(D37>B37,C37&A37,"/")) -> / | N37: =A37&C37 -> ADAG | O37: =E37 -> 2 | P37: =C37&A37 -> AGAD | Q37: =F37 -> 2 | R37: =B37 -> 18 | S37: =D37 -> 18
A39: 4 éme MATCH le | B39: à | C39: AD
G40: SI forfait éq recevante
A41: Equipes | B41: score | C41: Equipes | D41: score | E41: Points | F41: Points
A42: AA | B42: 18 | C42: AD | D42: =IF(G42=19,19,IF(ISBLANK(B42),"",IF(B42=19,0,36-B42))) -> 18 | E42: =IF(G42=19,0,IF(ISBLANK(B42),"",IF(B42<18,1,IF(B42=18,2,IF(B42>18,3))))) -> 2 | F42: =IF(G42=19,3,IF(ISBLANK(B42),"",IF(B42=19,0,IF(D42<18,1,IF(D42=18,2,IF(D42>=20,3)))))) -> 2 | L42: =IF(B42>D42,A42&C42,IF(D42>B42,C42&A42,"/")) -> / | N42: =A42&C42 -> AAAD | O42: =E42 -> 2 | P42: =C42&A42 -> ADAA | Q42: =F42 -> 2 | R42: =B42 -> 18 | S42: =D42 -> 18
A43: AF | B43: 10 | C43: AG | D43: =IF(G43=19,19,IF(ISBLANK(B43),"",IF(B43=19,0,36-B43))) -> 26 | E43: =IF(G43=19,0,IF(ISBLANK(B43),"",IF(B43<18,1,IF(B43=18,2,IF(B43>18,3))))) -> 1 | F43: =IF(G43=19,3,IF(ISBLANK(B43),"",IF(B43=19,0,IF(D43<18,1,IF(D43=18,2,IF(D43>=20,3)))))) -> 3 | L43: =IF(B43>D43,A43&C43,IF(D43>B43,C43&A43,"/")) -> AGAF | N43: =A43&C43 -> AFAG | O43: =E43 -> 1 | P43: =C43&A43 -> AGAF | Q43: =F43 -> 3 | R43: =B43 -> 10 | S43: =D43 -> 26
A44: AB | B44: 32 | C44: AC | D44: =IF(G44=19,19,IF(ISBLANK(B44),"",IF(B44=19,0,36-B44))) -> 4 | E44: =IF(G44=19,0,IF(ISBLANK(B44),"",IF(B44<18,1,IF(B44=18,2,IF(B44>18,3))))) -> 3 | F44: =IF(G44=19,3,IF(ISBLANK(B44),"",IF(B44=19,0,IF(D44<18,1,IF(D44=18,2,IF(D44>=20,3)))))) -> 1 | L44: =IF(B44>D44,A44&C44,IF(D44>B44,C44&A44,"/")) -> ABAC | N44: =A44&C44 -> ABAC | O44: =E44 -> 3 | P44: =C44&A44 -> ACAB | Q44: =F44 -> 1 | R44: =B44 -> 32 | S44: =D44 -> 4
A45: AE | B45: 20 | C45: AH | D45: =IF(G45=19,19,IF(ISBLANK(B45),"",IF(B45=19,0,36-B45))) -> 16 | E45: =IF(G45=19,0,IF(ISBLANK(B45),"",IF(B45<18,1,IF(B45=18,2,IF(B45>18,3))))) -> 3 | F45: =IF(G45=19,3,IF(ISBLANK(B45),"",IF(B45=19,0,IF(D45<18,1,IF(D45=18,2,IF(D45>=20,3)))))) -> 1 | L45: =IF(B45>D45,A45&C45,IF(D45>B45,C45&A45,"/")) -> AEAH | N45: =A45&C45 -> AEAH | O45: =E45 -> 3 | P45: =C45&A45 -> AHAE | Q45: =F45 -> 1 | R45: =B45 -> 20 | S45: =D45 -> 16
A47: 5 éme MATCH le | B47: à | C47: AE
G48: SI forfait éq recevante
A49: Equipes | B49: score | C49: Equipes | D49: score | E49: Points | F49: Points
A50: AA | B50: 18 | C50: AF | D50: =IF(G50=19,19,IF(ISBLANK(B50),"",IF(B50=19,0,36-B50))) -> 18 | E50: =IF(G50=19,0,IF(ISBLANK(B50),"",IF(B50<18,1,IF(B50=18,2,IF(B50>18,3))))) -> 2 | F50: =IF(G50=19,3,IF(ISBLANK(B50),"",IF(B50=19,0,IF(D50<18,1,IF(D50=18,2,IF(D50>=20,3)))))) -> 2 | L50: =IF(B50>D50,A50&C50,IF(D50>B50,C50&A50,"/")) -> / | N50: =A50&C50 -> AAAF | O50: =E50 -> 2 | P50: =C50&A50 -> AFAA | Q50: =F50 -> 2 | R50: =B50 -> 18 | S50: =D50 -> 18
A51: AD | B51: 18 | C51: AH | D51: =IF(G51=19,19,IF(ISBLANK(B51),"",IF(B51=19,0,36-B51))) -> 18 | E51: =IF(G51=19,0,IF(ISBLANK(B51),"",IF(B51<18,1,IF(B51=18,2,IF(B51>18,3))))) -> 2 | F51: =IF(G51=19,3,IF(ISBLANK(B51),"",IF(B51=19,0,IF(D51<18,1,IF(D51=18,2,IF(D51>=20,3)))))) -> 2 | L51: =IF(B51>D51,A51&C51,IF(D51>B51,C51&A51,"/")) -> / | N51: =A51&C51 -> ADAH | O51: =E51 -> 2 | P51: =C51&A51 -> AHAD | Q51: =F51 -> 2 | R51: =B51 -> 18 | S51: =D51 -> 18
A52: AB | B52: 4 | C52: AG | D52: =IF(G52=19,19,IF(ISBLANK(B52),"",IF(B52=19,0,36-B52))) -> 32 | E52: =IF(G52=19,0,IF(ISBLANK(B52),"",IF(B52<18,1,IF(B52=18,2,IF(B52>18,3))))) -> 1 | F52: =IF(G52=19,3,IF(ISBLANK(B52),"",IF(B52=19,0,IF(D52<18,1,IF(D52=18,2,IF(D52>=20,3)))))) -> 3 | L52: =IF(B52>D52,A52&C52,IF(D52>B52,C52&A52,"/")) -> AGAB | N52: =A52&C52 -> ABAG | O52: =E52 -> 1 | P52: =C52&A52 -> AGAB | Q52: =F52 -> 3 | R52: =B52 -> 4 | S52: =D52 -> 32
A53: AC | B53: 20 | C53: AE | D53: =IF(G53=19,19,IF(ISBLANK(B53),"",IF(B53=19,0,36-B53))) -> 16 | E53: =IF(G53=19,0,IF(ISBLANK(B53),"",IF(B53<18,1,IF(B53=18,2,IF(B53>18,3))))) -> 3 | F53: =IF(G53=19,3,IF(ISBLANK(B53),"",IF(B53=19,0,IF(D53<18,1,IF(D53=18,2,IF(D53>=20,3)))))) -> 1 | L53: =IF(B53>D53,A53&C53,IF(D53>B53,C53&A53,"/")) -> ACAE | N53: =A53&C53 -> ACAE | O53: =E53 -> 3 | P53: =C53&A53 -> AEAC | Q53: =F53 -> 1 | R53: =B53 -> 20 | S53: =D53 -> 16
A55: 6 éme MATCH le | B55: à | C55: AF
G56: SI forfait éq recevante
A57: Equipes | B57: score | C57: Equipes | D57: score | E57: Points | F57: Points
A58: AB | B58: 30 | C58: AD | D58: =IF(G58=19,19,IF(ISBLANK(B58),"",IF(B58=19,0,36-B58))) -> 6 | E58: =IF(G58=19,0,IF(ISBLANK(B58),"",IF(B58<18,1,IF(B58=18,2,IF(B58>18,3))))) -> 3 | F58: =IF(G58=19,3,IF(ISBLANK(B58),"",IF(B58=19,0,IF(D58<18,1,IF(D58=18,2,IF(D58>=20,3)))))) -> 1 | L58: =IF(B58>D58,A58&C58,IF(D58>B58,C58&A58,"/")) -> ABAD | N58: =A58&C58 -> ABAD | O58: =E58 -> 3 | P58: =C58&A58 -> ADAB | Q58: =F58 -> 1 | R58: =B58 -> 30 | S58: =D58 -> 6
A59: AE | B59: 24 | C59: AA | D59: =IF(G59=19,19,IF(ISBLANK(B59),"",IF(B59=19,0,36-B59))) -> 12 | E59: =IF(G59=19,0,IF(ISBLANK(B59),"",IF(B59<18,1,IF(B59=18,2,IF(B59>18,3))))) -> 3 | F59: =IF(G59=19,3,IF(ISBLANK(B59),"",IF(B59=19,0,IF(D59<18,1,IF(D59=18,2,IF(D59>=20,3)))))) -> 1 | L59: =IF(B59>D59,A59&C59,IF(D59>B59,C59&A59,"/")) -> AEAA | N59: =A59&C59 -> AEAA | O59: =E59 -> 3 | P59: =C59&A59 -> AAAE | Q59: =F59 -> 1 | R59: =B59 -> 24 | S59: =D59 -> 12
A60: AG | B60: 32 | C60: AC | D60: =IF(G60=19,19,IF(ISBLANK(B60),"",IF(B60=19,0,36-B60))) -> 4 | E60: =IF(G60=19,0,IF(ISBLANK(B60),"",IF(B60<18,1,IF(B60=18,2,IF(B60>18,3))))) -> 3 | F60: =IF(G60=19,3,IF(ISBLANK(B60),"",IF(B60=19,0,IF(D60<18,1,IF(D60=18,2,IF(D60>=20,3)))))) -> 1 | L60: =IF(B60>D60,A60&C60,IF(D60>B60,C60&A60,"/")) -> AGAC | N60: =A60&C60 -> AGAC | O60: =E60 -> 3 | P60: =C60&A60 -> ACAG | Q60: =F60 -> 1 | R60: =B60 -> 32 | S60: =D60 -> 4
A61: AF | B61: 22 | C61: AH | D61: =IF(G61=19,19,IF(ISBLANK(B61),"",IF(B61=19,0,36-B61))) -> 14 | E61: =IF(G61=19,0,IF(ISBLANK(B61),"",IF(B61<18,1,IF(B61=18,2,IF(B61>18,3))))) -> 3 | F61: =IF(G61=19,3,IF(ISBLANK(B61),"",IF(B61=19,0,IF(D61<18,1,IF(D61=18,2,IF(D61>=20,3)))))) -> 1 | L61: =IF(B61>D61,A61&C61,IF(D61>B61,C61&A61,"/")) -> AFAH | N61: =A61&C61 -> AFAH | O61: =E61 -> 3 | P61: =C61&A61 -> AHAF | Q61: =F61 -> 1 | R61: =B61 -> 22 | S61: =D61 -> 14
A63: 7 éme MATCH le | B63: à | C63: AG
G64: SI forfait éq recevante
A65: Equipes | B65: score | C65: Equipes | D65: score | E65: Points | F65: Points
A66: AA | B66: 20 | C66: AG | D66: =IF(G66=19,19,IF(ISBLANK(B66),"",IF(B66=19,0,36-B66))) -> 16 | E66: =IF(G66=19,0,IF(ISBLANK(B66),"",IF(B66<18,1,IF(B66=18,2,IF(B66>18,3))))) -> 3 | F66: =IF(G66=19,3,IF(ISBLANK(B66),"",IF(B66=19,0,IF(D66<18,1,IF(D66=18,2,IF(D66>=20,3)))))) -> 1 | L66: =IF(B66>D66,A66&C66,IF(D66>B66,C66&A66,"/")) -> AAAG | N66: =A66&C66 -> AAAG | O66: =E66 -> 3 | P66: =C66&A66 -> AGAA | Q66: =F66 -> 1 | R66: =B66 -> 20 | S66: =D66 -> 16
A67: AB | B67: 12 | C67: AF | D67: =IF(G67=19,19,IF(ISBLANK(B67),"",IF(B67=19,0,36-B67))) -> 24 | E67: =IF(G67=19,0,IF(ISBLANK(B67),"",IF(B67<18,1,IF(B67=18,2,IF(B67>18,3))))) -> 1 | F67: =IF(G67=19,3,IF(ISBLANK(B67),"",IF(B67=19,0,IF(D67<18,1,IF(D67=18,2,IF(D67>=20,3)))))) -> 3 | L67: =IF(B67>D67,A67&C67,IF(D67>B67,C67&A67,"/")) -> AFAB | N67: =A67&C67 -> ABAF | O67: =E67 -> 1 | P67: =C67&A67 -> AFAB | Q67: =F67 -> 3 | R67: =B67 -> 12 | S67: =D67 -> 24
A68: AE | B68: 18 | C68: AD | D68: =IF(G68=19,19,IF(ISBLANK(B68),"",IF(B68=19,0,36-B68))) -> 18 | E68: =IF(G68=19,0,IF(ISBLANK(B68),"",IF(B68<18,1,IF(B68=18,2,IF(B68>18,3))))) -> 2 | F68: =IF(G68=19,3,IF(ISBLANK(B68),"",IF(B68=19,0,IF(D68<18,1,IF(D68=18,2,IF(D68>=20,3)))))) -> 2 | L68: =IF(B68>D68,A68&C68,IF(D68>B68,C68&A68,"/")) -> / | N68: =A68&C68 -> AEAD | O68: =E68 -> 2 | P68: =C68&A68 -> ADAE | Q68: =F68 -> 2 | R68: =B68 -> 18 | S68: =D68 -> 18
A69: AC | B69: 18 | C69: AH | D69: =IF(G69=19,19,IF(ISBLANK(B69),"",IF(B69=19,0,36-B69))) -> 18 | E69: =IF(G69=19,0,IF(ISBLANK(B69),"",IF(B69<18,1,IF(B69=18,2,IF(B69>18,3))))) -> 2 | F69: =IF(G69=19,3,IF(ISBLANK(B69),"",IF(B69=19,0,IF(D69<18,1,IF(D69=18,2,IF(D69>=20,3)))))) -> 2 | L69: =IF(B69>D69,A69&C69,IF(D69>B69,C69&A69,"/")) -> / | N69: =A69&C69 -> ACAH | O69: =E69 -> 2 | P69: =C69&A69 -> AHAC | Q69: =F69 -> 2 | R69: =B69 -> 18 | S69: =D69 -> 18
C70: Si pas d'exaequo | G70: Classt Final | H70: Rencontres entre exaequos
A71: EQUIPES | C71: POINTS | D71: POUR | E71: CONTRE | F71: DIFF | H71: POINTS Exaequos | I71: Exaq | J71: n° | K71: AA | L71: AB | M71: AC | N71: AD | O71: AE | P71: AF | Q71: AG | R71: AH | S71: Pts matchs | W71: 1000000*Pts matchs +1000 (Diff + abs(diff mini) )+Pour | X71: RANG | Y71: DIFF Exaequos | Z71: POUR Exaequos
A72: AG | B72: 1G | C72: 15 | D72: 150 | E72: 102 | F72: 48 | G72: 1 | H72: =IF(S72>0,S72,"") -> 10 | I72: =COUNTIF($C$72:$C$79,C72) -> 5 | J72: =IF(AND(I72>1,COUNTIFS(I$72:I72,I72,C$72:C72,C72)=1),MAX(J$71:J71)+1,"") -> 1 | K72: =IF($A72=K$71,"",IF(INDEX($C$72:$C$79,MATCH(K$71,$A$72:$A$79,0))=$C72,IFERROR(VLOOKUP($A72&K$71,$N$18:$O$69,2,0), VLOOKUP(K$71&$A72,$N$18:$Q$69,4,0)), "")) ->  | L72: 3 | M72: 3 | O72: 1 | P72: 3 | S72: =SUM(K72:R72) -> 10 | W72: =IF(I72<3,S72*1000000+(F72+ABS(MIN($F$72:$F$79)))*1000+D72,S72*1000000+U96*1000+Z72) -> 10100098 | X72: =IF(I72>2,RANK(W72,OFFSET(W$71,MATCH(I72,$I$72:$I$79,0),,I72))) -> 1 | Y72: =IF(S96=0,"",S96) -> 52 | Z72: =IF(S80=0,"",S80) -> 98
A73: AC | B73: 1C | C73: 15 | D73: 114 | E73: 138 | F73: -24 | G73: 2 | H73: 8 | I73: 5 | J73: =IF(AND(I73>1,COUNTIFS(I$72:I73,I73,C$72:C73,C73)=1),MAX(J$71:J72)+1,"") ->  | L73: 1 | O73: 3 | P73: 3 | Q73: 1 | S73: =SUM(K73:R73) -> 8 | W73: =IF(I73<3,S73*1000000+(F73+ABS(MIN($F$72:$F$79)))*1000+D73,S73*1000000+U97*1000+Z73) -> 8000048 | X73: =IF(I73>2,RANK(W73,OFFSET(W$71,MATCH(I73,$I$72:$I$79,0),,I73))) -> 3 | Y73: -48 | Z73: 48
A74: AF | B74: 1F | C74: 15 | D74: 128 | E74: 124 | F74: 4 | G74: 3 | H74: 8 | I74: 5 | J74: =IF(AND(I74>1,COUNTIFS(I$72:I74,I74,C$72:C74,C74)=1),MAX(J$71:J73)+1,"") ->  | L74: 3 | M74: 1 | O74: 3 | Q74: 1 | S74: 8 | W74: 8044070 | X74: 2 | Y74: -4 | Z74: 70
A75: AE | B75: 1E | C75: 15 | D75: 140 | E75: 112 | F75: 28 | G75: 4 | H75: 7 | I75: 5 | J75: =IF(AND(I75>1,COUNTIFS(I$72:I75,I75,C$72:C75,C75)=1),MAX(J$71:J74)+1,"") ->  | L75: 2 | M75: 1 | P75: 1 | Q75: 3 | S75: 7 | W75: 7060078 | X75: 4 | Y75: 12 | Z75: 78
A76: AB | B76: 1B | C76: 15 | D76: 134 | E76: 118 | F76: 16 | G76: 5 | H76: 7 | I76: 5 | J76: =IF(AND(I76>1,COUNTIFS(I$72:I76,I76,C$72:C76,C76)=1),MAX(J$71:J75)+1,"") ->  | M76: 3 | O76: 2 | P76: 1 | Q76: 1 | S76: 7 | W76: 7036066 | X76: 5 | Y76: -12 | Z76: 66
A77: AA | B77: 1A | C77: 14 | D77: 122 | E77: 130 | F77: -8 | G77: 6 | I77: 1 | J77: =IF(AND(I77>1,COUNTIFS(I$72:I77,I77,C$72:C77,C77)=1),MAX(J$71:J76)+1,"") ->  | S77: 0 | W77: 40122 | X77: FALSE
A78: AD | B78: 1D | C78: 12 | D78: 102 | E78: 150 | F78: -48 | G78: 7 | I78: 1 | J78: =IF(AND(I78>1,COUNTIFS(I$72:I78,I78,C$72:C78,C78)=1),MAX(J$71:J77)+1,"") ->  | S78: 0 | W78: 102 | X78: FALSE
A79: AH | B79: 1H | C79: 11 | D79: 118 | E79: 134 | F79: -16 | G79: 8 | I79: 1 | J79: =IF(AND(I79>1,COUNTIFS(I$72:I79,I79,C$72:C79,C79)=1),MAX(J$71:J78)+1,"") ->  | S79: 0 | W79: 32118 | X79: FALSE
I80: POUR | J80: =A72 -> AG | K80: =IF($A72=K$71,"",IF(INDEX($C$72:$C$79,MATCH(K$71,$A$72:$A$79,0))=$C72,IFERROR(VLOOKUP($A72&K$71,$N$18:$R$69,5,0), VLOOKUP(K$71&$A72,$N$18:$S$69,6,0)), "")) ->  | L80: 32 | M80: 32 | O80: 8 | P80: 26 | S80: 98
J81: AC | L81: 4 | O81: 20 | P81: 20 | Q81: 4 | S81: 48
J82: AF | L82: 24 | M82: 16 | O82: 20 | Q82: 10 | S82: 70
J83: AE | L83: 18 | M83: 16 | P83: 16 | Q83: 28 | S83: 78
J84: AB | M84: 32 | O84: 18 | P84: 12 | Q84: 4 | S84: 66
J85: AA | S85: 0
J86: AD | S86: 0
J87: AH | S87: 0
I88: CONTRE | J88: =J80 -> AG | K88: =INDEX($K$80:$R$87,MATCH(K$71,$J$80:$J$87,0),MATCH($J80,$K$71:$R$71,0)) ->  | L88: =INDEX($K$80:$R$87,MATCH(L$71,$J$80:$J$87,0),MATCH($J80,$K$71:$R$71,0)) -> 4 | M88: 4 | O88: 28 | P88: 10 | S88: 46
J89: =J81 -> AC | K89: =INDEX($K$80:$R$87,MATCH(K$71,$J$80:$J$87,0),MATCH($J81,$K$71:$R$71,0)) ->  | L89: 32 | O89: 16 | P89: 16 | Q89: 32 | S89: 96
J90: AF | L90: 12 | M90: 20 | O90: 16 | Q90: 26 | S90: 74
J91: AE | L91: 18 | M91: 20 | P91: 20 | Q91: 8 | S91: 66
J92: AB | M92: 4 | O92: 18 | P92: 24 | Q92: 32 | S92: 78
J93: AA | S93: 0
J94: AD | S94: 0
J95: AH | S95: 0 | U95: Diff pondérée
I96: DIFF | J96: =J88 -> AG | S96: =S80-S88 -> 52 | U96: =S96+ABS(MIN($S$96:$S$103)) -> 100
J97: =J89 -> AC | S97: =S81-S89 -> -48 | U97: 0
J98: AF | S98: -4 | U98: 44
J99: AE | S99: 12 | U99: 60
J100: AB | S100: -12 | U100: 36
J101: AA | S101: 0 | U101: 48
J102: AD | S102: 0 | U102: =S102+ABS(MIN($S$96:$S$103)) -> 48
J103: AH | S103: 0 | U103: =S103+ABS(MIN($S$96:$S$103)) -> 48

Sheet P12
G1: 3
A2: CHAMPIONNAT DES CLUBS
A4: POULE 1
A5: EQUIPES | C5: POINTS | D5: Pour | E5: Contre | F5: Diff
A6: AA | B6: 1A | C6: =SUMIF($A$18:$A$69,A6,$E$18:$E$69)+SUMIF($C$18:$C$69,A6,$F$18:$F$69) -> 13 | D6: =SUMIF($A$18:$A$69,$A6,$B$18:$B$69)+SUMIF($C$18:$C$69,$A6,$D$18:$D$69) -> 120 | E6: =SUMIF($C$18:$C$69,$A6,$B$18:$B$69)+SUMIF($A$18:$A$69,$A6,$D$18:$D$69) -> 132 | F6: =D6-E6 -> -12
A7: AB | B7: 1B | C7: =SUMIF($A$18:$A$69,A7,$E$18:$E$69)+SUMIF($C$18:$C$69,A7,$F$18:$F$69) -> 15 | D7: =SUMIF($A$18:$A$69,$A7,$B$18:$B$69)+SUMIF($C$18:$C$69,$A7,$D$18:$D$69) -> 124 | E7: =SUMIF($C$18:$C$69,$A7,$B$18:$B$69)+SUMIF($A$18:$A$69,$A7,$D$18:$D$69) -> 128 | F7: -4
A8: AC | B8: 1C | C8: =SUMIF($A$18:$A$69,A8,$E$18:$E$69)+SUMIF($C$18:$C$69,A8,$F$18:$F$69) -> 15 | D8: 114 | E8: 138 | F8: -24
A9: AD | B9: 1D | C9: 11 | D9: 110 | E9: 142 | F9: -32
A10: AE | B10: 1E | C10: 15 | D10: 140 | E10: 112 | F10: 28
A11: AF | B11: 1F | C11: 15 | D11: 128 | E11: 124 | F11: 4
A12: AG | B12: 1G | C12: 17 | D12: 154 | E12: 98 | F12: =D12-E12 -> 56
A13: AH | B13: 1H | C13: 11 | D13: =SUMIF($A$18:$A$69,$A13,$B$18:$B$69)+SUMIF($C$18:$C$69,$A13,$D$18:$D$69) -> 118 | E13: 134 | F13: =D13-E13 -> -16
A15: 1er MATCH le | B15: à | C15: AA
G16: SI forfait éq recevante
A17: Equipes | B17: score | C17: Equipes | D17: score | E17: Points | F17: Points
A18: AA | B18: 16 | C18: AB | D18: =IF(G18=19,19,IF(ISBLANK(B18),"",IF(B18=19,0,36-B18))) -> 20 | E18: =IF(G18=19,0,IF(ISBLANK(B18),"",IF(B18<18,1,IF(B18=18,2,IF(B18>18,3))))) -> 1 | F18: =IF(G18=19,3,IF(ISBLANK(B18),"",IF(B18=19,0,IF(D18<18,1,IF(D18=18,2,IF(D18>=20,3)))))) -> 3 | L18: =IF(B18>D18,A18&C18,IF(D18>B18,C18&A18,"/")) -> ABAA | N18: =A18&C18 -> AAAB | O18: =E18 -> 1 | P18: =C18&A18 -> ABAA | Q18: =F18 -> 3 | R18: =B18 -> 16 | S18: =D18 -> 20
A19: AC | B19: 30 | C19: AD | D19: =IF(G19=19,19,IF(ISBLANK(B19),"",IF(B19=19,0,36-B19))) -> 6 | E19: =IF(G19=19,0,IF(ISBLANK(B19),"",IF(B19<18,1,IF(B19=18,2,IF(B19>18,3))))) -> 3 | F19: =IF(G19=19,3,IF(ISBLANK(B19),"",IF(B19=19,0,IF(D19<18,1,IF(D19=18,2,IF(D19>=20,3)))))) -> 1 | L19: =IF(B19>D19,A19&C19,IF(D19>B19,C19&A19,"/")) -> ACAD | N19: =A19&C19 -> ACAD | O19: =E19 -> 3 | P19: =C19&A19 -> ADAC | Q19: =F19 -> 1 | R19: =B19 -> 30 | S19: =D19 -> 6
A20: AE | B20: 16 | C20: AF | D20: =IF(G20=19,19,IF(ISBLANK(B20),"",IF(B20=19,0,36-B20))) -> 20 | E20: =IF(G20=19,0,IF(ISBLANK(B20),"",IF(B20<18,1,IF(B20=18,2,IF(B20>18,3))))) -> 1 | F20: =IF(G20=19,3,IF(ISBLANK(B20),"",IF(B20=19,0,IF(D20<18,1,IF(D20=18,2,IF(D20>=20,3)))))) -> 3 | L20: =IF(B20>D20,A20&C20,IF(D20>B20,C20&A20,"/")) -> AFAE | N20: =A20&C20 -> AEAF | O20: =E20 -> 1 | P20: =C20&A20 -> AFAE | Q20: =F20 -> 3 | R20: =B20 -> 16 | S20: =D20 -> 20
A21: AG | B21: 18 | C21: AH | D21: =IF(G21=19,19,IF(ISBLANK(B21),"",IF(B21=19,0,36-B21))) -> 18 | E21: =IF(G21=19,0,IF(ISBLANK(B21),"",IF(B21<18,1,IF(B21=18,2,IF(B21>18,3))))) -> 2 | F21: =IF(G21=19,3,IF(ISBLANK(B21),"",IF(B21=19,0,IF(D21<18,1,IF(D21=18,2,IF(D21>=20,3)))))) -> 2 | L21: =IF(B21>D21,A21&C21,IF(D21>B21,C21&A21,"/")) -> / | N21: =A21&C21 -> AGAH | O21: =E21 -> 2 | P21: =C21&A21 -> AHAG | Q21: =F21 -> 2 | R21: =B21 -> 18 | S21: =D21 -> 18
A23: 2 éme MATCH le | B23: à | C23: AB
G24: SI forfait éq recevante
A25: Equipes | B25: score | C25: Equipes | D25: score | E25: Points | F25: Points
A26: AA | B26: 18 | C26: AC | D26: =IF(G26=19,19,IF(ISBLANK(B26),"",IF(B26=19,0,36-B26))) -> 18 | E26: =IF(G26=19,0,IF(ISBLANK(B26),"",IF(B26<18,1,IF(B26=18,2,IF(B26>18,3))))) -> 2 | F26: =IF(G26=19,3,IF(ISBLANK(B26),"",IF(B26=19,0,IF(D26<18,1,IF(D26=18,2,IF(D26>=20,3)))))) -> 2 | L26: =IF(B26>D26,A26&C26,IF(D26>B26,C26&A26,"/")) -> / | N26: =A26&C26 -> AAAC | O26: =E26 -> 2 | P26: =C26&A26 -> ACAA | Q26: =F26 -> 2 | R26: =B26 -> 18 | S26: =D26 -> 18
A27: AB | B27: 18 | C27: AH | D27: =IF(G27=19,19,IF(ISBLANK(B27),"",IF(B27=19,0,36-B27))) -> 18 | E27: =IF(G27=19,0,IF(ISBLANK(B27),"",IF(B27<18,1,IF(B27=18,2,IF(B27>18,3))))) -> 2 | F27: =IF(G27=19,3,IF(ISBLANK(B27),"",IF(B27=19,0,IF(D27<18,1,IF(D27=18,2,IF(D27>=20,3)))))) -> 2 | L27: =IF(B27>D27,A27&C27,IF(D27>B27,C27&A27,"/")) -> / | N27: =A27&C27 -> ABAH | O27: =E27 -> 2 | P27: =C27&A27 -> AHAB | Q27: =F27 -> 2 | R27: =B27 -> 18 | S27: =D27 -> 18
A28: AD | B28: 18 | C28: AF | D28: =IF(G28=19,19,IF(ISBLANK(B28),"",IF(B28=19,0,36-B28))) -> 18 | E28: =IF(G28=19,0,IF(ISBLANK(B28),"",IF(B28<18,1,IF(B28=18,2,IF(B28>18,3))))) -> 2 | F28: =IF(G28=19,3,IF(ISBLANK(B28),"",IF(B28=19,0,IF(D28<18,1,IF(D28=18,2,IF(D28>=20,3)))))) -> 2 | L28: =IF(B28>D28,A28&C28,IF(D28>B28,C28&A28,"/")) -> / | N28: =A28&C28 -> ADAF | O28: =E28 -> 2 | P28: =C28&A28 -> AFAD | Q28: =F28 -> 2 | R28: =B28 -> 18 | S28: =D28 -> 18
A29: AE | B29: 28 | C29: AG | D29: =IF(G29=19,19,IF(ISBLANK(B29),"",IF(B29=19,0,36-B29))) -> 8 | E29: =IF(G29=19,0,IF(ISBLANK(B29),"",IF(B29<18,1,IF(B29=18,2,IF(B29>18,3))))) -> 3 | F29: =IF(G29=19,3,IF(ISBLANK(B29),"",IF(B29=19,0,IF(D29<18,1,IF(D29=18,2,IF(D29>=20,3)))))) -> 1 | L29: =IF(B29>D29,A29&C29,IF(D29>B29,C29&A29,"/")) -> AEAG | N29: =A29&C29 -> AEAG | O29: =E29 -> 3 | P29: =C29&A29 -> AGAE | Q29: =F29 -> 1 | R29: =B29 -> 28 | S29: =D29 -> 8
A31: 3 éme MATCH le | B31: à | C31: AC
G32: SI forfait éq recevante
A33: Equipes | B33: score | C33: Equipes | D33: score | E33: Points | F33: Points
A34: AA | B34: 20 | C34: AH | D34: =IF(G34=19,19,IF(ISBLANK(B34),"",IF(B34=19,0,36-B34))) -> 16 | E34: =IF(G34=19,0,IF(ISBLANK(B34),"",IF(B34<18,1,IF(B34=18,2,IF(B34>18,3))))) -> 3 | F34: =IF(G34=19,3,IF(ISBLANK(B34),"",IF(B34=19,0,IF(D34<18,1,IF(D34=18,2,IF(D34>=20,3)))))) -> 1 | L34: =IF(B34>D34,A34&C34,IF(D34>B34,C34&A34,"/")) -> AAAH | N34: =A34&C34 -> AAAH | O34: =E34 -> 3 | P34: =C34&A34 -> AHAA | Q34: =F34 -> 1 | R34: =B34 -> 20 | S34: =D34 -> 16
A35: AB | B35: 20 | C35: AE | D35: =IF(G35=19,19,IF(ISBLANK(B35),"",IF(B35=19,0,36-B35))) -> 16 | E35: =IF(G35=19,0,IF(ISBLANK(B35),"",IF(B35<18,1,IF(B35=18,2,IF(B35>18,3))))) -> 3 | F35: =IF(G35=19,3,IF(ISBLANK(B35),"",IF(B35=19,0,IF(D35<18,1,IF(D35=18,2,IF(D35>=20,3)))))) -> 1 | L35: =IF(B35>D35,A35&C35,IF(D35>B35,C35&A35,"/")) -> ABAE | N35: =A35&C35 -> ABAE | O35: =E35 -> 3 | P35: =C35&A35 -> AEAB | Q35: =F35 -> 1 | R35: =B35 -> 20 | S35: =D35 -> 16
A36: AC | B36: 20 | C36: AF | D36: =IF(G36=19,19,IF(ISBLANK(B36),"",IF(B36=19,0,36-B36))) -> 16 | E36: =IF(G36=19,0,IF(ISBLANK(B36),"",IF(B36<18,1,IF(B36=18,2,IF(B36>18,3))))) -> 3 | F36: =IF(G36=19,3,IF(ISBLANK(B36),"",IF(B36=19,0,IF(D36<18,1,IF(D36=18,2,IF(D36>=20,3)))))) -> 1 | L36: =IF(B36>D36,A36&C36,IF(D36>B36,C36&A36,"/")) -> ACAF | N36: =A36&C36 -> ACAF | O36: =E36 -> 3 | P36: =C36&A36 -> AFAC | Q36: =F36 -> 1 | R36: =B36 -> 20 | S36: =D36 -> 16
A37: AD | B37: 18 | C37: AG | D37: =IF(G37=19,19,IF(ISBLANK(B37),"",IF(B37=19,0,36-B37))) -> 18 | E37: =IF(G37=19,0,IF(ISBLANK(B37),"",IF(B37<18,1,IF(B37=18,2,IF(B37>18,3))))) -> 2 | F37: =IF(G37=19,3,IF(ISBLANK(B37),"",IF(B37=19,0,IF(D37<18,1,IF(D37=18,2,IF(D37>=20,3)))))) -> 2 | L37: =IF(B37>D37,A37&C37,IF(D37>B37,C37&A37,"/")) -> / | N37: =A37&C37 -> ADAG | O37: =E37 -> 2 | P37: =C37&A37 -> AGAD | Q37: =F37 -> 2 | R37: =B37 -> 18 | S37: =D37 -> 18
A39: 4 éme MATCH le | B39: à | C39: AD
G40: SI forfait éq recevante
A41: Equipes | B41: score | C41: Equipes | D41: score | E41: Points | F41: Points
A42: AA | B42: 20 | C42: AD | D42: =IF(G42=19,19,IF(ISBLANK(B42),"",IF(B42=19,0,36-B42))) -> 16 | E42: =IF(G42=19,0,IF(ISBLANK(B42),"",IF(B42<18,1,IF(B42=18,2,IF(B42>18,3))))) -> 3 | F42: =IF(G42=19,3,IF(ISBLANK(B42),"",IF(B42=19,0,IF(D42<18,1,IF(D42=18,2,IF(D42>=20,3)))))) -> 1 | L42: =IF(B42>D42,A42&C42,IF(D42>B42,C42&A42,"/")) -> AAAD | N42: =A42&C42 -> AAAD | O42: =E42 -> 3 | P42: =C42&A42 -> ADAA | Q42: =F42 -> 1 | R42: =B42 -> 20 | S42: =D42 -> 16
A43: AF | B43: 10 | C43: AG | D43: =IF(G43=19,19,IF(ISBLANK(B43),"",IF(B43=19,0,36-B43))) -> 26 | E43: =IF(G43=19,0,IF(ISBLANK(B43),"",IF(B43<18,1,IF(B43=18,2,IF(B43>18,3))))) -> 1 | F43: =IF(G43=19,3,IF(ISBLANK(B43),"",IF(B43=19,0,IF(D43<18,1,IF(D43=18,2,IF(D43>=20,3)))))) -> 3 | L43: =IF(B43>D43,A43&C43,IF(D43>B43,C43&A43,"/")) -> AGAF | N43: =A43&C43 -> AFAG | O43: =E43 -> 1 | P43: =C43&A43 -> AGAF | Q43: =F43 -> 3 | R43: =B43 -> 10 | S43: =D43 -> 26
A44: AB | B44: 32 | C44: AC | D44: =IF(G44=19,19,IF(ISBLANK(B44),"",IF(B44=19,0,36-B44))) -> 4 | E44: =IF(G44=19,0,IF(ISBLANK(B44),"",IF(B44<18,1,IF(B44=18,2,IF(B44>18,3))))) -> 3 | F44: =IF(G44=19,3,IF(ISBLANK(B44),"",IF(B44=19,0,IF(D44<18,1,IF(D44=18,2,IF(D44>=20,3)))))) -> 1 | L44: =IF(B44>D44,A44&C44,IF(D44>B44,C44&A44,"/")) -> ABAC | N44: =A44&C44 -> ABAC | O44: =E44 -> 3 | P44: =C44&A44 -> ACAB | Q44: =F44 -> 1 | R44: =B44 -> 32 | S44: =D44 -> 4
A45: AE | B45: 20 | C45: AH | D45: =IF(G45=19,19,IF(ISBLANK(B45),"",IF(B45=19,0,36-B45))) -> 16 | E45: =IF(G45=19,0,IF(ISBLANK(B45),"",IF(B45<18,1,IF(B45=18,2,IF(B45>18,3))))) -> 3 | F45: =IF(G45=19,3,IF(ISBLANK(B45),"",IF(B45=19,0,IF(D45<18,1,IF(D45=18,2,IF(D45>=20,3)))))) -> 1 | L45: =IF(B45>D45,A45&C45,IF(D45>B45,C45&A45,"/")) -> AEAH | N45: =A45&C45 -> AEAH | O45: =E45 -> 3 | P45: =C45&A45 -> AHAE | Q45: =F45 -> 1 | R45: =B45 -> 20 | S45: =D45 -> 16
A47: 5 éme MATCH le | B47: à | C47: AE
G48: SI forfait éq recevante
A49: Equipes | B49: score | C49: Equipes | D49: score | E49: Points | F49: Points
A50: AA | B50: 18 | C50: AF | D50: =IF(G50=19,19,IF(ISBLANK(B50),"",IF(B50=19,0,36-B50))) -> 18 | E50: =IF(G50=19,0,IF(ISBLANK(B50),"",IF(B50<18,1,IF(B50=18,2,IF(B50>18,3))))) -> 2 | F50: =IF(G50=19,3,IF(ISBLANK(B50),"",IF(B50=19,0,IF(D50<18,1,IF(D50=18,2,IF(D50>=20,3)))))) -> 2 | L50: =IF(B50>D50,A50&C50,IF(D50>B50,C50&A50,"/")) -> / | N50: =A50&C50 -> AAAF | O50: =E50 -> 2 | P50: =C50&A50 -> AFAA | Q50: =F50 -> 2 | R50: =B50 -> 18 | S50: =D50 -> 18
A51: AD | B51: 18 | C51: AH | D51: =IF(G51=19,19,IF(ISBLANK(B51),"",IF(B51=19,0,36-B51))) -> 18 | E51: =IF(G51=19,0,IF(ISBLANK(B51),"",IF(B51<18,1,IF(B51=18,2,IF(B51>18,3))))) -> 2 | F51: =IF(G51=19,3,IF(ISBLANK(B51),"",IF(B51=19,0,IF(D51<18,1,IF(D51=18,2,IF(D51>=20,3)))))) -> 2 | L51: =IF(B51>D51,A51&C51,IF(D51>B51,C51&A51,"/")) -> / | N51: =A51&C51 -> ADAH | O51: =E51 -> 2 | P51: =C51&A51 -> AHAD | Q51: =F51 -> 2 | R51: =B51 -> 18 | S51: =D51 -> 18
A52: AB | B52: 4 | C52: AG | D52: =IF(G52=19,19,IF(ISBLANK(B52),"",IF(B52=19,0,36-B52))) -> 32 | E52: =IF(G52=19,0,IF(ISBLANK(B52),"",IF(B52<18,1,IF(B52=18,2,IF(B52>18,3))))) -> 1 | F52: =IF(G52=19,3,IF(ISBLANK(B52),"",IF(B52=19,0,IF(D52<18,1,IF(D52=18,2,IF(D52>=20,3)))))) -> 3 | L52: =IF(B52>D52,A52&C52,IF(D52>B52,C52&A52,"/")) -> AGAB | N52: =A52&C52 -> ABAG | O52: =E52 -> 1 | P52: =C52&A52 -> AGAB | Q52: =F52 -> 3 | R52: =B52 -> 4 | S52: =D52 -> 32
A53: AC | B53: 20 | C53: AE | D53: =IF(G53=19,19,IF(ISBLANK(B53),"",IF(B53=19,0,36-B53))) -> 16 | E53: =IF(G53=19,0,IF(ISBLANK(B53),"",IF(B53<18,1,IF(B53=18,2,IF(B53>18,3))))) -> 3 | F53: =IF(G53=19,3,IF(ISBLANK(B53),"",IF(B53=19,0,IF(D53<18,1,IF(D53=18,2,IF(D53>=20,3)))))) -> 1 | L53: =IF(B53>D53,A53&C53,IF(D53>B53,C53&A53,"/")) -> ACAE | N53: =A53&C53 -> ACAE | O53: =E53 -> 3 | P53: =C53&A53 -> AEAC | Q53: =F53 -> 1 | R53: =B53 -> 20 | S53: =D53 -> 16
A55: 6 éme MATCH le | B55: à | C55: AF
G56: SI forfait éq recevante
A57: Equipes | B57: score | C57: Equipes | D57: score | E57: Points | F57: Points
A58: AB | B58: 18 | C58: AD | D58: =IF(G58=19,19,IF(ISBLANK(B58),"",IF(B58=19,0,36-B58))) -> 18 | E58: =IF(G58=19,0,IF(ISBLANK(B58),"",IF(B58<18,1,IF(B58=18,2,IF(B58>18,3))))) -> 2 | F58: =IF(G58=19,3,IF(ISBLANK(B58),"",IF(B58=19,0,IF(D58<18,1,IF(D58=18,2,IF(D58>=20,3)))))) -> 2 | L58: =IF(B58>D58,A58&C58,IF(D58>B58,C58&A58,"/")) -> / | N58: =A58&C58 -> ABAD | O58: =E58 -> 2 | P58: =C58&A58 -> ADAB | Q58: =F58 -> 2 | R58: =B58 -> 18 | S58: =D58 -> 18
A59: AE | B59: 24 | C59: AA | D59: =IF(G59=19,19,IF(ISBLANK(B59),"",IF(B59=19,0,36-B59))) -> 12 | E59: =IF(G59=19,0,IF(ISBLANK(B59),"",IF(B59<18,1,IF(B59=18,2,IF(B59>18,3))))) -> 3 | F59: =IF(G59=19,3,IF(ISBLANK(B59),"",IF(B59=19,0,IF(D59<18,1,IF(D59=18,2,IF(D59>=20,3)))))) -> 1 | L59: =IF(B59>D59,A59&C59,IF(D59>B59,C59&A59,"/")) -> AEAA | N59: =A59&C59 -> AEAA | O59: =E59 -> 3 | P59: =C59&A59 -> AAAE | Q59: =F59 -> 1 | R59: =B59 -> 24 | S59: =D59 -> 12
A60: AG | B60: 32 | C60: AC | D60: =IF(G60=19,19,IF(ISBLANK(B60),"",IF(B60=19,0,36-B60))) -> 4 | E60: =IF(G60=19,0,IF(ISBLANK(B60),"",IF(B60<18,1,IF(B60=18,2,IF(B60>18,3))))) -> 3 | F60: =IF(G60=19,3,IF(ISBLANK(B60),"",IF(B60=19,0,IF(D60<18,1,IF(D60=18,2,IF(D60>=20,3)))))) -> 1 | L60: =IF(B60>D60,A60&C60,IF(D60>B60,C60&A60,"/")) -> AGAC | N60: =A60&C60 -> AGAC | O60: =E60 -> 3 | P60: =C60&A60 -> ACAG | Q60: =F60 -> 1 | R60: =B60 -> 32 | S60: =D60 -> 4
A61: AF | B61: 22 | C61: AH | D61: =IF(G61=19,19,IF(ISBLANK(B61),"",IF(B61=19,0,36-B61))) -> 14 | E61: =IF(G61=19,0,IF(ISBLANK(B61),"",IF(B61<18,1,IF(B61=18,2,IF(B61>18,3))))) -> 3 | F61: =IF(G61=19,3,IF(ISBLANK(B61),"",IF(B61=19,0,IF(D61<18,1,IF(D61=18,2,IF(D61>=20,3)))))) -> 1 | L61: =IF(B61>D61,A61&C61,IF(D61>B61,C61&A61,"/")) -> AFAH | N61: =A61&C61 -> AFAH | O61: =E61 -> 3 | P61: =C61&A61 -> AHAF | Q61: =F61 -> 1 | R61: =B61 -> 22 | S61: =D61 -> 14
A63: 7 éme MATCH le | B63: à | C63: AG
G64: SI forfait éq recevante
A65: Equipes | B65: score | C65: Equipes | D65: score | E65: Points | F65: Points
A66: AA | B66: 16 | C66: AG | D66: =IF(G66=19,19,IF(ISBLANK(B66),"",IF(B66=19,0,36-B66))) -> 20 | E66: =IF(G66=19,0,IF(ISBLANK(B66),"",IF(B66<18,1,IF(B66=18,2,IF(B66>18,3))))) -> 1 | F66: =IF(G66=19,3,IF(ISBLANK(B66),"",IF(B66=19,0,IF(D66<18,1,IF(D66=18,2,IF(D66>=20,3)))))) -> 3 | L66: =IF(B66>D66,A66&C66,IF(D66>B66,C66&A66,"/")) -> AGAA | N66: =A66&C66 -> AAAG | O66: =E66 -> 1 | P66: =C66&A66 -> AGAA | Q66: =F66 -> 3 | R66: =B66 -> 16 | S66: =D66 -> 20
A67: AB | B67: 12 | C67: AF | D67: =IF(G67=19,19,IF(ISBLANK(B67),"",IF(B67=19,0,36-B67))) -> 24 | E67: =IF(G67=19,0,IF(ISBLANK(B67),"",IF(B67<18,1,IF(B67=18,2,IF(B67>18,3))))) -> 1 | F67: =IF(G67=19,3,IF(ISBLANK(B67),"",IF(B67=19,0,IF(D67<18,1,IF(D67=18,2,IF(D67>=20,3)))))) -> 3 | L67: =IF(B67>D67,A67&C67,IF(D67>B67,C67&A67,"/")) -> AFAB | N67: =A67&C67 -> ABAF | O67: =E67 -> 1 | P67: =C67&A67 -> AFAB | Q67: =F67 -> 3 | R67: =B67 -> 12 | S67: =D67 -> 24
A68: AE | B68: 20 | C68: AD | D68: =IF(G68=19,19,IF(ISBLANK(B68),"",IF(B68=19,0,36-B68))) -> 16 | E68: =IF(G68=19,0,IF(ISBLANK(B68),"",IF(B68<18,1,IF(B68=18,2,IF(B68>18,3))))) -> 3 | F68: =IF(G68=19,3,IF(ISBLANK(B68),"",IF(B68=19,0,IF(D68<18,1,IF(D68=18,2,IF(D68>=20,3)))))) -> 1 | L68: =IF(B68>D68,A68&C68,IF(D68>B68,C68&A68,"/")) -> AEAD | N68: =A68&C68 -> AEAD | O68: =E68 -> 3 | P68: =C68&A68 -> ADAE | Q68: =F68 -> 1 | R68: =B68 -> 20 | S68: =D68 -> 16
A69: AC | B69: 18 | C69: AH | D69: =IF(G69=19,19,IF(ISBLANK(B69),"",IF(B69=19,0,36-B69))) -> 18 | E69: =IF(G69=19,0,IF(ISBLANK(B69),"",IF(B69<18,1,IF(B69=18,2,IF(B69>18,3))))) -> 2 | F69: =IF(G69=19,3,IF(ISBLANK(B69),"",IF(B69=19,0,IF(D69<18,1,IF(D69=18,2,IF(D69>=20,3)))))) -> 2 | L69: =IF(B69>D69,A69&C69,IF(D69>B69,C69&A69,"/")) -> / | N69: =A69&C69 -> ACAH | O69: =E69 -> 2 | P69: =C69&A69 -> AHAC | Q69: =F69 -> 2 | R69: =B69 -> 18 | S69: =D69 -> 18
C70: Si pas d'exaequo | G70: Classt Final | H70: Rencontres entre exaequos
A71: EQUIPES | C71: POINTS | D71: POUR | E71: CONTRE | F71: DIFF | H71: POINTS Exaequos | I71: Exaq | J71: n° | K71: AA | L71: AB | M71: AC | N71: AD | O71: AE | P71: AF | Q71: AG | R71: AH | S71: Pts matchs | W71: 1000000*Pts matchs +1000 (Diff + abs(diff mini) )+Pour | X71: RANG | Y71: DIFF Exaequos | Z71: POUR Exaequos
A72: AG | B72: 1G | C72: 17 | D72: 154 | E72: 98 | F72: 56 | G72: 1 | H72: =IF(S72>0,S72,"") ->  | I72: =COUNTIF($C$72:$C$79,C72) -> 1 | J72: =IF(AND(I72>1,COUNTIFS(I$72:I72,I72,C$72:C72,C72)=1),MAX(J$71:J71)+1,"") ->  | K72: =IF($A72=K$71,"",IF(INDEX($C$72:$C$79,MATCH(K$71,$A$72:$A$79,0))=$C72,IFERROR(VLOOKUP($A72&K$71,$N$18:$O$69,2,0), VLOOKUP(K$71&$A72,$N$18:$Q$69,4,0)), "")) ->  | S72: =SUM(K72:R72) -> 0 | W72: =IF(I72<3,S72*1000000+(F72+ABS(MIN($F$72:$F$79)))*1000+D72,S72*1000000+U96*1000+Z72) -> 88154 | X72: =IF(I72>2,RANK(W72,OFFSET(W$71,MATCH(I72,$I$72:$I$79,0),,I72))) -> FALSE | Y72: =IF(S96=0,"",S96) ->  | Z72: =IF(S80=0,"",S80) -> 
A73: AB | B73: 1B | C73: 15 | D73: 124 | E73: 128 | F73: -4 | G73: 2 | H73: 7 | I73: 4 | J73: =IF(AND(I73>1,COUNTIFS(I$72:I73,I73,C$72:C73,C73)=1),MAX(J$71:J72)+1,"") -> 1 | M73: 3 | O73: 3 | P73: 1 | S73: =SUM(K73:R73) -> 7 | W73: =IF(I73<3,S73*1000000+(F73+ABS(MIN($F$72:$F$79)))*1000+D73,S73*1000000+U97*1000+Z73) -> 7040064 | X73: =IF(I73>2,RANK(W73,OFFSET(W$71,MATCH(I73,$I$72:$I$79,0),,I73))) -> 1 | Y73: 20 | Z73: 64
A74: AF | B74: 1F | C74: 15 | D74: 128 | E74: 124 | F74: 4 | G74: 3 | H74: 7 | I74: 4 | J74: =IF(AND(I74>1,COUNTIFS(I$72:I74,I74,C$72:C74,C74)=1),MAX(J$71:J73)+1,"") ->  | L74: 3 | M74: 1 | O74: 3 | S74: 7 | W74: 7032060 | X74: 2 | Y74: 12 | Z74: 60
A75: AC | B75: 1C | C75: 15 | D75: 114 | E75: 138 | F75: -24 | G75: 4 | H75: 7 | I75: 4 | J75: =IF(AND(I75>1,COUNTIFS(I$72:I75,I75,C$72:C75,C75)=1),MAX(J$71:J74)+1,"") ->  | L75: 1 | O75: 3 | P75: 3 | S75: 7 | W75: 7000044 | X75: 3 | Y75: -20 | Z75: 44
A76: AE | B76: 1E | C76: 15 | D76: 140 | E76: 112 | F76: 28 | G76: 5 | H76: 3 | I76: 4 | J76: =IF(AND(I76>1,COUNTIFS(I$72:I76,I76,C$72:C76,C76)=1),MAX(J$71:J75)+1,"") ->  | L76: 1 | M76: 1 | P76: 1 | S76: 3 | W76: 3008048 | X76: 4 | Y76: -12 | Z76: 48
A77: AA | B77: 1A | C77: 13 | D77: 120 | E77: 132 | F77: -12 | G77: 6 | I77: 1 | J77: =IF(AND(I77>1,COUNTIFS(I$72:I77,I77,C$72:C77,C77)=1),MAX(J$71:J76)+1,"") ->  | S77: 0 | W77: 20120 | X77: FALSE
A78: AD | B78: 1D | C78: 11 | D78: 110 | E78: 142 | F78: -32 | G78: 7 | H78: 2 | I78: 2 | J78: =IF(AND(I78>1,COUNTIFS(I$72:I78,I78,C$72:C78,C78)=1),MAX(J$71:J77)+1,"") -> 2 | R78: 2 | S78: 2 | W78: 2000110 | X78: FALSE | Z78: 18
A79: AH | B79: 1H | C79: 11 | D79: 118 | E79: 134 | F79: -16 | G79: 8 | H79: 2 | I79: 2 | J79: =IF(AND(I79>1,COUNTIFS(I$72:I79,I79,C$72:C79,C79)=1),MAX(J$71:J78)+1,"") ->  | N79: 2 | S79: 2 | W79: 2016118 | X79: FALSE | Z79: 18
I80: POUR | J80: =A72 -> AG | K80: =IF($A72=K$71,"",IF(INDEX($C$72:$C$79,MATCH(K$71,$A$72:$A$79,0))=$C72,IFERROR(VLOOKUP($A72&K$71,$N$18:$R$69,5,0), VLOOKUP(K$71&$A72,$N$18:$S$69,6,0)), "")) ->  | S80: 0
J81: AB | M81: 32 | O81: 20 | P81: 12 | S81: 64
J82: AF | L82: 24 | M82: 16 | O82: 20 | S82: 60
J83: AC | L83: 4 | O83: 20 | P83: 20 | S83: 44
J84: AE | L84: 16 | M84: 16 | P84: 16 | S84: 48
J85: AA | S85: 0
J86: AD | R86: 18 | S86: 18
J87: AH | N87: 18 | S87: 18
I88: CONTRE | J88: =J80 -> AG | K88: =INDEX($K$80:$R$87,MATCH(K$71,$J$80:$J$87,0),MATCH($J80,$K$71:$R$71,0)) ->  | L88: =INDEX($K$80:$R$87,MATCH(L$71,$J$80:$J$87,0),MATCH($J80,$K$71:$R$71,0)) ->  | S88: 0
J89: =J81 -> AB | K89: =INDEX($K$80:$R$87,MATCH(K$71,$J$80:$J$87,0),MATCH($J81,$K$71:$R$71,0)) ->  | M89: 4 | O89: 16 | P89: 24 | S89: 44
J90: AF | L90: 12 | M90: 20 | O90: 16 | S90: 48
J91: AC | L91: 32 | O91: 16 | P91: 16 | S91: 64
J92: AE | L92: 20 | M92: 20 | P92: 20 | S92: 60
J93: AA | S93: 0
J94: AD | R94: 18 | S94: 18
J95: AH | N95: 18 | S95: 18 | U95: Diff pondérée
I96: DIFF | J96: =J88 -> AG | S96: =S80-S88 -> 0 | U96: =S96+ABS(MIN($S$96:$S$103)) -> 20
J97: =J89 -> AB | S97: =S81-S89 -> 20 | U97: 40
J98: AF | S98: 12 | U98: 32
J99: AC | S99: -20 | U99: 0
J100: AE | S100: -12 | U100: 8
J101: AA | S101: 0 | U101: 20
J102: AD | S102: 0 | U102: =S102+ABS(MIN($S$96:$S$103)) -> 20
J103: AH | S103: 0 | U103: =S103+ABS(MIN($S$96:$S$103)) -> 20

Sheet P13
G1: 3
A2: CHAMPIONNAT DES CLUBS
A4: POULE 1
A5: EQUIPES | C5: POINTS | D5: Pour | E5: Contre | F5: Diff
A6: AA | B6: 1A | C6: =SUMIF($A$18:$A$69,A6,$E$18:$E$69)+SUMIF($C$18:$C$69,A6,$F$18:$F$69) -> 15 | D6: =SUMIF($A$18:$A$69,$A6,$B$18:$B$69)+SUMIF($C$18:$C$69,$A6,$D$18:$D$69) -> 124 | E6: =SUMIF($C$18:$C$69,$A6,$B$18:$B$69)+SUMIF($A$18:$A$69,$A6,$D$18:$D$69) -> 128 | F6: =D6-E6 -> -4
A7: AB | B7: 1B | C7: =SUMIF($A$18:$A$69,A7,$E$18:$E$69)+SUMIF($C$18:$C$69,A7,$F$18:$F$69) -> 15 | D7: =SUMIF($A$18:$A$69,$A7,$B$18:$B$69)+SUMIF($C$18:$C$69,$A7,$D$18:$D$69) -> 134 | E7: =SUMIF($C$18:$C$69,$A7,$B$18:$B$69)+SUMIF($A$18:$A$69,$A7,$D$18:$D$69) -> 118 | F7: 16
A8: AC | B8: 1C | C8: =SUMIF($A$18:$A$69,A8,$E$18:$E$69)+SUMIF($C$18:$C$69,A8,$F$18:$F$69) -> 13 | D8: 114 | E8: 139 | F8: -25
A9: AD | B9: 1D | C9: 11 | D9: 100 | E9: 152 | F9: -52
A10: AE | B10: 1E | C10: 15 | D10: 140 | E10: 112 | F10: 28
A11: AF | B11: 1F | C11: 15 | D11: 128 | E11: 124 | F11: 4
A12: AG | B12: 1G | C12: 15 | D12: 150 | E12: 102 | F12: =D12-E12 -> 48
A13: AH | B13: 1H | C13: 12 | D13: =SUMIF($A$18:$A$69,$A13,$B$18:$B$69)+SUMIF($C$18:$C$69,$A13,$D$18:$D$69) -> 119 | E13: 134 | F13: =D13-E13 -> -15
A15: 1er MATCH le | B15: à | C15: AA
G16: SI forfait éq recevante
A17: Equipes | B17: score | C17: Equipes | D17: score | E17: Points | F17: Points
A18: AA | B18: 16 | C18: AB | D18: =IF(G18=19,19,IF(ISBLANK(B18),"",IF(B18=19,0,36-B18))) -> 20 | E18: =IF(G18=19,0,IF(ISBLANK(B18),"",IF(B18<18,1,IF(B18=18,2,IF(B18>18,3))))) -> 1 | F18: =IF(G18=19,3,IF(ISBLANK(B18),"",IF(B18=19,0,IF(D18<18,1,IF(D18=18,2,IF(D18>=20,3)))))) -> 3 | L18: =IF(B18>D18,A18&C18,IF(D18>B18,C18&A18,"/")) -> ABAA | N18: =A18&C18 -> AAAB | O18: =E18 -> 1 | P18: =C18&A18 -> ABAA | Q18: =F18 -> 3 | R18: =B18 -> 16 | S18: =D18 -> 20
A19: AC | B19: 30 | C19: AD | D19: =IF(G19=19,19,IF(ISBLANK(B19),"",IF(B19=19,0,36-B19))) -> 6 | E19: =IF(G19=19,0,IF(ISBLANK(B19),"",IF(B19<18,1,IF(B19=18,2,IF(B19>18,3))))) -> 3 | F19: =IF(G19=19,3,IF(ISBLANK(B19),"",IF(B19=19,0,IF(D19<18,1,IF(D19=18,2,IF(D19>=20,3)))))) -> 1 | L19: =IF(B19>D19,A19&C19,IF(D19>B19,C19&A19,"/")) -> ACAD | N19: =A19&C19 -> ACAD | O19: =E19 -> 3 | P19: =C19&A19 -> ADAC | Q19: =F19 -> 1 | R19: =B19 -> 30 | S19: =D19 -> 6
A20: AE | B20: 16 | C20: AF | D20: =IF(G20=19,19,IF(ISBLANK(B20),"",IF(B20=19,0,36-B20))) -> 20 | E20: =IF(G20=19,0,IF(ISBLANK(B20),"",IF(B20<18,1,IF(B20=18,2,IF(B20>18,3))))) -> 1 | F20: =IF(G20=19,3,IF(ISBLANK(B20),"",IF(B20=19,0,IF(D20<18,1,IF(D20=18,2,IF(D20>=20,3)))))) -> 3 | L20: =IF(B20>D20,A20&C20,IF(D20>B20,C20&A20,"/")) -> AFAE | N20: =A20&C20 -> AEAF | O20: =E20 -> 1 | P20: =C20&A20 -> AFAE | Q20: =F20 -> 3 | R20: =B20 -> 16 | S20: =D20 -> 20
A21: AG | B21: 18 | C21: AH | D21: =IF(G21=19,19,IF(ISBLANK(B21),"",IF(B21=19,0,36-B21))) -> 18 | E21: =IF(G21=19,0,IF(ISBLANK(B21),"",IF(B21<18,1,IF(B21=18,2,IF(B21>18,3))))) -> 2 | F21: =IF(G21=19,3,IF(ISBLANK(B21),"",IF(B21=19,0,IF(D21<18,1,IF(D21=18,2,IF(D21>=20,3)))))) -> 2 | L21: =IF(B21>D21,A21&C21,IF(D21>B21,C21&A21,"/")) -> / | N21: =A21&C21 -> AGAH | O21: =E21 -> 2 | P21: =C21&A21 -> AHAG | Q21: =F21 -> 2 | R21: =B21 -> 18 | S21: =D21 -> 18
A23: 2 éme MATCH le | B23: à | C23: AB
G24: SI forfait éq recevante
A25: Equipes | B25: score | C25: Equipes | D25: score | E25: Points | F25: Points
A26: AA | B26: 18 | C26: AC | D26: =IF(G26=19,19,IF(ISBLANK(B26),"",IF(B26=19,0,36-B26))) -> 18 | E26: =IF(G26=19,0,IF(ISBLANK(B26),"",IF(B26<18,1,IF(B26=18,2,IF(B26>18,3))))) -> 2 | F26: =IF(G26=19,3,IF(ISBLANK(B26),"",IF(B26=19,0,IF(D26<18,1,IF(D26=18,2,IF(D26>=20,3)))))) -> 2 | L26: =IF(B26>D26,A26&C26,IF(D26>B26,C26&A26,"/")) -> / | N26: =A26&C26 -> AAAC | O26: =E26 -> 2 | P26: =C26&A26 -> ACAA | Q26: =F26 -> 2 | R26: =B26 -> 18 | S26: =D26 -> 18
A27: AB | B27: 18 | C27: AH | D27: =IF(G27=19,19,IF(ISBLANK(B27),"",IF(B27=19,0,36-B27))) -> 18 | E27: =IF(G27=19,0,IF(ISBLANK(B27),"",IF(B27<18,1,IF(B27=18,2,IF(B27>18,3))))) -> 2 | F27: =IF(G27=19,3,IF(ISBLANK(B27),"",IF(B27=19,0,IF(D27<18,1,IF(D27=18,2,IF(D27>=20,3)))))) -> 2 | L27: =IF(B27>D27,A27&C27,IF(D27>B27,C27&A27,"/")) -> / | N27: =A27&C27 -> ABAH | O27: =E27 -> 2 | P27: =C27&A27 -> AHAB | Q27: =F27 -> 2 | R27: =B27 -> 18 | S27: =D27 -> 18
A28: AD | B28: 18 | C28: AF | D28: =IF(G28=19,19,IF(ISBLANK(B28),"",IF(B28=19,0,36-B28))) -> 18 | E28: =IF(G28=19,0,IF(ISBLANK(B28),"",IF(B28<18,1,IF(B28=18,2,IF(B28>18,3))))) -> 2 | F28: =IF(G28=19,3,IF(ISBLANK(B28),"",IF(B28=19,0,IF(D28<18,1,IF(D28=18,2,IF(D28>=20,3)))))) -> 2 | L28: =IF(B28>D28,A28&C28,IF(D28>B28,C28&A28,"/")) -> / | N28: =A28&C28 -> ADAF | O28: =E28 -> 2 | P28: =C28&A28 -> AFAD | Q28: =F28 -> 2 | R28: =B28 -> 18 | S28: =D28 -> 18
A29: AE | B29: 28 | C29: AG | D29: =IF(G29=19,19,IF(ISBLANK(B29),"",IF(B29=19,0,36-B29))) -> 8 | E29: =IF(G29=19,0,IF(ISBLANK(B29),"",IF(B29<18,1,IF(B29=18,2,IF(B29>18,3))))) -> 3 | F29: =IF(G29=19,3,IF(ISBLANK(B29),"",IF(B29=19,0,IF(D29<18,1,IF(D29=18,2,IF(D29>=20,3)))))) -> 1 | L29: =IF(B29>D29,A29&C29,IF(D29>B29,C29&A29,"/")) -> AEAG | N29: =A29&C29 -> AEAG | O29: =E29 -> 3 | P29: =C29&A29 -> AGAE | Q29: =F29 -> 1 | R29: =B29 -> 28 | S29: =D29 -> 8
A31: 3 éme MATCH le | B31: à | C31: AC
G32: SI forfait éq recevante
A33: Equipes | B33: score | C33: Equipes | D33: score | E33: Points | F33: Points
A34: AA | B34: 20 | C34: AH | D34: =IF(G34=19,19,IF(ISBLANK(B34),"",IF(B34=19,0,36-B34))) -> 16 | E34: =IF(G34=19,0,IF(ISBLANK(B34),"",IF(B34<18,1,IF(B34=18,2,IF(B34>18,3))))) -> 3 | F34: =IF(G34=19,3,IF(ISBLANK(B34),"",IF(B34=19,0,IF(D34<18,1,IF(D34=18,2,IF(D34>=20,3)))))) -> 1 | L34: =IF(B34>D34,A34&C34,IF(D34>B34,C34&A34,"/")) -> AAAH | N34: =A34&C34 -> AAAH | O34: =E34 -> 3 | P34: =C34&A34 -> AHAA | Q34: =F34 -> 1 | R34: =B34 -> 20 | S34: =D34 -> 16
A35: AB | B35: 18 | C35: AE | D35: =IF(G35=19,19,IF(ISBLANK(B35),"",IF(B35=19,0,36-B35))) -> 18 | E35: =IF(G35=19,0,IF(ISBLANK(B35),"",IF(B35<18,1,IF(B35=18,2,IF(B35>18,3))))) -> 2 | F35: =IF(G35=19,3,IF(ISBLANK(B35),"",IF(B35=19,0,IF(D35<18,1,IF(D35=18,2,IF(D35>=20,3)))))) -> 2 | L35: =IF(B35>D35,A35&C35,IF(D35>B35,C35&A35,"/")) -> / | N35: =A35&C35 -> ABAE | O35: =E35 -> 2 | P35: =C35&A35 -> AEAB | Q35: =F35 -> 2 | R35: =B35 -> 18 | S35: =D35 -> 18
A36: AC | B36: 20 | C36: AF | D36: =IF(G36=19,19,IF(ISBLANK(B36),"",IF(B36=19,0,36-B36))) -> 16 | E36: =IF(G36=19,0,IF(ISBLANK(B36),"",IF(B36<18,1,IF(B36=18,2,IF(B36>18,3))))) -> 3 | F36: =IF(G36=19,3,IF(ISBLANK(B36),"",IF(B36=19,0,IF(D36<18,1,IF(D36=18,2,IF(D36>=20,3)))))) -> 1 | L36: =IF(B36>D36,A36&C36,IF(D36>B36,C36&A36,"/")) -> ACAF | N36: =A36&C36 -> ACAF | O36: =E36 -> 3 | P36: =C36&A36 -> AFAC | Q36: =F36 -> 1 | R36: =B36 -> 20 | S36: =D36 -> 16
A37: AD | B37: 18 | C37: AG | D37: =IF(G37=19,19,IF(ISBLANK(B37),"",IF(B37=19,0,36-B37))) -> 18 | E37: =IF(G37=19,0,IF(ISBLANK(B37),"",IF(B37<18,1,IF(B37=18,2,IF(B37>18,3))))) -> 2 | F37: =IF(G37=19,3,IF(ISBLANK(B37),"",IF(B37=19,0,IF(D37<18,1,IF(D37=18,2,IF(D37>=20,3)))))) -> 2 | L37: =IF(B37>D37,A37&C37,IF(D37>B37,C37&A37,"/")) -> / | N37: =A37&C37 -> ADAG | O37: =E37 -> 2 | P37: =C37&A37 -> AGAD | Q37: =F37 -> 2 | R37: =B37 -> 18 | S37: =D37 -> 18
A39: 4 éme MATCH le | B39: à | C39: AD
G40: SI forfait éq recevante
A41: Equipes | B41: score | C41: Equipes | D41: score | E41: Points | F41: Points
A42: AA | B42: 20 | C42: AD | D42: =IF(G42=19,19,IF(ISBLANK(B42),"",IF(B42=19,0,36-B42))) -> 16 | E42: =IF(G42=19,0,IF(ISBLANK(B42),"",IF(B42<18,1,IF(B42=18,2,IF(B42>18,3))))) -> 3 | F42: =IF(G42=19,3,IF(ISBLANK(B42),"",IF(B42=19,0,IF(D42<18,1,IF(D42=18,2,IF(D42>=20,3)))))) -> 1 | L42: =IF(B42>D42,A42&C42,IF(D42>B42,C42&A42,"/")) -> AAAD | N42: =A42&C42 -> AAAD | O42: =E42 -> 3 | P42: =C42&A42 -> ADAA | Q42: =F42 -> 1 | R42: =B42 -> 20 | S42: =D42 -> 16
A43: AF | B43: 10 | C43: AG | D43: =IF(G43=19,19,IF(ISBLANK(B43),"",IF(B43=19,0,36-B43))) -> 26 | E43: =IF(G43=19,0,IF(ISBLANK(B43),"",IF(B43<18,1,IF(B43=18,2,IF(B43>18,3))))) -> 1 | F43: =IF(G43=19,3,IF(ISBLANK(B43),"",IF(B43=19,0,IF(D43<18,1,IF(D43=18,2,IF(D43>=20,3)))))) -> 3 | L43: =IF(B43>D43,A43&C43,IF(D43>B43,C43&A43,"/")) -> AGAF | N43: =A43&C43 -> AFAG | O43: =E43 -> 1 | P43: =C43&A43 -> AGAF | Q43: =F43 -> 3 | R43: =B43 -> 10 | S43: =D43 -> 26
A44: AB | B44: 32 | C44: AC | D44: =IF(G44=19,19,IF(ISBLANK(B44),"",IF(B44=19,0,36-B44))) -> 4 | E44: =IF(G44=19,0,IF(ISBLANK(B44),"",IF(B44<18,1,IF(B44=18,2,IF(B44>18,3))))) -> 3 | F44: =IF(G44=19,3,IF(ISBLANK(B44),"",IF(B44=19,0,IF(D44<18,1,IF(D44=18,2,IF(D44>=20,3)))))) -> 1 | L44: =IF(B44>D44,A44&C44,IF(D44>B44,C44&A44,"/")) -> ABAC | N44: =A44&C44 -> ABAC | O44: =E44 -> 3 | P44: =C44&A44 -> ACAB | Q44: =F44 -> 1 | R44: =B44 -> 32 | S44: =D44 -> 4
A45: AE | B45: 20 | C45: AH | D45: =IF(G45=19,19,IF(ISBLANK(B45),"",IF(B45=19,0,36-B45))) -> 16 | E45: =IF(G45=19,0,IF(ISBLANK(B45),"",IF(B45<18,1,IF(B45=18,2,IF(B45>18,3))))) -> 3 | F45: =IF(G45=19,3,IF(ISBLANK(B45),"",IF(B45=19,0,IF(D45<18,1,IF(D45=18,2,IF(D45>=20,3)))))) -> 1 | L45: =IF(B45>D45,A45&C45,IF(D45>B45,C45&A45,"/")) -> AEAH | N45: =A45&C45 -> AEAH | O45: =E45 -> 3 | P45: =C45&A45 -> AHAE | Q45: =F45 -> 1 | R45: =B45 -> 20 | S45: =D45 -> 16
A47: 5 éme MATCH le | B47: à | C47: AE
G48: SI forfait éq recevante
A49: Equipes | B49: score | C49: Equipes | D49: score | E49: Points | F49: Points
A50: AA | B50: 18 | C50: AF | D50: =IF(G50=19,19,IF(ISBLANK(B50),"",IF(B50=19,0,36-B50))) -> 18 | E50: =IF(G50=19,0,IF(ISBLANK(B50),"",IF(B50<18,1,IF(B50=18,2,IF(B50>18,3))))) -> 2 | F50: =IF(G50=19,3,IF(ISBLANK(B50),"",IF(B50=19,0,IF(D50<18,1,IF(D50=18,2,IF(D50>=20,3)))))) -> 2 | L50: =IF(B50>D50,A50&C50,IF(D50>B50,C50&A50,"/")) -> / | N50: =A50&C50 -> AAAF | O50: =E50 -> 2 | P50: =C50&A50 -> AFAA | Q50: =F50 -> 2 | R50: =B50 -> 18 | S50: =D50 -> 18
A51: AD | B51: 18 | C51: AH | D51: =IF(G51=19,19,IF(ISBLANK(B51),"",IF(B51=19,0,36-B51))) -> 18 | E51: =IF(G51=19,0,IF(ISBLANK(B51),"",IF(B51<18,1,IF(B51=18,2,IF(B51>18,3))))) -> 2 | F51: =IF(G51=19,3,IF(ISBLANK(B51),"",IF(B51=19,0,IF(D51<18,1,IF(D51=18,2,IF(D51>=20,3)))))) -> 2 | L51: =IF(B51>D51,A51&C51,IF(D51>B51,C51&A51,"/")) -> / | N51: =A51&C51 -> ADAH | O51: =E51 -> 2 | P51: =C51&A51 -> AHAD | Q51: =F51 -> 2 | R51: =B51 -> 18 | S51: =D51 -> 18
A52: AB | B52: 4 | C52: AG | D52: =IF(G52=19,19,IF(ISBLANK(B52),"",IF(B52=19,0,36-B52))) -> 32 | E52: =IF(G52=19,0,IF(ISBLANK(B52),"",IF(B52<18,1,IF(B52=18,2,IF(B52>18,3))))) -> 1 | F52: =IF(G52=19,3,IF(ISBLANK(B52),"",IF(B52=19,0,IF(D52<18,1,IF(D52=18,2,IF(D52>=20,3)))))) -> 3 | L52: =IF(B52>D52,A52&C52,IF(D52>B52,C52&A52,"/")) -> AGAB | N52: =A52&C52 -> ABAG | O52: =E52 -> 1 | P52: =C52&A52 -> AGAB | Q52: =F52 -> 3 | R52: =B52 -> 4 | S52: =D52 -> 32
A53: AC | B53: 20 | C53: AE | D53: =IF(G53=19,19,IF(ISBLANK(B53),"",IF(B53=19,0,36-B53))) -> 16 | E53: =IF(G53=19,0,IF(ISBLANK(B53),"",IF(B53<18,1,IF(B53=18,2,IF(B53>18,3))))) -> 3 | F53: =IF(G53=19,3,IF(ISBLANK(B53),"",IF(B53=19,0,IF(D53<18,1,IF(D53=18,2,IF(D53>=20,3)))))) -> 1 | L53: =IF(B53>D53,A53&C53,IF(D53>B53,C53&A53,"/")) -> ACAE | N53: =A53&C53 -> ACAE | O53: =E53 -> 3 | P53: =C53&A53 -> AEAC | Q53: =F53 -> 1 | R53: =B53 -> 20 | S53: =D53 -> 16
A55: 6 éme MATCH le | B55: à | C55: AF
G56: SI forfait éq recevante
A57: Equipes | B57: score | C57: Equipes | D57: score | E57: Points | F57: Points
A58: AB | B58: 30 | C58: AD | D58: =IF(G58=19,19,IF(ISBLANK(B58),"",IF(B58=19,0,36-B58))) -> 6 | E58: =IF(G58=19,0,IF(ISBLANK(B58),"",IF(B58<18,1,IF(B58=18,2,IF(B58>18,3))))) -> 3 | F58: =IF(G58=19,3,IF(ISBLANK(B58),"",IF(B58=19,0,IF(D58<18,1,IF(D58=18,2,IF(D58>=20,3)))))) -> 1 | L58: =IF(B58>D58,A58&C58,IF(D58>B58,C58&A58,"/")) -> ABAD | N58: =A58&C58 -> ABAD | O58: =E58 -> 3 | P58: =C58&A58 -> ADAB | Q58: =F58 -> 1 | R58: =B58 -> 30 | S58: =D58 -> 6
A59: AE | B59: 24 | C59: AA | D59: =IF(G59=19,19,IF(ISBLANK(B59),"",IF(B59=19,0,36-B59))) -> 12 | E59: =IF(G59=19,0,IF(ISBLANK(B59),"",IF(B59<18,1,IF(B59=18,2,IF(B59>18,3))))) -> 3 | F59: =IF(G59=19,3,IF(ISBLANK(B59),"",IF(B59=19,0,IF(D59<18,1,IF(D59=18,2,IF(D59>=20,3)))))) -> 1 | L59: =IF(B59>D59,A59&C59,IF(D59>B59,C59&A59,"/")) -> AEAA | N59: =A59&C59 -> AEAA | O59: =E59 -> 3 | P59: =C59&A59 -> AAAE | Q59: =F59 -> 1 | R59: =B59 -> 24 | S59: =D59 -> 12
A60: AG | B60: 32 | C60: AC | D60: =IF(G60=19,19,IF(ISBLANK(B60),"",IF(B60=19,0,36-B60))) -> 4 | E60: =IF(G60=19,0,IF(ISBLANK(B60),"",IF(B60<18,1,IF(B60=18,2,IF(B60>18,3))))) -> 3 | F60: =IF(G60=19,3,IF(ISBLANK(B60),"",IF(B60=19,0,IF(D60<18,1,IF(D60=18,2,IF(D60>=20,3)))))) -> 1 | L60: =IF(B60>D60,A60&C60,IF(D60>B60,C60&A60,"/")) -> AGAC | N60: =A60&C60 -> AGAC | O60: =E60 -> 3 | P60: =C60&A60 -> ACAG | Q60: =F60 -> 1 | R60: =B60 -> 32 | S60: =D60 -> 4
A61: AF | B61: 22 | C61: AH | D61: =IF(G61=19,19,IF(ISBLANK(B61),"",IF(B61=19,0,36-B61))) -> 14 | E61: =IF(G61=19,0,IF(ISBLANK(B61),"",IF(B61<18,1,IF(B61=18,2,IF(B61>18,3))))) -> 3 | F61: =IF(G61=19,3,IF(ISBLANK(B61),"",IF(B61=19,0,IF(D61<18,1,IF(D61=18,2,IF(D61>=20,3)))))) -> 1 | L61: =IF(B61>D61,A61&C61,IF(D61>B61,C61&A61,"/")) -> AFAH | N61: =A61&C61 -> AFAH | O61: =E61 -> 3 | P61: =C61&A61 -> AHAF | Q61: =F61 -> 1 | R61: =B61 -> 22 | S61: =D61 -> 14
A63: 7 éme MATCH le | B63: à | C63: AG
G64: SI forfait éq recevante
A65: Equipes | B65: score | C65: Equipes | D65: score | E65: Points | F65: Points
A66: AA | B66: 20 | C66: AG | D66: =IF(G66=19,19,IF(ISBLANK(B66),"",IF(B66=19,0,36-B66))) -> 16 | E66: =IF(G66=19,0,IF(ISBLANK(B66),"",IF(B66<18,1,IF(B66=18,2,IF(B66>18,3))))) -> 3 | F66: =IF(G66=19,3,IF(ISBLANK(B66),"",IF(B66=19,0,IF(D66<18,1,IF(D66=18,2,IF(D66>=20,3)))))) -> 1 | L66: =IF(B66>D66,A66&C66,IF(D66>B66,C66&A66,"/")) -> AAAG | N66: =A66&C66 -> AAAG | O66: =E66 -> 3 | P66: =C66&A66 -> AGAA | Q66: =F66 -> 1 | R66: =B66 -> 20 | S66: =D66 -> 16
A67: AB | B67: 12 | C67: AF | D67: =IF(G67=19,19,IF(ISBLANK(B67),"",IF(B67=19,0,36-B67))) -> 24 | E67: =IF(G67=19,0,IF(ISBLANK(B67),"",IF(B67<18,1,IF(B67=18,2,IF(B67>18,3))))) -> 1 | F67: =IF(G67=19,3,IF(ISBLANK(B67),"",IF(B67=19,0,IF(D67<18,1,IF(D67=18,2,IF(D67>=20,3)))))) -> 3 | L67: =IF(B67>D67,A67&C67,IF(D67>B67,C67&A67,"/")) -> AFAB | N67: =A67&C67 -> ABAF | O67: =E67 -> 1 | P67: =C67&A67 -> AFAB | Q67: =F67 -> 3 | R67: =B67 -> 12 | S67: =D67 -> 24
A68: AE | B68: 18 | C68: AD | D68: =IF(G68=19,19,IF(ISBLANK(B68),"",IF(B68=19,0,36-B68))) -> 18 | E68: =IF(G68=19,0,IF(ISBLANK(B68),"",IF(B68<18,1,IF(B68=18,2,IF(B68>18,3))))) -> 2 | F68: =IF(G68=19,3,IF(ISBLANK(B68),"",IF(B68=19,0,IF(D68<18,1,IF(D68=18,2,IF(D68>=20,3)))))) -> 2 | L68: =IF(B68>D68,A68&C68,IF(D68>B68,C68&A68,"/")) -> / | N68: =A68&C68 -> AEAD | O68: =E68 -> 2 | P68: =C68&A68 -> ADAE | Q68: =F68 -> 2 | R68: =B68 -> 18 | S68: =D68 -> 18
A69: AC | B69: 18 | C69: AH | D69: =IF(G69=19,19,IF(ISBLANK(B69),"",IF(B69=19,0,36-B69))) -> 19 | E69: =IF(G69=19,0,IF(ISBLANK(B69),"",IF(B69<18,1,IF(B69=18,2,IF(B69>18,3))))) -> 0 | F69: =IF(G69=19,3,IF(ISBLANK(B69),"",IF(B69=19,0,IF(D69<18,1,IF(D69=18,2,IF(D69>=20,3)))))) -> 3 | G69: 19 | L69: =IF(B69>D69,A69&C69,IF(D69>B69,C69&A69,"/")) -> AHAC | N69: =A69&C69 -> ACAH | O69: =E69 -> 0 | P69: =C69&A69 -> AHAC | Q69: =F69 -> 3 | R69: =B69 -> 18 | S69: =D69 -> 19
C70: Si pas d'exaequo | G70: Classt Final | H70: Rencontres entre exaequos
A71: EQUIPES | C71: POINTS | D71: POUR | E71: CONTRE | F71: DIFF | H71: POINTS Exaequos | I71: Exaq | J71: n° | K71: AA | L71: AB | M71: AC | N71: AD | O71: AE | P71: AF | Q71: AG | R71: AH | S71: Pts matchs | W71: 1000000*Pts matchs +1000 (Diff + abs(diff mini) )+Pour | X71: RANG | Y71: DIFF Exaequos | Z71: POUR Exaequos
A72: AF | B72: 1F | C72: 15 | D72: 128 | E72: 124 | F72: 4 | G72: 1 | H72: =IF(S72>0,S72,"") -> 9 | I72: =COUNTIF($C$72:$C$79,C72) -> 5 | J72: =IF(AND(I72>1,COUNTIFS(I$72:I72,I72,C$72:C72,C72)=1),MAX(J$71:J71)+1,"") -> 1 | K72: =IF($A72=K$71,"",IF(INDEX($C$72:$C$79,MATCH(K$71,$A$72:$A$79,0))=$C72,IFERROR(VLOOKUP($A72&K$71,$N$18:$O$69,2,0), VLOOKUP(K$71&$A72,$N$18:$Q$69,4,0)), "")) -> 2 | L72: 3 | O72: 3 | Q72: 1 | S72: =SUM(K72:R72) -> 9 | W72: =IF(I72<3,S72*1000000+(F72+ABS(MIN($F$72:$F$79)))*1000+D72,S72*1000000+U96*1000+Z72) -> 9036072 | X72: =IF(I72>2,RANK(W72,OFFSET(W$71,MATCH(I72,$I$72:$I$79,0),,I72))) -> 2 | Y72: =IF(S96=0,"",S96) ->  | Z72: =IF(S80=0,"",S80) -> 72
A73: AE | B73: 1E | C73: 15 | D73: 140 | E73: 112 | F73: 28 | G73: 2 | H73: 9 | I73: 5 | J73: =IF(AND(I73>1,COUNTIFS(I$72:I73,I73,C$72:C73,C73)=1),MAX(J$71:J72)+1,"") ->  | K73: 3 | L73: 2 | P73: 1 | Q73: 3 | S73: =SUM(K73:R73) -> 9 | W73: =IF(I73<3,S73*1000000+(F73+ABS(MIN($F$72:$F$79)))*1000+D73,S73*1000000+U97*1000+Z73) -> 9064086 | X73: =IF(I73>2,RANK(W73,OFFSET(W$71,MATCH(I73,$I$72:$I$79,0),,I73))) -> 1 | Y73: 28 | Z73: 86
A74: AG | B74: 1G | C74: 15 | D74: 150 | E74: 102 | F74: 48 | G74: 3 | H74: 8 | I74: 5 | J74: =IF(AND(I74>1,COUNTIFS(I$72:I74,I74,C$72:C74,C74)=1),MAX(J$71:J73)+1,"") ->  | K74: 1 | L74: 3 | O74: 1 | P74: 3 | S74: 8 | W74: 8056082 | X74: 3 | Y74: 20 | Z74: 82
A75: AB | B75: 1B | C75: 15 | D75: 134 | E75: 118 | F75: 16 | G75: 4 | H75: 7 | I75: 5 | J75: =IF(AND(I75>1,COUNTIFS(I$72:I75,I75,C$72:C75,C75)=1),MAX(J$71:J74)+1,"") ->  | K75: 3 | O75: 2 | P75: 1 | Q75: 1 | S75: 7 | W75: 7000054 | X75: 5 | Y75: -36 | Z75: 54
A76: AA | B76: 1A | C76: 15 | D76: 124 | E76: 128 | F76: -4 | G76: 5 | H76: 7 | I76: 5 | J76: =IF(AND(I76>1,COUNTIFS(I$72:I76,I76,C$72:C76,C76)=1),MAX(J$71:J75)+1,"") ->  | L76: 1 | O76: 1 | P76: 2 | Q76: 3 | S76: 7 | W76: 7024066 | X76: 4 | Y76: -12 | Z76: 66
A77: AC | B77: 1C | C77: 13 | D77: 114 | E77: 139 | F77: -25 | G77: 6 | I77: 1 | J77: =IF(AND(I77>1,COUNTIFS(I$72:I77,I77,C$72:C77,C77)=1),MAX(J$71:J76)+1,"") ->  | S77: 0 | W77: 27114 | X77: FALSE
A78: AH | B78: 1H | C78: 12 | D78: 119 | E78: 134 | F78: -15 | G78: 7 | I78: 1 | J78: =IF(AND(I78>1,COUNTIFS(I$72:I78,I78,C$72:C78,C78)=1),MAX(J$71:J77)+1,"") ->  | S78: 0 | W78: 37119 | X78: FALSE
A79: AD | B79: 1D | C79: 11 | D79: 100 | E79: 152 | F79: -52 | G79: 8 | I79: 1 | J79: =IF(AND(I79>1,COUNTIFS(I$72:I79,I79,C$72:C79,C79)=1),MAX(J$71:J78)+1,"") ->  | S79: 0 | W79: 100 | X79: FALSE
I80: POUR | J80: =A72 -> AF | K80: =IF($A72=K$71,"",IF(INDEX($C$72:$C$79,MATCH(K$71,$A$72:$A$79,0))=$C72,IFERROR(VLOOKUP($A72&K$71,$N$18:$R$69,5,0), VLOOKUP(K$71&$A72,$N$18:$S$69,6,0)), "")) -> 18 | L80: 24 | O80: 20 | Q80: 10 | S80: 72
J81: AE | K81: 24 | L81: 18 | P81: 16 | Q81: 28 | S81: 86
J82: AG | K82: 16 | L82: 32 | O82: 8 | P82: 26 | S82: 82
J83: AB | K83: 20 | O83: 18 | P83: 12 | Q83: 4 | S83: 54
J84: AA | L84: 16 | O84: 12 | P84: 18 | Q84: 20 | S84: 66
J85: AC | S85: 0
J86: AH | S86: 0
J87: AD | S87: 0
I88: CONTRE | J88: =J80 -> AF | K88: =INDEX($K$80:$R$87,MATCH(K$71,$J$80:$J$87,0),MATCH($J80,$K$71:$R$71,0)) -> 18 | L88: =INDEX($K$80:$R$87,MATCH(L$71,$J$80:$J$87,0),MATCH($J80,$K$71:$R$71,0)) -> 12 | O88: 16 | Q88: 26 | S88: 72
J89: =J81 -> AE | K89: =INDEX($K$80:$R$87,MATCH(K$71,$J$80:$J$87,0),MATCH($J81,$K$71:$R$71,0)) -> 12 | L89: 18 | P89: 20 | Q89: 8 | S89: 58
J90: AG | K90: 20 | L90: 4 | O90: 28 | P90: 10 | S90: 62
J91: AB | K91: 16 | O91: 18 | P91: 24 | Q91: 32 | S91: 90
J92: AA | L92: 20 | O92: 24 | P92: 18 | Q92: 16 | S92: 78
J93: AC | S93: 0
J94: AH | S94: 0
J95: AD | S95: 0 | U95: Diff pondérée
I96: DIFF | J96: =J88 -> AF | S96: =S80-S88 -> 0 | U96: =S96+ABS(MIN($S$96:$S$103)) -> 36
J97: =J89 -> AE | S97: =S81-S89 -> 28 | U97: 64
J98: AG | S98: 20 | U98: 56
J99: AB | S99: -36 | U99: 0
J100: AA | S100: -12 | U100: 24
J101: AC | S101: 0 | U101: 36
J102: AH | S102: 0 | U102: =S102+ABS(MIN($S$96:$S$103)) -> 36
J103: AD | S103: 0 | U103: =S103+ABS(MIN($S$96:$S$103)) -> 36

Sheet P14
G1: 3
A2: CHAMPIONNAT DES CLUBS
A4: POULE 1
A5: EQUIPES | C5: POINTS | D5: Pour | E5: Contre | F5: Diff
A6: AA | B6: 1A | C6: =SUMIF($A$18:$A$69,A6,$E$18:$E$69)+SUMIF($C$18:$C$69,A6,$F$18:$F$69) -> 16 | D6: =SUMIF($A$18:$A$69,$A6,$B$18:$B$69)+SUMIF($C$18:$C$69,$A6,$D$18:$D$69) -> 126 | E6: =SUMIF($C$18:$C$69,$A6,$B$18:$B$69)+SUMIF($A$18:$A$69,$A6,$D$18:$D$69) -> 126 | F6: =D6-E6 -> 0
A7: AB | B7: 1B | C7: =SUMIF($A$18:$A$69,A7,$E$18:$E$69)+SUMIF($C$18:$C$69,A7,$F$18:$F$69) -> 14 | D7: =SUMIF($A$18:$A$69,$A7,$B$18:$B$69)+SUMIF($C$18:$C$69,$A7,$D$18:$D$69) -> 132 | E7: =SUMIF($C$18:$C$69,$A7,$B$18:$B$69)+SUMIF($A$18:$A$69,$A7,$D$18:$D$69) -> 120 | F7: 12
A8: AC | B8: 1C | C8: =SUMIF($A$18:$A$69,A8,$E$18:$E$69)+SUMIF($C$18:$C$69,A8,$F$18:$F$69) -> 14 | D8: 112 | E8: 140 | F8: -28
A9: AD | B9: 1D | C9: 10 | D9: 96 | E9: 156 | F9: -60
A10: AE | B10: 1E | C10: 15 | D10: 140 | E10: 112 | F10: 28
A11: AF | B11: 1F | C11: 16 | D11: 132 | E11: 120 | F11: 12
A12: AG | B12: 1G | C12: 15 | D12: 150 | E12: 102 | F12: =D12-E12 -> 48
A13: AH | B13: 1H | C13: 12 | D13: =SUMIF($A$18:$A$69,$A13,$B$18:$B$69)+SUMIF($C$18:$C$69,$A13,$D$18:$D$69) -> 120 | E13: 132 | F13: =D13-E13 -> -12
A15: 1er MATCH le | B15: à | C15: AA
G16: SI forfait éq recevante
A17: Equipes | B17: score | C17: Equipes | D17: score | E17: Points | F17: Points
A18: AA | B18: 16 | C18: AB | D18: =IF(G18=19,19,IF(ISBLANK(B18),"",IF(B18=19,0,36-B18))) -> 20 | E18: =IF(G18=19,0,IF(ISBLANK(B18),"",IF(B18<18,1,IF(B18=18,2,IF(B18>18,3))))) -> 1 | F18: =IF(G18=19,3,IF(ISBLANK(B18),"",IF(B18=19,0,IF(D18<18,1,IF(D18=18,2,IF(D18>=20,3)))))) -> 3 | L18: =IF(B18>D18,A18&C18,IF(D18>B18,C18&A18,"/")) -> ABAA | N18: =A18&C18 -> AAAB | O18: =E18 -> 1 | P18: =C18&A18 -> ABAA | Q18: =F18 -> 3 | R18: =B18 -> 16 | S18: =D18 -> 20
A19: AC | B19: 30 | C19: AD | D19: =IF(G19=19,19,IF(ISBLANK(B19),"",IF(B19=19,0,36-B19))) -> 6 | E19: =IF(G19=19,0,IF(ISBLANK(B19),"",IF(B19<18,1,IF(B19=18,2,IF(B19>18,3))))) -> 3 | F19: =IF(G19=19,3,IF(ISBLANK(B19),"",IF(B19=19,0,IF(D19<18,1,IF(D19=18,2,IF(D19>=20,3)))))) -> 1 | L19: =IF(B19>D19,A19&C19,IF(D19>B19,C19&A19,"/")) -> ACAD | N19: =A19&C19 -> ACAD | O19: =E19 -> 3 | P19: =C19&A19 -> ADAC | Q19: =F19 -> 1 | R19: =B19 -> 30 | S19: =D19 -> 6
A20: AE | B20: 16 | C20: AF | D20: =IF(G20=19,19,IF(ISBLANK(B20),"",IF(B20=19,0,36-B20))) -> 20 | E20: =IF(G20=19,0,IF(ISBLANK(B20),"",IF(B20<18,1,IF(B20=18,2,IF(B20>18,3))))) -> 1 | F20: =IF(G20=19,3,IF(ISBLANK(B20),"",IF(B20=19,0,IF(D20<18,1,IF(D20=18,2,IF(D20>=20,3)))))) -> 3 | L20: =IF(B20>D20,A20&C20,IF(D20>B20,C20&A20,"/")) -> AFAE | N20: =A20&C20 -> AEAF | O20: =E20 -> 1 | P20: =C20&A20 -> AFAE | Q20: =F20 -> 3 | R20: =B20 -> 16 | S20: =D20 -> 20
A21: AG | B21: 18 | C21: AH | D21: =IF(G21=19,19,IF(ISBLANK(B21),"",IF(B21=19,0,36-B21))) -> 18 | E21: =IF(G21=19,0,IF(ISBLANK(B21),"",IF(B21<18,1,IF(B21=18,2,IF(B21>18,3))))) -> 2 | F21: =IF(G21=19,3,IF(ISBLANK(B21),"",IF(B21=19,0,IF(D21<18,1,IF(D21=18,2,IF(D21>=20,3)))))) -> 2 | L21: =IF(B21>D21,A21&C21,IF(D21>B21,C21&A21,"/")) -> / | N21: =A21&C21 -> AGAH | O21: =E21 -> 2 | P21: =C21&A21 -> AHAG | Q21: =F21 -> 2 | R21: =B21 -> 18 | S21: =D21 -> 18
A23: 2 éme MATCH le | B23: à | C23: AB
G24: SI forfait éq recevante
A25: Equipes | B25: score | C25: Equipes | D25: score | E25: Points | F25: Points
A26: AA | B26: 20 | C26: AC | D26: =IF(G26=19,19,IF(ISBLANK(B26),"",IF(B26=19,0,36-B26))) -> 16 | E26: =IF(G26=19,0,IF(ISBLANK(B26),"",IF(B26<18,1,IF(B26=18,2,IF(B26>18,3))))) -> 3 | F26: =IF(G26=19,3,IF(ISBLANK(B26),"",IF(B26=19,0,IF(D26<18,1,IF(D26=18,2,IF(D26>=20,3)))))) -> 1 | L26: =IF(B26>D26,A26&C26,IF(D26>B26,C26&A26,"/")) -> AAAC | N26: =A26&C26 -> AAAC | O26: =E26 -> 3 | P26: =C26&A26 -> ACAA | Q26: =F26 -> 1 | R26: =B26 -> 20 | S26: =D26 -> 16
A27: AB | B27: 16 | C27: AH | D27: =IF(G27=19,19,IF(ISBLANK(B27),"",IF(B27=19,0,36-B27))) -> 20 | E27: =IF(G27=19,0,IF(ISBLANK(B27),"",IF(B27<18,1,IF(B27=18,2,IF(B27>18,3))))) -> 1 | F27: =IF(G27=19,3,IF(ISBLANK(B27),"",IF(B27=19,0,IF(D27<18,1,IF(D27=18,2,IF(D27>=20,3)))))) -> 3 | L27: =IF(B27>D27,A27&C27,IF(D27>B27,C27&A27,"/")) -> AHAB | N27: =A27&C27 -> ABAH | O27: =E27 -> 1 | P27: =C27&A27 -> AHAB | Q27: =F27 -> 3 | R27: =B27 -> 16 | S27: =D27 -> 20
A28: AD | B28: 14 | C28: AF | D28: =IF(G28=19,19,IF(ISBLANK(B28),"",IF(B28=19,0,36-B28))) -> 22 | E28: =IF(G28=19,0,IF(ISBLANK(B28),"",IF(B28<18,1,IF(B28=18,2,IF(B28>18,3))))) -> 1 | F28: =IF(G28=19,3,IF(ISBLANK(B28),"",IF(B28=19,0,IF(D28<18,1,IF(D28=18,2,IF(D28>=20,3)))))) -> 3 | L28: =IF(B28>D28,A28&C28,IF(D28>B28,C28&A28,"/")) -> AFAD | N28: =A28&C28 -> ADAF | O28: =E28 -> 1 | P28: =C28&A28 -> AFAD | Q28: =F28 -> 3 | R28: =B28 -> 14 | S28: =D28 -> 22
A29: AE | B29: 28 | C29: AG | D29: =IF(G29=19,19,IF(ISBLANK(B29),"",IF(B29=19,0,36-B29))) -> 8 | E29: =IF(G29=19,0,IF(ISBLANK(B29),"",IF(B29<18,1,IF(B29=18,2,IF(B29>18,3))))) -> 3 | F29: =IF(G29=19,3,IF(ISBLANK(B29),"",IF(B29=19,0,IF(D29<18,1,IF(D29=18,2,IF(D29>=20,3)))))) -> 1 | L29: =IF(B29>D29,A29&C29,IF(D29>B29,C29&A29,"/")) -> AEAG | N29: =A29&C29 -> AEAG | O29: =E29 -> 3 | P29: =C29&A29 -> AGAE | Q29: =F29 -> 1 | R29: =B29 -> 28 | S29: =D29 -> 8
A31: 3 éme MATCH le | B31: à | C31: AC
G32: SI forfait éq recevante
A33: Equipes | B33: score | C33: Equipes | D33: score | E33: Points | F33: Points
A34: AA | B34: 20 | C34: AH | D34: =IF(G34=19,19,IF(ISBLANK(B34),"",IF(B34=19,0,36-B34))) -> 16 | E34: =IF(G34=19,0,IF(ISBLANK(B34),"",IF(B34<18,1,IF(B34=18,2,IF(B34>18,3))))) -> 3 | F34: =IF(G34=19,3,IF(ISBLANK(B34),"",IF(B34=19,0,IF(D34<18,1,IF(D34=18,2,IF(D34>=20,3)))))) -> 1 | L34: =IF(B34>D34,A34&C34,IF(D34>B34,C34&A34,"/")) -> AAAH | N34: =A34&C34 -> AAAH | O34: =E34 -> 3 | P34: =C34&A34 -> AHAA | Q34: =F34 -> 1 | R34: =B34 -> 20 | S34: =D34 -> 16
A35: AB | B35: 18 | C35: AE | D35: =IF(G35=19,19,IF(ISBLANK(B35),"",IF(B35=19,0,36-B35))) -> 18 | E35: =IF(G35=19,0,IF(ISBLANK(B35),"",IF(B35<18,1,IF(B35=18,2,IF(B35>18,3))))) -> 2 | F35: =IF(G35=19,3,IF(ISBLANK(B35),"",IF(B35=19,0,IF(D35<18,1,IF(D35=18,2,IF(D35>=20,3)))))) -> 2 | L35: =IF(B35>D35,A35&C35,IF(D35>B35,C35&A35,"/")) -> / | N35: =A35&C35 -> ABAE | O35: =E35 -> 2 | P35: =C35&A35 -> AEAB | Q35: =F35 -> 2 | R35: =B35 -> 18 | S35: =D35 -> 18
A36: AC | B36: 20 | C36: AF | D36: =IF(G36=19,19,IF(ISBLANK(B36),"",IF(B36=19,0,36-B36))) -> 16 | E36: =IF(G36=19,0,IF(ISBLANK(B36),"",IF(B36<18,1,IF(B36=18,2,IF(B36>18,3))))) -> 3 | F36: =IF(G36=19,3,IF(ISBLANK(B36),"",IF(B36=19,0,IF(D36<18,1,IF(D36=18,2,IF(D36>=20,3)))))) -> 1 | L36: =IF(B36>D36,A36&C36,IF(D36>B36,C36&A36,"/")) -> ACAF | N36: =A36&C36 -> ACAF | O36: =E36 -> 3 | P36: =C36&A36 -> AFAC | Q36: =F36 -> 1 | R36: =B36 -> 20 | S36: =D36 -> 16
A37: AD | B37: 18 | C37: AG | D37: =IF(G37=19,19,IF(ISBLANK(B37),"",IF(B37=19,0,36-B37))) -> 18 | E37: =IF(G37=19,0,IF(ISBLANK(B37),"",IF(B37<18,1,IF(B37=18,2,IF(B37>18,3))))) -> 2 | F37: =IF(G37=19,3,IF(ISBLANK(B37),"",IF(B37=19,0,IF(D37<18,1,IF(D37=18,2,IF(D37>=20,3)))))) -> 2 | L37: =IF(B37>D37,A37&C37,IF(D37>B37,C37&A37,"/")) -> / | N37: =A37&C37 -> ADAG | O37: =E37 -> 2 | P37: =C37&A37 -> AGAD | Q37: =F37 -> 2 | R37: =B37 -> 18 | S37: =D37 -> 18
A39: 4 éme MATCH le | B39: à | C39: AD
G40: SI forfait éq recevante
A41: Equipes | B41: score | C41: Equipes | D41: score | E41: Points | F41: Points
A42: AA | B42: 20 | C42: AD | D42: =IF(G42=19,19,IF(ISBLANK(B42),"",IF(B42=19,0,36-B42))) -> 16 | E42: =IF(G42=19,0,IF(ISBLANK(B42),"",IF(B42<18,1,IF(B42=18,2,IF(B42>18,3))))) -> 3 | F42: =IF(G42=19,3,IF(ISBLANK(B42),"",IF(B42=19,0,IF(D42<18,1,IF(D42=18,2,IF(D42>=20,3)))))) -> 1 | L42: =IF(B42>D42,A42&C42,IF(D42>B42,C42&A42,"/")) -> AAAD | N42: =A42&C42 -> AAAD | O42: =E42 -> 3 | P42: =C42&A42 -> ADAA | Q42: =F42 -> 1 | R42: =B42 -> 20 | S42: =D42 -> 16
A43: AF | B43: 10 | C43: AG | D43: =IF(G43=19,19,IF(ISBLANK(B43),"",IF(B43=19,0,36-B43))) -> 26 | E43: =IF(G43=19,0,IF(ISBLANK(B43),"",IF(B43<18,1,IF(B43=18,2,IF(B43>18,3))))) -> 1 | F43: =IF(G43=19,3,IF(ISBLANK(B43),"",IF(B43=19,0,IF(D43<18,1,IF(D43=18,2,IF(D43>=20,3)))))) -> 3 | L43: =IF(B43>D43,A43&C43,IF(D43>B43,C43&A43,"/")) -> AGAF | N43: =A43&C43 -> AFAG | O43: =E43 -> 1 | P43: =C43&A43 -> AGAF | Q43: =F43 -> 3 | R43: =B43 -> 10 | S43: =D43 -> 26
A44: AB | B44: 32 | C44: AC | D44: =IF(G44=19,19,IF(ISBLANK(B44),"",IF(B44=19,0,36-B44))) -> 4 | E44: =IF(G44=19,0,IF(ISBLANK(B44),"",IF(B44<18,1,IF(B44=18,2,IF(B44>18,3))))) -> 3 | F44: =IF(G44=19,3,IF(ISBLANK(B44),"",IF(B44=19,0,IF(D44<18,1,IF(D44=18,2,IF(D44>=20,3)))))) -> 1 | L44: =IF(B44>D44,A44&C44,IF(D44>B44,C44&A44,"/")) -> ABAC | N44: =A44&C44 -> ABAC | O44: =E44 -> 3 | P44: =C44&A44 -> ACAB | Q44: =F44 -> 1 | R44: =B44 -> 32 | S44: =D44 -> 4
A45: AE | B45: 20 | C45: AH | D45: =IF(G45=19,19,IF(ISBLANK(B45),"",IF(B45=19,0,36-B45))) -> 16 | E45: =IF(G45=19,0,IF(ISBLANK(B45),"",IF(B45<18,1,IF(B45=18,2,IF(B45>18,3))))) -> 3 | F45: =IF(G45=19,3,IF(ISBLANK(B45),"",IF(B45=19,0,IF(D45<18,1,IF(D45=18,2,IF(D45>=20,3)))))) -> 1 | L45: =IF(B45>D45,A45&C45,IF(D45>B45,C45&A45,"/")) -> AEAH | N45: =A45&C45 -> AEAH | O45: =E45 -> 3 | P45: =C45&A45 -> AHAE | Q45: =F45 -> 1 | R45: =B45 -> 20 | S45: =D45 -> 16
A47: 5 éme MATCH le | B47: à | C47: AE
G48: SI forfait éq recevante
A49: Equipes | B49: score | C49: Equipes | D49: score | E49: Points | F49: Points
A50: AA | B50: 18 | C50: AF | D50: =IF(G50=19,19,IF(ISBLANK(B50),"",IF(B50=19,0,36-B50))) -> 18 | E50: =IF(G50=19,0,IF(ISBLANK(B50),"",IF(B50<18,1,IF(B50=18,2,IF(B50>18,3))))) -> 2 | F50: =IF(G50=19,3,IF(ISBLANK(B50),"",IF(B50=19,0,IF(D50<18,1,IF(D50=18,2,IF(D50>=20,3)))))) -> 2 | L50: =IF(B50>D50,A50&C50,IF(D50>B50,C50&A50,"/")) -> / | N50: =A50&C50 -> AAAF | O50: =E50 -> 2 | P50: =C50&A50 -> AFAA | Q50: =F50 -> 2 | R50: =B50 -> 18 | S50: =D50 -> 18
A51: AD | B51: 18 | C51: AH | D51: =IF(G51=19,19,IF(ISBLANK(B51),"",IF(B51=19,0,36-B51))) -> 18 | E51: =IF(G51=19,0,IF(ISBLANK(B51),"",IF(B51<18,1,IF(B51=18,2,IF(B51>18,3))))) -> 2 | F51: =IF(G51=19,3,IF(ISBLANK(B51),"",IF(B51=19,0,IF(D51<18,1,IF(D51=18,2,IF(D51>=20,3)))))) -> 2 | L51: =IF(B51>D51,A51&C51,IF(D51>B51,C51&A51,"/")) -> / | N51: =A51&C51 -> ADAH | O51: =E51 -> 2 | P51: =C51&A51 -> AHAD | Q51: =F51 -> 2 | R51: =B51 -> 18 | S51: =D51 -> 18
A52: AB | B52: 4 | C52: AG | D52: =IF(G52=19,19,IF(ISBLANK(B52),"",IF(B52=19,0,36-B52))) -> 32 | E52: =IF(G52=19,0,IF(ISBLANK(B52),"",IF(B52<18,1,IF(B52=18,2,IF(B52>18,3))))) -> 1 | F52: =IF(G52=19,3,IF(ISBLANK(B52),"",IF(B52=19,0,IF(D52<18,1,IF(D52=18,2,IF(D52>=20,3)))))) -> 3 | L52: =IF(B52>D52,A52&C52,IF(D52>B52,C52&A52,"/")) -> AGAB | N52: =A52&C52 -> ABAG | O52: =E52 -> 1 | P52: =C52&A52 -> AGAB | Q52: =F52 -> 3 | R52: =B52 -> 4 | S52: =D52 -> 32
A53: AC | B53: 20 | C53: AE | D53: =IF(G53=19,19,IF(ISBLANK(B53),"",IF(B53=19,0,36-B53))) -> 16 | E53: =IF(G53=19,0,IF(ISBLANK(B53),"",IF(B53<18,1,IF(B53=18,2,IF(B53>18,3))))) -> 3 | F53: =IF(G53=19,3,IF(ISBLANK(B53),"",IF(B53=19,0,IF(D53<18,1,IF(D53=18,2,IF(D53>=20,3)))))) -> 1 | L53: =IF(B53>D53,A53&C53,IF(D53>B53,C53&A53,"/")) -> ACAE | N53: =A53&C53 -> ACAE | O53: =E53 -> 3 | P53: =C53&A53 -> AEAC | Q53: =F53 -> 1 | R53: =B53 -> 20 | S53: =D53 -> 16
A55: 6 éme MATCH le | B55: à | C55: AF
G56: SI forfait éq recevante
A57: Equipes | B57: score | C57: Equipes | D57: score | E57: Points | F57: Points
A58: AB | B58: 30 | C58: AD | D58: =IF(G58=19,19,IF(ISBLANK(B58),"",IF(B58=19,0,36-B58))) -> 6 | E58: =IF(G58=19,0,IF(ISBLANK(B58),"",IF(B58<18,1,IF(B58=18,2,IF(B58>18,3))))) -> 3 | F58: =IF(G58=19,3,IF(ISBLANK(B58),"",IF(B58=19,0,IF(D58<18,1,IF(D58=18,2,IF(D58>=20,3)))))) -> 1 | L58: =IF(B58>D58,A58&C58,IF(D58>B58,C58&A58,"/")) -> ABAD | N58: =A58&C58 -> ABAD | O58: =E58 -> 3 | P58: =C58&A58 -> ADAB | Q58: =F58 -> 1 | R58: =B58 -> 30 | S58: =D58 -> 6
A59: AE | B59: 24 | C59: AA | D59: =IF(G59=19,19,IF(ISBLANK(B59),"",IF(B59=19,0,36-B59))) -> 12 | E59: =IF(G59=19,0,IF(ISBLANK(B59),"",IF(B59<18,1,IF(B59=18,2,IF(B59>18,3))))) -> 3 | F59: =IF(G59=19,3,IF(ISBLANK(B59),"",IF(B59=19,0,IF(D59<18,1,IF(D59=18,2,IF(D59>=20,3)))))) -> 1 | L59: =IF(B59>D59,A59&C59,IF(D59>B59,C59&A59,"/")) -> AEAA | N59: =A59&C59 -> AEAA | O59: =E59 -> 3 | P59: =C59&A59 -> AAAE | Q59: =F59 -> 1 | R59: =B59 -> 24 | S59: =D59 -> 12
A60: AG | B60: 32 | C60: AC | D60: =IF(G60=19,19,IF(ISBLANK(B60),"",IF(B60=19,0,36-B60))) -> 4 | E60: =IF(G60=19,0,IF(ISBLANK(B60),"",IF(B60<18,1,IF(B60=18,2,IF(B60>18,3))))) -> 3 | F60: =IF(G60=19,3,IF(ISBLANK(B60),"",IF(B60=19,0,IF(D60<18,1,IF(D60=18,2,IF(D60>=20,3)))))) -> 1 | L60: =IF(B60>D60,A60&C60,IF(D60>B60,C60&A60,"/")) -> AGAC | N60: =A60&C60 -> AGAC | O60: =E60 -> 3 | P60: =C60&A60 -> ACAG | Q60: =F60 -> 1 | R60: =B60 -> 32 | S60: =D60 -> 4
A61: AF | B61: 22 | C61: AH | D61: =IF(G61=19,19,IF(ISBLANK(B61),"",IF(B61=19,0,36-B61))) -> 14 | E61: =IF(G61=19,0,IF(ISBLANK(B61),"",IF(B61<18,1,IF(B61=18,2,IF(B61>18,3))))) -> 3 | F61: =IF(G61=19,3,IF(ISBLANK(B61),"",IF(B61=19,0,IF(D61<18,1,IF(D61=18,2,IF(D61>=20,3)))))) -> 1 | L61: =IF(B61>D61,A61&C61,IF(D61>B61,C61&A61,"/")) -> AFAH | N61: =A61&C61 -> AFAH | O61: =E61 -> 3 | P61: =C61&A61 -> AHAF | Q61: =F61 -> 1 | R61: =B61 -> 22 | S61: =D61 -> 14
A63: 7 éme MATCH le | B63: à | C63: AG
G64: SI forfait éq recevante
A65: Equipes | B65: score | C65: Equipes | D65: score | E65: Points | F65: Points
A66: AA | B66: 20 | C66: AG | D66: =IF(G66=19,19,IF(ISBLANK(B66),"",IF(B66=19,0,36-B66))) -> 16 | E66: =IF(G66=19,0,IF(ISBLANK(B66),"",IF(B66<18,1,IF(B66=18,2,IF(B66>18,3))))) -> 3 | F66: =IF(G66=19,3,IF(ISBLANK(B66),"",IF(B66=19,0,IF(D66<18,1,IF(D66=18,2,IF(D66>=20,3)))))) -> 1 | L66: =IF(B66>D66,A66&C66,IF(D66>B66,C66&A66,"/")) -> AAAG | N66: =A66&C66 -> AAAG | O66: =E66 -> 3 | P66: =C66&A66 -> AGAA | Q66: =F66 -> 1 | R66: =B66 -> 20 | S66: =D66 -> 16
A67: AB | B67: 12 | C67: AF | D67: =IF(G67=19,19,IF(ISBLANK(B67),"",IF(B67=19,0,36-B67))) -> 24 | E67: =IF(G67=19,0,IF(ISBLANK(B67),"",IF(B67<18,1,IF(B67=18,2,IF(B67>18,3))))) -> 1 | F67: =IF(G67=19,3,IF(ISBLANK(B67),"",IF(B67=19,0,IF(D67<18,1,IF(D67=18,2,IF(D67>=20,3)))))) -> 3 | L67: =IF(B67>D67,A67&C67,IF(D67>B67,C67&A67,"/")) -> AFAB | N67: =A67&C67 -> ABAF | O67: =E67 -> 1 | P67: =C67&A67 -> AFAB | Q67: =F67 -> 3 | R67: =B67 -> 12 | S67: =D67 -> 24
A68: AE | B68: 18 | C68: AD | D68: =IF(G68=19,19,IF(ISBLANK(B68),"",IF(B68=19,0,36-B68))) -> 18 | E68: =IF(G68=19,0,IF(ISBLANK(B68),"",IF(B68<18,1,IF(B68=18,2,IF(B68>18,3))))) -> 2 | F68: =IF(G68=19,3,IF(ISBLANK(B68),"",IF(B68=19,0,IF(D68<18,1,IF(D68=18,2,IF(D68>=20,3)))))) -> 2 | L68: =IF(B68>D68,A68&C68,IF(D68>B68,C68&A68,"/")) -> / | N68: =A68&C68 -> AEAD | O68: =E68 -> 2 | P68: =C68&A68 -> ADAE | Q68: =F68 -> 2 | R68: =B68 -> 18 | S68: =D68 -> 18
A69: AC | B69: 18 | C69: AH | D69: =IF(G69=19,19,IF(ISBLANK(B69),"",IF(B69=19,0,36-B69))) -> 18 | E69: =IF(G69=19,0,IF(ISBLANK(B69),"",IF(B69<18,1,IF(B69=18,2,IF(B69>18,3))))) -> 2 | F69: =IF(G69=19,3,IF(ISBLANK(B69),"",IF(B69=19,0,IF(D69<18,1,IF(D69=18,2,IF(D69>=20,3)))))) -> 2 | L69: =IF(B69>D69,A69&C69,IF(D69>B69,C69&A69,"/")) -> / | N69: =A69&C69 -> ACAH | O69: =E69 -> 2 | P69: =C69&A69 -> AHAC | Q69: =F69 -> 2 | R69: =B69 -> 18 | S69: =D69 -> 18
C70: Si pas d'exaequo | G70: Classt Final | H70: Rencontres entre exaequos
A71: EQUIPES | C71: POINTS | D71: POUR | E71: CONTRE | F71: DIFF | H71: POINTS Exaequos | I71: Exaq | J71: n° | K71: AA | L71: AB | M71: AC | N71: AD | O71: AE | P71: AF | Q71: AG | R71: AH | S71: Pts matchs | W71: 1000000*Pts matchs +1000 (Diff + abs(diff mini) )+Pour | X71: RANG | Y71: DIFF Exaequos | Z71: POUR Exaequos
A72: AF | B72: 1F | C72: 16 | D72: 132 | E72: 120 | F72: 12 | G72: 1 | H72: =IF(S72>0,S72,"") -> 2 | I72: =COUNTIF($C$72:$C$79,C72) -> 2 | J72: =IF(AND(I72>1,COUNTIFS(I$72:I72,I72,C$72:C72,C72)=1),MAX(J$71:J71)+1,"") -> 1 | K72: =IF($A72=K$71,"",IF(INDEX($C$72:$C$79,MATCH(K$71,$A$72:$A$79,0))=$C72,IFERROR(VLOOKUP($A72&K$71,$N$18:$O$69,2,0), VLOOKUP(K$71&$A72,$N$18:$Q$69,4,0)), "")) -> 2 | S72: =SUM(K72:R72) -> 2 | W72: =IF(I72<3,S72*1000000+(F72+ABS(MIN($F$72:$F$79)))*1000+D72,S72*1000000+U96*1000+Z72) -> 2072132 | X72: =IF(I72>2,RANK(W72,OFFSET(W$71,MATCH(I72,$I$72:$I$79,0),,I72))) -> FALSE | Y72: =IF(S96=0,"",S96) ->  | Z72: =IF(S80=0,"",S80) -> 18
A73: AA | B73: 1A | C73: 16 | D73: 126 | E73: 126 | F73: 0 | G73: 2 | H73: =IF(S73>0,S73,"") -> 2 | I73: 2 | J73: =IF(AND(I73>1,COUNTIFS(I$72:I73,I73,C$72:C73,C73)=1),MAX(J$71:J72)+1,"") ->  | P73: 2 | S73: =SUM(K73:R73) -> 2 | W73: =IF(I73<3,S73*1000000+(F73+ABS(MIN($F$72:$F$79)))*1000+D73,S73*1000000+U97*1000+Z73) -> 2060126 | X73: =IF(I73>2,RANK(W73,OFFSET(W$71,MATCH(I73,$I$72:$I$79,0),,I73))) -> FALSE | Z73: 18
A74: AE | B74: 1E | C74: 15 | D74: 140 | E74: 112 | F74: 28 | G74: 3 | H74: =IF(S74>0,S74,"") -> 3 | I74: 2 | J74: =IF(AND(I74>1,COUNTIFS(I$72:I74,I74,C$72:C74,C74)=1),MAX(J$71:J73)+1,"") -> 2 | Q74: 3 | S74: 3 | W74: =IF(I74<3,S74*1000000+(F74+ABS(MIN($F$72:$F$79)))*1000+D74,S74*1000000+U98*1000+Z74) -> 3088140 | X74: FALSE | Y74: 20 | Z74: 28
A75: AG | B75: 1G | C75: 15 | D75: 150 | E75: 102 | F75: 48 | G75: 4 | H75: =IF(S75>0,S75,"") -> 1 | I75: 2 | J75: =IF(AND(I75>1,COUNTIFS(I$72:I75,I75,C$72:C75,C75)=1),MAX(J$71:J74)+1,"") ->  | O75: 1 | S75: 1 | W75: 1108150 | X75: FALSE | Y75: -20 | Z75: 8
A76: AB | B76: 1B | C76: 14 | D76: 132 | E76: 120 | F76: 12 | G76: 5 | H76: =IF(S76>0,S76,"") -> 3 | I76: 2 | J76: =IF(AND(I76>1,COUNTIFS(I$72:I76,I76,C$72:C76,C76)=1),MAX(J$71:J75)+1,"") -> 3 | M76: 3 | S76: 3 | W76: 3072132 | X76: FALSE | Y76: 28 | Z76: 32
A77: AC | B77: 1C | C77: 14 | D77: 112 | E77: 140 | F77: -28 | G77: 6 | H77: =IF(S77>0,S77,"") -> 1 | I77: 2 | J77: =IF(AND(I77>1,COUNTIFS(I$72:I77,I77,C$72:C77,C77)=1),MAX(J$71:J76)+1,"") ->  | L77: 1 | S77: 1 | W77: 1032112 | X77: FALSE | Y77: -28 | Z77: 4
A78: AH | B78: 1H | C78: 12 | D78: 120 | E78: 132 | F78: -12 | G78: 7 | H78: =IF(S78>0,S78,"") ->  | I78: 1 | J78: =IF(AND(I78>1,COUNTIFS(I$72:I78,I78,C$72:C78,C78)=1),MAX(J$71:J77)+1,"") ->  | S78: 0 | W78: 48120 | X78: FALSE
A79: AD | B79: 1D | C79: 10 | D79: 96 | E79: 156 | F79: -60 | G79: 8 | H79: =IF(S79>0,S79,"") ->  | I79: 1 | J79: =IF(AND(I79>1,COUNTIFS(I$72:I79,I79,C$72:C79,C79)=1),MAX(J$71:J78)+1,"") ->  | S79: 0 | W79: 96 | X79: FALSE
I80: POUR | J80: =A72 -> AF | K80: =IF($A72=K$71,"",IF(INDEX($C$72:$C$79,MATCH(K$71,$A$72:$A$79,0))=$C72,IFERROR(VLOOKUP($A72&K$71,$N$18:$R$69,5,0), VLOOKUP(K$71&$A72,$N$18:$S$69,6,0)), "")) -> 18 | S80: 18
J81: AA | P81: 18 | S81: 18
J82: AE | Q82: 28 | S82: 28
J83: AG | O83: 8 | S83: 8
J84: AB | M84: 32 | S84: 32
J85: AC | L85: 4 | S85: 4
J86: AH | S86: 0
J87: AD | S87: 0
I88: CONTRE | J88: =J80 -> AF | K88: =INDEX($K$80:$R$87,MATCH(K$71,$J$80:$J$87,0),MATCH($J80,$K$71:$R$71,0)) -> 18 | L88: =INDEX($K$80:$R$87,MATCH(L$71,$J$80:$J$87,0),MATCH($J80,$K$71:$R$71,0)) ->  | S88: 18
J89: =J81 -> AA | K89: =INDEX($K$80:$R$87,MATCH(K$71,$J$80:$J$87,0),MATCH($J81,$K$71:$R$71,0)) ->  | P89: 18 | S89: 18
J90: AE | Q90: 8 | S90: 8
J91: AG | O91: 28 | S91: 28
J92: AB | M92: 4 | S92: 4
J93: AC | L93: 32 | S93: 32
J94: AH | S94: 0
J95: AD | S95: 0 | U95: Diff pondérée
I96: DIFF | J96: =J88 -> AF | S96: =S80-S88 -> 0 | U96: =S96+ABS(MIN($S$96:$S$103)) -> 28
J97: =J89 -> AA | S97: =S81-S89 -> 0 | U97: 28
J98: AE | S98: 20 | U98: 48
J99: AG | S99: -20 | U99: 8
J100: AB | S100: 28 | U100: 56
J101: AC | S101: -28 | U101: 0
J102: AH | S102: 0 | U102: =S102+ABS(MIN($S$96:$S$103)) -> 28
J103: AD | S103: 0 | U103: =S103+ABS(MIN($S$96:$S$103)) -> 28

Sheet P15
G1: 3
A2: CHAMPIONNAT DES CLUBS
A4: POULE 1
A5: EQUIPES | C5: POINTS | D5: Pour | E5: Contre | F5: Diff
A6: AA | B6: 1A | C6: =SUMIF($A$18:$A$69,A6,$E$18:$E$69)+SUMIF($C$18:$C$69,A6,$F$18:$F$69) -> 15 | D6: =SUMIF($A$18:$A$69,$A6,$B$18:$B$69)+SUMIF($C$18:$C$69,$A6,$D$18:$D$69) -> 124 | E6: =SUMIF($C$18:$C$69,$A6,$B$18:$B$69)+SUMIF($A$18:$A$69,$A6,$D$18:$D$69) -> 128 | F6: =D6-E6 -> -4
A7: AB | B7: 1B | C7: =SUMIF($A$18:$A$69,A7,$E$18:$E$69)+SUMIF($C$18:$C$69,A7,$F$18:$F$69) -> 15 | D7: =SUMIF($A$18:$A$69,$A7,$B$18:$B$69)+SUMIF($C$18:$C$69,$A7,$D$18:$D$69) -> 132 | E7: =SUMIF($C$18:$C$69,$A7,$B$18:$B$69)+SUMIF($A$18:$A$69,$A7,$D$18:$D$69) -> 120 | F7: 12
A8: AC | B8: 1C | C8: =SUMIF($A$18:$A$69,A8,$E$18:$E$69)+SUMIF($C$18:$C$69,A8,$F$18:$F$69) -> 17 | D8: 136 | E8: 116 | F8: 20
A9: AD | B9: 1D | C9: 13 | D9: 132 | E9: 120 | F9: 12
A10: AE | B10: 1E | C10: 16 | D10: 144 | E10: 108 | F10: 36
A11: AF | B11: 1F | C11: 15 | D11: 128 | E11: 124 | F11: 4
A12: AG | B12: 1G | C12: 11 | D12: 106 | E12: 146 | F12: =D12-E12 -> -40
A13: AH | B13: 1H | C13: 10 | D13: =SUMIF($A$18:$A$69,$A13,$B$18:$B$69)+SUMIF($C$18:$C$69,$A13,$D$18:$D$69) -> 106 | E13: 146 | F13: =D13-E13 -> -40
A15: 1er MATCH le | B15: à | C15: AA
G16: SI forfait éq recevante
A17: Equipes | B17: score | C17: Equipes | D17: score | E17: Points | F17: Points
A18: AA | B18: 16 | C18: AB | D18: =IF(G18=19,19,IF(ISBLANK(B18),"",IF(B18=19,0,36-B18))) -> 20 | E18: =IF(G18=19,0,IF(ISBLANK(B18),"",IF(B18<18,1,IF(B18=18,2,IF(B18>18,3))))) -> 1 | F18: =IF(G18=19,3,IF(ISBLANK(B18),"",IF(B18=19,0,IF(D18<18,1,IF(D18=18,2,IF(D18>=20,3)))))) -> 3 | L18: =IF(B18>D18,A18&C18,IF(D18>B18,C18&A18,"/")) -> ABAA | N18: =A18&C18 -> AAAB | O18: =E18 -> 1 | P18: =C18&A18 -> ABAA | Q18: =F18 -> 3 | R18: =B18 -> 16 | S18: =D18 -> 20
A19: AC | B19: 30 | C19: AD | D19: =IF(G19=19,19,IF(ISBLANK(B19),"",IF(B19=19,0,36-B19))) -> 6 | E19: =IF(G19=19,0,IF(ISBLANK(B19),"",IF(B19<18,1,IF(B19=18,2,IF(B19>18,3))))) -> 3 | F19: =IF(G19=19,3,IF(ISBLANK(B19),"",IF(B19=19,0,IF(D19<18,1,IF(D19=18,2,IF(D19>=20,3)))))) -> 1 | L19: =IF(B19>D19,A19&C19,IF(D19>B19,C19&A19,"/")) -> ACAD | N19: =A19&C19 -> ACAD | O19: =E19 -> 3 | P19: =C19&A19 -> ADAC | Q19: =F19 -> 1 | R19: =B19 -> 30 | S19: =D19 -> 6
A20: AE | B20: 16 | C20: AF | D20: =IF(G20=19,19,IF(ISBLANK(B20),"",IF(B20=19,0,36-B20))) -> 20 | E20: =IF(G20=19,0,IF(ISBLANK(B20),"",IF(B20<18,1,IF(B20=18,2,IF(B20>18,3))))) -> 1 | F20: =IF(G20=19,3,IF(ISBLANK(B20),"",IF(B20=19,0,IF(D20<18,1,IF(D20=18,2,IF(D20>=20,3)))))) -> 3 | L20: =IF(B20>D20,A20&C20,IF(D20>B20,C20&A20,"/")) -> AFAE | N20: =A20&C20 -> AEAF | O20: =E20 -> 1 | P20: =C20&A20 -> AFAE | Q20: =F20 -> 3 | R20: =B20 -> 16 | S20: =D20 -> 20
A21: AG | B21: 18 | C21: AH | D21: =IF(G21=19,19,IF(ISBLANK(B21),"",IF(B21=19,0,36-B21))) -> 18 | E21: =IF(G21=19,0,IF(ISBLANK(B21),"",IF(B21<18,1,IF(B21=18,2,IF(B21>18,3))))) -> 2 | F21: =IF(G21=19,3,IF(ISBLANK(B21),"",IF(B21=19,0,IF(D21<18,1,IF(D21=18,2,IF(D21>=20,3)))))) -> 2 | L21: =IF(B21>D21,A21&C21,IF(D21>B21,C21&A21,"/")) -> / | N21: =A21&C21 -> AGAH | O21: =E21 -> 2 | P21: =C21&A21 -> AHAG | Q21: =F21 -> 2 | R21: =B21 -> 18 | S21: =D21 -> 18
A23: 2 éme MATCH le | B23: à | C23: AB
G24: SI forfait éq recevante
A25: Equipes | B25: score | C25: Equipes | D25: score | E25: Points | F25: Points
A26: AA | B26: 18 | C26: AC | D26: =IF(G26=19,19,IF(ISBLANK(B26),"",IF(B26=19,0,36-B26))) -> 18 | E26: =IF(G26=19,0,IF(ISBLANK(B26),"",IF(B26<18,1,IF(B26=18,2,IF(B26>18,3))))) -> 2 | F26: =IF(G26=19,3,IF(ISBLANK(B26),"",IF(B26=19,0,IF(D26<18,1,IF(D26=18,2,IF(D26>=20,3)))))) -> 2 | L26: =IF(B26>D26,A26&C26,IF(D26>B26,C26&A26,"/")) -> / | N26: =A26&C26 -> AAAC | O26: =E26 -> 2 | P26: =C26&A26 -> ACAA | Q26: =F26 -> 2 | R26: =B26 -> 18 | S26: =D26 -> 18
A27: AB | B27: 18 | C27: AH | D27: =IF(G27=19,19,IF(ISBLANK(B27),"",IF(B27=19,0,36-B27))) -> 18 | E27: =IF(G27=19,0,IF(ISBLANK(B27),"",IF(B27<18,1,IF(B27=18,2,IF(B27>18,3))))) -> 2 | F27: =IF(G27=19,3,IF(ISBLANK(B27),"",IF(B27=19,0,IF(D27<18,1,IF(D27=18,2,IF(D27>=20,3)))))) -> 2 | L27: =IF(B27>D27,A27&C27,IF(D27>B27,C27&A27,"/")) -> / | N27: =A27&C27 -> ABAH | O27: =E27 -> 2 | P27: =C27&A27 -> AHAB | Q27: =F27 -> 2 | R27: =B27 -> 18 | S27: =D27 -> 18
A28: AD | B28: 18 | C28: AF | D28: =IF(G28=19,19,IF(ISBLANK(B28),"",IF(B28=19,0,36-B28))) -> 18 | E28: =IF(G28=19,0,IF(ISBLANK(B28),"",IF(B28<18,1,IF(B28=18,2,IF(B28>18,3))))) -> 2 | F28: =IF(G28=19,3,IF(ISBLANK(B28),"",IF(B28=19,0,IF(D28<18,1,IF(D28=18,2,IF(D28>=20,3)))))) -> 2 | L28: =IF(B28>D28,A28&C28,IF(D28>B28,C28&A28,"/")) -> / | N28: =A28&C28 -> ADAF | O28: =E28 -> 2 | P28: =C28&A28 -> AFAD | Q28: =F28 -> 2 | R28: =B28 -> 18 | S28: =D28 -> 18
A29: AE | B29: 28 | C29: AG | D29: =IF(G29=19,19,IF(ISBLANK(B29),"",IF(B29=19,0,36-B29))) -> 8 | E29: =IF(G29=19,0,IF(ISBLANK(B29),"",IF(B29<18,1,IF(B29=18,2,IF(B29>18,3))))) -> 3 | F29: =IF(G29=19,3,IF(ISBLANK(B29),"",IF(B29=19,0,IF(D29<18,1,IF(D29=18,2,IF(D29>=20,3)))))) -> 1 | L29: =IF(B29>D29,A29&C29,IF(D29>B29,C29&A29,"/")) -> AEAG | N29: =A29&C29 -> AEAG | O29: =E29 -> 3 | P29: =C29&A29 -> AGAE | Q29: =F29 -> 1 | R29: =B29 -> 28 | S29: =D29 -> 8
A31: 3 éme MATCH le | B31: à | C31: AC
G32: SI forfait éq recevante
A33: Equipes | B33: score | C33: Equipes | D33: score | E33: Points | F33: Points
A34: AA | B34: 20 | C34: AH | D34: =IF(G34=19,19,IF(ISBLANK(B34),"",IF(B34=19,0,36-B34))) -> 16 | E34: =IF(G34=19,0,IF(ISBLANK(B34),"",IF(B34<18,1,IF(B34=18,2,IF(B34>18,3))))) -> 3 | F34: =IF(G34=19,3,IF(ISBLANK(B34),"",IF(B34=19,0,IF(D34<18,1,IF(D34=18,2,IF(D34>=20,3)))))) -> 1 | L34: =IF(B34>D34,A34&C34,IF(D34>B34,C34&A34,"/")) -> AAAH | N34: =A34&C34 -> AAAH | O34: =E34 -> 3 | P34: =C34&A34 -> AHAA | Q34: =F34 -> 1 | R34: =B34 -> 20 | S34: =D34 -> 16
A35: AB | B35: 18 | C35: AE | D35: =IF(G35=19,19,IF(ISBLANK(B35),"",IF(B35=19,0,36-B35))) -> 18 | E35: =IF(G35=19,0,IF(ISBLANK(B35),"",IF(B35<18,1,IF(B35=18,2,IF(B35>18,3))))) -> 2 | F35: =IF(G35=19,3,IF(ISBLANK(B35),"",IF(B35=19,0,IF(D35<18,1,IF(D35=18,2,IF(D35>=20,3)))))) -> 2 | L35: =IF(B35>D35,A35&C35,IF(D35>B35,C35&A35,"/")) -> / | N35: =A35&C35 -> ABAE | O35: =E35 -> 2 | P35: =C35&A35 -> AEAB | Q35: =F35 -> 2 | R35: =B35 -> 18 | S35: =D35 -> 18
A36: AC | B36: 20 | C36: AF | D36: =IF(G36=19,19,IF(ISBLANK(B36),"",IF(B36=19,0,36-B36))) -> 16 | E36: =IF(G36=19,0,IF(ISBLANK(B36),"",IF(B36<18,1,IF(B36=18,2,IF(B36>18,3))))) -> 3 | F36: =IF(G36=19,3,IF(ISBLANK(B36),"",IF(B36=19,0,IF(D36<18,1,IF(D36=18,2,IF(D36>=20,3)))))) -> 1 | L36: =IF(B36>D36,A36&C36,IF(D36>B36,C36&A36,"/")) -> ACAF | N36: =A36&C36 -> ACAF | O36: =E36 -> 3 | P36: =C36&A36 -> AFAC | Q36: =F36 -> 1 | R36: =B36 -> 20 | S36: =D36 -> 16
A37: AD | B37: 18 | C37: AG | D37: =IF(G37=19,19,IF(ISBLANK(B37),"",IF(B37=19,0,36-B37))) -> 18 | E37: =IF(G37=19,0,IF(ISBLANK(B37),"",IF(B37<18,1,IF(B37=18,2,IF(B37>18,3))))) -> 2 | F37: =IF(G37=19,3,IF(ISBLANK(B37),"",IF(B37=19,0,IF(D37<18,1,IF(D37=18,2,IF(D37>=20,3)))))) -> 2 | L37: =IF(B37>D37,A37&C37,IF(D37>B37,C37&A37,"/")) -> / | N37: =A37&C37 -> ADAG | O37: =E37 -> 2 | P37: =C37&A37 -> AGAD | Q37: =F37 -> 2 | R37: =B37 -> 18 | S37: =D37 -> 18
A39: 4 éme MATCH le | B39: à | C39: AD
G40: SI forfait éq recevante
A41: Equipes | B41: score | C41: Equipes | D41: score | E41: Points | F41: Points
A42: AA | B42: 20 | C42: AD | D42: =IF(G42=19,19,IF(ISBLANK(B42),"",IF(B42=19,0,36-B42))) -> 16 | E42: =IF(G42=19,0,IF(ISBLANK(B42),"",IF(B42<18,1,IF(B42=18,2,IF(B42>18,3))))) -> 3 | F42: =IF(G42=19,3,IF(ISBLANK(B42),"",IF(B42=19,0,IF(D42<18,1,IF(D42=18,2,IF(D42>=20,3)))))) -> 1 | L42: =IF(B42>D42,A42&C42,IF(D42>B42,C42&A42,"/")) -> AAAD | N42: =A42&C42 -> AAAD | O42: =E42 -> 3 | P42: =C42&A42 -> ADAA | Q42: =F42 -> 1 | R42: =B42 -> 20 | S42: =D42 -> 16
A43: AF | B43: 10 | C43: AG | D43: =IF(G43=19,19,IF(ISBLANK(B43),"",IF(B43=19,0,36-B43))) -> 26 | E43: =IF(G43=19,0,IF(ISBLANK(B43),"",IF(B43<18,1,IF(B43=18,2,IF(B43>18,3))))) -> 1 | F43: =IF(G43=19,3,IF(ISBLANK(B43),"",IF(B43=19,0,IF(D43<18,1,IF(D43=18,2,IF(D43>=20,3)))))) -> 3 | L43: =IF(B43>D43,A43&C43,IF(D43>B43,C43&A43,"/")) -> AGAF | N43: =A43&C43 -> AFAG | O43: =E43 -> 1 | P43: =C43&A43 -> AGAF | Q43: =F43 -> 3 | R43: =B43 -> 10 | S43: =D43 -> 26
A44: AB | B44: 32 | C44: AC | D44: =IF(G44=19,19,IF(ISBLANK(B44),"",IF(B44=19,0,36-B44))) -> 4 | E44: =IF(G44=19,0,IF(ISBLANK(B44),"",IF(B44<18,1,IF(B44=18,2,IF(B44>18,3))))) -> 3 | F44: =IF(G44=19,3,IF(ISBLANK(B44),"",IF(B44=19,0,IF(D44<18,1,IF(D44=18,2,IF(D44>=20,3)))))) -> 1 | L44: =IF(B44>D44,A44&C44,IF(D44>B44,C44&A44,"/")) -> ABAC | N44: =A44&C44 -> ABAC | O44: =E44 -> 3 | P44: =C44&A44 -> ACAB | Q44: =F44 -> 1 | R44: =B44 -> 32 | S44: =D44 -> 4
A45: AE | B45: 20 | C45: AH | D45: =IF(G45=19,19,IF(ISBLANK(B45),"",IF(B45=19,0,36-B45))) -> 16 | E45: =IF(G45=19,0,IF(ISBLANK(B45),"",IF(B45<18,1,IF(B45=18,2,IF(B45>18,3))))) -> 3 | F45: =IF(G45=19,3,IF(ISBLANK(B45),"",IF(B45=19,0,IF(D45<18,1,IF(D45=18,2,IF(D45>=20,3)))))) -> 1 | L45: =IF(B45>D45,A45&C45,IF(D45>B45,C45&A45,"/")) -> AEAH | N45: =A45&C45 -> AEAH | O45: =E45 -> 3 | P45: =C45&A45 -> AHAE | Q45: =F45 -> 1 | R45: =B45 -> 20 | S45: =D45 -> 16
A47: 5 éme MATCH le | B47: à | C47: AE
G48: SI forfait éq recevante
A49: Equipes | B49: score | C49: Equipes | D49: score | E49: Points | F49: Points
A50: AA | B50: 18 | C50: AF | D50: =IF(G50=19,19,IF(ISBLANK(B50),"",IF(B50=19,0,36-B50))) -> 18 | E50: =IF(G50=19,0,IF(ISBLANK(B50),"",IF(B50<18,1,IF(B50=18,2,IF(B50>18,3))))) -> 2 | F50: =IF(G50=19,3,IF(ISBLANK(B50),"",IF(B50=19,0,IF(D50<18,1,IF(D50=18,2,IF(D50>=20,3)))))) -> 2 | L50: =IF(B50>D50,A50&C50,IF(D50>B50,C50&A50,"/")) -> / | N50: =A50&C50 -> AAAF | O50: =E50 -> 2 | P50: =C50&A50 -> AFAA | Q50: =F50 -> 2 | R50: =B50 -> 18 | S50: =D50 -> 18
A51: AD | B51: 30 | C51: AH | D51: =IF(G51=19,19,IF(ISBLANK(B51),"",IF(B51=19,0,36-B51))) -> 6 | E51: =IF(G51=19,0,IF(ISBLANK(B51),"",IF(B51<18,1,IF(B51=18,2,IF(B51>18,3))))) -> 3 | F51: =IF(G51=19,3,IF(ISBLANK(B51),"",IF(B51=19,0,IF(D51<18,1,IF(D51=18,2,IF(D51>=20,3)))))) -> 1 | L51: =IF(B51>D51,A51&C51,IF(D51>B51,C51&A51,"/")) -> ADAH | N51: =A51&C51 -> ADAH | O51: =E51 -> 3 | P51: =C51&A51 -> AHAD | Q51: =F51 -> 1 | R51: =B51 -> 30 | S51: =D51 -> 6
A52: AB | B52: 26 | C52: AG | D52: =IF(G52=19,19,IF(ISBLANK(B52),"",IF(B52=19,0,36-B52))) -> 10 | E52: =IF(G52=19,0,IF(ISBLANK(B52),"",IF(B52<18,1,IF(B52=18,2,IF(B52>18,3))))) -> 3 | F52: =IF(G52=19,3,IF(ISBLANK(B52),"",IF(B52=19,0,IF(D52<18,1,IF(D52=18,2,IF(D52>=20,3)))))) -> 1 | L52: =IF(B52>D52,A52&C52,IF(D52>B52,C52&A52,"/")) -> ABAG | N52: =A52&C52 -> ABAG | O52: =E52 -> 3 | P52: =C52&A52 -> AGAB | Q52: =F52 -> 1 | R52: =B52 -> 26 | S52: =D52 -> 10
A53: AC | B53: 20 | C53: AE | D53: =IF(G53=19,19,IF(ISBLANK(B53),"",IF(B53=19,0,36-B53))) -> 16 | E53: =IF(G53=19,0,IF(ISBLANK(B53),"",IF(B53<18,1,IF(B53=18,2,IF(B53>18,3))))) -> 3 | F53: =IF(G53=19,3,IF(ISBLANK(B53),"",IF(B53=19,0,IF(D53<18,1,IF(D53=18,2,IF(D53>=20,3)))))) -> 1 | L53: =IF(B53>D53,A53&C53,IF(D53>B53,C53&A53,"/")) -> ACAE | N53: =A53&C53 -> ACAE | O53: =E53 -> 3 | P53: =C53&A53 -> AEAC | Q53: =F53 -> 1 | R53: =B53 -> 20 | S53: =D53 -> 16
A55: 6 éme MATCH le | B55: à | C55: AF
G56: SI forfait éq recevante
A57: Equipes | B57: score | C57: Equipes | D57: score | E57: Points | F57: Points
A58: AB | B58: 6 | C58: AD | D58: =IF(G58=19,19,IF(ISBLANK(B58),"",IF(B58=19,0,36-B58))) -> 30 | E58: =IF(G58=19,0,IF(ISBLANK(B58),"",IF(B58<18,1,IF(B58=18,2,IF(B58>18,3))))) -> 1 | F58: =IF(G58=19,3,IF(ISBLANK(B58),"",IF(B58=19,0,IF(D58<18,1,IF(D58=18,2,IF(D58>=20,3)))))) -> 3 | L58: =IF(B58>D58,A58&C58,IF(D58>B58,C58&A58,"/")) -> ADAB | N58: =A58&C58 -> ABAD | O58: =E58 -> 1 | P58: =C58&A58 -> ADAB | Q58: =F58 -> 3 | R58: =B58 -> 6 | S58: =D58 -> 30
A59: AE | B59: 24 | C59: AA | D59: =IF(G59=19,19,IF(ISBLANK(B59),"",IF(B59=19,0,36-B59))) -> 12 | E59: =IF(G59=19,0,IF(ISBLANK(B59),"",IF(B59<18,1,IF(B59=18,2,IF(B59>18,3))))) -> 3 | F59: =IF(G59=19,3,IF(ISBLANK(B59),"",IF(B59=19,0,IF(D59<18,1,IF(D59=18,2,IF(D59>=20,3)))))) -> 1 | L59: =IF(B59>D59,A59&C59,IF(D59>B59,C59&A59,"/")) -> AEAA | N59: =A59&C59 -> AEAA | O59: =E59 -> 3 | P59: =C59&A59 -> AAAE | Q59: =F59 -> 1 | R59: =B59 -> 24 | S59: =D59 -> 12
A60: AG | B60: 10 | C60: AC | D60: =IF(G60=19,19,IF(ISBLANK(B60),"",IF(B60=19,0,36-B60))) -> 26 | E60: =IF(G60=19,0,IF(ISBLANK(B60),"",IF(B60<18,1,IF(B60=18,2,IF(B60>18,3))))) -> 1 | F60: =IF(G60=19,3,IF(ISBLANK(B60),"",IF(B60=19,0,IF(D60<18,1,IF(D60=18,2,IF(D60>=20,3)))))) -> 3 | L60: =IF(B60>D60,A60&C60,IF(D60>B60,C60&A60,"/")) -> ACAG | N60: =A60&C60 -> AGAC | O60: =E60 -> 1 | P60: =C60&A60 -> ACAG | Q60: =F60 -> 3 | R60: =B60 -> 10 | S60: =D60 -> 26
A61: AF | B61: 22 | C61: AH | D61: =IF(G61=19,19,IF(ISBLANK(B61),"",IF(B61=19,0,36-B61))) -> 14 | E61: =IF(G61=19,0,IF(ISBLANK(B61),"",IF(B61<18,1,IF(B61=18,2,IF(B61>18,3))))) -> 3 | F61: =IF(G61=19,3,IF(ISBLANK(B61),"",IF(B61=19,0,IF(D61<18,1,IF(D61=18,2,IF(D61>=20,3)))))) -> 1 | L61: =IF(B61>D61,A61&C61,IF(D61>B61,C61&A61,"/")) -> AFAH | N61: =A61&C61 -> AFAH | O61: =E61 -> 3 | P61: =C61&A61 -> AHAF | Q61: =F61 -> 1 | R61: =B61 -> 22 | S61: =D61 -> 14
A63: 7 éme MATCH le | B63: à | C63: AG
G64: SI forfait éq recevante
A65: Equipes | B65: score | C65: Equipes | D65: score | E65: Points | F65: Points
A66: AA | B66: 20 | C66: AG | D66: =IF(G66=19,19,IF(ISBLANK(B66),"",IF(B66=19,0,36-B66))) -> 16 | E66: =IF(G66=19,0,IF(ISBLANK(B66),"",IF(B66<18,1,IF(B66=18,2,IF(B66>18,3))))) -> 3 | F66: =IF(G66=19,3,IF(ISBLANK(B66),"",IF(B66=19,0,IF(D66<18,1,IF(D66=18,2,IF(D66>=20,3)))))) -> 1 | L66: =IF(B66>D66,A66&C66,IF(D66>B66,C66&A66,"/")) -> AAAG | N66: =A66&C66 -> AAAG | O66: =E66 -> 3 | P66: =C66&A66 -> AGAA | Q66: =F66 -> 1 | R66: =B66 -> 20 | S66: =D66 -> 16
A67: AB | B67: 12 | C67: AF | D67: =IF(G67=19,19,IF(ISBLANK(B67),"",IF(B67=19,0,36-B67))) -> 24 | E67: =IF(G67=19,0,IF(ISBLANK(B67),"",IF(B67<18,1,IF(B67=18,2,IF(B67>18,3))))) -> 1 | F67: =IF(G67=19,3,IF(ISBLANK(B67),"",IF(B67=19,0,IF(D67<18,1,IF(D67=18,2,IF(D67>=20,3)))))) -> 3 | L67: =IF(B67>D67,A67&C67,IF(D67>B67,C67&A67,"/")) -> AFAB | N67: =A67&C67 -> ABAF | O67: =E67 -> 1 | P67: =C67&A67 -> AFAB | Q67: =F67 -> 3 | R67: =B67 -> 12 | S67: =D67 -> 24
A68: AE | B68: 22 | C68: AD | D68: =IF(G68=19,19,IF(ISBLANK(B68),"",IF(B68=19,0,36-B68))) -> 14 | E68: =IF(G68=19,0,IF(ISBLANK(B68),"",IF(B68<18,1,IF(B68=18,2,IF(B68>18,3))))) -> 3 | F68: =IF(G68=19,3,IF(ISBLANK(B68),"",IF(B68=19,0,IF(D68<18,1,IF(D68=18,2,IF(D68>=20,3)))))) -> 1 | L68: =IF(B68>D68,A68&C68,IF(D68>B68,C68&A68,"/")) -> AEAD | N68: =A68&C68 -> AEAD | O68: =E68 -> 3 | P68: =C68&A68 -> ADAE | Q68: =F68 -> 1 | R68: =B68 -> 22 | S68: =D68 -> 14
A69: AC | B69: 18 | C69: AH | D69: =IF(G69=19,19,IF(ISBLANK(B69),"",IF(B69=19,0,36-B69))) -> 18 | E69: =IF(G69=19,0,IF(ISBLANK(B69),"",IF(B69<18,1,IF(B69=18,2,IF(B69>18,3))))) -> 2 | F69: =IF(G69=19,3,IF(ISBLANK(B69),"",IF(B69=19,0,IF(D69<18,1,IF(D69=18,2,IF(D69>=20,3)))))) -> 2 | L69: =IF(B69>D69,A69&C69,IF(D69>B69,C69&A69,"/")) -> / | N69: =A69&C69 -> ACAH | O69: =E69 -> 2 | P69: =C69&A69 -> AHAC | Q69: =F69 -> 2 | R69: =B69 -> 18 | S69: =D69 -> 18
C70: Si pas d'exaequo | G70: Classt Final | H70: Rencontres entre exaequos
A71: EQUIPES | C71: POINTS | D71: POUR | E71: CONTRE | F71: DIFF | H71: POINTS Exaequos | I71: Exaq | J71: n° | K71: AA | L71: AB | M71: AC | N71: AD | O71: AE | P71: AF | Q71: AG | R71: AH | S71: Pts matchs | W71: 1000000*Pts matchs +1000 (Diff + abs(diff mini) )+Pour | X71: RANG | Y71: DIFF Exaequos | Z71: POUR Exaequos
A72: AC | B72: 1C | C72: 17 | D72: 136 | E72: 116 | F72: 20 | G72: 1 | H72: =IF(S72>0,S72,"") ->  | I72: =COUNTIF($C$72:$C$79,C72) -> 1 | J72: =IF(AND(I72>1,COUNTIFS(I$72:I72,I72,C$72:C72,C72)=1),MAX(J$71:J71)+1,"") ->  | K72: =IF($A72=K$71,"",IF(INDEX($C$72:$C$79,MATCH(K$71,$A$72:$A$79,0))=$C72,IFERROR(VLOOKUP($A72&K$71,$N$18:$O$69,2,0), VLOOKUP(K$71&$A72,$N$18:$Q$69,4,0)), "")) ->  | S72: =SUM(K72:R72) -> 0 | W72: =IF(I72<3,S72*1000000+(F72+ABS(MIN($F$72:$F$79)))*1000+D72,S72*1000000+U96*1000+Z72) -> 60136 | X72: =IF(I72>2,RANK(W72,OFFSET(W$71,MATCH(I72,$I$72:$I$79,0),,I72))) -> FALSE | Y72: =IF(S96=0,"",S96) ->  | Z72: =IF(S80=0,"",S80) -> 
A73: AE | B73: 1E | C73: 16 | D73: 144 | E73: 108 | F73: 36 | G73: 2 | H73: =IF(S73>0,S73,"") ->  | I73: 1 | J73: =IF(AND(I73>1,COUNTIFS(I$72:I73,I73,C$72:C73,C73)=1),MAX(J$71:J72)+1,"") ->  | S73: =SUM(K73:R73) -> 0 | W73: =IF(I73<3,S73*1000000+(F73+ABS(MIN($F$72:$F$79)))*1000+D73,S73*1000000+U97*1000+Z73) -> 76144 | X73: =IF(I73>2,RANK(W73,OFFSET(W$71,MATCH(I73,$I$72:$I$79,0),,I73))) -> FALSE
A74: AF | B74: 1F | C74: 15 | D74: 128 | E74: 124 | F74: 4 | G74: 3 | H74: =IF(S74>0,S74,"") -> 5 | I74: 3 | J74: =IF(AND(I74>1,COUNTIFS(I$72:I74,I74,C$72:C74,C74)=1),MAX(J$71:J73)+1,"") -> 1 | K74: 2 | L74: 3 | S74: 5 | W74: 5020042 | X74: 1 | Y74: 12 | Z74: 42
A75: AB | B75: 1B | C75: 15 | D75: 132 | E75: 120 | F75: 12 | G75: 4 | H75: =IF(S75>0,S75,"") -> 4 | I75: 3 | J75: =IF(AND(I75>1,COUNTIFS(I$72:I75,I75,C$72:C75,C75)=1),MAX(J$71:J74)+1,"") ->  | K75: 3 | P75: 1 | S75: 4 | W75: 4000032 | X75: 2 | Y75: -8 | Z75: 32
A76: AA | B76: 1A | C76: 15 | D76: 124 | E76: 128 | F76: -4 | G76: 5 | H76: =IF(S76>0,S76,"") -> 3 | I76: 3 | J76: =IF(AND(I76>1,COUNTIFS(I$72:I76,I76,C$72:C76,C76)=1),MAX(J$71:J75)+1,"") ->  | L76: 1 | P76: 2 | S76: 3 | W76: 3004034 | X76: 3 | Y76: -4 | Z76: 34
A77: AD | B77: 1D | C77: 13 | D77: 132 | E77: 120 | F77: 12 | G77: 6 | H77: =IF(S77>0,S77,"") ->  | I77: 1 | J77: =IF(AND(I77>1,COUNTIFS(I$72:I77,I77,C$72:C77,C77)=1),MAX(J$71:J76)+1,"") ->  | S77: 0 | W77: 52132 | X77: FALSE
A78: AG | B78: 1G | C78: 11 | D78: 106 | E78: 146 | F78: -40 | G78: 7 | H78: =IF(S78>0,S78,"") ->  | I78: 1 | J78: =IF(AND(I78>1,COUNTIFS(I$72:I78,I78,C$72:C78,C78)=1),MAX(J$71:J77)+1,"") ->  | S78: 0 | W78: 106 | X78: FALSE
A79: AH | B79: 1H | C79: 10 | D79: 106 | E79: 146 | F79: -40 | G79: 8 | H79: =IF(S79>0,S79,"") ->  | I79: 1 | J79: =IF(AND(I79>1,COUNTIFS(I$72:I79,I79,C$72:C79,C79)=1),MAX(J$71:J78)+1,"") ->  | S79: 0 | W79: 106 | X79: FALSE
I80: POUR | J80: =A72 -> AC | K80: =IF($A72=K$71,"",IF(INDEX($C$72:$C$79,MATCH(K$71,$A$72:$A$79,0))=$C72,IFERROR(VLOOKUP($A72&K$71,$N$18:$R$69,5,0), VLOOKUP(K$71&$A72,$N$18:$S$69,6,0)), "")) ->  | S80: 0
J81: AE | S81: 0
J82: AF | K82: 18 | L82: 24 | S82: 42
J83: AB | K83: 20 | P83: 12 | S83: 32
J84: AA | L84: 16 | P84: 18 | S84: 34
J85: AD | S85: 0
J86: AG | S86: 0
J87: AH | S87: 0
I88: CONTRE | J88: =J80 -> AC | K88: =INDEX($K$80:$R$87,MATCH(K$71,$J$80:$J$87,0),MATCH($J80,$K$71:$R$71,0)) ->  | L88: =INDEX($K$80:$R$87,MATCH(L$71,$J$80:$J$87,0),MATCH($J80,$K$71:$R$71,0)) ->  | S88: 0
J89: =J81 -> AE | K89: =INDEX($K$80:$R$87,MATCH(K$71,$J$80:$J$87,0),MATCH($J81,$K$71:$R$71,0)) ->  | S89: 0
J90: AF | K90: 18 | L90: 12 | S90: 30
J91: AB | K91: 16 | P91: 24 | S91: 40
J92: AA | L92: 20 | P92: 18 | S92: 38
J93: AD | S93: 0
J94: AG | S94: 0
J95: AH | S95: 0 | U95: Diff pondérée
I96: DIFF | J96: =J88 -> AC | S96: =S80-S88 -> 0 | U96: =S96+ABS(MIN($S$96:$S$103)) -> 8
J97: =J89 -> AE | S97: =S81-S89 -> 0 | U97: 8
J98: AF | S98: 12 | U98: 20
J99: AB | S99: -8 | U99: 0
J100: AA | S100: -4 | U100: 4
J101: AD | S101: 0 | U101: 8
J102: AG | S102: 0 | U102: =S102+ABS(MIN($S$96:$S$103)) -> 8
J103: AH | S103: 0 | U103: =S103+ABS(MIN($S$96:$S$103)) -> 8

Sheet P16
G1: 3
A2: CHAMPIONNAT DES CLUBS
A4: POULE 1
A5: EQUIPES | C5: POINTS | D5: Pour | E5: Contre | F5: Diff
A6: AA | B6: 1A | C6: =SUMIF($A$18:$A$69,A6,$E$18:$E$69)+SUMIF($C$18:$C$69,A6,$F$18:$F$69) -> 15 | D6: =SUMIF($A$18:$A$69,$A6,$B$18:$B$69)+SUMIF($C$18:$C$69,$A6,$D$18:$D$69) -> 124 | E6: =SUMIF($C$18:$C$69,$A6,$B$18:$B$69)+SUMIF($A$18:$A$69,$A6,$D$18:$D$69) -> 128 | F6: =D6-E6 -> -4
A7: AB | B7: 1B | C7: =SUMIF($A$18:$A$69,A7,$E$18:$E$69)+SUMIF($C$18:$C$69,A7,$F$18:$F$69) -> 15 | D7: =SUMIF($A$18:$A$69,$A7,$B$18:$B$69)+SUMIF($C$18:$C$69,$A7,$D$18:$D$69) -> 134 | E7: =SUMIF($C$18:$C$69,$A7,$B$18:$B$69)+SUMIF($A$18:$A$69,$A7,$D$18:$D$69) -> 118 | F7: 16
A8: AC | B8: 1C | C8: =SUMIF($A$18:$A$69,A8,$E$18:$E$69)+SUMIF($C$18:$C$69,A8,$F$18:$F$69) -> 15 | D8: 114 | E8: 138 | F8: -24
A9: AD | B9: 1D | C9: 11 | D9: 100 | E9: 152 | F9: -52
A10: AE | B10: 1E | C10: 15 | D10: 140 | E10: 112 | F10: 28
A11: AF | B11: 1F | C11: 15 | D11: 128 | E11: 124 | F11: 4
A12: AG | B12: 1G | C12: 15 | D12: 150 | E12: 102 | F12: =D12-E12 -> 48
A13: AH | B13: 1H | C13: 11 | D13: =SUMIF($A$18:$A$69,$A13,$B$18:$B$69)+SUMIF($C$18:$C$69,$A13,$D$18:$D$69) -> 118 | E13: 134 | F13: =D13-E13 -> -16
A15: 1er MATCH le | B15: à | C15: AA
G16: SI forfait éq recevante
A17: Equipes | B17: score | C17: Equipes | D17: score | E17: Points | F17: Points
A18: AA | B18: 16 | C18: AB | D18: =IF(G18=19,19,IF(ISBLANK(B18),"",IF(B18=19,0,36-B18))) -> 20 | E18: =IF(G18=19,0,IF(ISBLANK(B18),"",IF(B18<18,1,IF(B18=18,2,IF(B18>18,3))))) -> 1 | F18: =IF(G18=19,3,IF(ISBLANK(B18),"",IF(B18=19,0,IF(D18<18,1,IF(D18=18,2,IF(D18>=20,3)))))) -> 3 | L18: =IF(B18>D18,A18&C18,IF(D18>B18,C18&A18,"/")) -> ABAA | N18: =A18&C18 -> AAAB | O18: =E18 -> 1 | P18: =C18&A18 -> ABAA | Q18: =F18 -> 3 | R18: =B18 -> 16 | S18: =D18 -> 20
A19: AC | B19: 30 | C19: AD | D19: =IF(G19=19,19,IF(ISBLANK(B19),"",IF(B19=19,0,36-B19))) -> 6 | E19: =IF(G19=19,0,IF(ISBLANK(B19),"",IF(B19<18,1,IF(B19=18,2,IF(B19>18,3))))) -> 3 | F19: =IF(G19=19,3,IF(ISBLANK(B19),"",IF(B19=19,0,IF(D19<18,1,IF(D19=18,2,IF(D19>=20,3)))))) -> 1 | L19: =IF(B19>D19,A19&C19,IF(D19>B19,C19&A19,"/")) -> ACAD | N19: =A19&C19 -> ACAD | O19: =E19 -> 3 | P19: =C19&A19 -> ADAC | Q19: =F19 -> 1 | R19: =B19 -> 30 | S19: =D19 -> 6
A20: AE | B20: 16 | C20: AF | D20: =IF(G20=19,19,IF(ISBLANK(B20),"",IF(B20=19,0,36-B20))) -> 20 | E20: =IF(G20=19,0,IF(ISBLANK(B20),"",IF(B20<18,1,IF(B20=18,2,IF(B20>18,3))))) -> 1 | F20: =IF(G20=19,3,IF(ISBLANK(B20),"",IF(B20=19,0,IF(D20<18,1,IF(D20=18,2,IF(D20>=20,3)))))) -> 3 | L20: =IF(B20>D20,A20&C20,IF(D20>B20,C20&A20,"/")) -> AFAE | N20: =A20&C20 -> AEAF | O20: =E20 -> 1 | P20: =C20&A20 -> AFAE | Q20: =F20 -> 3 | R20: =B20 -> 16 | S20: =D20 -> 20
A21: AG | B21: 18 | C21: AH | D21: =IF(G21=19,19,IF(ISBLANK(B21),"",IF(B21=19,0,36-B21))) -> 18 | E21: =IF(G21=19,0,IF(ISBLANK(B21),"",IF(B21<18,1,IF(B21=18,2,IF(B21>18,3))))) -> 2 | F21: =IF(G21=19,3,IF(ISBLANK(B21),"",IF(B21=19,0,IF(D21<18,1,IF(D21=18,2,IF(D21>=20,3)))))) -> 2 | L21: =IF(B21>D21,A21&C21,IF(D21>B21,C21&A21,"/")) -> / | N21: =A21&C21 -> AGAH | O21: =E21 -> 2 | P21: =C21&A21 -> AHAG | Q21: =F21 -> 2 | R21: =B21 -> 18 | S21: =D21 -> 18
A23: 2 éme MATCH le | B23: à | C23: AB
G24: SI forfait éq recevante
A25: Equipes | B25: score | C25: Equipes | D25: score | E25: Points | F25: Points
A26: AA | B26: 18 | C26: AC | D26: =IF(G26=19,19,IF(ISBLANK(B26),"",IF(B26=19,0,36-B26))) -> 18 | E26: =IF(G26=19,0,IF(ISBLANK(B26),"",IF(B26<18,1,IF(B26=18,2,IF(B26>18,3))))) -> 2 | F26: =IF(G26=19,3,IF(ISBLANK(B26),"",IF(B26=19,0,IF(D26<18,1,IF(D26=18,2,IF(D26>=20,3)))))) -> 2 | L26: =IF(B26>D26,A26&C26,IF(D26>B26,C26&A26,"/")) -> / | N26: =A26&C26 -> AAAC | O26: =E26 -> 2 | P26: =C26&A26 -> ACAA | Q26: =F26 -> 2 | R26: =B26 -> 18 | S26: =D26 -> 18
A27: AB | B27: 18 | C27: AH | D27: =IF(G27=19,19,IF(ISBLANK(B27),"",IF(B27=19,0,36-B27))) -> 18 | E27: =IF(G27=19,0,IF(ISBLANK(B27),"",IF(B27<18,1,IF(B27=18,2,IF(B27>18,3))))) -> 2 | F27: =IF(G27=19,3,IF(ISBLANK(B27),"",IF(B27=19,0,IF(D27<18,1,IF(D27=18,2,IF(D27>=20,3)))))) -> 2 | L27: =IF(B27>D27,A27&C27,IF(D27>B27,C27&A27,"/")) -> / | N27: =A27&C27 -> ABAH | O27: =E27 -> 2 | P27: =C27&A27 -> AHAB | Q27: =F27 -> 2 | R27: =B27 -> 18 | S27: =D27 -> 18
A28: AD | B28: 18 | C28: AF | D28: =IF(G28=19,19,IF(ISBLANK(B28),"",IF(B28=19,0,36-B28))) -> 18 | E28: =IF(G28=19,0,IF(ISBLANK(B28),"",IF(B28<18,1,IF(B28=18,2,IF(B28>18,3))))) -> 2 | F28: =IF(G28=19,3,IF(ISBLANK(B28),"",IF(B28=19,0,IF(D28<18,1,IF(D28=18,2,IF(D28>=20,3)))))) -> 2 | L28: =IF(B28>D28,A28&C28,IF(D28>B28,C28&A28,"/")) -> / | N28: =A28&C28 -> ADAF | O28: =E28 -> 2 | P28: =C28&A28 -> AFAD | Q28: =F28 -> 2 | R28: =B28 -> 18 | S28: =D28 -> 18
A29: AE | B29: 28 | C29: AG | D29: =IF(G29=19,19,IF(ISBLANK(B29),"",IF(B29=19,0,36-B29))) -> 8 | E29: =IF(G29=19,0,IF(ISBLANK(B29),"",IF(B29<18,1,IF(B29=18,2,IF(B29>18,3))))) -> 3 | F29: =IF(G29=19,3,IF(ISBLANK(B29),"",IF(B29=19,0,IF(D29<18,1,IF(D29=18,2,IF(D29>=20,3)))))) -> 1 | L29: =IF(B29>D29,A29&C29,IF(D29>B29,C29&A29,"/")) -> AEAG | N29: =A29&C29 -> AEAG | O29: =E29 -> 3 | P29: =C29&A29 -> AGAE | Q29: =F29 -> 1 | R29: =B29 -> 28 | S29: =D29 -> 8
A31: 3 éme MATCH le | B31: à | C31: AC
G32: SI forfait éq recevante
A33: Equipes | B33: score | C33: Equipes | D33: score | E33: Points | F33: Points
A34: AA | B34: 20 | C34: AH | D34: =IF(G34=19,19,IF(ISBLANK(B34),"",IF(B34=19,0,36-B34))) -> 16 | E34: =IF(G34=19,0,IF(ISBLANK(B34),"",IF(B34<18,1,IF(B34=18,2,IF(B34>18,3))))) -> 3 | F34: =IF(G34=19,3,IF(ISBLANK(B34),"",IF(B34=19,0,IF(D34<18,1,IF(D34=18,2,IF(D34>=20,3)))))) -> 1 | L34: =IF(B34>D34,A34&C34,IF(D34>B34,C34&A34,"/")) -> AAAH | N34: =A34&C34 -> AAAH | O34: =E34 -> 3 | P34: =C34&A34 -> AHAA | Q34: =F34 -> 1 | R34: =B34 -> 20 | S34: =D34 -> 16
A35: AB | B35: 18 | C35: AE | D35: =IF(G35=19,19,IF(ISBLANK(B35),"",IF(B35=19,0,36-B35))) -> 18 | E35: =IF(G35=19,0,IF(ISBLANK(B35),"",IF(B35<18,1,IF(B35=18,2,IF(B35>18,3))))) -> 2 | F35: =IF(G35=19,3,IF(ISBLANK(B35),"",IF(B35=19,0,IF(D35<18,1,IF(D35=18,2,IF(D35>=20,3)))))) -> 2 | L35: =IF(B35>D35,A35&C35,IF(D35>B35,C35&A35,"/")) -> / | N35: =A35&C35 -> ABAE | O35: =E35 -> 2 | P35: =C35&A35 -> AEAB | Q35: =F35 -> 2 | R35: =B35 -> 18 | S35: =D35 -> 18
A36: AC | B36: 20 | C36: AF | D36: =IF(G36=19,19,IF(ISBLANK(B36),"",IF(B36=19,0,36-B36))) -> 16 | E36: =IF(G36=19,0,IF(ISBLANK(B36),"",IF(B36<18,1,IF(B36=18,2,IF(B36>18,3))))) -> 3 | F36: =IF(G36=19,3,IF(ISBLANK(B36),"",IF(B36=19,0,IF(D36<18,1,IF(D36=18,2,IF(D36>=20,3)))))) -> 1 | L36: =IF(B36>D36,A36&C36,IF(D36>B36,C36&A36,"/")) -> ACAF | N36: =A36&C36 -> ACAF | O36: =E36 -> 3 | P36: =C36&A36 -> AFAC | Q36: =F36 -> 1 | R36: =B36 -> 20 | S36: =D36 -> 16
A37: AD | B37: 18 | C37: AG | D37: =IF(G37=19,19,IF(ISBLANK(B37),"",IF(B37=19,0,36-B37))) -> 18 | E37: =IF(G37=19,0,IF(ISBLANK(B37),"",IF(B37<18,1,IF(B37=18,2,IF(B37>18,3))))) -> 2 | F37: =IF(G37=19,3,IF(ISBLANK(B37),"",IF(B37=19,0,IF(D37<18,1,IF(D37=18,2,IF(D37>=20,3)))))) -> 2 | L37: =IF(B37>D37,A37&C37,IF(D37>B37,C37&A37,"/")) -> / | N37: =A37&C37 -> ADAG | O37: =E37 -> 2 | P37: =C37&A37 -> AGAD | Q37: =F37 -> 2 | R37: =B37 -> 18 | S37: =D37 -> 18
A39: 4 éme MATCH le | B39: à | C39: AD
G40: SI forfait éq recevante
A41: Equipes | B41: score | C41: Equipes | D41: score | E41: Points | F41: Points
A42: AA | B42: 20 | C42: AD | D42: =IF(G42=19,19,IF(ISBLANK(B42),"",IF(B42=19,0,36-B42))) -> 16 | E42: =IF(G42=19,0,IF(ISBLANK(B42),"",IF(B42<18,1,IF(B42=18,2,IF(B42>18,3))))) -> 3 | F42: =IF(G42=19,3,IF(ISBLANK(B42),"",IF(B42=19,0,IF(D42<18,1,IF(D42=18,2,IF(D42>=20,3)))))) -> 1 | L42: =IF(B42>D42,A42&C42,IF(D42>B42,C42&A42,"/")) -> AAAD | N42: =A42&C42 -> AAAD | O42: =E42 -> 3 | P42: =C42&A42 -> ADAA | Q42: =F42 -> 1 | R42: =B42 -> 20 | S42: =D42 -> 16
A43: AF | B43: 10 | C43: AG | D43: =IF(G43=19,19,IF(ISBLANK(B43),"",IF(B43=19,0,36-B43))) -> 26 | E43: =IF(G43=19,0,IF(ISBLANK(B43),"",IF(B43<18,1,IF(B43=18,2,IF(B43>18,3))))) -> 1 | F43: =IF(G43=19,3,IF(ISBLANK(B43),"",IF(B43=19,0,IF(D43<18,1,IF(D43=18,2,IF(D43>=20,3)))))) -> 3 | L43: =IF(B43>D43,A43&C43,IF(D43>B43,C43&A43,"/")) -> AGAF | N43: =A43&C43 -> AFAG | O43: =E43 -> 1 | P43: =C43&A43 -> AGAF | Q43: =F43 -> 3 | R43: =B43 -> 10 | S43: =D43 -> 26
A44: AB | B44: 32 | C44: AC | D44: =IF(G44=19,19,IF(ISBLANK(B44),"",IF(B44=19,0,36-B44))) -> 4 | E44: =IF(G44=19,0,IF(ISBLANK(B44),"",IF(B44<18,1,IF(B44=18,2,IF(B44>18,3))))) -> 3 | F44: =IF(G44=19,3,IF(ISBLANK(B44),"",IF(B44=19,0,IF(D44<18,1,IF(D44=18,2,IF(D44>=20,3)))))) -> 1 | L44: =IF(B44>D44,A44&C44,IF(D44>B44,C44&A44,"/")) -> ABAC | N44: =A44&C44 -> ABAC | O44: =E44 -> 3 | P44: =C44&A44 -> ACAB | Q44: =F44 -> 1 | R44: =B44 -> 32 | S44: =D44 -> 4
A45: AE | B45: 20 | C45: AH | D45: =IF(G45=19,19,IF(ISBLANK(B45),"",IF(B45=19,0,36-B45))) -> 16 | E45: =IF(G45=19,0,IF(ISBLANK(B45),"",IF(B45<18,1,IF(B45=18,2,IF(B45>18,3))))) -> 3 | F45: =IF(G45=19,3,IF(ISBLANK(B45),"",IF(B45=19,0,IF(D45<18,1,IF(D45=18,2,IF(D45>=20,3)))))) -> 1 | L45: =IF(B45>D45,A45&C45,IF(D45>B45,C45&A45,"/")) -> AEAH | N45: =A45&C45 -> AEAH | O45: =E45 -> 3 | P45: =C45&A45 -> AHAE | Q45: =F45 -> 1 | R45: =B45 -> 20 | S45: =D45 -> 16
A47: 5 éme MATCH le | B47: à | C47: AE
G48: SI forfait éq recevante
A49: Equipes | B49: score | C49: Equipes | D49: score | E49: Points | F49: Points
A50: AA | B50: 18 | C50: AF | D50: =IF(G50=19,19,IF(ISBLANK(B50),"",IF(B50=19,0,36-B50))) -> 18 | E50: =IF(G50=19,0,IF(ISBLANK(B50),"",IF(B50<18,1,IF(B50=18,2,IF(B50>18,3))))) -> 2 | F50: =IF(G50=19,3,IF(ISBLANK(B50),"",IF(B50=19,0,IF(D50<18,1,IF(D50=18,2,IF(D50>=20,3)))))) -> 2 | L50: =IF(B50>D50,A50&C50,IF(D50>B50,C50&A50,"/")) -> / | N50: =A50&C50 -> AAAF | O50: =E50 -> 2 | P50: =C50&A50 -> AFAA | Q50: =F50 -> 2 | R50: =B50 -> 18 | S50: =D50 -> 18
A51: AD | B51: 18 | C51: AH | D51: =IF(G51=19,19,IF(ISBLANK(B51),"",IF(B51=19,0,36-B51))) -> 18 | E51: =IF(G51=19,0,IF(ISBLANK(B51),"",IF(B51<18,1,IF(B51=18,2,IF(B51>18,3))))) -> 2 | F51: =IF(G51=19,3,IF(ISBLANK(B51),"",IF(B51=19,0,IF(D51<18,1,IF(D51=18,2,IF(D51>=20,3)))))) -> 2 | L51: =IF(B51>D51,A51&C51,IF(D51>B51,C51&A51,"/")) -> / | N51: =A51&C51 -> ADAH | O51: =E51 -> 2 | P51: =C51&A51 -> AHAD | Q51: =F51 -> 2 | R51: =B51 -> 18 | S51: =D51 -> 18
A52: AB | B52: 4 | C52: AG | D52: =IF(G52=19,19,IF(ISBLANK(B52),"",IF(B52=19,0,36-B52))) -> 32 | E52: =IF(G52=19,0,IF(ISBLANK(B52),"",IF(B52<18,1,IF(B52=18,2,IF(B52>18,3))))) -> 1 | F52: =IF(G52=19,3,IF(ISBLANK(B52),"",IF(B52=19,0,IF(D52<18,1,IF(D52=18,2,IF(D52>=20,3)))))) -> 3 | L52: =IF(B52>D52,A52&C52,IF(D52>B52,C52&A52,"/")) -> AGAB | N52: =A52&C52 -> ABAG | O52: =E52 -> 1 | P52: =C52&A52 -> AGAB | Q52: =F52 -> 3 | R52: =B52 -> 4 | S52: =D52 -> 32
A53: AC | B53: 20 | C53: AE | D53: =IF(G53=19,19,IF(ISBLANK(B53),"",IF(B53=19,0,36-B53))) -> 16 | E53: =IF(G53=19,0,IF(ISBLANK(B53),"",IF(B53<18,1,IF(B53=18,2,IF(B53>18,3))))) -> 3 | F53: =IF(G53=19,3,IF(ISBLANK(B53),"",IF(B53=19,0,IF(D53<18,1,IF(D53=18,2,IF(D53>=20,3)))))) -> 1 | L53: =IF(B53>D53,A53&C53,IF(D53>B53,C53&A53,"/")) -> ACAE | N53: =A53&C53 -> ACAE | O53: =E53 -> 3 | P53: =C53&A53 -> AEAC | Q53: =F53 -> 1 | R53: =B53 -> 20 | S53: =D53 -> 16
A55: 6 éme MATCH le | B55: à | C55: AF
G56: SI forfait éq recevante
A57: Equipes | B57: score | C57: Equipes | D57: score | E57: Points | F57: Points
A58: AB | B58: 30 | C58: AD | D58: =IF(G58=19,19,IF(ISBLANK(B58),"",IF(B58=19,0,36-B58))) -> 6 | E58: =IF(G58=19,0,IF(ISBLANK(B58),"",IF(B58<18,1,IF(B58=18,2,IF(B58>18,3))))) -> 3 | F58: =IF(G58=19,3,IF(ISBLANK(B58),"",IF(B58=19,0,IF(D58<18,1,IF(D58=18,2,IF(D58>=20,3)))))) -> 1 | L58: =IF(B58>D58,A58&C58,IF(D58>B58,C58&A58,"/")) -> ABAD | N58: =A58&C58 -> ABAD | O58: =E58 -> 3 | P58: =C58&A58 -> ADAB | Q58: =F58 -> 1 | R58: =B58 -> 30 | S58: =D58 -> 6
A59: AE | B59: 24 | C59: AA | D59: =IF(G59=19,19,IF(ISBLANK(B59),"",IF(B59=19,0,36-B59))) -> 12 | E59: =IF(G59=19,0,IF(ISBLANK(B59),"",IF(B59<18,1,IF(B59=18,2,IF(B59>18,3))))) -> 3 | F59: =IF(G59=19,3,IF(ISBLANK(B59),"",IF(B59=19,0,IF(D59<18,1,IF(D59=18,2,IF(D59>=20,3)))))) -> 1 | L59: =IF(B59>D59,A59&C59,IF(D59>B59,C59&A59,"/")) -> AEAA | N59: =A59&C59 -> AEAA | O59: =E59 -> 3 | P59: =C59&A59 -> AAAE | Q59: =F59 -> 1 | R59: =B59 -> 24 | S59: =D59 -> 12
A60: AG | B60: 32 | C60: AC | D60: =IF(G60=19,19,IF(ISBLANK(B60),"",IF(B60=19,0,36-B60))) -> 4 | E60: =IF(G60=19,0,IF(ISBLANK(B60),"",IF(B60<18,1,IF(B60=18,2,IF(B60>18,3))))) -> 3 | F60: =IF(G60=19,3,IF(ISBLANK(B60),"",IF(B60=19,0,IF(D60<18,1,IF(D60=18,2,IF(D60>=20,3)))))) -> 1 | L60: =IF(B60>D60,A60&C60,IF(D60>B60,C60&A60,"/")) -> AGAC | N60: =A60&C60 -> AGAC | O60: =E60 -> 3 | P60: =C60&A60 -> ACAG | Q60: =F60 -> 1 | R60: =B60 -> 32 | S60: =D60 -> 4
